Workbook

Sheet Assumptions
B4: Property Description
B5: Name | C5: Sample Development Deal
B6: Address | C6: Sample Address
B7: City, State | C7: Sample City and State
B8: Zip | C8: Sample Zip Code
B10: Square Footage - Detailed Breakdown
C12: Market-Rate Units | D12: Retail/Commercial | E12: TOTAL
B13: Net Rentable Square Feet | C13: =G196 -> 141360 | D13: 0 | E13: =C13+D13 -> 141360
B14: BOH & Circulation | C14: =145000-C13 -> 3640 | D14: 0 | E14: =C14+D14 -> 3640
B15: Amenities | C15: 0 | D15: 0 | E15: =C15+D15 -> 0
B16: Retail | C16: 0 | D16: 0 | E16: =C16+D16 -> 0
B17: Other | C17: 0 | D17: 0 | E17: =C17+D17 -> 0
B18: Subtotal GSF | C18: =SUM(C13:C17) -> 145000 | D18: =SUM(D13:D17) -> 0 | E18: =SUM(E13:E17) -> 145000
B20: Parking | C20: 0 | D20: 0 | E20: =C20+D20 -> 0
B21: Total GSF Including Parking | C21: =C18+C20 -> 145000 | D21: =D18+D20 -> 0 | E21: =E18+E20 -> 145000
B24: Units and Beds - Breakdown by Type
B25: Total Units | C25: =C198 -> 95
B26: Market-Rate | C26: =C196 -> 95 | D26: =C26/$C$25 -> 1
B27: Placeholder | C27: =C197 -> 0 | D27: =C27/$C$25 -> 0
B28: Total Beds | C28: =E198 -> 323
B29: Market-Rate | C29: =E196 -> 323 | D29: =C29/$C$28 -> 1
B30: Placeholder | C30: =E197 -> 0 | D30: =C30/$C$28 -> 0
B32: Parking Details
B33: Parking Spaces | C33: 238
B34: Parking Ratio (per unit) | C34: =C33/C25 -> 2.505263158
G35: Lease-Up | H35: =ROUNDDOWN(C41/12,0)+1 -> 3
G36: Stabilization | H36: =H35+1 -> 4
B37: Events - Timing | C37: Start | D37: End | E37: Start Date | F37: End Date | G37: Length | H37: CF Legend
B38: Capital Closing | C38: 0 | D38: =C38 -> 0 | E38: 2022-01-01 | F38: =EOMONTH(E38,0) -> 2022-01-31 | G38: - | H38: CAPITAL
B39: Pre-Construction | C39: =C38+1 -> 1 | D39: =C39+G39-1 -> 12 | E39: =F38+1 -> 2022-02-01 | F39: =EOMONTH($E$38,D39) -> 2023-01-31 | G39: 12 | H39: PRE CONST
B40: Construction | C40: =D39+1 -> 13 | D40: =C40+G40-1 -> 24 | E40: =F39+1 -> 2023-02-01 | F40: =EOMONTH($E$38,D40) -> 2024-01-31 | G40: 12 | H40: CONST
B41: Lease-Up | C41: =D40+1 -> 25 | D41: =C41+G41-1 -> 36 | E41: =F40+1 -> 2024-02-01 | F41: =EOMONTH($E$38,D41) -> 2025-01-31 | G41: =ROUNDUP(((C25-C43)/C44),0)+1 -> 12 | H41: LEASEUP | XFD41: Y
B42: First Market-Rate Units Occupied | C42: =C41 -> 25 | D42: =C42 -> 25 | E42: =E41 -> 2024-02-01 | F42: =EOMONTH($E$38,D42) -> 2024-02-29 | G42: - | XFD42: N
B43: # Market-Rate Units Leased at Opening | C43: 0 | G43: -
B44: # Market-Rate Unit Lease-Up Per Month | C44: 9 | G44: -
B45: Retail/Commercial Space Occupied | C45: =C42 -> 25 | D45: =C45 -> 25 | E45: =EOMONTH(F45,-1)+1 -> 2024-02-01 | F45: =EOMONTH($E$38,D45) -> 2024-02-29 | G45: -
B46: Stabilization | C46: =D41+1 -> 37 | D46: =C46+G46-1 -> 48 | E46: =F41+1 -> 2025-02-01 | F46: =EOMONTH($E$38,D46) -> 2026-01-31 | G46: 12 | H46: STABL
B47: Post Stabilization | C47: =D46+1 -> 49 | D47: =C48-1 -> 59 | E47: =F46+1 -> 2026-02-01 | F47: =EOMONTH($E$38,D47) -> 2026-12-31 | G47: =D47-C47 -> 10 | H47: POST STAB
B48: Sale | C48: =C104 -> 60 | D48: =C48 -> 60 | E48: =EOMONTH(F48,-1)+1 -> 2027-01-01 | F48: =EOMONTH($E$38,D48) -> 2027-01-31 | G48: - | H48: SALE
M52: project cost allocation
B53: Development Summary | C53: % | D53: $ AMOUNT | E53: $/UNIT | F53: $/BED | G53: $/GSF | J53: MARKET-RATE UNITS | K53: RETAIL/COMMERCIAL | M53: MARKET-RATE UNITS | N53: RETAIL/COMMERCIAL | O53: must equal 100%
B54: Land Costs | C54: =D54/$D$59 -> 0.03604976618 | D54: =E122 -> 600000 | E54: =D54/$C$25 -> 6315.789474 | F54: =D54/$C$28 -> 1857.585139 | G54: =D54/$E$21 -> 4.137931034 | J54: =K121 -> 600000 | K54: =L121 -> 0 | M54: =N121 -> 1 | N54: =O121 -> 0 | O54: =M54+N54 -> 1
B55: Hard Costs | C55: =D55/$D$59 -> 0.8066884925 | D55: =E135 -> 13426247.85 | E55: =D55/$C$25 -> 141328.9247 | F55: =D55/$C$28 -> 41567.33079 | G55: =D55/$E$21 -> 92.59481273 | J55: =K135 -> 13426247.85 | K55: =L135 -> 0 | M55: =N135 -> 1 | N55: =O135 -> 0 | O55: 1
B56: Owner's Contingency | C56: =D56/$D$59 -> 0 | D56: =E137 -> 0 | E56: =D56/$C$25 -> 0 | F56: =D56/$C$28 -> 0 | G56: 0 | J56: =K137 -> 0 | K56: =L137 -> 0 | M56: =N137 -> 1 | N56: =O137 -> 0 | O56: 1
B57: Soft Costs | C57: =D57/$D$59 -> 0.1269385568 | D57: =E168 -> 2112722 | E57: =D57/$C$25 -> 22239.17895 | F57: =D57/$C$28 -> 6540.934985 | G57: 14.57049655 | J57: =K168 -> 2112722 | K57: =L168 -> 0 | M57: =N168 -> 1 | N57: =O168 -> 0 | O57: 1
B58: Project Carry Costs | C58: =D58/$D$59 -> 0.03032318451 | D58: =IntCarry+AmFeeReserve -> 504688.7299 | E58: =D58/$C$25 -> 5312.512947 | F58: =D58/$C$28 -> 1562.503808 | G58: 3.480611931 | J58: =SUM(K171:K172) -> 504688.7299 | K58: =SUM(L171:L172) -> 0 | M58: =J58/D58 -> 1 | N58: =K58/D58 -> 0 | O58: 1
B59: Total Cost | C59: =SUM(C54:C58) -> 1 | D59: =SUM(D54:D58) -> 16643658.58 | E59: =SUM(E54:E58) -> 175196.4061 | F59: =SUM(F54:F58) -> 51528.35472 | G59: =SUM(G54:G58) -> 114.7838522 | J59: =SUM(J54:J58) -> 16643658.58 | K59: =SUM(K54:K58) -> 0 | M59: =J59/$D59 -> 1 | N59: =K59/$D59 -> 0 | O59: 1
B62: Capital Structure | C62: % | D62: $ AMOUNT | E62: $/UNIT | F62: $/BED | G62: $/GSF
B63: Construction Loan | C63: 0.75 | D63: =C63*D59 -> 12482743.93 | E63: =D63/$C$25 -> 131397.3045 | F63: =D63/$C$28 -> 38646.26604 | G63: =D63/$E$21 -> 86.08788919
A64: =1-A65 -> 0.99 | B64: ="Limited Partner Equity ("&TEXT(A64,"0%")&")" -> Limited Partner Equity (99%) | C64: =D64/D67 -> 0.2475 | D64: =D66*A64 -> 4119305.498 | E64: =D64/$C$25 -> 43361.1105 | F64: =D64/$C$28 -> 12753.26779 | G64: =D64/$E$21 -> 28.40900343
A65: 0.01 | B65: ="Sponsor Equity ("&TEXT(A65,"0%")&")" -> Sponsor Equity (1%) | C65: =D65/D67 -> 0.0025 | D65: =D66-D64 -> 41609.14644 | E65: =D65/$C$25 -> 437.9910152 | F65: =D65/$C$28 -> 128.8208868 | G65: 0.2869596306
B66: Total Equity | C66: =1-C63 -> 0.25 | D66: =D59-D63 -> 4160914.644 | E66: =D66/$C$25 -> 43799.10152 | F66: =D66/$C$28 -> 12882.08868 | G66: 28.69596306
B67: Total Capitalization | C67: =SUM(C63:C65) -> 1 | D67: =D63+D66 -> 16643658.58 | E67: =E63+E66 -> 175196.4061 | F67: =F63+F66 -> 51528.35472 | G67: =G63+G66 -> 114.7838522
B70: Construction Financing Assumptions
B71: Loan Amount | C71: =D63 -> 12482743.93
B72: Term | C72: 60
B73: Interest Only Term | C73: 60
B74: Amortization | C74: 360
B75: Spread | C75: 0.06
B76: LIBOR | C76: 0
B77: All-In Interest Rate | C77: =SUM(C75:C76) -> 0.06
B78: LIBOR Monthly Increase | C78: 0
B79: Interest Carry Run Rate | C79: =C77 -> 0.06
B82: Stabilization
B83: Stabilization Month | C83: =C46 -> 37
B84: Stabilization Year | C84: =INT((11+C83)/12) -> 4
B85: Implied Stabilized Cap | C85: 0.0475
B88: Permanent Financing Assumptions | D88: Refinance? | E88: Yes | F88: <-- toggle
B89: Refinance Date | C89: =IF(E88="Yes",C90,150) -> 37
B90: Refinance Date | C90: =C83 -> 37
B91: Refinance Amount | C91: =C99*C96 -> 17774171.34
B92: Term | C92: 120
B93: Interest Only Term | C93: 36
B94: Amortization | C94: 360
B95: All-In Interest Rate | C95: 0.045
B96: LTV | C96: 0.75
B97: Forward CFO | C97: ='Monthly & Annual CFs'!D59 -> 1125697.518
B98: Implied Cap Rate at Refinance | C98: 0.0475
B99: Value at Refinance | C99: =C97/C98 -> 23698895.12
B100: Refinance Cost | C100: 0.01
B103: Reversion
B104: Reversion Month | C104: 60
B105: Hold Period | C105: =INT((11+C104)/12) -> 5
B106: Reversion Cap | C106: 0.05
B107: Sale Costs | C107: 0.03
B110: Asset Management Fee | E110: Asset Management Fee
B111: Annual % (of Limited Partner Equity) | C111: 0 | E111: % of EGI | F111: 0.02
B112: Annual $ | C112: =C111*D64 -> 0 | E112: Total AM Fee | F112: =SUMIFS('Monthly & Annual Proforma'!49:49,'Monthly & Annual Proforma'!5:5,"<="&Assumptions!$C$104)*Assumptions!$F$111 -> 97006.16269 | G112: (over total hold period)
K117: Market-Rate Units & Retail/Commercial --> Project Cost Breakout & Allocation
B118: Development Budget
N119: input project cost allocation here
B120: LAND COSTS | K120: MARKET-RATE UNITS | L120: RETAIL/COMMERCIAL | N120: MARKET-RATE UNITS | O120: RETAIL/COMMERCIAL | P120: must equal 100%
B121: Land Acquisition Costs | E121: 600000 | K121: =$E121*N121 -> 600000 | L121: =$E121*O121 -> 0 | N121: 1 | O121: 0 | P121: =N121+O121 -> 1
B122: Total Land Costs | E122: =E121 -> 600000 | K122: =K121 -> 600000 | L122: =L121 -> 0 | N122: =K122/$E122 -> 1 | O122: =L122/$E122 -> 0 | P122: =N122+O122 -> 1
B124: HARD COSTS
B125: Direct Construction Cost - Item #1 | C125: Total $ Amount | D125: 12205679.86 | E125: =IF(C125="Total $ Amount",D125,D125*$E$21) -> 12205679.86 | K125: =$E125*N125 -> 12205679.86 | L125: =$E125*O125 -> 0 | N125: 1 | O125: 0 | P125: =N125+O125 -> 1
B126: Direct Construction Cost - Item #2 | C126: Total $ Amount | D126: 0 | E126: 0 | K126: 0 | L126: 0 | N126: 1 | O126: 0 | P126: 1
B127: Direct Construction Cost - Item #3 | C127: Total $ Amount | D127: 0 | E127: 0 | K127: 0 | L127: 0 | N127: 1 | O127: 0 | P127: 1
B128: Direct Construction Cost - Item #4 | C128: Total $ Amount | D128: 0 | E128: 0 | K128: 0 | L128: 0 | N128: 1 | O128: 0 | P128: 1
B129: Direct Construction Cost - Item #5 | C129: Total $ Amount | D129: 0 | E129: 0 | K129: 0 | L129: 0 | N129: 1 | O129: 0 | P129: 1
A130: 0 | B130: General Liability | D130: =SUM(D$125:D$129)*$A130 -> 0 | E130: =SUM(E$125:E$129)*$A130 -> 0 | K130: 0 | L130: 0 | N130: 1 | O130: 0 | P130: 1
A131: 0 | B131: Builder's Risk Ins. | D131: =SUM(D$125:D$129)*$A131 -> 0 | E131: =SUM(E$125:E$129)*$A131 -> 0 | K131: 0 | L131: 0 | N131: 1 | O131: 0 | P131: 1
A132: 0.05 | B132: Contractor's Fee | D132: =SUM(D$125:D$129)*$A132 -> 610283.993 | E132: =SUM(E$125:E$129)*$A132 -> 610283.993 | K132: 610283.993 | L132: 0 | N132: 1 | O132: 0 | P132: 1
A133: 0.05 | B133: Contractor's Contingency | D133: 610283.993 | E133: 610283.993 | K133: 610283.993 | L133: 0 | N133: 1 | O133: 0 | P133: 1
A134: 0 | B134: Payment & Performance Bond | D134: =SUM(D$125:D$129)*$A134 -> 0 | E134: 0 | K134: 0 | L134: 0 | N134: 1 | O134: 0 | P134: 1
B135: Subtotal | E135: =SUM(E125:E134) -> 13426247.85 | K135: =SUM(K125:K134) -> 13426247.85 | L135: =SUM(L125:L134) -> 0 | N135: =IFERROR(K135/$E135,0) -> 1 | O135: =IFERROR(L135/$E135,0) -> 0 | P135: 1
A137: 0 | B137: Owners Hard Costs Contingency | E137: =E135*A137 -> 0 | K137: =$E137*N137 -> 0 | L137: =$E137*O137 -> 0 | N137: 1 | O137: 0 | P137: =N137+O137 -> 1
B138: Total Hard Costs | E138: =E135+E137 -> 13426247.85 | K138: =K137+K135 -> 13426247.85 | L138: =L137+L135 -> 0 | N138: =IFERROR(K138/$E138,0) -> 1 | O138: =IFERROR(L138/$E138,0) -> 0 | P138: =N138+O138 -> 1
F140: Soft Cost Allocation Timeline | N140: input project cost allocation here
B141: SOFT COSTS | C141: Detailed $ Amounts | D141: 0.2072298833 | F141: Month Start | G141: Month Finish | H141: Total Length | K141: MARKET-RATE UNITS | L141: RETAIL/COMMERCIAL | N141: MARKET-RATE UNITS | O141: RETAIL/COMMERCIAL | P141: must equal 100%
B142: Plans & Engineering | D142: 237500 | E142: =IF($C$141="Detailed $ Amounts",D142,0) -> 237500 | F142: 1 | G142: 12 | H142: =G142-F142+1 -> 12 | K142: =$E142*N142 -> 237500 | L142: =$E142*O142 -> 0 | N142: 1 | O142: 0 | P142: =N142+O142 -> 1
B143: Surveyor | D143: 43600 | E143: 43600 | F143: 1 | G143: 12 | H143: 12 | K143: 43600 | L143: 0 | N143: 1 | O143: 0 | P143: 1
B144: Permits/Impact Fees | D144: 351500 | E144: 351500 | F144: 1 | G144: 12 | H144: 12 | K144: 351500 | L144: 0 | N144: 1 | O144: 0 | P144: 1
B145: Property Taxes | D145: 142500 | E145: 142500 | F145: 1 | G145: 24 | H145: 24 | K145: 142500 | L145: 0 | N145: 1 | O145: 0 | P145: 1
B146: Insurance | D146: 147150 | E146: 147150 | F146: 1 | G146: 24 | H146: 24 | K146: 147150 | L146: 0 | N146: 1 | O146: 0 | P146: 1
B147: Closing Cost/Loan Fee | D147: 54500 | E147: 54500 | F147: 1 | G147: 1 | H147: 1 | K147: 54500 | L147: 0 | N147: 1 | O147: 0 | P147: 1
B148: Interest Reserve | C148: ($0 b/c model auto calcs below) | D148: 0 | E148: 0 | F148: 1 | G148: 1 | H148: 1 | K148: 0 | L148: 0 | N148: 1 | O148: 0 | P148: 1
B149: Contingency Budget | D149: 348800 | E149: 348800 | F149: 1 | G149: 24 | H149: 24 | K149: 348800 | L149: 0 | N149: 1 | O149: 0 | P149: 1
B150: Developer Fee (GC) | D150: 671312 | E150: 671312 | F150: 24 | G150: 24 | H150: 1 | K150: 671312 | L150: 0 | N150: 1 | O150: 0 | P150: 1
B151: Operating/Start-Up Costs | D151: 57000 | E151: 57000 | F151: 7 | G151: 24 | H151: 18 | K151: 57000 | L151: 0 | N151: 1 | O151: 0 | P151: 1
B152: Designer/FF&E | D152: 21800 | E152: 21800 | F152: 13 | G152: 24 | H152: 12 | K152: 21800 | L152: 0 | N152: 1 | O152: 0 | P152: 1
B153: Third Party Reports | D153: 37060 | E153: 37060 | F153: 1 | G153: 12 | H153: 12 | K153: 37060 | L153: 0 | N153: 1 | O153: 0 | P153: 1
B154: Soft Cost Item #13 | D154: 0 | E154: 0 | F154: 7 | G154: 24 | H154: 18 | K154: 0 | L154: 0 | N154: 1 | O154: 0 | P154: 1
B155: Soft Cost Item #14 | D155: 0 | E155: 0 | F155: 7 | G155: 24 | H155: 18 | K155: 0 | L155: 0 | N155: 1 | O155: 0 | P155: 1
B156: Soft Cost Item #15 | D156: 0 | E156: 0 | F156: 7 | G156: 24 | H156: 18 | K156: 0 | L156: 0 | N156: 1 | O156: 0 | P156: 1
B157: Soft Cost Item #16 | D157: 0 | E157: 0 | F157: 7 | G157: 24 | H157: 18 | K157: 0 | L157: 0 | N157: 1 | O157: 0 | P157: 1
B158: Soft Cost Item #17 | D158: 0 | E158: 0 | F158: 7 | G158: 24 | H158: 18 | K158: 0 | L158: 0 | N158: 1 | O158: 0 | P158: 1
B159: Soft Cost Item #18 | D159: 0 | E159: 0 | F159: 7 | G159: 24 | H159: 18 | K159: 0 | L159: 0 | N159: 1 | O159: 0 | P159: 1
B160: Soft Cost Item #19 | D160: 0 | E160: 0 | F160: 7 | G160: 24 | H160: 18 | K160: 0 | L160: 0 | N160: 1 | O160: 0 | P160: 1
B161: Soft Cost Item #20 | D161: 0 | E161: 0 | F161: 7 | G161: 24 | H161: 18 | K161: 0 | L161: 0 | N161: 1 | O161: 0 | P161: 1
B162: Soft Cost Item #21 | D162: 0 | E162: 0 | F162: 7 | G162: 24 | H162: 18 | K162: 0 | L162: 0 | N162: 1 | O162: 0 | P162: 1
B163: Soft Cost Item #22 | D163: 0 | E163: 0 | F163: 7 | G163: 24 | H163: 18 | K163: 0 | L163: 0 | N163: 1 | O163: 0 | P163: 1
B164: Soft Cost Item #23 | D164: 0 | E164: 0 | F164: 7 | G164: 24 | H164: 18 | K164: 0 | L164: 0 | N164: 1 | O164: 0 | P164: 1
B165: Soft Cost Item #24 | D165: 0 | E165: 0 | F165: 7 | G165: 24 | H165: 18 | K165: 0 | L165: 0 | N165: 1 | O165: 0 | P165: 1
B166: Soft Cost Item #25 | D166: 0 | E166: 0 | F166: 7 | G166: 24 | H166: 18 | K166: 0 | L166: 0 | N166: 1 | O166: 0 | P166: 1
B167: Soft Costs Contingency / % of Hard Costs Toggle | D167: 0 | E167: =IF($C$141="Detailed $ Amounts",D167,D141*E138) -> 0 | F167: 7 | G167: 24 | H167: 18 | K167: 0 | L167: 0 | N167: 1 | O167: 0 | P167: 1
B168: Total Soft Costs | E168: =SUM(E142:OFFSET(E168,-1,0)) -> 2112722 | K168: =SUM(K142:K167) -> 2112722 | L168: =SUM(L142:L167) -> 0 | N168: =IFERROR(K168/$E168,0) -> 1 | O168: =IFERROR(L168/$E168,0) -> 0 | P168: 1
B170: PROJECT CARRY COSTS
B171: Interest Carry (Senior Loan) | E171: 504688.655 | K171: =$E171*N171 -> 504688.655 | L171: =$E171*O171 -> 0 | N171: 1 | O171: 0 | P171: =N171+O171 -> 1
B172: AM Fee Carry/Reserve | E172: 0.07496146811 | F172: =_xlfn.MINIFS('Monthly & Annual Proforma'!5:5,'Monthly & Annual Proforma'!97:97,">0") ->  | G172: =_xlfn.MAXIFS('Monthly & Annual Proforma'!5:5,'Monthly & Annual Proforma'!97:97,">0") ->  | H172: =G172-F172+1 ->  | K172: 0.07496146811 | L172: 0 | N172: 1 | O172: 0 | P172: =N172+O172 -> 1
B174: TOTAL DEVELOPMENT COSTS | E174: =E122+E138+E168+IntCarry+AmFeeReserve -> 16643658.58 | K174: =K122+K138+K168+K171+K172 -> 16643658.58 | L174: =L122+L138+L168+L171+L172 -> 0 | N174: =K174/$E174 -> 1 | O174: =L174/$E174 -> 0 | P174: =N174+O174 -> 1
E177: =ROUND(E171-'Draw Schedule'!D79,0) ->  | F177: interest carry calibration (must be 0)
E178: =ROUND(E172-'Monthly & Annual Proforma'!B97,0) -> 0 | F178: AM fee reserve calibration (must be 0)
A183: Unit Mix Detail
H185: Current Untrended Market Rents (Year 1)
K186: Monthly | L186: Annual
H187: Average | I187: Average | J187: Average | K187: Total | L187: Total
C188: Unit | D188: # of Beds | E188: Bedroom | F188: Avg. | G188: Total | H188: Rent | I188: Rent | J188: Rent | K188: Average | L188: Average
A189: Unit Type | B189: Unit Description | C189: Count | D189: Per Unit | E189: Count | F189: SF/Unit | G189: SF | H189: Per Unit | I189: Per Bed | J189: Per SF | K189: Rent | L189: Rent
A190: Market | B190: 3 Bed / 3 Bath | C190: 57 | D190: 3 | E190: =C190*D190 -> 171 | F190: 1358 | G190: =F190*C190 -> 77406 | H190: 1400 | I190: =IFERROR(H190/D190,0) -> 466.6666667 | J190: =IFERROR(H190/F190,0) -> 1.030927835 | K190: =H190*C190 -> 79800 | L190: =K190*12 -> 957600
A191: Market | B191: 4 Bed / 4 Bath | C191: 38 | D191: 4 | E191: =C191*D191 -> 152 | F191: 1683 | G191: 63954 | H191: 1500 | I191: =IFERROR(H191/D191,0) -> 375 | J191: =IFERROR(H191/F191,0) -> 0.8912655971 | K191: 57000 | L191: 684000
A192: Market | C192: 0 | D192: 0 | E192: =C192*D192 -> 0 | F192: 0 | G192: 0 | H192: 0 | I192: 0 | J192: 0 | K192: 0 | L192: =K192*12 -> 0
A193: Market | C193: 0 | D193: 0 | E193: =C193*D193 -> 0 | F193: 0 | G193: 0 | H193: 0 | I193: =IFERROR(H193/D193,0) -> 0 | J193: 0 | K193: 0 | L193: 0
A194: Market | C194: 0 | D194: 0 | E194: =C194*D194 -> 0 | F194: 0 | G194: 0 | H194: 0 | I194: 0 | J194: 0 | K194: 0 | L194: 0
A195: Market | C195: 0 | D195: 0 | E195: 0 | F195: 0 | G195: 0 | H195: 0 | I195: 0 | J195: 0 | K195: 0 | L195: 0
A196: Market-Rate Unit Total / Average | C196: =SUMIFS(C$190:C$195,$A$190:$A$195,'dropdown lists'!$B$2) -> 95 | D196: =IFERROR(SUMPRODUCT(--($A$190:$A$195='dropdown lists'!$B$2),C190:C195,D190:D195)/$C$196,0) -> 3.4 | E196: =SUMIFS(E$190:E$195,$A$190:$A$195,'dropdown lists'!$B$2) -> 323 | F196: =IFERROR(SUMPRODUCT(--($A$190:$A$195='dropdown lists'!$B$2),C190:C195,F190:F195)/$C$196,0) -> 1488 | G196: =SUMIFS(G$190:G$195,$A$190:$A$195,'dropdown lists'!$B$2) -> 141360 | H196: =IFERROR(SUMPRODUCT(--($A$190:$A$195='dropdown lists'!$B$2),C190:C195,H190:H195)/$C$196,0) -> 1440 | I196: =IFERROR(SUMPRODUCT(--($A$190:$A$195='dropdown lists'!$B$2),E190:E195,I190:I195)/$E$196,0) -> 423.5294118 | J196: =IFERROR(SUMPRODUCT(--($A$190:$A$195='dropdown lists'!$B$2),G190:G195,J190:J195)/$G$196,0) -> 0.9677419355 | K196: =SUMIFS(K$190:K$195,$A$190:$A$195,'dropdown lists'!$B$2) -> 136800 | L196: =SUMIFS(L$190:L$195,$A$190:$A$195,'dropdown lists'!$B$2) -> 1641600 | M196: =L196/$L$198 -> 1
C197: =SUMIFS(C$190:C$195,$A$190:$A$195,'dropdown lists'!$B$3) -> 0 | D197: =IFERROR(SUMPRODUCT(--($A$190:$A$195='dropdown lists'!$B$3),C190:C195,D190:D195)/$C$197,0) -> 0 | E197: =SUMIFS(E$190:E$195,$A$190:$A$195,'dropdown lists'!$B$3) -> 0 | F197: =IFERROR(SUMPRODUCT(--($A$190:$A$195='dropdown lists'!$B$3),C190:C195,F190:F195)/$C$197,0) -> 0 | G197: =SUMIFS(G$190:G$195,$A$190:$A$195,'dropdown lists'!$B$3) -> 0 | H197: =IFERROR(SUMPRODUCT(--($A$190:$A$195='dropdown lists'!$B$3),C190:C195,H190:H195)/$C$197,0) -> 0 | I197: =IFERROR(SUMPRODUCT(--($A$190:$A$195='dropdown lists'!$B$3),E190:E195,I190:I195)/$E$197,0) -> 0 | J197: =IFERROR(SUMPRODUCT(--($A$190:$A$195='dropdown lists'!$B$3),G190:G195,J190:J195)/$G$197,0) -> 0 | K197: =SUMIFS(K$190:K$195,$A$190:$A$195,'dropdown lists'!$B$3) -> 0 | L197: =SUMIFS(L$190:L$195,$A$190:$A$195,'dropdown lists'!$B$3) -> 0 | M197: =L197/$L$198 -> 0
A198: Total / Average | C198: =SUM(C190:C195) -> 95 | D198: =SUMPRODUCT($C$190:$C$195,D190:D195)/$C$198 -> 3.4 | E198: =SUM(E190:E195) -> 323 | F198: =SUMPRODUCT($C$190:$C$195,F190:F195)/$C$198 -> 1488 | G198: =SUM(G190:G195) -> 141360 | H198: =SUMPRODUCT($C$190:$C$195,H190:H195)/$C$198 -> 1440 | I198: =SUMPRODUCT($E$190:$E$195,I190:I195)/$E$198 -> 423.5294118 | J198: =SUMPRODUCT($G$190:$G$195,J190:J195)/$G$198 -> 0.9677419355 | K198: =SUM(K190:K195) -> 136800 | L198: =SUM(L190:L195) -> 1641600
K202: Market-Rate Units & Retail/Commercial --> Other Income and Expense Breakout & Allocation
B203: Operating Budget (1st Year Operating Budget during Lease-Up/Stabilization)
N204: input Other Income allocation here
B205: Other Income | D205: Total Amount $ | E205: $ / Unit | F205: $ / Bed | G205: Notes/Comments | K205: MARKET-RATE UNITS | L205: RETAIL/COMMERCIAL | N205: MARKET-RATE UNITS | O205: RETAIL/COMMERCIAL | P205: must equal 100%
B206: Other Income Placeholder #1 | C206: 0 | D206: =C206*12*(C33) -> 0 | E206: =D206/$C$25 -> 0 | F206: =D206/$C$28 -> 0 | K206: =$D206*N206 -> 0 | L206: =$D206*O206 -> 0 | N206: 1 | O206: 0 | P206: =N206+O206 -> 1
B207: Other Income Placeholder #2 | C207: 225 | D207: =C207*$C$25*12 -> 256500 | E207: 2700 | F207: 794.1176471 | K207: =$D207*N207 -> 256500 | L207: =$D207*O207 -> 0 | N207: 1 | O207: 0 | P207: =N207+O207 -> 1
B208: Other Income Placeholder #3 | C208: 0 | D208: =C208*$C$25*12 -> 0 | E208: 0 | F208: 0 | K208: 0 | L208: 0 | N208: 1 | O208: 0 | P208: 1
B209: Other Income Placeholder #4 | C209: 0 | D209: =C209*$C$25*12 -> 0 | E209: 0 | F209: 0 | K209: 0 | L209: 0 | N209: 1 | O209: 0 | P209: 1
B210: Retail | C210: 0 | D210: =C210*$E$16 -> 0 | E210: 0 | F210: 0 | K210: 0 | L210: 0 | N210: 1 | O210: 0 | P210: 1
B211: Other Income Placeholder #6 | D211: 0 | E211: 0 | F211: 0 | K211: 0 | L211: 0 | N211: 1 | O211: 0 | P211: 1
B212: Other Income Placeholder #7 | D212: 0 | E212: 0 | F212: 0 | K212: 0 | L212: 0 | N212: 1 | O212: 0 | P212: 1
B213: Other Income Placeholder #8 | D213: 0 | E213: 0 | F213: 0 | K213: 0 | L213: 0 | N213: 1 | O213: 0 | P213: 1
B214: Other Income Placeholder #9 | D214: 0 | E214: 0 | F214: 0 | K214: 0 | L214: 0 | N214: 1 | O214: 0 | P214: 1
B215: Other Income Placeholder #10 | D215: 0 | E215: 0 | F215: 0 | K215: 0 | L215: 0 | N215: 1 | O215: 0 | P215: 1
B216: Other Income Placeholder #11 | D216: 0 | E216: 0 | F216: 0 | K216: 0 | L216: 0 | N216: 1 | O216: 0 | P216: 1
B217: Other Income Placeholder #12 | D217: 0 | E217: 0 | F217: 0 | K217: 0 | L217: 0 | N217: 1 | O217: 0 | P217: 1
B218: Other Income Placeholder #13 | D218: 0 | E218: 0 | F218: 0 | K218: 0 | L218: 0 | N218: 1 | O218: 0 | P218: 1
B219: Other Income Placeholder #14 | D219: 0 | E219: 0 | F219: 0 | K219: 0 | L219: 0 | N219: 1 | O219: 0 | P219: 1
B220: Other Income Placeholder #15 | D220: 0 | E220: 0 | F220: 0 | K220: 0 | L220: 0 | N220: 1 | O220: 0 | P220: 1
B221: Other Income Placeholder #16 | D221: 0 | E221: 0 | F221: 0 | K221: 0 | L221: 0 | N221: 1 | O221: 0 | P221: 1
B222: Other Income Placeholder #17 | D222: 0 | E222: 0 | F222: 0 | K222: 0 | L222: 0 | N222: 1 | O222: 0 | P222: 1
B224: Expense Toggle (dropdown) --> | C224: Detailed $ Amounts | D224: <-- toggle
B225: If Toggle on, input Expense as % of Revenue --> | C225: 0.2666355984
N226: input Expense allocation here
B227: Controllable Expenses | D227: Total Amount $ | E227: $ / Unit | F227: $ / Bed | G227: Notes/Comments | K227: MARKET-RATE UNITS | L227: RETAIL/COMMERCIAL | N227: MARKET-RATE UNITS | O227: RETAIL/COMMERCIAL | P227: must equal 100%
B228: Payroll | C228: =1200*95 -> 114000 | D228: =IF($C$224="Detailed $ Amounts",C228,0) -> 114000 | E228: =D228/$C$25 -> 1200 | F228: =D228/$C$28 -> 352.9411765 | K228: =$D228*N228 -> 114000 | L228: 0 | N228: 1 | O228: 0 | P228: =N228+O228 -> 1
B229: Marketing & Advertising | C229: =100*95 -> 9500 | D229: 9500 | E229: 100 | F229: 29.41176471 | K229: 9500 | L229: 0 | N229: 1 | O229: 0 | P229: =N229+O229 -> 1
B230: Contract Services | C230: =600*95 -> 57000 | D230: 57000 | E230: 600 | F230: 176.4705882 | K230: 57000 | L230: 0 | N230: 1 | O230: 0 | P230: =N230+O230 -> 1
B231: Repairs & Maintenance | C231: =370*95 -> 35150 | D231: 35150 | E231: 370 | F231: 108.8235294 | K231: =$D231*N231 -> 35150 | L231: =$D231*O231 -> 0 | N231: 1 | O231: 0 | P231: =N231+O231 -> 1
B232: Turnover | C232: =250*95 -> 23750 | D232: 23750 | E232: 250 | F232: 73.52941176 | K232: 23750 | L232: 0 | N232: 1 | O232: 0 | P232: 1
B233: General & Administrative | C233: =500*95 -> 47500 | D233: 47500 | E233: 500 | F233: 147.0588235 | K233: 47500 | L233: 0 | N233: 1 | O233: 0 | P233: 1
B234: Legal & Professional Fees | C234: =100*95 -> 9500 | D234: 9500 | E234: 100 | F234: 29.41176471 | K234: 9500 | L234: 0 | N234: 1 | O234: 0 | P234: 1
B235: Cont. Exp. Placeholder #1 | C235: 0 | D235: 0 | E235: 0 | F235: 0 | K235: 0 | L235: 0 | N235: 1 | O235: 0 | P235: 1
B236: Expenses as % of Revenue Toggle | C236: 0 | D236: =IF(C224="Detailed $ Amounts",C236,'Operating Budget'!E50) -> 0 | E236: 0 | F236: 0 | K236: 0 | L236: 0 | N236: 1 | O236: 0 | P236: 1
B238: Non-Controllable Expenses
B239: Utilities | C239: =400*95 -> 38000 | D239: =IF($C$224="Detailed $ Amounts",C239,0) -> 38000 | E239: =D239/$C$25 -> 400 | F239: =D239/$C$28 -> 117.6470588 | K239: =$D239*N239 -> 38000 | L239: =$D239*O239 -> 0 | N239: 1 | O239: 0 | P239: =N239+O239 -> 1
B240: Insurance | C240: =870*95 -> 82650 | D240: 82650 | E240: 870 | F240: 255.8823529 | K240: 82650 | L240: 0 | N240: 1 | O240: 0 | P240: 1
B241: Real Estate Taxes | C241: =2300*95 -> 218500 | D241: 218500 | E241: 2300 | F241: 676.4705882 | K241: 218500 | L241: 0 | N241: 1 | O241: 0 | P241: 1
B242: NC Exp. Placeholder #4 | C242: 0 | D242: 0 | E242: 0 | F242: 0 | K242: 0 | L242: 0 | N242: 1 | O242: 0 | P242: 1
B243: NC Exp. Placeholder #5 | C243: 0 | D243: 0 | E243: 0 | F243: 0 | K243: 0 | L243: 0 | N243: 1 | O243: 0 | P243: 1
B244: NC Exp. Placeholder #6 | C244: 0 | D244: 0 | E244: 0 | F244: 0 | K244: 0 | L244: 0 | N244: 1 | O244: 0 | P244: 1
B245: NC Exp. Placeholder #7 | C245: 0 | D245: 0 | E245: 0 | F245: 0 | K245: 0 | L245: 0 | N245: 1 | O245: 0 | P245: 1
... 24 more rows

Sheet Return Summary
A1: =Assumptions!$C$5 -> Sample Development Deal
B5: SOURCES | C5: % | D5: $ AMOUNT | E5: $/UNIT | F5: $/BED | G5: $/GSF | I5: INVESTMENT TIMELINE | J5: Start Month | K5: End Month | L5: Start Month | M5: End Month
B6: Construction Loan | C6: =Assumptions!C63 -> 0.75 | D6: =Assumptions!D63 -> 12482743.93 | E6: =Assumptions!E63 -> 131397.3045 | F6: =Assumptions!F63 -> 38646.26604 | G6: =Assumptions!G63 -> 86.08788919 | I6: =Assumptions!B38 -> Capital Closing | J6: =Assumptions!C38 -> 0 | K6: =Assumptions!D38 -> 0 | L6: =Assumptions!E38 -> 2022-01-01 | M6: =Assumptions!F38 -> 2022-01-31
B7: Limited Partner Equity (90.0%) | C7: =Assumptions!C64 -> 0.2475 | D7: =Assumptions!D64 -> 4119305.498 | E7: =Assumptions!E64 -> 43361.1105 | F7: =Assumptions!F64 -> 12753.26779 | G7: =Assumptions!G64 -> 28.40900343 | I7: =Assumptions!B39 -> Pre-Construction | J7: =Assumptions!C39 -> 1 | K7: =Assumptions!D39 -> 12 | L7: =Assumptions!E39 -> 2022-02-01 | M7: =Assumptions!F39 -> 2023-01-31
B8: Sponsor Equity (10.0%) | C8: =Assumptions!C65 -> 0.0025 | D8: =Assumptions!D65 -> 41609.14644 | E8: =Assumptions!E65 -> 437.9910152 | F8: =Assumptions!F65 -> 128.8208868 | G8: =Assumptions!G65 -> 0.2869596306 | I8: =Assumptions!B40 -> Construction | J8: =Assumptions!C40 -> 13 | K8: =Assumptions!D40 -> 24 | L8: =Assumptions!E40 -> 2023-02-01 | M8: =Assumptions!F40 -> 2024-01-31
B9: Total Sources | C9: =SUM(C6:C8) -> 1 | D9: =SUM(D6:D8) -> 16643658.58 | E9: 175196.4061 | F9: 51528.35472 | G9: 114.7838522 | I9: =Assumptions!B41 -> Lease-Up | J9: =Assumptions!C41 -> 25 | K9: =Assumptions!D41 -> 36 | L9: =Assumptions!E41 -> 2024-02-01 | M9: =Assumptions!F41 -> 2025-01-31
I10: =Assumptions!B46 -> Stabilization | J10: =Assumptions!C46 -> 37 | K10: =Assumptions!D46 -> 48 | L10: =Assumptions!E46 -> 2025-02-01 | M10: =Assumptions!F46 -> 2026-01-31
B11: USES | C11: % | D11: $ AMOUNT | E11: $/UNIT | F11: $/BED | G11: $/GSF | I11: =Assumptions!B47 -> Post Stabilization | J11: =Assumptions!C47 -> 49 | K11: =Assumptions!D47 -> 59 | L11: =Assumptions!E47 -> 2026-02-01 | M11: =Assumptions!F47 -> 2026-12-31
B12: Total Land Costs | C12: =Assumptions!C54 -> 0.03604976618 | D12: =Assumptions!D54 -> 600000 | E12: =Assumptions!E54 -> 6315.789474 | F12: =Assumptions!F54 -> 1857.585139 | G12: =Assumptions!G54 -> 4.137931034 | I12: =Assumptions!B48 -> Sale | J12: =Assumptions!C48 -> 60 | K12: =Assumptions!D48 -> 60 | L12: =Assumptions!E48 -> 2027-01-01 | M12: =Assumptions!F48 -> 2027-01-31
B13: Total Hard Costs | C13: =Assumptions!C55 -> 0.8066884925 | D13: =Assumptions!D55 -> 13426247.85 | E13: =Assumptions!E55 -> 141328.9247 | F13: =Assumptions!F55 -> 41567.33079 | G13: =Assumptions!G55 -> 92.59481273
B14: Owner's Contingency | C14: =Assumptions!C56 -> 0 | D14: =Assumptions!D56 -> 0 | E14: =Assumptions!E56 -> 0 | F14: =Assumptions!F56 -> 0 | G14: =Assumptions!G56 -> 0
B15: Total Soft Costs | C15: =Assumptions!C57 -> 0.1269385568 | D15: =Assumptions!D57 -> 2112722 | E15: =Assumptions!E57 -> 22239.17895 | F15: =Assumptions!F57 -> 6540.934985 | G15: =Assumptions!G57 -> 14.57049655 | I15: UNLEVERED CASH FLOW SUMMARY | J15: Total | K15: 0 | L15: =K15+1 -> 1 | M15: =L15+1 -> 2 | N15: =M15+1 -> 3 | O15: 4 | P15: 5 | Q15: 6 | R15: 7 | S15: 8 | T15: 9 | U15: 10
B16: Project Carry Costs | C16: =Assumptions!C58 -> 0.03032318451 | D16: =Assumptions!D58 -> 504688.7299 | E16: =Assumptions!E58 -> 5312.512947 | F16: =Assumptions!F58 -> 1562.503808 | G16: =Assumptions!G58 -> 3.480611931 | I16: Unlevered Cash Flow from Operations | J16: =SUM(K16:U16) -> 8777730.352 | K16: ='Monthly & Annual Proforma'!EG83 -> 0 | L16: ='Monthly & Annual Proforma'!EH83 -> 0 | M16: ='Monthly & Annual Proforma'!EI83 -> 0 | N16: ='Monthly & Annual Proforma'!EJ83 -> 597338.7504 | O16: ='Monthly & Annual Proforma'!EK83 -> 1085455.947 | P16: ='Monthly & Annual Proforma'!EL83 -> 1112099.208 | Q16: ='Monthly & Annual Proforma'!EM83 -> 1139375.665 | R16: ='Monthly & Annual Proforma'!EN83 -> 1167300.239 | S16: ='Monthly & Annual Proforma'!EO83 -> 1195888.2 | T16: ='Monthly & Annual Proforma'!EP83 -> 1225155.178 | U16: ='Monthly & Annual Proforma'!EQ83 -> 1255117.164
B17: Total Uses | C17: =SUM(C12:C16) -> 1 | D17: =SUM(D12:D16) -> 16643658.58 | E17: =SUM(E12:E16) -> 175196.4061 | F17: 51528.35472 | G17: 114.7838522 | I17: Yield on Cost | K17: =K16/$D$17 -> 0 | L17: =L16/$D$17 -> 0 | M17: =M16/$D$17 -> 0 | N17: 0.03588987047 | O17: 0.0652173885 | P17: 0.06681819403 | Q17: 0.06845704384 | R17: 0.07013483443 | S17: 0.07185248332 | T17: 0.07361092948 | U17: 0.07541113384
B20: ="DISPOSITION SUMMARY - "&"MONTH "&D21 -> DISPOSITION SUMMARY - MONTH 60 | I20: LEVERED RETURN SUMMARY | K20: 0 | L20: =K20+1 -> 1 | M20: =L20+1 -> 2 | N20: =M20+1 -> 3 | O20: =N20+1 -> 4 | P20: =O20+1 -> 5 | Q20: =P20+1 -> 6 | R20: =Q20+1 -> 7 | S20: =R20+1 -> 8 | T20: =S20+1 -> 9 | U20: =T20+1 -> 10
B21: Hold Period | D21: =Assumptions!C104 -> 60 | I21: Year Ending | K21: - | L21: =EOMONTH(L6,12) -> 2023-01-31 | M21: =EOMONTH(L21,12) -> 2024-01-31 | N21: =EOMONTH(M21,12) -> 2025-01-31 | O21: 2026-01-31 | P21: 2027-01-31 | Q21: 2028-01-31 | R21: 2029-01-31 | S21: 2030-01-31 | T21: 2031-01-31 | U21: 2032-01-31
B22: Reversion Month | D22: =Assumptions!F48 -> 2027-01-31 | J22: Total
B23: Forward Cash Flow from Operations | D23: ='Monthly & Annual CFs'!D57 -> 1179052.776 | I23: Total Development Costs | J23: =SUM(K23:U23) ->  | K23: =-SUMIF('Draw Schedule'!$E$5:$EG$5,'Return Summary'!K20,'Draw Schedule'!$E$40:$EG$40) ->  | L23: =-SUMIF('Draw Schedule'!$E$5:$EG$5,'Return Summary'!L20,'Draw Schedule'!$E$40:$EG$40) ->  | M23: =-SUMIF('Draw Schedule'!$E$5:$EG$5,'Return Summary'!M20,'Draw Schedule'!$E$40:$EG$40) ->  | N23: =-SUMIF('Draw Schedule'!$E$5:$EG$5,'Return Summary'!N20,'Draw Schedule'!$E$40:$EG$40) ->  | O23: =-SUMIF('Draw Schedule'!$E$5:$EG$5,'Return Summary'!O20,'Draw Schedule'!$E$40:$EG$40) ->  | P23: =-SUMIF('Draw Schedule'!$E$5:$EG$5,'Return Summary'!P20,'Draw Schedule'!$E$40:$EG$40) ->  | Q23: =-SUMIF('Draw Schedule'!$E$5:$EG$5,'Return Summary'!Q20,'Draw Schedule'!$E$40:$EG$40) ->  | R23: =-SUMIF('Draw Schedule'!$E$5:$EG$5,'Return Summary'!R20,'Draw Schedule'!$E$40:$EG$40) ->  | S23: =-SUMIF('Draw Schedule'!$E$5:$EG$5,'Return Summary'!S20,'Draw Schedule'!$E$40:$EG$40) ->  | T23: =-SUMIF('Draw Schedule'!$E$5:$EG$5,'Return Summary'!T20,'Draw Schedule'!$E$40:$EG$40) ->  | U23: =-SUMIF('Draw Schedule'!$E$5:$EG$5,'Return Summary'!U20,'Draw Schedule'!$E$40:$EG$40) -> 
B24: Terminal Cap Rate | D24: =Assumptions!C106 -> 0.05 | I24: Debt Proceeds from Construction Loan | J24: =SUM(K24:U24) ->  | K24: =SUMIF('Draw Schedule'!$E$5:$EG$5,'Return Summary'!K20,'Draw Schedule'!$E$104:$EG$104) ->  | L24: =SUMIF('Draw Schedule'!$E$5:$EG$5,'Return Summary'!L20,'Draw Schedule'!$E$104:$EG$104) ->  | M24: =SUMIF('Draw Schedule'!$E$5:$EG$5,'Return Summary'!M20,'Draw Schedule'!$E$104:$EG$104) ->  | N24: =SUMIF('Draw Schedule'!$E$5:$EG$5,'Return Summary'!N20,'Draw Schedule'!$E$104:$EG$104) ->  | O24: =SUMIF('Draw Schedule'!$E$5:$EG$5,'Return Summary'!O20,'Draw Schedule'!$E$104:$EG$104) ->  | P24: =SUMIF('Draw Schedule'!$E$5:$EG$5,'Return Summary'!P20,'Draw Schedule'!$E$104:$EG$104) ->  | Q24: =SUMIF('Draw Schedule'!$E$5:$EG$5,'Return Summary'!Q20,'Draw Schedule'!$E$104:$EG$104) ->  | R24: =SUMIF('Draw Schedule'!$E$5:$EG$5,'Return Summary'!R20,'Draw Schedule'!$E$104:$EG$104) ->  | S24: =SUMIF('Draw Schedule'!$E$5:$EG$5,'Return Summary'!S20,'Draw Schedule'!$E$104:$EG$104) ->  | T24: =SUMIF('Draw Schedule'!$E$5:$EG$5,'Return Summary'!T20,'Draw Schedule'!$E$104:$EG$104) ->  | U24: =SUMIF('Draw Schedule'!$E$5:$EG$5,'Return Summary'!U20,'Draw Schedule'!$E$104:$EG$104) -> 
B25: Gross Sale Proceeds | C25: =D25/Assumptions!C198 -> 248221.637 | D25: =D23/D24 -> 23581055.52 | I25: Net Equity Investment | J25: =SUM(K25:U25) ->  | K25: =SUM(K23:K24) ->  | L25: =SUM(L23:L24) -> 
B26: Less Sale Costs | C26: =Assumptions!C107 -> 0.03 | D26: =D25*C26 -> 707431.6655
B27: Less Outstanding Loan Balance | D27: =SUMIF('Monthly & Annual CFs'!$E$6:$EG$6,'Return Summary'!D21,'Monthly & Annual CFs'!$E$50:$EG$50) -> 17774171.34 | I27: Unlevered Cash Flow from Operations | J27: =SUM(K27:U27) -> 2794893.906 | K27: =SUMIF('Monthly & Annual CFs'!$EI$3:$ES$3,'Return Summary'!K20,'Monthly & Annual CFs'!$EI$24:$ES$24) -> 0 | L27: =SUMIF('Monthly & Annual CFs'!$EI$3:$ES$3,'Return Summary'!L20,'Monthly & Annual CFs'!$EI$24:$ES$24) -> 0 | M27: =SUMIF('Monthly & Annual CFs'!$EI$3:$ES$3,'Return Summary'!M20,'Monthly & Annual CFs'!$EI$24:$ES$24) -> 0 | N27: =SUMIF('Monthly & Annual CFs'!$EI$3:$ES$3,'Return Summary'!N20,'Monthly & Annual CFs'!$EI$24:$ES$24) -> 597338.7504 | O27: =SUMIF('Monthly & Annual CFs'!$EI$3:$ES$3,'Return Summary'!O20,'Monthly & Annual CFs'!$EI$24:$ES$24) -> 1085455.947 | P27: =SUMIF('Monthly & Annual CFs'!$EI$3:$ES$3,'Return Summary'!P20,'Monthly & Annual CFs'!$EI$24:$ES$24) -> 1112099.208 | Q27: =SUMIF('Monthly & Annual CFs'!$EI$3:$ES$3,'Return Summary'!Q20,'Monthly & Annual CFs'!$EI$24:$ES$24) -> 0 | R27: =SUMIF('Monthly & Annual CFs'!$EI$3:$ES$3,'Return Summary'!R20,'Monthly & Annual CFs'!$EI$24:$ES$24) -> 0 | S27: =SUMIF('Monthly & Annual CFs'!$EI$3:$ES$3,'Return Summary'!S20,'Monthly & Annual CFs'!$EI$24:$ES$24) -> 0 | T27: =SUMIF('Monthly & Annual CFs'!$EI$3:$ES$3,'Return Summary'!T20,'Monthly & Annual CFs'!$EI$24:$ES$24) -> 0 | U27: =SUMIF('Monthly & Annual CFs'!$EI$3:$ES$3,'Return Summary'!U20,'Monthly & Annual CFs'!$EI$24:$ES$24) -> 0
B28: Net Sale Proceeds | D28: =D25-D26-D27 -> 5099452.512 | I28: Proceeds from Refinancing | K28: =SUMIF('Draw Schedule'!$E$5:$EG$5,'Return Summary'!K20,'Draw Schedule'!$E$87:$EG$87) -> 0 | L28: =SUMIF('Draw Schedule'!$E$5:$EG$5,'Return Summary'!L20,'Draw Schedule'!$E$87:$EG$87) -> 0 | M28: =SUMIF('Draw Schedule'!$E$5:$EG$5,'Return Summary'!M20,'Draw Schedule'!$E$87:$EG$87) -> 0 | N28: =SUMIF('Draw Schedule'!$E$5:$EG$5,'Return Summary'!N20,'Draw Schedule'!$E$87:$EG$87) -> 0 | O28: =SUMIF('Draw Schedule'!$E$5:$EG$5,'Return Summary'!O20,'Draw Schedule'!$E$87:$EG$87) ->  | P28: =SUMIF('Draw Schedule'!$E$5:$EG$5,'Return Summary'!P20,'Draw Schedule'!$E$87:$EG$87) -> 0 | Q28: =SUMIF('Draw Schedule'!$E$5:$EG$5,'Return Summary'!Q20,'Draw Schedule'!$E$87:$EG$87) -> 0 | R28: =SUMIF('Draw Schedule'!$E$5:$EG$5,'Return Summary'!R20,'Draw Schedule'!$E$87:$EG$87) -> 0 | S28: =SUMIF('Draw Schedule'!$E$5:$EG$5,'Return Summary'!S20,'Draw Schedule'!$E$87:$EG$87) -> 0 | T28: =SUMIF('Draw Schedule'!$E$5:$EG$5,'Return Summary'!T20,'Draw Schedule'!$E$87:$EG$87) -> 0 | U28: =SUMIF('Draw Schedule'!$E$5:$EG$5,'Return Summary'!U20,'Draw Schedule'!$E$87:$EG$87) -> 0
I29: Financing Cost | J29: -177741.7134 | K29: =-SUMIF('Draw Schedule'!$E$5:$EG$5,'Return Summary'!K20,'Draw Schedule'!$E$88:$EG$88) -> 0 | L29: =-SUMIF('Draw Schedule'!$E$5:$EG$5,'Return Summary'!L20,'Draw Schedule'!$E$88:$EG$88) -> 0 | M29: =-SUMIF('Draw Schedule'!$E$5:$EG$5,'Return Summary'!M20,'Draw Schedule'!$E$88:$EG$88) -> 0 | N29: =-SUMIF('Draw Schedule'!$E$5:$EG$5,'Return Summary'!N20,'Draw Schedule'!$E$88:$EG$88) -> 0 | O29: =-SUMIF('Draw Schedule'!$E$5:$EG$5,'Return Summary'!O20,'Draw Schedule'!$E$88:$EG$88) -> -177741.7134 | P29: =-SUMIF('Draw Schedule'!$E$5:$EG$5,'Return Summary'!P20,'Draw Schedule'!$E$88:$EG$88) -> 0 | Q29: =-SUMIF('Draw Schedule'!$E$5:$EG$5,'Return Summary'!Q20,'Draw Schedule'!$E$88:$EG$88) -> 0 | R29: =-SUMIF('Draw Schedule'!$E$5:$EG$5,'Return Summary'!R20,'Draw Schedule'!$E$88:$EG$88) -> 0 | S29: =-SUMIF('Draw Schedule'!$E$5:$EG$5,'Return Summary'!S20,'Draw Schedule'!$E$88:$EG$88) -> 0 | T29: =-SUMIF('Draw Schedule'!$E$5:$EG$5,'Return Summary'!T20,'Draw Schedule'!$E$88:$EG$88) -> 0 | U29: =-SUMIF('Draw Schedule'!$E$5:$EG$5,'Return Summary'!U20,'Draw Schedule'!$E$88:$EG$88) -> 0
I30: Total Debt Service (Construction & Permanent Financing) | J30: =SUM(K30:U30) ->  | K30: =-SUMIF('Draw Schedule'!$E$5:$EG$5,'Return Summary'!K20,'Draw Schedule'!$E$114:$EG$114) -> 0 | L30: =-SUMIF('Draw Schedule'!$E$5:$EG$5,'Return Summary'!L20,'Draw Schedule'!$E$114:$EG$114) ->  | M30: =-SUMIF('Draw Schedule'!$E$5:$EG$5,'Return Summary'!M20,'Draw Schedule'!$E$114:$EG$114) ->  | N30: =-SUMIF('Draw Schedule'!$E$5:$EG$5,'Return Summary'!N20,'Draw Schedule'!$E$114:$EG$114) ->  | O30: =-SUMIF('Draw Schedule'!$E$5:$EG$5,'Return Summary'!O20,'Draw Schedule'!$E$114:$EG$114) ->  | P30: =-SUMIF('Draw Schedule'!$E$5:$EG$5,'Return Summary'!P20,'Draw Schedule'!$E$114:$EG$114) -> -799837.7102 | Q30: =-SUMIF('Draw Schedule'!$E$5:$EG$5,'Return Summary'!Q20,'Draw Schedule'!$E$114:$EG$114) -> 0 | R30: =-SUMIF('Draw Schedule'!$E$5:$EG$5,'Return Summary'!R20,'Draw Schedule'!$E$114:$EG$114) -> 0 | S30: =-SUMIF('Draw Schedule'!$E$5:$EG$5,'Return Summary'!S20,'Draw Schedule'!$E$114:$EG$114) -> 0 | T30: =-SUMIF('Draw Schedule'!$E$5:$EG$5,'Return Summary'!T20,'Draw Schedule'!$E$114:$EG$114) -> 0 | U30: =-SUMIF('Draw Schedule'!$E$5:$EG$5,'Return Summary'!U20,'Draw Schedule'!$E$114:$EG$114) -> 0
B31: ="STABILIZATION - "&"MONTH "&Assumptions!C83 -> STABILIZATION - MONTH 37 | D31: $ AMOUNT | E31: $/UNIT | F31: $/BED | G31: $/GSF | I31: Interest Reserve Draw | J31: =SUM(K31:U31) ->  | K31: =SUMIF('Draw Schedule'!$E$5:$EG$5,'Return Summary'!K20,'Draw Schedule'!$E$78:$EG$78) -> 0 | L31: =SUMIF('Draw Schedule'!$E$5:$EG$5,'Return Summary'!L20,'Draw Schedule'!$E$78:$EG$78) ->  | M31: =SUMIF('Draw Schedule'!$E$5:$EG$5,'Return Summary'!M20,'Draw Schedule'!$E$78:$EG$78) ->  | N31: =SUMIF('Draw Schedule'!$E$5:$EG$5,'Return Summary'!N20,'Draw Schedule'!$E$78:$EG$78) ->  | O31: =SUMIF('Draw Schedule'!$E$5:$EG$5,'Return Summary'!O20,'Draw Schedule'!$E$78:$EG$78) ->  | P31: =SUMIF('Draw Schedule'!$E$5:$EG$5,'Return Summary'!P20,'Draw Schedule'!$E$78:$EG$78) ->  | Q31: =SUMIF('Draw Schedule'!$E$5:$EG$5,'Return Summary'!Q20,'Draw Schedule'!$E$78:$EG$78) ->  | R31: =SUMIF('Draw Schedule'!$E$5:$EG$5,'Return Summary'!R20,'Draw Schedule'!$E$78:$EG$78) ->  | S31: =SUMIF('Draw Schedule'!$E$5:$EG$5,'Return Summary'!S20,'Draw Schedule'!$E$78:$EG$78) ->  | T31: =SUMIF('Draw Schedule'!$E$5:$EG$5,'Return Summary'!T20,'Draw Schedule'!$E$78:$EG$78) ->  | U31: =SUMIF('Draw Schedule'!$E$5:$EG$5,'Return Summary'!U20,'Draw Schedule'!$E$78:$EG$78) -> 
B32: Effective Income | D32: ='Monthly & Annual Proforma'!B89 -> 1901064.945 | E32: =D32/Assumptions!$C$25 -> 20011.20995 | F32: =D32/Assumptions!$C$28 -> 5885.649984 | G32: =D32/Assumptions!$E$21 -> 13.11079272 | I32: Total Operational Cash Flows | J32: =SUM(K32:U32) ->  | K32: =SUM(K27:K31) -> 0 | L32: =SUM(L27:L31) -> 
B33: Expenses (Incld. Capital Reserves) | D33: ='Monthly & Annual Proforma'!B90-'Monthly & Annual Proforma'!B91 -> 775367.4268 | E33: =D33/Assumptions!$C$25 -> 8161.762387 | F33: =D33/Assumptions!$C$28 -> 2400.518349 | G33: =D33/Assumptions!$E$21 -> 5.347361564
B34: Stabilized Unlevered Cash Flow from Operations | D34: =D32-D33 -> 1125697.518 | E34: =E32-E33 -> 11849.44756 | F34: 3485.131635 | G34: 7.763431159 | I34: Gross Sale Proceeds | J34: =SUM(K34:U34) -> 23581055.52 | K34: =SUMIF('Monthly & Annual CFs'!$EI$3:$ES$3,'Return Summary'!K20,'Monthly & Annual CFs'!$EI$25:$ES$25) -> 0 | L34: =SUMIF('Monthly & Annual CFs'!$EI$3:$ES$3,'Return Summary'!L20,'Monthly & Annual CFs'!$EI$25:$ES$25) -> 0 | M34: =SUMIF('Monthly & Annual CFs'!$EI$3:$ES$3,'Return Summary'!M20,'Monthly & Annual CFs'!$EI$25:$ES$25) -> 0 | N34: =SUMIF('Monthly & Annual CFs'!$EI$3:$ES$3,'Return Summary'!N20,'Monthly & Annual CFs'!$EI$25:$ES$25) -> 0 | O34: =SUMIF('Monthly & Annual CFs'!$EI$3:$ES$3,'Return Summary'!O20,'Monthly & Annual CFs'!$EI$25:$ES$25) -> 0 | P34: =SUMIF('Monthly & Annual CFs'!$EI$3:$ES$3,'Return Summary'!P20,'Monthly & Annual CFs'!$EI$25:$ES$25) -> 23581055.52 | Q34: =SUMIF('Monthly & Annual CFs'!$EI$3:$ES$3,'Return Summary'!Q20,'Monthly & Annual CFs'!$EI$25:$ES$25) -> 0 | R34: =SUMIF('Monthly & Annual CFs'!$EI$3:$ES$3,'Return Summary'!R20,'Monthly & Annual CFs'!$EI$25:$ES$25) -> 0 | S34: =SUMIF('Monthly & Annual CFs'!$EI$3:$ES$3,'Return Summary'!S20,'Monthly & Annual CFs'!$EI$25:$ES$25) -> 0 | T34: =SUMIF('Monthly & Annual CFs'!$EI$3:$ES$3,'Return Summary'!T20,'Monthly & Annual CFs'!$EI$25:$ES$25) -> 0 | U34: =SUMIF('Monthly & Annual CFs'!$EI$3:$ES$3,'Return Summary'!U20,'Monthly & Annual CFs'!$EI$25:$ES$25) -> 0
I35: Sale Costs | J35: =SUM(K35:U35) -> -707431.6655 | K35: =-SUMIF('Monthly & Annual CFs'!$EI$3:$ES$3,'Return Summary'!K20,'Monthly & Annual CFs'!$EI$26:$ES$26) -> 0 | L35: =-SUMIF('Monthly & Annual CFs'!$EI$3:$ES$3,'Return Summary'!L20,'Monthly & Annual CFs'!$EI$26:$ES$26) -> 0 | M35: =-SUMIF('Monthly & Annual CFs'!$EI$3:$ES$3,'Return Summary'!M20,'Monthly & Annual CFs'!$EI$26:$ES$26) -> 0 | N35: =-SUMIF('Monthly & Annual CFs'!$EI$3:$ES$3,'Return Summary'!N20,'Monthly & Annual CFs'!$EI$26:$ES$26) -> 0 | O35: =-SUMIF('Monthly & Annual CFs'!$EI$3:$ES$3,'Return Summary'!O20,'Monthly & Annual CFs'!$EI$26:$ES$26) -> 0 | P35: =-SUMIF('Monthly & Annual CFs'!$EI$3:$ES$3,'Return Summary'!P20,'Monthly & Annual CFs'!$EI$26:$ES$26) -> -707431.6655 | Q35: =-SUMIF('Monthly & Annual CFs'!$EI$3:$ES$3,'Return Summary'!Q20,'Monthly & Annual CFs'!$EI$26:$ES$26) -> 0 | R35: =-SUMIF('Monthly & Annual CFs'!$EI$3:$ES$3,'Return Summary'!R20,'Monthly & Annual CFs'!$EI$26:$ES$26) -> 0 | S35: =-SUMIF('Monthly & Annual CFs'!$EI$3:$ES$3,'Return Summary'!S20,'Monthly & Annual CFs'!$EI$26:$ES$26) -> 0 | T35: =-SUMIF('Monthly & Annual CFs'!$EI$3:$ES$3,'Return Summary'!T20,'Monthly & Annual CFs'!$EI$26:$ES$26) -> 0 | U35: =-SUMIF('Monthly & Annual CFs'!$EI$3:$ES$3,'Return Summary'!U20,'Monthly & Annual CFs'!$EI$26:$ES$26) -> 0
B36: Implied Stabilized Cap Rate | C36: =Assumptions!C85 -> 0.0475 | I36: Outstanding Loan Balance | J36: =SUM(K36:U36) -> -17774171.34 | K36: =IF(Assumptions!$E$88="No",-SUMIF('Draw Schedule'!$E$5:$EG$5,'Return Summary'!K20,'Draw Schedule'!$E$118:$EG$118),-SUMIF('Draw Schedule'!$E$5:$EG$5,'Return Summary'!K20,'Draw Schedule'!$E$119:$EG$119)) -> 0 | L36: =IF(Assumptions!$E$88="No",-SUMIF('Draw Schedule'!$E$5:$EG$5,'Return Summary'!L20,'Draw Schedule'!$E$118:$EG$118),-SUMIF('Draw Schedule'!$E$5:$EG$5,'Return Summary'!L20,'Draw Schedule'!$E$119:$EG$119)) -> 0 | M36: =IF(Assumptions!$E$88="No",-SUMIF('Draw Schedule'!$E$5:$EG$5,'Return Summary'!M20,'Draw Schedule'!$E$118:$EG$118),-SUMIF('Draw Schedule'!$E$5:$EG$5,'Return Summary'!M20,'Draw Schedule'!$E$119:$EG$119)) -> 0 | N36: =IF(Assumptions!$E$88="No",-SUMIF('Draw Schedule'!$E$5:$EG$5,'Return Summary'!N20,'Draw Schedule'!$E$118:$EG$118),-SUMIF('Draw Schedule'!$E$5:$EG$5,'Return Summary'!N20,'Draw Schedule'!$E$119:$EG$119)) -> 0 | O36: =IF(Assumptions!$E$88="No",-SUMIF('Draw Schedule'!$E$5:$EG$5,'Return Summary'!O20,'Draw Schedule'!$E$118:$EG$118),-SUMIF('Draw Schedule'!$E$5:$EG$5,'Return Summary'!O20,'Draw Schedule'!$E$119:$EG$119)) -> 0 | P36: =IF(Assumptions!$E$88="No",-SUMIF('Draw Schedule'!$E$5:$EG$5,'Return Summary'!P20,'Draw Schedule'!$E$118:$EG$118),-SUMIF('Draw Schedule'!$E$5:$EG$5,'Return Summary'!P20,'Draw Schedule'!$E$119:$EG$119)) -> -17774171.34 | Q36: =IF(Assumptions!$E$88="No",-SUMIF('Draw Schedule'!$E$5:$EG$5,'Return Summary'!Q20,'Draw Schedule'!$E$118:$EG$118),-SUMIF('Draw Schedule'!$E$5:$EG$5,'Return Summary'!Q20,'Draw Schedule'!$E$119:$EG$119)) -> 0 | R36: =IF(Assumptions!$E$88="No",-SUMIF('Draw Schedule'!$E$5:$EG$5,'Return Summary'!R20,'Draw Schedule'!$E$118:$EG$118),-SUMIF('Draw Schedule'!$E$5:$EG$5,'Return Summary'!R20,'Draw Schedule'!$E$119:$EG$119)) -> 0 | S36: =IF(Assumptions!$E$88="No",-SUMIF('Draw Schedule'!$E$5:$EG$5,'Return Summary'!S20,'Draw Schedule'!$E$118:$EG$118),-SUMIF('Draw Schedule'!$E$5:$EG$5,'Return Summary'!S20,'Draw Schedule'!$E$119:$EG$119)) -> 0 | T36: =IF(Assumptions!$E$88="No",-SUMIF('Draw Schedule'!$E$5:$EG$5,'Return Summary'!T20,'Draw Schedule'!$E$118:$EG$118),-SUMIF('Draw Schedule'!$E$5:$EG$5,'Return Summary'!T20,'Draw Schedule'!$E$119:$EG$119)) -> 0 | U36: =IF(Assumptions!$E$88="No",-SUMIF('Draw Schedule'!$E$5:$EG$5,'Return Summary'!U20,'Draw Schedule'!$E$118:$EG$118),-SUMIF('Draw Schedule'!$E$5:$EG$5,'Return Summary'!U20,'Draw Schedule'!$E$119:$EG$119)) -> 0
B37: Implied Stabilized Value | D37: ='Monthly & Annual CFs'!D58/C36 -> 23698895.12 | E37: =D37/Assumptions!C25 -> 249462.0539 | F37: =D37/Assumptions!C28 -> 73371.19231 | G37: =D37/Assumptions!E21 -> 163.440656 | I37: Net Sale Proceeds | J37: =SUM(K37:U37) -> 5099452.512 | K37: =SUM(K34:K36) -> 0 | L37: =SUM(L34:L36) -> 0 | M37: =SUM(M34:M36) -> 0 | N37: =SUM(N34:N36) -> 0 | O37: =SUM(O34:O36) -> 0 | P37: 5099452.512 | Q37: 0 | R37: 0 | S37: 0 | T37: 0 | U37: 0
B39: Stabilized Yield on Cost | C39: =D34/D17 -> 0.06763522052 | I39: Net Cash Flow | J39: =SUM(K39:U39) ->  | K39: =K25+K32+K37 -> 
B40: Stabilized Debt Yield | C40: =D34/D6 -> 0.09018029403
B41: Loan to Stabilized Value | C41: =D6/D37 -> 0.5267226118
I42: Levered Project Level Returns
I43: Equity Investment | J43: ='Monthly & Annual CFs'!D33 -> 
I44: Total Distribution | J44: =J43+J39 -> 
I45: IRR | J45: ='Monthly & Annual CFs'!B36 -> 
I46: Equity Multiple | J46: =J44/J43 -> 
I47: Profit | J47: =J39 -> 
I51: Net LP Investor Returns (post-waterfall)
I52: Equity Investment | J52: ='Waterfall - IRR'!C117 -> 0
I53: Total Distribution | J53: =J52*J55 -> 
I54: IRR | J54: ='Waterfall - IRR'!C115 -> 
I55: Equity Multiple | J55: ='Waterfall - IRR'!C118 -> 
I56: Profit | J56: ='Waterfall - IRR'!C116 -> 

Sheet dropdown lists (hidden)
B1: Unit Type
B2: Market

Sheet Waterfall - IRR
G4: Distribution / Equity Splits
G5: After Promote to Sponsor
B6: Promote Structure | E6: IRR Hurdle | F6: Sponsor Promote | G6: LP | H6: GP Equity + Sponsor
B7: IRR Hurdle #1 | D7: Up to a… | E7: 0.08 | F7: 0 | G7: =(1-F7)*Assumptions!$A$64 -> 0.99 | H7: =1-G7 -> 0.01
B8: IRR Hurdle #2 | C8: ="From a "&TEXT(E7,"#%") -> From a 8% | D8: Up to a… | E8: 0.12 | F8: 0.2 | G8: =(1-F8)*Assumptions!$A$64 -> 0.792 | H8: =1-G8 -> 0.208
B9: IRR Hurdle #3 | C9: ="From a "&TEXT(E8,"#%") -> From a 12% | D9: Up to a… | E9: 0.18 | F9: 0.5 | G9: =(1-F9)*Assumptions!$A$64 -> 0.495 | H9: =1-G9 -> 0.505
B10: Thereafter | D10: After a… | E10: =E9 -> 0.18 | F10: 0.5 | G10: =(1-F10)*Assumptions!$A$64 -> 0.495 | H10: =1-G10 -> 0.505
F14: 0 | G14: =F14+1 -> 1 | H14: =G14+1 -> 2 | I14: 3 | J14: 4 | K14: 5 | L14: 6 | M14: 7 | N14: 8 | O14: 9 | P14: 10 | Q14: 11 | R14: 12 | S14: 13 | T14: 14 | U14: 15 | V14: 16 | W14: 17 | X14: 18 | Y14: 19 | Z14: 20 | AA14: 21 | AB14: 22 | AC14: 23 | AD14: 24 | AE14: 25 | AF14: 26 | AG14: 27 | AH14: 28 | AI14: 29 | AJ14: 30 | AK14: 31 | AL14: 32 | AM14: 33 | AN14: 34 | AO14: 35 | AP14: 36 | AQ14: 37 | AR14: 38 | AS14: 39 | AT14: 40 | AU14: 41 | AV14: 42 | AW14: 43 | AX14: 44 | AY14: 45 | AZ14: 46 | BA14: 47 | BB14: 48 | BC14: 49 | BD14: 50 | BE14: 51 | BF14: 52 | BG14: 53 | BH14: 54 | BI14: 55 | BJ14: 56 | BK14: 57 | BL14: 58 | BM14: 59 | BN14: 60 | BO14: 61 | BP14: 62 | BQ14: 63 | BR14: 64 | BS14: 65 | BT14: =BS14+1 -> 66 | BU14: 67 | BV14: 68 | BW14: 69 | BX14: 70 | BY14: 71 | BZ14: 72 | CA14: 73 | CB14: 74 | CC14: 75 | CD14: 76 | CE14: 77 | CF14: 78 | CG14: 79 | CH14: 80 | CI14: 81 | CJ14: 82 | CK14: 83 | CL14: 84 | CM14: 85 | CN14: 86 | CO14: 87 | CP14: 88 | CQ14: 89 | CR14: 90 | CS14: 91 | CT14: 92 | CU14: 93 | CV14: 94 | CW14: 95 | CX14: 96 | CY14: 97 | CZ14: 98 | DA14: 99 | DB14: 100 | DC14: 101 | DD14: 102 | DE14: 103 | DF14: 104 | DG14: 105 | DH14: 106 | DI14: 107 | DJ14: 108 | DK14: 109 | DL14: 110 | DM14: 111 | DN14: 112 | DO14: 113 | DP14: 114 | DQ14: 115 | DR14: 116 | DS14: 117 | DT14: 118 | DU14: 119 | DV14: 120 | DW14: 121 | DX14: 122 | DY14: 123 | DZ14: 124 | EA14: 125 | EB14: 126 | EC14: 127 | ED14: 128 | EE14: 129 | EF14: =EE14+1 -> 130 | EG14: 131 | EH14: 132
B15: PROJECT LEVEL LEVERED CASH FLOW | F15: =EOMONTH(Assumptions!$E$38,-1) -> 2021-12-31 | G15: =EOMONTH(F15,1) -> 2022-01-31 | H15: =EOMONTH(G15,1) -> 2022-02-28 | I15: 2022-03-31 | J15: 2022-04-30 | K15: 2022-05-31 | L15: 2022-06-30 | M15: 2022-07-31 | N15: 2022-08-31 | O15: 2022-09-30 | P15: 2022-10-31 | Q15: 2022-11-30 | R15: 2022-12-31 | S15: 2023-01-31 | T15: 2023-02-28 | U15: 2023-03-31 | V15: 2023-04-30 | W15: 2023-05-31 | X15: 2023-06-30 | Y15: 2023-07-31 | Z15: 2023-08-31 | AA15: 2023-09-30 | AB15: 2023-10-31 | AC15: 2023-11-30 | AD15: 2023-12-31 | AE15: 2024-01-31 | AF15: 2024-02-29 | AG15: 2024-03-31 | AH15: 2024-04-30 | AI15: 2024-05-31 | AJ15: 2024-06-30 | AK15: 2024-07-31 | AL15: 2024-08-31 | AM15: 2024-09-30 | AN15: 2024-10-31 | AO15: 2024-11-30 | AP15: 2024-12-31 | AQ15: 2025-01-31 | AR15: 2025-02-28 | AS15: 2025-03-31 | AT15: 2025-04-30 | AU15: 2025-05-31 | AV15: 2025-06-30 | AW15: 2025-07-31 | AX15: 2025-08-31 | AY15: 2025-09-30 | AZ15: 2025-10-31 | BA15: 2025-11-30 | BB15: 2025-12-31 | BC15: 2026-01-31 | BD15: 2026-02-28 | BE15: 2026-03-31 | BF15: 2026-04-30 | BG15: 2026-05-31 | BH15: 2026-06-30 | BI15: 2026-07-31 | BJ15: 2026-08-31 | BK15: 2026-09-30 | BL15: 2026-10-31 | BM15: 2026-11-30 | BN15: 2026-12-31 | BO15: 2027-01-31 | BP15: 2027-02-28 | BQ15: 2027-03-31 | BR15: 2027-04-30 | BS15: 2027-05-31 | BT15: =EOMONTH(BS15,1) -> 2027-06-30 | BU15: 2027-07-31 | BV15: 2027-08-31 | BW15: 2027-09-30 | BX15: 2027-10-31 | BY15: 2027-11-30 | BZ15: 2027-12-31 | CA15: 2028-01-31 | CB15: 2028-02-29 | CC15: 2028-03-31 | CD15: 2028-04-30 | CE15: 2028-05-31 | CF15: 2028-06-30 | CG15: 2028-07-31 | CH15: 2028-08-31 | CI15: 2028-09-30 | CJ15: 2028-10-31 | CK15: 2028-11-30 | CL15: 2028-12-31 | CM15: 2029-01-31 | CN15: 2029-02-28 | CO15: 2029-03-31 | CP15: 2029-04-30 | CQ15: 2029-05-31 | CR15: 2029-06-30 | CS15: 2029-07-31 | CT15: 2029-08-31 | CU15: 2029-09-30 | CV15: 2029-10-31 | CW15: 2029-11-30 | CX15: 2029-12-31 | CY15: 2030-01-31 | CZ15: 2030-02-28 | DA15: 2030-03-31 | DB15: 2030-04-30 | DC15: 2030-05-31 | DD15: 2030-06-30 | DE15: 2030-07-31 | DF15: 2030-08-31 | DG15: 2030-09-30 | DH15: 2030-10-31 | DI15: 2030-11-30 | DJ15: 2030-12-31 | DK15: 2031-01-31 | DL15: 2031-02-28 | DM15: 2031-03-31 | DN15: 2031-04-30 | DO15: 2031-05-31 | DP15: 2031-06-30 | DQ15: 2031-07-31 | DR15: 2031-08-31 | DS15: 2031-09-30 | DT15: 2031-10-31 | DU15: 2031-11-30 | DV15: 2031-12-31 | DW15: 2032-01-31 | DX15: 2032-02-29 | DY15: 2032-03-31 | DZ15: 2032-04-30 | EA15: 2032-05-31 | EB15: 2032-06-30 | EC15: 2032-07-31 | ED15: 2032-08-31 | EE15: 2032-09-30 | EF15: =EOMONTH(EE15,1) -> 2032-10-31 | EG15: 2032-11-30 | EH15: 2032-12-31
B17: Limited Partner Equity Contribution | C17: =Assumptions!A64 -> 0.99 | E17: =SUM(F17:EH17) ->  | F17: =SUMIF('Draw Schedule'!$E$6:$EG$6,F$14,'Draw Schedule'!$E$44:$EG$44) ->  | G17: =SUMIF('Draw Schedule'!$E$6:$EG$6,G$14,'Draw Schedule'!$E$44:$EG$44) ->  | H17: =SUMIF('Draw Schedule'!$E$6:$EG$6,H$14,'Draw Schedule'!$E$44:$EG$44) ->  | I17: =SUMIF('Draw Schedule'!$E$6:$EG$6,I$14,'Draw Schedule'!$E$44:$EG$44) ->  | J17: =SUMIF('Draw Schedule'!$E$6:$EG$6,J$14,'Draw Schedule'!$E$44:$EG$44) ->  | K17: =SUMIF('Draw Schedule'!$E$6:$EG$6,K$14,'Draw Schedule'!$E$44:$EG$44) ->  | L17: =SUMIF('Draw Schedule'!$E$6:$EG$6,L$14,'Draw Schedule'!$E$44:$EG$44) ->  | M17: =SUMIF('Draw Schedule'!$E$6:$EG$6,M$14,'Draw Schedule'!$E$44:$EG$44) ->  | N17: =SUMIF('Draw Schedule'!$E$6:$EG$6,N$14,'Draw Schedule'!$E$44:$EG$44) ->  | O17: =SUMIF('Draw Schedule'!$E$6:$EG$6,O$14,'Draw Schedule'!$E$44:$EG$44) ->  | P17: =SUMIF('Draw Schedule'!$E$6:$EG$6,P$14,'Draw Schedule'!$E$44:$EG$44) ->  | Q17: =SUMIF('Draw Schedule'!$E$6:$EG$6,Q$14,'Draw Schedule'!$E$44:$EG$44) ->  | R17: =SUMIF('Draw Schedule'!$E$6:$EG$6,R$14,'Draw Schedule'!$E$44:$EG$44) ->  | S17: =SUMIF('Draw Schedule'!$E$6:$EG$6,S$14,'Draw Schedule'!$E$44:$EG$44) ->  | T17: =SUMIF('Draw Schedule'!$E$6:$EG$6,T$14,'Draw Schedule'!$E$44:$EG$44) ->  | U17: =SUMIF('Draw Schedule'!$E$6:$EG$6,U$14,'Draw Schedule'!$E$44:$EG$44) ->  | V17: =SUMIF('Draw Schedule'!$E$6:$EG$6,V$14,'Draw Schedule'!$E$44:$EG$44) ->  | W17: =SUMIF('Draw Schedule'!$E$6:$EG$6,W$14,'Draw Schedule'!$E$44:$EG$44) ->  | X17: =SUMIF('Draw Schedule'!$E$6:$EG$6,X$14,'Draw Schedule'!$E$44:$EG$44) ->  | Y17: =SUMIF('Draw Schedule'!$E$6:$EG$6,Y$14,'Draw Schedule'!$E$44:$EG$44) ->  | Z17: =SUMIF('Draw Schedule'!$E$6:$EG$6,Z$14,'Draw Schedule'!$E$44:$EG$44) ->  | AA17: =SUMIF('Draw Schedule'!$E$6:$EG$6,AA$14,'Draw Schedule'!$E$44:$EG$44) ->  | AB17: =SUMIF('Draw Schedule'!$E$6:$EG$6,AB$14,'Draw Schedule'!$E$44:$EG$44) ->  | AC17: =SUMIF('Draw Schedule'!$E$6:$EG$6,AC$14,'Draw Schedule'!$E$44:$EG$44) ->  | AD17: =SUMIF('Draw Schedule'!$E$6:$EG$6,AD$14,'Draw Schedule'!$E$44:$EG$44) ->  | AE17: =SUMIF('Draw Schedule'!$E$6:$EG$6,AE$14,'Draw Schedule'!$E$44:$EG$44) ->  | AF17: =SUMIF('Draw Schedule'!$E$6:$EG$6,AF$14,'Draw Schedule'!$E$44:$EG$44) ->  | AG17: =SUMIF('Draw Schedule'!$E$6:$EG$6,AG$14,'Draw Schedule'!$E$44:$EG$44) ->  | AH17: =SUMIF('Draw Schedule'!$E$6:$EG$6,AH$14,'Draw Schedule'!$E$44:$EG$44) ->  | AI17: =SUMIF('Draw Schedule'!$E$6:$EG$6,AI$14,'Draw Schedule'!$E$44:$EG$44) ->  | AJ17: =SUMIF('Draw Schedule'!$E$6:$EG$6,AJ$14,'Draw Schedule'!$E$44:$EG$44) ->  | AK17: =SUMIF('Draw Schedule'!$E$6:$EG$6,AK$14,'Draw Schedule'!$E$44:$EG$44) ->  | AL17: =SUMIF('Draw Schedule'!$E$6:$EG$6,AL$14,'Draw Schedule'!$E$44:$EG$44) ->  | AM17: =SUMIF('Draw Schedule'!$E$6:$EG$6,AM$14,'Draw Schedule'!$E$44:$EG$44) ->  | AN17: =SUMIF('Draw Schedule'!$E$6:$EG$6,AN$14,'Draw Schedule'!$E$44:$EG$44) ->  | AO17: =SUMIF('Draw Schedule'!$E$6:$EG$6,AO$14,'Draw Schedule'!$E$44:$EG$44) ->  | AP17: =SUMIF('Draw Schedule'!$E$6:$EG$6,AP$14,'Draw Schedule'!$E$44:$EG$44) ->  | AQ17: =SUMIF('Draw Schedule'!$E$6:$EG$6,AQ$14,'Draw Schedule'!$E$44:$EG$44) ->  | AR17: =SUMIF('Draw Schedule'!$E$6:$EG$6,AR$14,'Draw Schedule'!$E$44:$EG$44) ->  | AS17: =SUMIF('Draw Schedule'!$E$6:$EG$6,AS$14,'Draw Schedule'!$E$44:$EG$44) ->  | AT17: =SUMIF('Draw Schedule'!$E$6:$EG$6,AT$14,'Draw Schedule'!$E$44:$EG$44) ->  | AU17: =SUMIF('Draw Schedule'!$E$6:$EG$6,AU$14,'Draw Schedule'!$E$44:$EG$44) ->  | AV17: =SUMIF('Draw Schedule'!$E$6:$EG$6,AV$14,'Draw Schedule'!$E$44:$EG$44) ->  | AW17: =SUMIF('Draw Schedule'!$E$6:$EG$6,AW$14,'Draw Schedule'!$E$44:$EG$44) ->  | AX17: =SUMIF('Draw Schedule'!$E$6:$EG$6,AX$14,'Draw Schedule'!$E$44:$EG$44) ->  | AY17: =SUMIF('Draw Schedule'!$E$6:$EG$6,AY$14,'Draw Schedule'!$E$44:$EG$44) ->  | AZ17: =SUMIF('Draw Schedule'!$E$6:$EG$6,AZ$14,'Draw Schedule'!$E$44:$EG$44) ->  | BA17: =SUMIF('Draw Schedule'!$E$6:$EG$6,BA$14,'Draw Schedule'!$E$44:$EG$44) ->  | BB17: =SUMIF('Draw Schedule'!$E$6:$EG$6,BB$14,'Draw Schedule'!$E$44:$EG$44) ->  | BC17: =SUMIF('Draw Schedule'!$E$6:$EG$6,BC$14,'Draw Schedule'!$E$44:$EG$44) ->  | BD17: =SUMIF('Draw Schedule'!$E$6:$EG$6,BD$14,'Draw Schedule'!$E$44:$EG$44) ->  | BE17: =SUMIF('Draw Schedule'!$E$6:$EG$6,BE$14,'Draw Schedule'!$E$44:$EG$44) ->  | BF17: =SUMIF('Draw Schedule'!$E$6:$EG$6,BF$14,'Draw Schedule'!$E$44:$EG$44) ->  | BG17: =SUMIF('Draw Schedule'!$E$6:$EG$6,BG$14,'Draw Schedule'!$E$44:$EG$44) ->  | BH17: =SUMIF('Draw Schedule'!$E$6:$EG$6,BH$14,'Draw Schedule'!$E$44:$EG$44) ->  | BI17: =SUMIF('Draw Schedule'!$E$6:$EG$6,BI$14,'Draw Schedule'!$E$44:$EG$44) ->  | BJ17: =SUMIF('Draw Schedule'!$E$6:$EG$6,BJ$14,'Draw Schedule'!$E$44:$EG$44) ->  | BK17: =SUMIF('Draw Schedule'!$E$6:$EG$6,BK$14,'Draw Schedule'!$E$44:$EG$44) ->  | BL17: =SUMIF('Draw Schedule'!$E$6:$EG$6,BL$14,'Draw Schedule'!$E$44:$EG$44) ->  | BM17: =SUMIF('Draw Schedule'!$E$6:$EG$6,BM$14,'Draw Schedule'!$E$44:$EG$44) ->  | BN17: =SUMIF('Draw Schedule'!$E$6:$EG$6,BN$14,'Draw Schedule'!$E$44:$EG$44) ->  | BO17: =SUMIF('Draw Schedule'!$E$6:$EG$6,BO$14,'Draw Schedule'!$E$44:$EG$44) ->  | BP17: =SUMIF('Draw Schedule'!$E$6:$EG$6,BP$14,'Draw Schedule'!$E$44:$EG$44) ->  | BQ17: =SUMIF('Draw Schedule'!$E$6:$EG$6,BQ$14,'Draw Schedule'!$E$44:$EG$44) ->  | BR17: =SUMIF('Draw Schedule'!$E$6:$EG$6,BR$14,'Draw Schedule'!$E$44:$EG$44) ->  | BS17: =SUMIF('Draw Schedule'!$E$6:$EG$6,BS$14,'Draw Schedule'!$E$44:$EG$44) ->  | BT17: =SUMIF('Draw Schedule'!$E$6:$EG$6,BT$14,'Draw Schedule'!$E$44:$EG$44) ->  | BU17: =SUMIF('Draw Schedule'!$E$6:$EG$6,BU$14,'Draw Schedule'!$E$44:$EG$44) ->  | BV17: =SUMIF('Draw Schedule'!$E$6:$EG$6,BV$14,'Draw Schedule'!$E$44:$EG$44) ->  | BW17: =SUMIF('Draw Schedule'!$E$6:$EG$6,BW$14,'Draw Schedule'!$E$44:$EG$44) ->  | BX17: =SUMIF('Draw Schedule'!$E$6:$EG$6,BX$14,'Draw Schedule'!$E$44:$EG$44) ->  | BY17: =SUMIF('Draw Schedule'!$E$6:$EG$6,BY$14,'Draw Schedule'!$E$44:$EG$44) ->  | BZ17: =SUMIF('Draw Schedule'!$E$6:$EG$6,BZ$14,'Draw Schedule'!$E$44:$EG$44) ->  | CA17: =SUMIF('Draw Schedule'!$E$6:$EG$6,CA$14,'Draw Schedule'!$E$44:$EG$44) ->  | CB17: =SUMIF('Draw Schedule'!$E$6:$EG$6,CB$14,'Draw Schedule'!$E$44:$EG$44) ->  | CC17: =SUMIF('Draw Schedule'!$E$6:$EG$6,CC$14,'Draw Schedule'!$E$44:$EG$44) ->  | CD17: =SUMIF('Draw Schedule'!$E$6:$EG$6,CD$14,'Draw Schedule'!$E$44:$EG$44) ->  | CE17: =SUMIF('Draw Schedule'!$E$6:$EG$6,CE$14,'Draw Schedule'!$E$44:$EG$44) ->  | CF17: =SUMIF('Draw Schedule'!$E$6:$EG$6,CF$14,'Draw Schedule'!$E$44:$EG$44) ->  | CG17: =SUMIF('Draw Schedule'!$E$6:$EG$6,CG$14,'Draw Schedule'!$E$44:$EG$44) ->  | CH17: =SUMIF('Draw Schedule'!$E$6:$EG$6,CH$14,'Draw Schedule'!$E$44:$EG$44) ->  | CI17: =SUMIF('Draw Schedule'!$E$6:$EG$6,CI$14,'Draw Schedule'!$E$44:$EG$44) ->  | CJ17: =SUMIF('Draw Schedule'!$E$6:$EG$6,CJ$14,'Draw Schedule'!$E$44:$EG$44) ->  | CK17: =SUMIF('Draw Schedule'!$E$6:$EG$6,CK$14,'Draw Schedule'!$E$44:$EG$44) ->  | CL17: =SUMIF('Draw Schedule'!$E$6:$EG$6,CL$14,'Draw Schedule'!$E$44:$EG$44) ->  | CM17: =SUMIF('Draw Schedule'!$E$6:$EG$6,CM$14,'Draw Schedule'!$E$44:$EG$44) ->  | CN17: =SUMIF('Draw Schedule'!$E$6:$EG$6,CN$14,'Draw Schedule'!$E$44:$EG$44) ->  | CO17: =SUMIF('Draw Schedule'!$E$6:$EG$6,CO$14,'Draw Schedule'!$E$44:$EG$44) ->  | CP17: =SUMIF('Draw Schedule'!$E$6:$EG$6,CP$14,'Draw Schedule'!$E$44:$EG$44) ->  | CQ17: =SUMIF('Draw Schedule'!$E$6:$EG$6,CQ$14,'Draw Schedule'!$E$44:$EG$44) ->  | CR17: =SUMIF('Draw Schedule'!$E$6:$EG$6,CR$14,'Draw Schedule'!$E$44:$EG$44) ->  | CS17: =SUMIF('Draw Schedule'!$E$6:$EG$6,CS$14,'Draw Schedule'!$E$44:$EG$44) ->  | CT17: =SUMIF('Draw Schedule'!$E$6:$EG$6,CT$14,'Draw Schedule'!$E$44:$EG$44) ->  | CU17: =SUMIF('Draw Schedule'!$E$6:$EG$6,CU$14,'Draw Schedule'!$E$44:$EG$44) ->  | CV17: =SUMIF('Draw Schedule'!$E$6:$EG$6,CV$14,'Draw Schedule'!$E$44:$EG$44) ->  | CW17: =SUMIF('Draw Schedule'!$E$6:$EG$6,CW$14,'Draw Schedule'!$E$44:$EG$44) ->  | CX17: =SUMIF('Draw Schedule'!$E$6:$EG$6,CX$14,'Draw Schedule'!$E$44:$EG$44) ->  | CY17: =SUMIF('Draw Schedule'!$E$6:$EG$6,CY$14,'Draw Schedule'!$E$44:$EG$44) ->  | CZ17: =SUMIF('Draw Schedule'!$E$6:$EG$6,CZ$14,'Draw Schedule'!$E$44:$EG$44) ->  | DA17: =SUMIF('Draw Schedule'!$E$6:$EG$6,DA$14,'Draw Schedule'!$E$44:$EG$44) ->  | DB17: =SUMIF('Draw Schedule'!$E$6:$EG$6,DB$14,'Draw Schedule'!$E$44:$EG$44) ->  | DC17: =SUMIF('Draw Schedule'!$E$6:$EG$6,DC$14,'Draw Schedule'!$E$44:$EG$44) ->  | DD17: =SUMIF('Draw Schedule'!$E$6:$EG$6,DD$14,'Draw Schedule'!$E$44:$EG$44) ->  | DE17: =SUMIF('Draw Schedule'!$E$6:$EG$6,DE$14,'Draw Schedule'!$E$44:$EG$44) ->  | DF17: =SUMIF('Draw Schedule'!$E$6:$EG$6,DF$14,'Draw Schedule'!$E$44:$EG$44) ->  | DG17: =SUMIF('Draw Schedule'!$E$6:$EG$6,DG$14,'Draw Schedule'!$E$44:$EG$44) ->  | DH17: =SUMIF('Draw Schedule'!$E$6:$EG$6,DH$14,'Draw Schedule'!$E$44:$EG$44) ->  | DI17: =SUMIF('Draw Schedule'!$E$6:$EG$6,DI$14,'Draw Schedule'!$E$44:$EG$44) ->  | DJ17: =SUMIF('Draw Schedule'!$E$6:$EG$6,DJ$14,'Draw Schedule'!$E$44:$EG$44) ->  | DK17: =SUMIF('Draw Schedule'!$E$6:$EG$6,DK$14,'Draw Schedule'!$E$44:$EG$44) ->  | DL17: =SUMIF('Draw Schedule'!$E$6:$EG$6,DL$14,'Draw Schedule'!$E$44:$EG$44) ->  | DM17: =SUMIF('Draw Schedule'!$E$6:$EG$6,DM$14,'Draw Schedule'!$E$44:$EG$44) ->  | DN17: =SUMIF('Draw Schedule'!$E$6:$EG$6,DN$14,'Draw Schedule'!$E$44:$EG$44) ->  | DO17: =SUMIF('Draw Schedule'!$E$6:$EG$6,DO$14,'Draw Schedule'!$E$44:$EG$44) ->  | DP17: =SUMIF('Draw Schedule'!$E$6:$EG$6,DP$14,'Draw Schedule'!$E$44:$EG$44) ->  | DQ17: =SUMIF('Draw Schedule'!$E$6:$EG$6,DQ$14,'Draw Schedule'!$E$44:$EG$44) ->  | DR17: =SUMIF('Draw Schedule'!$E$6:$EG$6,DR$14,'Draw Schedule'!$E$44:$EG$44) ->  | DS17: =SUMIF('Draw Schedule'!$E$6:$EG$6,DS$14,'Draw Schedule'!$E$44:$EG$44) ->  | DT17: =SUMIF('Draw Schedule'!$E$6:$EG$6,DT$14,'Draw Schedule'!$E$44:$EG$44) ->  | DU17: =SUMIF('Draw Schedule'!$E$6:$EG$6,DU$14,'Draw Schedule'!$E$44:$EG$44) ->  | DV17: =SUMIF('Draw Schedule'!$E$6:$EG$6,DV$14,'Draw Schedule'!$E$44:$EG$44) ->  | DW17: =SUMIF('Draw Schedule'!$E$6:$EG$6,DW$14,'Draw Schedule'!$E$44:$EG$44) ->  | DX17: =SUMIF('Draw Schedule'!$E$6:$EG$6,DX$14,'Draw Schedule'!$E$44:$EG$44) ->  | DY17: =SUMIF('Draw Schedule'!$E$6:$EG$6,DY$14,'Draw Schedule'!$E$44:$EG$44) ->  | DZ17: =SUMIF('Draw Schedule'!$E$6:$EG$6,DZ$14,'Draw Schedule'!$E$44:$EG$44) ->  | EA17: =SUMIF('Draw Schedule'!$E$6:$EG$6,EA$14,'Draw Schedule'!$E$44:$EG$44) ->  | EB17: =SUMIF('Draw Schedule'!$E$6:$EG$6,EB$14,'Draw Schedule'!$E$44:$EG$44) ->  | EC17: =SUMIF('Draw Schedule'!$E$6:$EG$6,EC$14,'Draw Schedule'!$E$44:$EG$44) ->  | ED17: =SUMIF('Draw Schedule'!$E$6:$EG$6,ED$14,'Draw Schedule'!$E$44:$EG$44) ->  | EE17: =SUMIF('Draw Schedule'!$E$6:$EG$6,EE$14,'Draw Schedule'!$E$44:$EG$44) ->  | EF17: =SUMIF('Draw Schedule'!$E$6:$EG$6,EF$14,'Draw Schedule'!$E$44:$EG$44) ->  | EG17: =SUMIF('Draw Schedule'!$E$6:$EG$6,EG$14,'Draw Schedule'!$E$44:$EG$44) ->  | EH17: =SUMIF('Draw Schedule'!$E$6:$EG$6,EH$14,'Draw Schedule'!$E$44:$EG$44) -> 
B18: General Partner Equity Contribution | C18: =Assumptions!A65 -> 0.01 | E18: =SUM(F18:EH18) ->  | F18: =SUMIF('Draw Schedule'!$E$6:$EG$6,F$14,'Draw Schedule'!$E$45:$EG$45) ->  | G18: =SUMIF('Draw Schedule'!$E$6:$EG$6,G$14,'Draw Schedule'!$E$45:$EG$45) ->  | H18: =SUMIF('Draw Schedule'!$E$6:$EG$6,H$14,'Draw Schedule'!$E$45:$EG$45) ->  | I18: =SUMIF('Draw Schedule'!$E$6:$EG$6,I$14,'Draw Schedule'!$E$45:$EG$45) ->  | J18: =SUMIF('Draw Schedule'!$E$6:$EG$6,J$14,'Draw Schedule'!$E$45:$EG$45) ->  | K18: =SUMIF('Draw Schedule'!$E$6:$EG$6,K$14,'Draw Schedule'!$E$45:$EG$45) ->  | L18: =SUMIF('Draw Schedule'!$E$6:$EG$6,L$14,'Draw Schedule'!$E$45:$EG$45) ->  | M18: =SUMIF('Draw Schedule'!$E$6:$EG$6,M$14,'Draw Schedule'!$E$45:$EG$45) ->  | N18: =SUMIF('Draw Schedule'!$E$6:$EG$6,N$14,'Draw Schedule'!$E$45:$EG$45) ->  | O18: =SUMIF('Draw Schedule'!$E$6:$EG$6,O$14,'Draw Schedule'!$E$45:$EG$45) ->  | P18: =SUMIF('Draw Schedule'!$E$6:$EG$6,P$14,'Draw Schedule'!$E$45:$EG$45) ->  | Q18: =SUMIF('Draw Schedule'!$E$6:$EG$6,Q$14,'Draw Schedule'!$E$45:$EG$45) ->  | R18: =SUMIF('Draw Schedule'!$E$6:$EG$6,R$14,'Draw Schedule'!$E$45:$EG$45) ->  | S18: =SUMIF('Draw Schedule'!$E$6:$EG$6,S$14,'Draw Schedule'!$E$45:$EG$45) ->  | T18: =SUMIF('Draw Schedule'!$E$6:$EG$6,T$14,'Draw Schedule'!$E$45:$EG$45) ->  | U18: =SUMIF('Draw Schedule'!$E$6:$EG$6,U$14,'Draw Schedule'!$E$45:$EG$45) ->  | V18: =SUMIF('Draw Schedule'!$E$6:$EG$6,V$14,'Draw Schedule'!$E$45:$EG$45) ->  | W18: =SUMIF('Draw Schedule'!$E$6:$EG$6,W$14,'Draw Schedule'!$E$45:$EG$45) ->  | X18: =SUMIF('Draw Schedule'!$E$6:$EG$6,X$14,'Draw Schedule'!$E$45:$EG$45) ->  | Y18: =SUMIF('Draw Schedule'!$E$6:$EG$6,Y$14,'Draw Schedule'!$E$45:$EG$45) ->  | Z18: =SUMIF('Draw Schedule'!$E$6:$EG$6,Z$14,'Draw Schedule'!$E$45:$EG$45) ->  | AA18: =SUMIF('Draw Schedule'!$E$6:$EG$6,AA$14,'Draw Schedule'!$E$45:$EG$45) ->  | AB18: =SUMIF('Draw Schedule'!$E$6:$EG$6,AB$14,'Draw Schedule'!$E$45:$EG$45) ->  | AC18: =SUMIF('Draw Schedule'!$E$6:$EG$6,AC$14,'Draw Schedule'!$E$45:$EG$45) ->  | AD18: =SUMIF('Draw Schedule'!$E$6:$EG$6,AD$14,'Draw Schedule'!$E$45:$EG$45) ->  | AE18: =SUMIF('Draw Schedule'!$E$6:$EG$6,AE$14,'Draw Schedule'!$E$45:$EG$45) ->  | AF18: =SUMIF('Draw Schedule'!$E$6:$EG$6,AF$14,'Draw Schedule'!$E$45:$EG$45) ->  | AG18: =SUMIF('Draw Schedule'!$E$6:$EG$6,AG$14,'Draw Schedule'!$E$45:$EG$45) ->  | AH18: =SUMIF('Draw Schedule'!$E$6:$EG$6,AH$14,'Draw Schedule'!$E$45:$EG$45) ->  | AI18: =SUMIF('Draw Schedule'!$E$6:$EG$6,AI$14,'Draw Schedule'!$E$45:$EG$45) ->  | AJ18: =SUMIF('Draw Schedule'!$E$6:$EG$6,AJ$14,'Draw Schedule'!$E$45:$EG$45) ->  | AK18: =SUMIF('Draw Schedule'!$E$6:$EG$6,AK$14,'Draw Schedule'!$E$45:$EG$45) ->  | AL18: =SUMIF('Draw Schedule'!$E$6:$EG$6,AL$14,'Draw Schedule'!$E$45:$EG$45) ->  | AM18: =SUMIF('Draw Schedule'!$E$6:$EG$6,AM$14,'Draw Schedule'!$E$45:$EG$45) ->  | AN18: =SUMIF('Draw Schedule'!$E$6:$EG$6,AN$14,'Draw Schedule'!$E$45:$EG$45) ->  | AO18: =SUMIF('Draw Schedule'!$E$6:$EG$6,AO$14,'Draw Schedule'!$E$45:$EG$45) ->  | AP18: =SUMIF('Draw Schedule'!$E$6:$EG$6,AP$14,'Draw Schedule'!$E$45:$EG$45) ->  | AQ18: =SUMIF('Draw Schedule'!$E$6:$EG$6,AQ$14,'Draw Schedule'!$E$45:$EG$45) ->  | AR18: =SUMIF('Draw Schedule'!$E$6:$EG$6,AR$14,'Draw Schedule'!$E$45:$EG$45) ->  | AS18: =SUMIF('Draw Schedule'!$E$6:$EG$6,AS$14,'Draw Schedule'!$E$45:$EG$45) ->  | AT18: =SUMIF('Draw Schedule'!$E$6:$EG$6,AT$14,'Draw Schedule'!$E$45:$EG$45) ->  | AU18: =SUMIF('Draw Schedule'!$E$6:$EG$6,AU$14,'Draw Schedule'!$E$45:$EG$45) ->  | AV18: =SUMIF('Draw Schedule'!$E$6:$EG$6,AV$14,'Draw Schedule'!$E$45:$EG$45) ->  | AW18: =SUMIF('Draw Schedule'!$E$6:$EG$6,AW$14,'Draw Schedule'!$E$45:$EG$45) ->  | AX18: =SUMIF('Draw Schedule'!$E$6:$EG$6,AX$14,'Draw Schedule'!$E$45:$EG$45) ->  | AY18: =SUMIF('Draw Schedule'!$E$6:$EG$6,AY$14,'Draw Schedule'!$E$45:$EG$45) ->  | AZ18: =SUMIF('Draw Schedule'!$E$6:$EG$6,AZ$14,'Draw Schedule'!$E$45:$EG$45) ->  | BA18: =SUMIF('Draw Schedule'!$E$6:$EG$6,BA$14,'Draw Schedule'!$E$45:$EG$45) ->  | BB18: =SUMIF('Draw Schedule'!$E$6:$EG$6,BB$14,'Draw Schedule'!$E$45:$EG$45) ->  | BC18: =SUMIF('Draw Schedule'!$E$6:$EG$6,BC$14,'Draw Schedule'!$E$45:$EG$45) ->  | BD18: =SUMIF('Draw Schedule'!$E$6:$EG$6,BD$14,'Draw Schedule'!$E$45:$EG$45) ->  | BE18: =SUMIF('Draw Schedule'!$E$6:$EG$6,BE$14,'Draw Schedule'!$E$45:$EG$45) ->  | BF18: =SUMIF('Draw Schedule'!$E$6:$EG$6,BF$14,'Draw Schedule'!$E$45:$EG$45) ->  | BG18: =SUMIF('Draw Schedule'!$E$6:$EG$6,BG$14,'Draw Schedule'!$E$45:$EG$45) ->  | BH18: =SUMIF('Draw Schedule'!$E$6:$EG$6,BH$14,'Draw Schedule'!$E$45:$EG$45) ->  | BI18: =SUMIF('Draw Schedule'!$E$6:$EG$6,BI$14,'Draw Schedule'!$E$45:$EG$45) ->  | BJ18: =SUMIF('Draw Schedule'!$E$6:$EG$6,BJ$14,'Draw Schedule'!$E$45:$EG$45) ->  | BK18: =SUMIF('Draw Schedule'!$E$6:$EG$6,BK$14,'Draw Schedule'!$E$45:$EG$45) ->  | BL18: =SUMIF('Draw Schedule'!$E$6:$EG$6,BL$14,'Draw Schedule'!$E$45:$EG$45) ->  | BM18: =SUMIF('Draw Schedule'!$E$6:$EG$6,BM$14,'Draw Schedule'!$E$45:$EG$45) ->  | BN18: =SUMIF('Draw Schedule'!$E$6:$EG$6,BN$14,'Draw Schedule'!$E$45:$EG$45) ->  | BO18: =SUMIF('Draw Schedule'!$E$6:$EG$6,BO$14,'Draw Schedule'!$E$45:$EG$45) ->  | BP18: =SUMIF('Draw Schedule'!$E$6:$EG$6,BP$14,'Draw Schedule'!$E$45:$EG$45) ->  | BQ18: =SUMIF('Draw Schedule'!$E$6:$EG$6,BQ$14,'Draw Schedule'!$E$45:$EG$45) ->  | BR18: =SUMIF('Draw Schedule'!$E$6:$EG$6,BR$14,'Draw Schedule'!$E$45:$EG$45) ->  | BS18: =SUMIF('Draw Schedule'!$E$6:$EG$6,BS$14,'Draw Schedule'!$E$45:$EG$45) ->  | BT18: =SUMIF('Draw Schedule'!$E$6:$EG$6,BT$14,'Draw Schedule'!$E$45:$EG$45) ->  | BU18: =SUMIF('Draw Schedule'!$E$6:$EG$6,BU$14,'Draw Schedule'!$E$45:$EG$45) ->  | BV18: =SUMIF('Draw Schedule'!$E$6:$EG$6,BV$14,'Draw Schedule'!$E$45:$EG$45) ->  | BW18: =SUMIF('Draw Schedule'!$E$6:$EG$6,BW$14,'Draw Schedule'!$E$45:$EG$45) ->  | BX18: =SUMIF('Draw Schedule'!$E$6:$EG$6,BX$14,'Draw Schedule'!$E$45:$EG$45) ->  | BY18: =SUMIF('Draw Schedule'!$E$6:$EG$6,BY$14,'Draw Schedule'!$E$45:$EG$45) ->  | BZ18: =SUMIF('Draw Schedule'!$E$6:$EG$6,BZ$14,'Draw Schedule'!$E$45:$EG$45) ->  | CA18: =SUMIF('Draw Schedule'!$E$6:$EG$6,CA$14,'Draw Schedule'!$E$45:$EG$45) ->  | CB18: =SUMIF('Draw Schedule'!$E$6:$EG$6,CB$14,'Draw Schedule'!$E$45:$EG$45) ->  | CC18: =SUMIF('Draw Schedule'!$E$6:$EG$6,CC$14,'Draw Schedule'!$E$45:$EG$45) ->  | CD18: =SUMIF('Draw Schedule'!$E$6:$EG$6,CD$14,'Draw Schedule'!$E$45:$EG$45) ->  | CE18: =SUMIF('Draw Schedule'!$E$6:$EG$6,CE$14,'Draw Schedule'!$E$45:$EG$45) ->  | CF18: =SUMIF('Draw Schedule'!$E$6:$EG$6,CF$14,'Draw Schedule'!$E$45:$EG$45) ->  | CG18: =SUMIF('Draw Schedule'!$E$6:$EG$6,CG$14,'Draw Schedule'!$E$45:$EG$45) ->  | CH18: =SUMIF('Draw Schedule'!$E$6:$EG$6,CH$14,'Draw Schedule'!$E$45:$EG$45) ->  | CI18: =SUMIF('Draw Schedule'!$E$6:$EG$6,CI$14,'Draw Schedule'!$E$45:$EG$45) ->  | CJ18: =SUMIF('Draw Schedule'!$E$6:$EG$6,CJ$14,'Draw Schedule'!$E$45:$EG$45) ->  | CK18: =SUMIF('Draw Schedule'!$E$6:$EG$6,CK$14,'Draw Schedule'!$E$45:$EG$45) ->  | CL18: =SUMIF('Draw Schedule'!$E$6:$EG$6,CL$14,'Draw Schedule'!$E$45:$EG$45) ->  | CM18: =SUMIF('Draw Schedule'!$E$6:$EG$6,CM$14,'Draw Schedule'!$E$45:$EG$45) ->  | CN18: =SUMIF('Draw Schedule'!$E$6:$EG$6,CN$14,'Draw Schedule'!$E$45:$EG$45) ->  | CO18: =SUMIF('Draw Schedule'!$E$6:$EG$6,CO$14,'Draw Schedule'!$E$45:$EG$45) ->  | CP18: =SUMIF('Draw Schedule'!$E$6:$EG$6,CP$14,'Draw Schedule'!$E$45:$EG$45) ->  | CQ18: =SUMIF('Draw Schedule'!$E$6:$EG$6,CQ$14,'Draw Schedule'!$E$45:$EG$45) ->  | CR18: =SUMIF('Draw Schedule'!$E$6:$EG$6,CR$14,'Draw Schedule'!$E$45:$EG$45) ->  | CS18: =SUMIF('Draw Schedule'!$E$6:$EG$6,CS$14,'Draw Schedule'!$E$45:$EG$45) ->  | CT18: =SUMIF('Draw Schedule'!$E$6:$EG$6,CT$14,'Draw Schedule'!$E$45:$EG$45) ->  | CU18: =SUMIF('Draw Schedule'!$E$6:$EG$6,CU$14,'Draw Schedule'!$E$45:$EG$45) ->  | CV18: =SUMIF('Draw Schedule'!$E$6:$EG$6,CV$14,'Draw Schedule'!$E$45:$EG$45) ->  | CW18: =SUMIF('Draw Schedule'!$E$6:$EG$6,CW$14,'Draw Schedule'!$E$45:$EG$45) ->  | CX18: =SUMIF('Draw Schedule'!$E$6:$EG$6,CX$14,'Draw Schedule'!$E$45:$EG$45) ->  | CY18: =SUMIF('Draw Schedule'!$E$6:$EG$6,CY$14,'Draw Schedule'!$E$45:$EG$45) ->  | CZ18: =SUMIF('Draw Schedule'!$E$6:$EG$6,CZ$14,'Draw Schedule'!$E$45:$EG$45) ->  | DA18: =SUMIF('Draw Schedule'!$E$6:$EG$6,DA$14,'Draw Schedule'!$E$45:$EG$45) ->  | DB18: =SUMIF('Draw Schedule'!$E$6:$EG$6,DB$14,'Draw Schedule'!$E$45:$EG$45) ->  | DC18: =SUMIF('Draw Schedule'!$E$6:$EG$6,DC$14,'Draw Schedule'!$E$45:$EG$45) ->  | DD18: =SUMIF('Draw Schedule'!$E$6:$EG$6,DD$14,'Draw Schedule'!$E$45:$EG$45) ->  | DE18: =SUMIF('Draw Schedule'!$E$6:$EG$6,DE$14,'Draw Schedule'!$E$45:$EG$45) ->  | DF18: =SUMIF('Draw Schedule'!$E$6:$EG$6,DF$14,'Draw Schedule'!$E$45:$EG$45) ->  | DG18: =SUMIF('Draw Schedule'!$E$6:$EG$6,DG$14,'Draw Schedule'!$E$45:$EG$45) ->  | DH18: =SUMIF('Draw Schedule'!$E$6:$EG$6,DH$14,'Draw Schedule'!$E$45:$EG$45) ->  | DI18: =SUMIF('Draw Schedule'!$E$6:$EG$6,DI$14,'Draw Schedule'!$E$45:$EG$45) ->  | DJ18: =SUMIF('Draw Schedule'!$E$6:$EG$6,DJ$14,'Draw Schedule'!$E$45:$EG$45) ->  | DK18: =SUMIF('Draw Schedule'!$E$6:$EG$6,DK$14,'Draw Schedule'!$E$45:$EG$45) ->  | DL18: =SUMIF('Draw Schedule'!$E$6:$EG$6,DL$14,'Draw Schedule'!$E$45:$EG$45) ->  | DM18: =SUMIF('Draw Schedule'!$E$6:$EG$6,DM$14,'Draw Schedule'!$E$45:$EG$45) ->  | DN18: =SUMIF('Draw Schedule'!$E$6:$EG$6,DN$14,'Draw Schedule'!$E$45:$EG$45) ->  | DO18: =SUMIF('Draw Schedule'!$E$6:$EG$6,DO$14,'Draw Schedule'!$E$45:$EG$45) ->  | DP18: =SUMIF('Draw Schedule'!$E$6:$EG$6,DP$14,'Draw Schedule'!$E$45:$EG$45) ->  | DQ18: =SUMIF('Draw Schedule'!$E$6:$EG$6,DQ$14,'Draw Schedule'!$E$45:$EG$45) ->  | DR18: =SUMIF('Draw Schedule'!$E$6:$EG$6,DR$14,'Draw Schedule'!$E$45:$EG$45) ->  | DS18: =SUMIF('Draw Schedule'!$E$6:$EG$6,DS$14,'Draw Schedule'!$E$45:$EG$45) ->  | DT18: =SUMIF('Draw Schedule'!$E$6:$EG$6,DT$14,'Draw Schedule'!$E$45:$EG$45) ->  | DU18: =SUMIF('Draw Schedule'!$E$6:$EG$6,DU$14,'Draw Schedule'!$E$45:$EG$45) ->  | DV18: =SUMIF('Draw Schedule'!$E$6:$EG$6,DV$14,'Draw Schedule'!$E$45:$EG$45) ->  | DW18: =SUMIF('Draw Schedule'!$E$6:$EG$6,DW$14,'Draw Schedule'!$E$45:$EG$45) ->  | DX18: =SUMIF('Draw Schedule'!$E$6:$EG$6,DX$14,'Draw Schedule'!$E$45:$EG$45) ->  | DY18: =SUMIF('Draw Schedule'!$E$6:$EG$6,DY$14,'Draw Schedule'!$E$45:$EG$45) ->  | DZ18: =SUMIF('Draw Schedule'!$E$6:$EG$6,DZ$14,'Draw Schedule'!$E$45:$EG$45) ->  | EA18: =SUMIF('Draw Schedule'!$E$6:$EG$6,EA$14,'Draw Schedule'!$E$45:$EG$45) ->  | EB18: =SUMIF('Draw Schedule'!$E$6:$EG$6,EB$14,'Draw Schedule'!$E$45:$EG$45) ->  | EC18: =SUMIF('Draw Schedule'!$E$6:$EG$6,EC$14,'Draw Schedule'!$E$45:$EG$45) ->  | ED18: =SUMIF('Draw Schedule'!$E$6:$EG$6,ED$14,'Draw Schedule'!$E$45:$EG$45) ->  | EE18: =SUMIF('Draw Schedule'!$E$6:$EG$6,EE$14,'Draw Schedule'!$E$45:$EG$45) ->  | EF18: =SUMIF('Draw Schedule'!$E$6:$EG$6,EF$14,'Draw Schedule'!$E$45:$EG$45) ->  | EG18: =SUMIF('Draw Schedule'!$E$6:$EG$6,EG$14,'Draw Schedule'!$E$45:$EG$45) ->  | EH18: =SUMIF('Draw Schedule'!$E$6:$EG$6,EH$14,'Draw Schedule'!$E$45:$EG$45) -> 
B19: Total Equity Contribution | F19: =SUM(F17:F18) ->  | G19: =SUM(G17:G18) ->  | BS19: =SUM(BS17:BS18) ->  | EE19: =SUM(EE17:EE18) -> 
B20: Total Project Distributions | F20: =IF(F21<0,0,F21) ->  | G20: =IF(G21<0,0,G21) ->  | BS20: =IF(BS21<0,0,BS21) ->  | EE20: =IF(EE21<0,0,EE21) -> 
B21: Total Cash Flow to Equity | E21: =SUM(F21:EH21) ->  | F21: =SUMIF('Monthly & Annual CFs'!$E$6:$EG$6,F14,'Monthly & Annual CFs'!$E$31:$EG$31) ->  | G21: =SUMIF('Monthly & Annual CFs'!$E$6:$EG$6,G14,'Monthly & Annual CFs'!$E$31:$EG$31) ->  | H21: =SUMIF('Monthly & Annual CFs'!$E$6:$EG$6,H14,'Monthly & Annual CFs'!$E$31:$EG$31) ->  | I21: =SUMIF('Monthly & Annual CFs'!$E$6:$EG$6,I14,'Monthly & Annual CFs'!$E$31:$EG$31) ->  | J21: =SUMIF('Monthly & Annual CFs'!$E$6:$EG$6,J14,'Monthly & Annual CFs'!$E$31:$EG$31) ->  | K21: =SUMIF('Monthly & Annual CFs'!$E$6:$EG$6,K14,'Monthly & Annual CFs'!$E$31:$EG$31) ->  | L21: =SUMIF('Monthly & Annual CFs'!$E$6:$EG$6,L14,'Monthly & Annual CFs'!$E$31:$EG$31) ->  | M21: =SUMIF('Monthly & Annual CFs'!$E$6:$EG$6,M14,'Monthly & Annual CFs'!$E$31:$EG$31) ->  | N21: =SUMIF('Monthly & Annual CFs'!$E$6:$EG$6,N14,'Monthly & Annual CFs'!$E$31:$EG$31) ->  | O21: =SUMIF('Monthly & Annual CFs'!$E$6:$EG$6,O14,'Monthly & Annual CFs'!$E$31:$EG$31) ->  | P21: =SUMIF('Monthly & Annual CFs'!$E$6:$EG$6,P14,'Monthly & Annual CFs'!$E$31:$EG$31) ->  | Q21: =SUMIF('Monthly & Annual CFs'!$E$6:$EG$6,Q14,'Monthly & Annual CFs'!$E$31:$EG$31) ->  | R21: =SUMIF('Monthly & Annual CFs'!$E$6:$EG$6,R14,'Monthly & Annual CFs'!$E$31:$EG$31) ->  | S21: =SUMIF('Monthly & Annual CFs'!$E$6:$EG$6,S14,'Monthly & Annual CFs'!$E$31:$EG$31) ->  | T21: =SUMIF('Monthly & Annual CFs'!$E$6:$EG$6,T14,'Monthly & Annual CFs'!$E$31:$EG$31) ->  | U21: =SUMIF('Monthly & Annual CFs'!$E$6:$EG$6,U14,'Monthly & Annual CFs'!$E$31:$EG$31) ->  | V21: =SUMIF('Monthly & Annual CFs'!$E$6:$EG$6,V14,'Monthly & Annual CFs'!$E$31:$EG$31) ->  | W21: =SUMIF('Monthly & Annual CFs'!$E$6:$EG$6,W14,'Monthly & Annual CFs'!$E$31:$EG$31) ->  | X21: =SUMIF('Monthly & Annual CFs'!$E$6:$EG$6,X14,'Monthly & Annual CFs'!$E$31:$EG$31) ->  | Y21: =SUMIF('Monthly & Annual CFs'!$E$6:$EG$6,Y14,'Monthly & Annual CFs'!$E$31:$EG$31) ->  | Z21: =SUMIF('Monthly & Annual CFs'!$E$6:$EG$6,Z14,'Monthly & Annual CFs'!$E$31:$EG$31) ->  | AA21: =SUMIF('Monthly & Annual CFs'!$E$6:$EG$6,AA14,'Monthly & Annual CFs'!$E$31:$EG$31) ->  | AB21: =SUMIF('Monthly & Annual CFs'!$E$6:$EG$6,AB14,'Monthly & Annual CFs'!$E$31:$EG$31) ->  | AC21: =SUMIF('Monthly & Annual CFs'!$E$6:$EG$6,AC14,'Monthly & Annual CFs'!$E$31:$EG$31) ->  | AD21: =SUMIF('Monthly & Annual CFs'!$E$6:$EG$6,AD14,'Monthly & Annual CFs'!$E$31:$EG$31) ->  | AE21: =SUMIF('Monthly & Annual CFs'!$E$6:$EG$6,AE14,'Monthly & Annual CFs'!$E$31:$EG$31) ->  | AF21: =SUMIF('Monthly & Annual CFs'!$E$6:$EG$6,AF14,'Monthly & Annual CFs'!$E$31:$EG$31) ->  | AG21: =SUMIF('Monthly & Annual CFs'!$E$6:$EG$6,AG14,'Monthly & Annual CFs'!$E$31:$EG$31) ->  | AH21: =SUMIF('Monthly & Annual CFs'!$E$6:$EG$6,AH14,'Monthly & Annual CFs'!$E$31:$EG$31) ->  | AI21: =SUMIF('Monthly & Annual CFs'!$E$6:$EG$6,AI14,'Monthly & Annual CFs'!$E$31:$EG$31) ->  | AJ21: =SUMIF('Monthly & Annual CFs'!$E$6:$EG$6,AJ14,'Monthly & Annual CFs'!$E$31:$EG$31) ->  | AK21: =SUMIF('Monthly & Annual CFs'!$E$6:$EG$6,AK14,'Monthly & Annual CFs'!$E$31:$EG$31) ->  | AL21: =SUMIF('Monthly & Annual CFs'!$E$6:$EG$6,AL14,'Monthly & Annual CFs'!$E$31:$EG$31) ->  | AM21: =SUMIF('Monthly & Annual CFs'!$E$6:$EG$6,AM14,'Monthly & Annual CFs'!$E$31:$EG$31) ->  | AN21: =SUMIF('Monthly & Annual CFs'!$E$6:$EG$6,AN14,'Monthly & Annual CFs'!$E$31:$EG$31) ->  | AO21: =SUMIF('Monthly & Annual CFs'!$E$6:$EG$6,AO14,'Monthly & Annual CFs'!$E$31:$EG$31) ->  | AP21: =SUMIF('Monthly & Annual CFs'!$E$6:$EG$6,AP14,'Monthly & Annual CFs'!$E$31:$EG$31) ->  | AQ21: =SUMIF('Monthly & Annual CFs'!$E$6:$EG$6,AQ14,'Monthly & Annual CFs'!$E$31:$EG$31) ->  | AR21: =SUMIF('Monthly & Annual CFs'!$E$6:$EG$6,AR14,'Monthly & Annual CFs'!$E$31:$EG$31) ->  | AS21: =SUMIF('Monthly & Annual CFs'!$E$6:$EG$6,AS14,'Monthly & Annual CFs'!$E$31:$EG$31) ->  | AT21: =SUMIF('Monthly & Annual CFs'!$E$6:$EG$6,AT14,'Monthly & Annual CFs'!$E$31:$EG$31) ->  | AU21: =SUMIF('Monthly & Annual CFs'!$E$6:$EG$6,AU14,'Monthly & Annual CFs'!$E$31:$EG$31) ->  | AV21: =SUMIF('Monthly & Annual CFs'!$E$6:$EG$6,AV14,'Monthly & Annual CFs'!$E$31:$EG$31) ->  | AW21: =SUMIF('Monthly & Annual CFs'!$E$6:$EG$6,AW14,'Monthly & Annual CFs'!$E$31:$EG$31) ->  | AX21: =SUMIF('Monthly & Annual CFs'!$E$6:$EG$6,AX14,'Monthly & Annual CFs'!$E$31:$EG$31) ->  | AY21: =SUMIF('Monthly & Annual CFs'!$E$6:$EG$6,AY14,'Monthly & Annual CFs'!$E$31:$EG$31) ->  | AZ21: =SUMIF('Monthly & Annual CFs'!$E$6:$EG$6,AZ14,'Monthly & Annual CFs'!$E$31:$EG$31) ->  | BA21: =SUMIF('Monthly & Annual CFs'!$E$6:$EG$6,BA14,'Monthly & Annual CFs'!$E$31:$EG$31) ->  | BB21: =SUMIF('Monthly & Annual CFs'!$E$6:$EG$6,BB14,'Monthly & Annual CFs'!$E$31:$EG$31) ->  | BC21: =SUMIF('Monthly & Annual CFs'!$E$6:$EG$6,BC14,'Monthly & Annual CFs'!$E$31:$EG$31) ->  | BD21: =SUMIF('Monthly & Annual CFs'!$E$6:$EG$6,BD14,'Monthly & Annual CFs'!$E$31:$EG$31) ->  | BE21: =SUMIF('Monthly & Annual CFs'!$E$6:$EG$6,BE14,'Monthly & Annual CFs'!$E$31:$EG$31) ->  | BF21: =SUMIF('Monthly & Annual CFs'!$E$6:$EG$6,BF14,'Monthly & Annual CFs'!$E$31:$EG$31) ->  | BG21: =SUMIF('Monthly & Annual CFs'!$E$6:$EG$6,BG14,'Monthly & Annual CFs'!$E$31:$EG$31) ->  | BH21: =SUMIF('Monthly & Annual CFs'!$E$6:$EG$6,BH14,'Monthly & Annual CFs'!$E$31:$EG$31) ->  | BI21: =SUMIF('Monthly & Annual CFs'!$E$6:$EG$6,BI14,'Monthly & Annual CFs'!$E$31:$EG$31) ->  | BJ21: =SUMIF('Monthly & Annual CFs'!$E$6:$EG$6,BJ14,'Monthly & Annual CFs'!$E$31:$EG$31) ->  | BK21: =SUMIF('Monthly & Annual CFs'!$E$6:$EG$6,BK14,'Monthly & Annual CFs'!$E$31:$EG$31) ->  | BL21: =SUMIF('Monthly & Annual CFs'!$E$6:$EG$6,BL14,'Monthly & Annual CFs'!$E$31:$EG$31) ->  | BM21: =SUMIF('Monthly & Annual CFs'!$E$6:$EG$6,BM14,'Monthly & Annual CFs'!$E$31:$EG$31) ->  | BN21: =SUMIF('Monthly & Annual CFs'!$E$6:$EG$6,BN14,'Monthly & Annual CFs'!$E$31:$EG$31) ->  | BO21: =SUMIF('Monthly & Annual CFs'!$E$6:$EG$6,BO14,'Monthly & Annual CFs'!$E$31:$EG$31) ->  | BP21: =SUMIF('Monthly & Annual CFs'!$E$6:$EG$6,BP14,'Monthly & Annual CFs'!$E$31:$EG$31) ->  | BQ21: =SUMIF('Monthly & Annual CFs'!$E$6:$EG$6,BQ14,'Monthly & Annual CFs'!$E$31:$EG$31) ->  | BR21: =SUMIF('Monthly & Annual CFs'!$E$6:$EG$6,BR14,'Monthly & Annual CFs'!$E$31:$EG$31) ->  | BS21: =SUMIF('Monthly & Annual CFs'!$E$6:$EG$6,BS14,'Monthly & Annual CFs'!$E$31:$EG$31) ->  | BT21: =SUMIF('Monthly & Annual CFs'!$E$6:$EG$6,BT14,'Monthly & Annual CFs'!$E$31:$EG$31) ->  | BU21: =SUMIF('Monthly & Annual CFs'!$E$6:$EG$6,BU14,'Monthly & Annual CFs'!$E$31:$EG$31) ->  | BV21: =SUMIF('Monthly & Annual CFs'!$E$6:$EG$6,BV14,'Monthly & Annual CFs'!$E$31:$EG$31) ->  | BW21: =SUMIF('Monthly & Annual CFs'!$E$6:$EG$6,BW14,'Monthly & Annual CFs'!$E$31:$EG$31) ->  | BX21: =SUMIF('Monthly & Annual CFs'!$E$6:$EG$6,BX14,'Monthly & Annual CFs'!$E$31:$EG$31) ->  | BY21: =SUMIF('Monthly & Annual CFs'!$E$6:$EG$6,BY14,'Monthly & Annual CFs'!$E$31:$EG$31) ->  | BZ21: =SUMIF('Monthly & Annual CFs'!$E$6:$EG$6,BZ14,'Monthly & Annual CFs'!$E$31:$EG$31) ->  | CA21: =SUMIF('Monthly & Annual CFs'!$E$6:$EG$6,CA14,'Monthly & Annual CFs'!$E$31:$EG$31) ->  | CB21: =SUMIF('Monthly & Annual CFs'!$E$6:$EG$6,CB14,'Monthly & Annual CFs'!$E$31:$EG$31) ->  | CC21: =SUMIF('Monthly & Annual CFs'!$E$6:$EG$6,CC14,'Monthly & Annual CFs'!$E$31:$EG$31) ->  | CD21: =SUMIF('Monthly & Annual CFs'!$E$6:$EG$6,CD14,'Monthly & Annual CFs'!$E$31:$EG$31) ->  | CE21: =SUMIF('Monthly & Annual CFs'!$E$6:$EG$6,CE14,'Monthly & Annual CFs'!$E$31:$EG$31) ->  | CF21: =SUMIF('Monthly & Annual CFs'!$E$6:$EG$6,CF14,'Monthly & Annual CFs'!$E$31:$EG$31) ->  | CG21: =SUMIF('Monthly & Annual CFs'!$E$6:$EG$6,CG14,'Monthly & Annual CFs'!$E$31:$EG$31) ->  | CH21: =SUMIF('Monthly & Annual CFs'!$E$6:$EG$6,CH14,'Monthly & Annual CFs'!$E$31:$EG$31) ->  | CI21: =SUMIF('Monthly & Annual CFs'!$E$6:$EG$6,CI14,'Monthly & Annual CFs'!$E$31:$EG$31) ->  | CJ21: =SUMIF('Monthly & Annual CFs'!$E$6:$EG$6,CJ14,'Monthly & Annual CFs'!$E$31:$EG$31) ->  | CK21: =SUMIF('Monthly & Annual CFs'!$E$6:$EG$6,CK14,'Monthly & Annual CFs'!$E$31:$EG$31) ->  | CL21: =SUMIF('Monthly & Annual CFs'!$E$6:$EG$6,CL14,'Monthly & Annual CFs'!$E$31:$EG$31) ->  | CM21: =SUMIF('Monthly & Annual CFs'!$E$6:$EG$6,CM14,'Monthly & Annual CFs'!$E$31:$EG$31) ->  | CN21: =SUMIF('Monthly & Annual CFs'!$E$6:$EG$6,CN14,'Monthly & Annual CFs'!$E$31:$EG$31) ->  | CO21: =SUMIF('Monthly & Annual CFs'!$E$6:$EG$6,CO14,'Monthly & Annual CFs'!$E$31:$EG$31) ->  | CP21: =SUMIF('Monthly & Annual CFs'!$E$6:$EG$6,CP14,'Monthly & Annual CFs'!$E$31:$EG$31) ->  | CQ21: =SUMIF('Monthly & Annual CFs'!$E$6:$EG$6,CQ14,'Monthly & Annual CFs'!$E$31:$EG$31) ->  | CR21: =SUMIF('Monthly & Annual CFs'!$E$6:$EG$6,CR14,'Monthly & Annual CFs'!$E$31:$EG$31) ->  | CS21: =SUMIF('Monthly & Annual CFs'!$E$6:$EG$6,CS14,'Monthly & Annual CFs'!$E$31:$EG$31) ->  | CT21: =SUMIF('Monthly & Annual CFs'!$E$6:$EG$6,CT14,'Monthly & Annual CFs'!$E$31:$EG$31) ->  | CU21: =SUMIF('Monthly & Annual CFs'!$E$6:$EG$6,CU14,'Monthly & Annual CFs'!$E$31:$EG$31) ->  | CV21: =SUMIF('Monthly & Annual CFs'!$E$6:$EG$6,CV14,'Monthly & Annual CFs'!$E$31:$EG$31) ->  | CW21: =SUMIF('Monthly & Annual CFs'!$E$6:$EG$6,CW14,'Monthly & Annual CFs'!$E$31:$EG$31) ->  | CX21: =SUMIF('Monthly & Annual CFs'!$E$6:$EG$6,CX14,'Monthly & Annual CFs'!$E$31:$EG$31) ->  | CY21: =SUMIF('Monthly & Annual CFs'!$E$6:$EG$6,CY14,'Monthly & Annual CFs'!$E$31:$EG$31) ->  | CZ21: =SUMIF('Monthly & Annual CFs'!$E$6:$EG$6,CZ14,'Monthly & Annual CFs'!$E$31:$EG$31) ->  | DA21: =SUMIF('Monthly & Annual CFs'!$E$6:$EG$6,DA14,'Monthly & Annual CFs'!$E$31:$EG$31) ->  | DB21: =SUMIF('Monthly & Annual CFs'!$E$6:$EG$6,DB14,'Monthly & Annual CFs'!$E$31:$EG$31) ->  | DC21: =SUMIF('Monthly & Annual CFs'!$E$6:$EG$6,DC14,'Monthly & Annual CFs'!$E$31:$EG$31) ->  | DD21: =SUMIF('Monthly & Annual CFs'!$E$6:$EG$6,DD14,'Monthly & Annual CFs'!$E$31:$EG$31) ->  | DE21: =SUMIF('Monthly & Annual CFs'!$E$6:$EG$6,DE14,'Monthly & Annual CFs'!$E$31:$EG$31) ->  | DF21: =SUMIF('Monthly & Annual CFs'!$E$6:$EG$6,DF14,'Monthly & Annual CFs'!$E$31:$EG$31) ->  | DG21: =SUMIF('Monthly & Annual CFs'!$E$6:$EG$6,DG14,'Monthly & Annual CFs'!$E$31:$EG$31) ->  | DH21: =SUMIF('Monthly & Annual CFs'!$E$6:$EG$6,DH14,'Monthly & Annual CFs'!$E$31:$EG$31) ->  | DI21: =SUMIF('Monthly & Annual CFs'!$E$6:$EG$6,DI14,'Monthly & Annual CFs'!$E$31:$EG$31) ->  | DJ21: =SUMIF('Monthly & Annual CFs'!$E$6:$EG$6,DJ14,'Monthly & Annual CFs'!$E$31:$EG$31) ->  | DK21: =SUMIF('Monthly & Annual CFs'!$E$6:$EG$6,DK14,'Monthly & Annual CFs'!$E$31:$EG$31) ->  | DL21: =SUMIF('Monthly & Annual CFs'!$E$6:$EG$6,DL14,'Monthly & Annual CFs'!$E$31:$EG$31) ->  | DM21: =SUMIF('Monthly & Annual CFs'!$E$6:$EG$6,DM14,'Monthly & Annual CFs'!$E$31:$EG$31) ->  | DN21: =SUMIF('Monthly & Annual CFs'!$E$6:$EG$6,DN14,'Monthly & Annual CFs'!$E$31:$EG$31) ->  | DO21: =SUMIF('Monthly & Annual CFs'!$E$6:$EG$6,DO14,'Monthly & Annual CFs'!$E$31:$EG$31) ->  | DP21: =SUMIF('Monthly & Annual CFs'!$E$6:$EG$6,DP14,'Monthly & Annual CFs'!$E$31:$EG$31) ->  | DQ21: =SUMIF('Monthly & Annual CFs'!$E$6:$EG$6,DQ14,'Monthly & Annual CFs'!$E$31:$EG$31) ->  | DR21: =SUMIF('Monthly & Annual CFs'!$E$6:$EG$6,DR14,'Monthly & Annual CFs'!$E$31:$EG$31) ->  | DS21: =SUMIF('Monthly & Annual CFs'!$E$6:$EG$6,DS14,'Monthly & Annual CFs'!$E$31:$EG$31) ->  | DT21: =SUMIF('Monthly & Annual CFs'!$E$6:$EG$6,DT14,'Monthly & Annual CFs'!$E$31:$EG$31) ->  | DU21: =SUMIF('Monthly & Annual CFs'!$E$6:$EG$6,DU14,'Monthly & Annual CFs'!$E$31:$EG$31) ->  | DV21: =SUMIF('Monthly & Annual CFs'!$E$6:$EG$6,DV14,'Monthly & Annual CFs'!$E$31:$EG$31) ->  | DW21: =SUMIF('Monthly & Annual CFs'!$E$6:$EG$6,DW14,'Monthly & Annual CFs'!$E$31:$EG$31) ->  | DX21: =SUMIF('Monthly & Annual CFs'!$E$6:$EG$6,DX14,'Monthly & Annual CFs'!$E$31:$EG$31) ->  | DY21: =SUMIF('Monthly & Annual CFs'!$E$6:$EG$6,DY14,'Monthly & Annual CFs'!$E$31:$EG$31) ->  | DZ21: =SUMIF('Monthly & Annual CFs'!$E$6:$EG$6,DZ14,'Monthly & Annual CFs'!$E$31:$EG$31) ->  | EA21: =SUMIF('Monthly & Annual CFs'!$E$6:$EG$6,EA14,'Monthly & Annual CFs'!$E$31:$EG$31) ->  | EB21: =SUMIF('Monthly & Annual CFs'!$E$6:$EG$6,EB14,'Monthly & Annual CFs'!$E$31:$EG$31) ->  | EC21: =SUMIF('Monthly & Annual CFs'!$E$6:$EG$6,EC14,'Monthly & Annual CFs'!$E$31:$EG$31) ->  | ED21: =SUMIF('Monthly & Annual CFs'!$E$6:$EG$6,ED14,'Monthly & Annual CFs'!$E$31:$EG$31) ->  | EE21: =SUMIF('Monthly & Annual CFs'!$E$6:$EG$6,EE14,'Monthly & Annual CFs'!$E$31:$EG$31) ->  | EF21: =SUMIF('Monthly & Annual CFs'!$E$6:$EG$6,EF14,'Monthly & Annual CFs'!$E$31:$EG$31) ->  | EG21: =SUMIF('Monthly & Annual CFs'!$E$6:$EG$6,EG14,'Monthly & Annual CFs'!$E$31:$EG$31) ->  | EH21: =SUMIF('Monthly & Annual CFs'!$E$6:$EG$6,EH14,'Monthly & Annual CFs'!$E$31:$EG$31) -> 
B23: Leveraged IRR | C23: =XIRR(F21:EH21,F15:EH15,0.2) -> 
B24: Equity Multiple | C24: =(E19+E21)/E19 -> 
F27: =F14 -> 0 | G27: 1 | H27: 2 | I27: 3 | J27: 4 | K27: 5 | L27: 6 | M27: 7 | N27: 8 | O27: 9 | P27: 10 | Q27: 11 | R27: 12 | S27: 13 | T27: 14 | U27: 15 | V27: 16 | W27: 17 | X27: 18 | Y27: 19 | Z27: 20 | AA27: 21 | AB27: 22 | AC27: 23 | AD27: 24 | AE27: 25 | AF27: 26 | AG27: 27 | AH27: 28 | AI27: 29 | AJ27: 30 | AK27: 31 | AL27: =AL14 -> 32 | AM27: 33 | AN27: 34 | AO27: 35 | AP27: 36 | AQ27: 37 | AR27: 38 | AS27: 39 | AT27: 40 | AU27: 41 | AV27: 42 | AW27: 43 | AX27: 44 | AY27: 45 | AZ27: 46 | BA27: 47 | BB27: 48 | BC27: 49 | BD27: 50 | BE27: 51 | BF27: 52 | BG27: 53 | BH27: 54 | BI27: 55 | BJ27: 56 | BK27: 57 | BL27: 58 | BM27: 59 | BN27: 60 | BO27: 61 | BP27: 62 | BQ27: 63 | BR27: =BR14 -> 64 | BS27: 65 | BT27: 66 | BU27: 67 | BV27: 68 | BW27: 69 | BX27: 70 | BY27: 71 | BZ27: 72 | CA27: 73 | CB27: 74 | CC27: 75 | CD27: 76 | CE27: 77 | CF27: 78 | CG27: 79 | CH27: 80 | CI27: 81 | CJ27: 82 | CK27: 83 | CL27: 84 | CM27: 85 | CN27: 86 | CO27: 87 | CP27: 88 | CQ27: 89 | CR27: 90 | CS27: 91 | CT27: 92 | CU27: 93 | CV27: 94 | CW27: 95 | CX27: =CX14 -> 96 | CY27: 97 | CZ27: 98 | DA27: 99 | DB27: 100 | DC27: 101 | DD27: 102 | DE27: 103 | DF27: 104 | DG27: 105 | DH27: 106 | DI27: 107 | DJ27: 108 | DK27: 109 | DL27: 110 | DM27: 111 | DN27: 112 | DO27: 113 | DP27: 114 | DQ27: 115 | DR27: 116 | DS27: 117 | DT27: 118 | DU27: 119 | DV27: 120 | DW27: 121 | DX27: 122 | DY27: 123 | DZ27: 124 | EA27: 125 | EB27: 126 | EC27: 127 | ED27: 128 | EE27: 129 | EF27: 130 | EG27: 131 | EH27: 132
B28: TIER 1 | F28: =F15 -> 2021-12-31 | G28: 2022-01-31 | H28: 2022-02-28 | I28: 2022-03-31 | J28: 2022-04-30 | K28: 2022-05-31 | L28: 2022-06-30 | M28: 2022-07-31 | N28: 2022-08-31 | O28: 2022-09-30 | P28: 2022-10-31 | Q28: 2022-11-30 | R28: 2022-12-31 | S28: 2023-01-31 | T28: 2023-02-28 | U28: 2023-03-31 | V28: 2023-04-30 | W28: 2023-05-31 | X28: 2023-06-30 | Y28: 2023-07-31 | Z28: 2023-08-31 | AA28: 2023-09-30 | AB28: 2023-10-31 | AC28: 2023-11-30 | AD28: 2023-12-31 | AE28: 2024-01-31 | AF28: 2024-02-29 | AG28: 2024-03-31 | AH28: 2024-04-30 | AI28: 2024-05-31 | AJ28: 2024-06-30 | AK28: 2024-07-31 | AL28: =AL15 -> 2024-08-31 | AM28: 2024-09-30 | AN28: 2024-10-31 | AO28: 2024-11-30 | AP28: 2024-12-31 | AQ28: 2025-01-31 | AR28: 2025-02-28 | AS28: 2025-03-31 | AT28: 2025-04-30 | AU28: 2025-05-31 | AV28: 2025-06-30 | AW28: 2025-07-31 | AX28: 2025-08-31 | AY28: 2025-09-30 | AZ28: 2025-10-31 | BA28: 2025-11-30 | BB28: 2025-12-31 | BC28: 2026-01-31 | BD28: 2026-02-28 | BE28: 2026-03-31 | BF28: 2026-04-30 | BG28: 2026-05-31 | BH28: 2026-06-30 | BI28: 2026-07-31 | BJ28: 2026-08-31 | BK28: 2026-09-30 | BL28: 2026-10-31 | BM28: 2026-11-30 | BN28: 2026-12-31 | BO28: 2027-01-31 | BP28: 2027-02-28 | BQ28: 2027-03-31 | BR28: =BR15 -> 2027-04-30 | BS28: 2027-05-31 | BT28: 2027-06-30 | BU28: 2027-07-31 | BV28: 2027-08-31 | BW28: 2027-09-30 | BX28: 2027-10-31 | BY28: 2027-11-30 | BZ28: 2027-12-31 | CA28: 2028-01-31 | CB28: 2028-02-29 | CC28: 2028-03-31 | CD28: 2028-04-30 | CE28: 2028-05-31 | CF28: 2028-06-30 | CG28: 2028-07-31 | CH28: 2028-08-31 | CI28: 2028-09-30 | CJ28: 2028-10-31 | CK28: 2028-11-30 | CL28: 2028-12-31 | CM28: 2029-01-31 | CN28: 2029-02-28 | CO28: 2029-03-31 | CP28: 2029-04-30 | CQ28: 2029-05-31 | CR28: 2029-06-30 | CS28: 2029-07-31 | CT28: 2029-08-31 | CU28: 2029-09-30 | CV28: 2029-10-31 | CW28: 2029-11-30 | CX28: =CX15 -> 2029-12-31 | CY28: 2030-01-31 | CZ28: 2030-02-28 | DA28: 2030-03-31 | DB28: 2030-04-30 | DC28: 2030-05-31 | DD28: 2030-06-30 | DE28: 2030-07-31 | DF28: 2030-08-31 | DG28: 2030-09-30 | DH28: 2030-10-31 | DI28: 2030-11-30 | DJ28: 2030-12-31 | DK28: 2031-01-31 | DL28: 2031-02-28 | DM28: 2031-03-31 | DN28: 2031-04-30 | DO28: 2031-05-31 | DP28: 2031-06-30 | DQ28: 2031-07-31 | DR28: 2031-08-31 | DS28: 2031-09-30 | DT28: 2031-10-31 | DU28: 2031-11-30 | DV28: 2031-12-31 | DW28: 2032-01-31 | DX28: 2032-02-29 | DY28: 2032-03-31 | DZ28: 2032-04-30 | EA28: 2032-05-31 | EB28: 2032-06-30 | EC28: 2032-07-31 | ED28: 2032-08-31 | EE28: 2032-09-30 | EF28: 2032-10-31 | EG28: 2032-11-30 | EH28: 2032-12-31
B30: IRR Hurdle #1 | C30: IRR Hurdle | D30: Equity Splits
B31: Limited Partner | C31: =E7 -> 0.08 | D31: =G7 -> 0.99
B32: General Partner + Sponsor | D32: =H7 -> 0.01
AK33: =AK34-AJ34 ->  | AP33: =AP34-AO34 ->  | AQ33: =AQ34-AP34 -> 
B34: Beginning Balance (LP Capital Account) | F34: 0 | G34: =F38 ->  | BS34: =BR38 ->  | EE34: =ED38 -> 
B35: LP Equity Injections | D35: =SUM(F35:EH35) ->  | F35: =F17 ->  | AL35: =AL17 ->  | BR35: =BR17 ->  | CX35: =CX17 -> 
B36: LP Equity Accruals | D36: =SUM(F36:EH36) ->  | F36: =+F34*((1+$C$31)^(1/12)-1) -> 0 | G36: =+G34*((1+$C$31)^(1/12)-1) ->  | BS36: =+BS34*((1+$C$31)^(1/12)-1) ->  | EE36: =+EE34*((1+$C$31)^(1/12)-1) -> 
B37: Tier 1 LP Equity Distributions (Including Return of Capital) | D37: =SUM(F37:EH37) ->  | F37: =MIN(0,MAX(-(F34+F35+F36),-$D$31*F21)) ->  | BR37: =MIN(0,MAX(-(BR34+BR35+BR36),-$D$31*BR21)) ->  | ED37: =MIN(0,MAX(-(ED34+ED35+ED36),-$D$31*ED21)) -> 
B38: Ending Balance (LP Capital Account) | D38: =SUM(D35:D37) ->  | F38: =SUM(F34:F37) ->  | G38: =SUM(G34:G37) ->  | H38: =SUM(H34:H37) ->  | BT38: =SUM(BT34:BT37) ->  | EF38: =SUM(EF34:EF37) -> 
B40: General Partner Equity Injections | E40: =SUM(F40:EH40) ->  | F40: =F18 ->  | AL40: =AL18 ->  | BR40: =BR18 ->  | CX40: =CX18 -> 
B42: Limited Partner Cash Flow | C42: =D31 -> 0.99 | E42: =SUM(F42:EH42) ->  | F42: =+MIN(-(F35+F37),F34+F36) ->  | G42: =+MIN(-(G35+G37),G34+G36) ->  | H42: =+MIN(-(H35+H37),H34+H36) ->  | BT42: =+MIN(-(BT35+BT37),BT34+BT36) ->  | EF42: =+MIN(-(EF35+EF37),EF34+EF36) -> 
B43: General Partner Cash Flow | C43: =D32-C44 -> 0.01 | E43: =SUM(F43:EH43) ->  | F43: =(-F37/$C$42*$C$43)-F40 ->  | G43: =(-G37/$C$42*$C$43)-G40 ->  | BS43: =(-BS37/$C$42*$C$43)-BS40 ->  | EE43: =(-EE37/$C$42*$C$43)-EE40 -> 
B44: Sponsor Promote Cash Flow | C44: =F7 -> 0 | E44: =SUM(F44:EH44) ->  | F44: =-F37/$C$42*$C$44 ->  | G44: =-G37/$C$42*$C$44 ->  | BS44: =-BS37/$C$42*$C$44 ->  | EE44: =-EE37/$C$42*$C$44 -> 
B46: Remaining Cash to Distribute | E46: =SUM(F46:EH46) ->  | F46: =IF(F42<0,0,F20-SUM(F42:F44)) ->  | AL46: =IF(AL42<0,0,AL20-SUM(AL42:AL44)) ->  | BR46: =IF(BR42<0,0,BR20-SUM(BR42:BR44)) ->  | CX46: =IF(CX42<0,0,CX20-SUM(CX42:CX44)) -> 
F49: =F14 -> 0 | G49: 1 | H49: 2 | I49: 3 | J49: 4 | K49: 5 | L49: 6 | M49: 7 | N49: 8 | O49: 9 | P49: 10 | Q49: 11 | R49: 12 | S49: 13 | T49: 14 | U49: 15 | V49: 16 | W49: 17 | X49: 18 | Y49: 19 | Z49: 20 | AA49: 21 | AB49: 22 | AC49: 23 | AD49: 24 | AE49: 25 | AF49: 26 | AG49: 27 | AH49: 28 | AI49: 29 | AJ49: 30 | AK49: 31 | AL49: =AL14 -> 32 | AM49: 33 | AN49: 34 | AO49: 35 | AP49: 36 | AQ49: 37 | AR49: 38 | AS49: 39 | AT49: 40 | AU49: 41 | AV49: 42 | AW49: 43 | AX49: 44 | AY49: 45 | AZ49: 46 | BA49: 47 | BB49: 48 | BC49: 49 | BD49: 50 | BE49: 51 | BF49: 52 | BG49: 53 | BH49: 54 | BI49: 55 | BJ49: 56 | BK49: 57 | BL49: 58 | BM49: 59 | BN49: 60 | BO49: 61 | BP49: 62 | BQ49: 63 | BR49: =BR14 -> 64 | BS49: 65 | BT49: 66 | BU49: 67 | BV49: 68 | BW49: 69 | BX49: 70 | BY49: 71 | BZ49: 72 | CA49: 73 | CB49: 74 | CC49: 75 | CD49: 76 | CE49: 77 | CF49: 78 | CG49: 79 | CH49: 80 | CI49: 81 | CJ49: 82 | CK49: 83 | CL49: 84 | CM49: 85 | CN49: 86 | CO49: 87 | CP49: 88 | CQ49: 89 | CR49: 90 | CS49: 91 | CT49: 92 | CU49: 93 | CV49: 94 | CW49: 95 | CX49: =CX14 -> 96 | CY49: 97 | CZ49: 98 | DA49: 99 | DB49: 100 | DC49: 101 | DD49: 102 | DE49: 103 | DF49: 104 | DG49: 105 | DH49: 106 | DI49: 107 | DJ49: 108 | DK49: 109 | DL49: 110 | DM49: 111 | DN49: 112 | DO49: 113 | DP49: 114 | DQ49: 115 | DR49: 116 | DS49: 117 | DT49: 118 | DU49: 119 | DV49: 120 | DW49: 121 | DX49: 122 | DY49: 123 | DZ49: 124 | EA49: 125 | EB49: 126 | EC49: 127 | ED49: 128 | EE49: 129 | EF49: 130 | EG49: 131 | EH49: 132
B50: TIER 2 | F50: =F15 -> 2021-12-31 | G50: 2022-01-31 | H50: 2022-02-28 | I50: 2022-03-31 | J50: 2022-04-30 | K50: 2022-05-31 | L50: 2022-06-30 | M50: 2022-07-31 | N50: 2022-08-31 | O50: 2022-09-30 | P50: 2022-10-31 | Q50: 2022-11-30 | R50: 2022-12-31 | S50: 2023-01-31 | T50: 2023-02-28 | U50: 2023-03-31 | V50: 2023-04-30 | W50: 2023-05-31 | X50: 2023-06-30 | Y50: 2023-07-31 | Z50: 2023-08-31 | AA50: 2023-09-30 | AB50: 2023-10-31 | AC50: 2023-11-30 | AD50: 2023-12-31 | AE50: 2024-01-31 | AF50: 2024-02-29 | AG50: 2024-03-31 | AH50: 2024-04-30 | AI50: 2024-05-31 | AJ50: 2024-06-30 | AK50: 2024-07-31 | AL50: =AL15 -> 2024-08-31 | AM50: 2024-09-30 | AN50: 2024-10-31 | AO50: 2024-11-30 | AP50: 2024-12-31 | AQ50: 2025-01-31 | AR50: 2025-02-28 | AS50: 2025-03-31 | AT50: 2025-04-30 | AU50: 2025-05-31 | AV50: 2025-06-30 | AW50: 2025-07-31 | AX50: 2025-08-31 | AY50: 2025-09-30 | AZ50: 2025-10-31 | BA50: 2025-11-30 | BB50: 2025-12-31 | BC50: 2026-01-31 | BD50: 2026-02-28 | BE50: 2026-03-31 | BF50: 2026-04-30 | BG50: 2026-05-31 | BH50: 2026-06-30 | BI50: 2026-07-31 | BJ50: 2026-08-31 | BK50: 2026-09-30 | BL50: 2026-10-31 | BM50: 2026-11-30 | BN50: 2026-12-31 | BO50: 2027-01-31 | BP50: 2027-02-28 | BQ50: 2027-03-31 | BR50: =BR15 -> 2027-04-30 | BS50: 2027-05-31 | BT50: 2027-06-30 | BU50: 2027-07-31 | BV50: 2027-08-31 | BW50: 2027-09-30 | BX50: 2027-10-31 | BY50: 2027-11-30 | BZ50: 2027-12-31 | CA50: 2028-01-31 | CB50: 2028-02-29 | CC50: 2028-03-31 | CD50: 2028-04-30 | CE50: 2028-05-31 | CF50: 2028-06-30 | CG50: 2028-07-31 | CH50: 2028-08-31 | CI50: 2028-09-30 | CJ50: 2028-10-31 | CK50: 2028-11-30 | CL50: 2028-12-31 | CM50: 2029-01-31 | CN50: 2029-02-28 | CO50: 2029-03-31 | CP50: 2029-04-30 | CQ50: 2029-05-31 | CR50: 2029-06-30 | CS50: 2029-07-31 | CT50: 2029-08-31 | CU50: 2029-09-30 | CV50: 2029-10-31 | CW50: 2029-11-30 | CX50: =CX15 -> 2029-12-31 | CY50: 2030-01-31 | CZ50: 2030-02-28 | DA50: 2030-03-31 | DB50: 2030-04-30 | DC50: 2030-05-31 | DD50: 2030-06-30 | DE50: 2030-07-31 | DF50: 2030-08-31 | DG50: 2030-09-30 | DH50: 2030-10-31 | DI50: 2030-11-30 | DJ50: 2030-12-31 | DK50: 2031-01-31 | DL50: 2031-02-28 | DM50: 2031-03-31 | DN50: 2031-04-30 | DO50: 2031-05-31 | DP50: 2031-06-30 | DQ50: 2031-07-31 | DR50: 2031-08-31 | DS50: 2031-09-30 | DT50: 2031-10-31 | DU50: 2031-11-30 | DV50: 2031-12-31 | DW50: 2032-01-31 | DX50: 2032-02-29 | DY50: 2032-03-31 | DZ50: 2032-04-30 | EA50: 2032-05-31 | EB50: 2032-06-30 | EC50: 2032-07-31 | ED50: 2032-08-31 | EE50: 2032-09-30 | EF50: 2032-10-31 | EG50: 2032-11-30 | EH50: 2032-12-31
B52: IRR Hurdle #2 | C52: IRR Hurdle | D52: Equity Split
B53: Limited Partner | C53: =E8 -> 0.12 | D53: =G8 -> 0.792
B54: General Partner + Sponsor | D54: =H8 -> 0.208
B56: Beginning Balance (LP Capital Account) | F56: 0 | G56: =F61 ->  | H56: =G61 ->  | BT56: =BS61 ->  | EF56: =EE61 -> 
B57: LP Equity Injections | D57: =SUM(F57:EH57) ->  | F57: =F35 ->  | BR57: =BR35 ->  | ED57: =ED35 -> 
B58: LP Equity Accruals | D58: =SUM(F58:EH58) ->  | F58: =+F56*((1+$C$53)^(1/12)-1) -> 0 | G58: =+G56*((1+$C$53)^(1/12)-1) ->  | BS58: =+BS56*((1+$C$53)^(1/12)-1) ->  | EE58: =+EE56*((1+$C$53)^(1/12)-1) -> 
B59: Tier 1 LP Equity Distributions | F59: =F37 ->  | BR59: =BR37 ->  | ED59: =ED37 -> 
B60: Tier 2 LP Equity Distributions | F60: =MIN(0,MAX(-(F56+F58+F59),-F46*$D$53)) ->  | G60: =MIN(0,MAX(-(G56+G58+G59),-G46*$D$53)) ->  | BS60: =MIN(0,MAX(-(BS56+BS58+BS59),-BS46*$D$53)) ->  | EE60: =MIN(0,MAX(-(EE56+EE58+EE59),-EE46*$D$53)) -> 
B61: Ending Balance (LP Capital Account) | D61: =SUM(D57:D60) ->  | F61: =SUM(F56:F60) ->  | G61: =SUM(G56:G60) ->  | BS61: =SUM(BS56:BS60) ->  | EE61: =SUM(EE56:EE60) -> 
B63: Limited Partner Cash Flow | C63: =D53 -> 0.792 | E63: =SUM(F63:EH63) ->  | F63: =MAX(0,MIN(-(F57+F60),F56+F58)) ->  | G63: =MAX(0,MIN(-(G57+G60),G56+G58)) ->  | BS63: =MAX(0,MIN(-(BS57+BS60),BS56+BS58)) ->  | EE63: =MAX(0,MIN(-(EE57+EE60),EE56+EE58)) -> 
B64: General Partner Cash Flow | C64: =D54-C65 -> 0.008 | E64: =SUM(F64:EH64) ->  | F64: =-F60/$C$63*$C$64 ->  | G64: =-G60/$C$63*$C$64 ->  | I64: =-I60/$C$63*$C$64 ->  | BS64: =-BS60/$C$63*$C$64 ->  | EE64: =-EE60/$C$63*$C$64 -> 
B65: Sponsor Promote Cash Flow | C65: =F8 -> 0.2 | E65: =SUM(F65:EH65) ->  | F65: =-F60/$C$63*$C$65 ->  | G65: =-G60/$C$63*$C$65 ->  | BS65: =-BS60/$C$63*$C$65 ->  | EE65: =-EE60/$C$63*$C$65 -> 
B67: Remaining Cash to Distribute | E67: =SUM(F67:EH67) ->  | F67: =F46-SUM(F63:F65) ->  | AL67: =AL46-SUM(AL63:AL65) ->  | BR67: =BR46-SUM(BR63:BR65) ->  | ED67: =ED46-SUM(ED63:ED65) -> 
F70: =F14 -> 0 | G70: 1 | H70: 2 | I70: 3 | J70: 4 | K70: 5 | L70: 6 | M70: 7 | N70: 8 | O70: 9 | P70: 10 | Q70: 11 | R70: 12 | S70: 13 | T70: 14 | U70: 15 | V70: 16 | W70: 17 | X70: 18 | Y70: 19 | Z70: 20 | AA70: 21 | AB70: 22 | AC70: 23 | AD70: 24 | AE70: 25 | AF70: 26 | AG70: 27 | AH70: 28 | AI70: 29 | AJ70: 30 | AK70: 31 | AL70: =AL14 -> 32 | AM70: 33 | AN70: 34 | AO70: 35 | AP70: 36 | AQ70: 37 | AR70: 38 | AS70: 39 | AT70: 40 | AU70: 41 | AV70: 42 | AW70: 43 | AX70: 44 | AY70: 45 | AZ70: 46 | BA70: 47 | BB70: 48 | BC70: 49 | BD70: 50 | BE70: 51 | BF70: 52 | BG70: 53 | BH70: 54 | BI70: 55 | BJ70: 56 | BK70: 57 | BL70: 58 | BM70: 59 | BN70: 60 | BO70: 61 | BP70: 62 | BQ70: 63 | BR70: =BR14 -> 64 | BS70: 65 | BT70: 66 | BU70: 67 | BV70: 68 | BW70: 69 | BX70: 70 | BY70: 71 | BZ70: 72 | CA70: 73 | CB70: 74 | CC70: 75 | CD70: 76 | CE70: 77 | CF70: 78 | CG70: 79 | CH70: 80 | CI70: 81 | CJ70: 82 | CK70: 83 | CL70: 84 | CM70: 85 | CN70: 86 | CO70: 87 | CP70: 88 | CQ70: 89 | CR70: 90 | CS70: 91 | CT70: 92 | CU70: 93 | CV70: 94 | CW70: 95 | CX70: =CX14 -> 96 | CY70: 97 | CZ70: 98 | DA70: 99 | DB70: 100 | DC70: 101 | DD70: 102 | DE70: 103 | DF70: 104 | DG70: 105 | DH70: 106 | DI70: 107 | DJ70: 108 | DK70: 109 | DL70: 110 | DM70: 111 | DN70: 112 | DO70: 113 | DP70: 114 | DQ70: 115 | DR70: 116 | DS70: 117 | DT70: 118 | DU70: 119 | DV70: 120 | DW70: 121 | DX70: 122 | DY70: 123 | DZ70: 124 | EA70: 125 | EB70: 126 | EC70: 127 | ED70: 128 | EE70: 129 | EF70: 130 | EG70: 131 | EH70: 132
B71: TIER 3 | F71: =F15 -> 2021-12-31 | G71: 2022-01-31 | H71: 2022-02-28 | I71: 2022-03-31 | J71: 2022-04-30 | K71: 2022-05-31 | L71: 2022-06-30 | M71: 2022-07-31 | N71: 2022-08-31 | O71: 2022-09-30 | P71: 2022-10-31 | Q71: 2022-11-30 | R71: 2022-12-31 | S71: 2023-01-31 | T71: 2023-02-28 | U71: 2023-03-31 | V71: 2023-04-30 | W71: 2023-05-31 | X71: 2023-06-30 | Y71: 2023-07-31 | Z71: 2023-08-31 | AA71: 2023-09-30 | AB71: 2023-10-31 | AC71: 2023-11-30 | AD71: 2023-12-31 | AE71: 2024-01-31 | AF71: 2024-02-29 | AG71: 2024-03-31 | AH71: 2024-04-30 | AI71: 2024-05-31 | AJ71: 2024-06-30 | AK71: 2024-07-31 | AL71: =AL15 -> 2024-08-31 | AM71: 2024-09-30 | AN71: 2024-10-31 | AO71: 2024-11-30 | AP71: 2024-12-31 | AQ71: 2025-01-31 | AR71: 2025-02-28 | AS71: 2025-03-31 | AT71: 2025-04-30 | AU71: 2025-05-31 | AV71: 2025-06-30 | AW71: 2025-07-31 | AX71: 2025-08-31 | AY71: 2025-09-30 | AZ71: 2025-10-31 | BA71: 2025-11-30 | BB71: 2025-12-31 | BC71: 2026-01-31 | BD71: 2026-02-28 | BE71: 2026-03-31 | BF71: 2026-04-30 | BG71: 2026-05-31 | BH71: 2026-06-30 | BI71: 2026-07-31 | BJ71: 2026-08-31 | BK71: 2026-09-30 | BL71: 2026-10-31 | BM71: 2026-11-30 | BN71: 2026-12-31 | BO71: 2027-01-31 | BP71: 2027-02-28 | BQ71: 2027-03-31 | BR71: =BR15 -> 2027-04-30 | BS71: 2027-05-31 | BT71: 2027-06-30 | BU71: 2027-07-31 | BV71: 2027-08-31 | BW71: 2027-09-30 | BX71: 2027-10-31 | BY71: 2027-11-30 | BZ71: 2027-12-31 | CA71: 2028-01-31 | CB71: 2028-02-29 | CC71: 2028-03-31 | CD71: 2028-04-30 | CE71: 2028-05-31 | CF71: 2028-06-30 | CG71: 2028-07-31 | CH71: 2028-08-31 | CI71: 2028-09-30 | CJ71: 2028-10-31 | CK71: 2028-11-30 | CL71: 2028-12-31 | CM71: 2029-01-31 | CN71: 2029-02-28 | CO71: 2029-03-31 | CP71: 2029-04-30 | CQ71: 2029-05-31 | CR71: 2029-06-30 | CS71: 2029-07-31 | CT71: 2029-08-31 | CU71: 2029-09-30 | CV71: 2029-10-31 | CW71: 2029-11-30 | CX71: =CX15 -> 2029-12-31 | CY71: 2030-01-31 | CZ71: 2030-02-28 | DA71: 2030-03-31 | DB71: 2030-04-30 | DC71: 2030-05-31 | DD71: 2030-06-30 | DE71: 2030-07-31 | DF71: 2030-08-31 | DG71: 2030-09-30 | DH71: 2030-10-31 | DI71: 2030-11-30 | DJ71: 2030-12-31 | DK71: 2031-01-31 | DL71: 2031-02-28 | DM71: 2031-03-31 | DN71: 2031-04-30 | DO71: 2031-05-31 | DP71: 2031-06-30 | DQ71: 2031-07-31 | DR71: 2031-08-31 | DS71: 2031-09-30 | DT71: 2031-10-31 | DU71: 2031-11-30 | DV71: 2031-12-31 | DW71: 2032-01-31 | DX71: 2032-02-29 | DY71: 2032-03-31 | DZ71: 2032-04-30 | EA71: 2032-05-31 | EB71: 2032-06-30 | EC71: 2032-07-31 | ED71: 2032-08-31 | EE71: 2032-09-30 | EF71: 2032-10-31 | EG71: 2032-11-30 | EH71: 2032-12-31
B73: IRR Hurdle #3 | C73: IRR Hurdle | D73: Equity Split
B74: Limited Partner | C74: =E9 -> 0.18 | D74: =G9 -> 0.495
B75: General Partner + Sponsor | D75: =H9 -> 0.505
B77: Beginning Balance (LP Capital Account) | F77: 0 | G77: =F83 ->  | H77: =G83 ->  | BT77: =BS83 ->  | EF77: =EE83 -> 
B78: LP Equity Injections | D78: =SUM(F78:EH78) ->  | F78: =F35 ->  | BR78: =BR35 ->  | ED78: =ED35 -> 
B79: LP Equity Accruals | D79: =SUM(F79:EH79) ->  | F79: =+F77*((1+$C$74)^(1/12)-1) -> 0 | G79: =+G77*((1+$C$74)^(1/12)-1) ->  | BS79: =+BS77*((1+$C$74)^(1/12)-1) ->  | EE79: =+EE77*((1+$C$74)^(1/12)-1) -> 
B80: Tier 1 LP Equity Distributions | F80: =F37 ->  | BR80: =BR37 ->  | ED80: =ED37 -> 
B81: Tier 2 LP Equity Distributions | F81: =F60 ->  | G81: =G60 ->  | BS81: =BS60 ->  | EE81: =EE60 -> 
B82: Tier 3 LP Equity Distributions | D82: =SUM(F82:EH82) ->  | F82: =MIN(0,MAX(-F77-F79-F80-F81,-F67*$D$74)) ->  | BR82: =MIN(0,MAX(-BR77-BR79-BR80-BR81,-BR67*$D$74)) ->  | DV82: =MIN(0,MAX(-DV77-DV79-DV80-DV81,-DV67*$D$74)) ->  | DW82: =MIN(0,MAX(-DW77-DW79-DW80-DW81,-DW67*$D$74)) -> 
B83: Ending Balance (LP Capital Account) | D83: =SUM(D78:D82) ->  | F83: =SUM(F77:F82) ->  | G83: =SUM(G77:G82) ->  | BS83: =SUM(BS77:BS82) ->  | DV83: =SUM(DV77:DV82) ->  | EE83: =SUM(EE77:EE82) -> 
B85: Limited Partner Cash Flow | C85: =D74 -> 0.495 | E85: =SUM(F85:EH85) ->  | F85: =MAX(0,MIN(-(F78+F82),F77+F79)) ->  | G85: =MAX(0,MIN(-(G78+G82),G77+G79)) ->  | BS85: =MAX(0,MIN(-(BS78+BS82),BS77+BS79)) ->  | EE85: =MAX(0,MIN(-(EE78+EE82),EE77+EE79)) -> 
B86: General Partner Cash Flow | C86: =D75-C87 -> 0.005 | E86: =SUM(F86:EH86) ->  | F86: =-F82/$C$85*$C$86 ->  | G86: =-G82/$C$85*$C$86 ->  | BS86: =-BS82/$C$85*$C$86 ->  | EE86: =-EE82/$C$85*$C$86 -> 
B87: Sponsor Promote Cash Flow | C87: =F9 -> 0.5 | F87: =-F82/$C$85*$C$87 ->  | G87: =-G82/$C$85*$C$87 ->  | BS87: =-BS82/$C$85*$C$87 ->  | EE87: =-EE82/$C$85*$C$87 -> 
B89: Remaining Cash to Distribute | F89: =F67-SUM(F85:F87) ->  | AL89: =AL67-SUM(AL85:AL87) ->  | BR89: =BR67-SUM(BR85:BR87) ->  | ED89: =ED67-SUM(ED85:ED87) -> 
F92: =F14 -> 0 | G92: 1 | H92: 2 | I92: 3 | J92: 4 | K92: 5 | L92: 6 | M92: 7 | N92: 8 | O92: 9 | P92: 10 | Q92: 11 | R92: 12 | S92: 13 | T92: 14 | U92: 15 | V92: 16 | W92: 17 | X92: 18 | Y92: 19 | Z92: 20 | AA92: 21 | AB92: 22 | AC92: 23 | AD92: 24 | AE92: 25 | AF92: 26 | AG92: 27 | AH92: 28 | AI92: 29 | AJ92: 30 | AK92: 31 | AL92: =AL14 -> 32 | AM92: 33 | AN92: 34 | AO92: 35 | AP92: 36 | AQ92: 37 | AR92: 38 | AS92: 39 | AT92: 40 | AU92: 41 | AV92: 42 | AW92: 43 | AX92: 44 | AY92: 45 | AZ92: 46 | BA92: 47 | BB92: 48 | BC92: 49 | BD92: 50 | BE92: 51 | BF92: 52 | BG92: 53 | BH92: 54 | BI92: 55 | BJ92: 56 | BK92: 57 | BL92: 58 | BM92: 59 | BN92: 60 | BO92: 61 | BP92: 62 | BQ92: 63 | BR92: =BR14 -> 64 | BS92: 65 | BT92: 66 | BU92: 67 | BV92: 68 | BW92: 69 | BX92: 70 | BY92: 71 | BZ92: 72 | CA92: 73 | CB92: 74 | CC92: 75 | CD92: 76 | CE92: 77 | CF92: 78 | CG92: 79 | CH92: 80 | CI92: 81 | CJ92: 82 | CK92: 83 | CL92: 84 | CM92: 85 | CN92: 86 | CO92: 87 | CP92: 88 | CQ92: 89 | CR92: 90 | CS92: 91 | CT92: 92 | CU92: 93 | CV92: 94 | CW92: 95 | CX92: =CX14 -> 96 | CY92: 97 | CZ92: 98 | DA92: 99 | DB92: 100 | DC92: 101 | DD92: 102 | DE92: 103 | DF92: 104 | DG92: 105 | DH92: 106 | DI92: 107 | DJ92: 108 | DK92: 109 | DL92: 110 | DM92: 111 | DN92: 112 | DO92: 113 | DP92: 114 | DQ92: 115 | DR92: 116 | DS92: 117 | DT92: 118 | DU92: 119 | DV92: 120 | DW92: 121 | DX92: 122 | DY92: 123 | DZ92: 124 | EA92: 125 | EB92: 126 | EC92: 127 | ED92: 128 | EE92: 129 | EF92: 130 | EG92: 131 | EH92: 132
B93: TIER 4 | F93: =F15 -> 2021-12-31 | G93: 2022-01-31 | H93: 2022-02-28 | I93: 2022-03-31 | J93: 2022-04-30 | K93: 2022-05-31 | L93: 2022-06-30 | M93: 2022-07-31 | N93: 2022-08-31 | O93: 2022-09-30 | P93: 2022-10-31 | Q93: 2022-11-30 | R93: 2022-12-31 | S93: 2023-01-31 | T93: 2023-02-28 | U93: 2023-03-31 | V93: 2023-04-30 | W93: 2023-05-31 | X93: 2023-06-30 | Y93: 2023-07-31 | Z93: 2023-08-31 | AA93: 2023-09-30 | AB93: 2023-10-31 | AC93: 2023-11-30 | AD93: 2023-12-31 | AE93: 2024-01-31 | AF93: 2024-02-29 | AG93: 2024-03-31 | AH93: 2024-04-30 | AI93: 2024-05-31 | AJ93: 2024-06-30 | AK93: 2024-07-31 | AL93: =AL15 -> 2024-08-31 | AM93: 2024-09-30 | AN93: 2024-10-31 | AO93: 2024-11-30 | AP93: 2024-12-31 | AQ93: 2025-01-31 | AR93: 2025-02-28 | AS93: 2025-03-31 | AT93: 2025-04-30 | AU93: 2025-05-31 | AV93: 2025-06-30 | AW93: 2025-07-31 | AX93: 2025-08-31 | AY93: 2025-09-30 | AZ93: 2025-10-31 | BA93: 2025-11-30 | BB93: 2025-12-31 | BC93: 2026-01-31 | BD93: 2026-02-28 | BE93: 2026-03-31 | BF93: 2026-04-30 | BG93: 2026-05-31 | BH93: 2026-06-30 | BI93: 2026-07-31 | BJ93: 2026-08-31 | BK93: 2026-09-30 | BL93: 2026-10-31 | BM93: 2026-11-30 | BN93: 2026-12-31 | BO93: 2027-01-31 | BP93: 2027-02-28 | BQ93: 2027-03-31 | BR93: =BR15 -> 2027-04-30 | BS93: 2027-05-31 | BT93: 2027-06-30 | BU93: 2027-07-31 | BV93: 2027-08-31 | BW93: 2027-09-30 | BX93: 2027-10-31 | BY93: 2027-11-30 | BZ93: 2027-12-31 | CA93: 2028-01-31 | CB93: 2028-02-29 | CC93: 2028-03-31 | CD93: 2028-04-30 | CE93: 2028-05-31 | CF93: 2028-06-30 | CG93: 2028-07-31 | CH93: 2028-08-31 | CI93: 2028-09-30 | CJ93: 2028-10-31 | CK93: 2028-11-30 | CL93: 2028-12-31 | CM93: 2029-01-31 | CN93: 2029-02-28 | CO93: 2029-03-31 | CP93: 2029-04-30 | CQ93: 2029-05-31 | CR93: 2029-06-30 | CS93: 2029-07-31 | CT93: 2029-08-31 | CU93: 2029-09-30 | CV93: 2029-10-31 | CW93: 2029-11-30 | CX93: =CX15 -> 2029-12-31 | CY93: 2030-01-31 | CZ93: 2030-02-28 | DA93: 2030-03-31 | DB93: 2030-04-30 | DC93: 2030-05-31 | DD93: 2030-06-30 | DE93: 2030-07-31 | DF93: 2030-08-31 | DG93: 2030-09-30 | DH93: 2030-10-31 | DI93: 2030-11-30 | DJ93: 2030-12-31 | DK93: 2031-01-31 | DL93: 2031-02-28 | DM93: 2031-03-31 | DN93: 2031-04-30 | DO93: 2031-05-31 | DP93: 2031-06-30 | DQ93: 2031-07-31 | DR93: 2031-08-31 | DS93: 2031-09-30 | DT93: 2031-10-31 | DU93: 2031-11-30 | DV93: 2031-12-31 | DW93: 2032-01-31 | DX93: 2032-02-29 | DY93: 2032-03-31 | DZ93: 2032-04-30 | EA93: 2032-05-31 | EB93: 2032-06-30 | EC93: 2032-07-31 | ED93: 2032-08-31 | EE93: 2032-09-30 | EF93: 2032-10-31 | EG93: 2032-11-30 | EH93: 2032-12-31
B95: Final Distributions | C95: Above… | D95: Equity Split
B96: Limited Partner | C96: =E10 -> 0.18 | D96: =G10 -> 0.495
B97: General Partner + Sponsor | D97: =H10 -> 0.505
B99: Limited Partner Cash Flow | C99: =D96 -> 0.495 | E99: =SUM(F99:EH99) ->  | F99: =F89*$D$96 ->  | G99: =G89*$D$96 ->  | BS99: =BS89*$D$96 ->  | EE99: =EE89*$D$96 -> 
B100: General Partner Cash Flow | C100: =D97-C101 -> 0.005 | E100: =SUM(F100:EH100) ->  | F100: =F89*$C$100 ->  | G100: =G89*$C$100 ->  | BS100: =BS89*$C$100 ->  | EE100: =EE89*$C$100 -> 
B101: Sponsor Promote Cash Flow | C101: =F10 -> 0.5 | F101: =F89*$C$101 ->  | G101: =G89*$C$101 ->  | BS101: =BS89*$C$101 ->  | EE101: =EE89*$C$101 -> 
F104: =F14 -> 0 | G104: 1 | H104: 2 | I104: 3 | J104: 4 | K104: 5 | L104: 6 | M104: 7 | N104: 8 | O104: 9 | P104: 10 | Q104: 11 | R104: 12 | S104: 13 | T104: 14 | U104: 15 | V104: 16 | W104: 17 | X104: 18 | Y104: 19 | Z104: 20 | AA104: 21 | AB104: 22 | AC104: 23 | AD104: 24 | AE104: 25 | AF104: 26 | AG104: 27 | AH104: 28 | AI104: 29 | AJ104: 30 | AK104: 31 | AL104: =AL14 -> 32 | AM104: 33 | AN104: 34 | AO104: 35 | AP104: 36 | AQ104: 37 | AR104: 38 | AS104: 39 | AT104: 40 | AU104: 41 | AV104: 42 | AW104: 43 | AX104: 44 | AY104: 45 | AZ104: 46 | BA104: 47 | BB104: 48 | BC104: 49 | BD104: 50 | BE104: 51 | BF104: 52 | BG104: 53 | BH104: 54 | BI104: 55 | BJ104: 56 | BK104: 57 | BL104: 58 | BM104: 59 | BN104: 60 | BO104: 61 | BP104: 62 | BQ104: 63 | BR104: =BR14 -> 64 | BS104: 65 | BT104: 66 | BU104: 67 | BV104: 68 | BW104: 69 | BX104: 70 | BY104: 71 | BZ104: 72 | CA104: 73 | CB104: 74 | CC104: 75 | CD104: 76 | CE104: 77 | CF104: 78 | CG104: 79 | CH104: 80 | CI104: 81 | CJ104: 82 | CK104: 83 | CL104: 84 | CM104: 85 | CN104: 86 | CO104: 87 | CP104: 88 | CQ104: 89 | CR104: 90 | CS104: 91 | CT104: 92 | CU104: 93 | CV104: 94 | CW104: 95 | CX104: =CX14 -> 96 | CY104: 97 | CZ104: 98 | DA104: 99 | DB104: 100 | DC104: 101 | DD104: 102 | DE104: 103 | DF104: 104 | DG104: 105 | DH104: 106 | DI104: 107 | DJ104: 108 | DK104: 109 | DL104: 110 | DM104: 111 | DN104: 112 | DO104: 113 | DP104: 114 | DQ104: 115 | DR104: 116 | DS104: 117 | DT104: 118 | DU104: 119 | DV104: 120 | DW104: 121 | DX104: 122 | DY104: 123 | DZ104: 124 | EA104: 125 | EB104: 126 | EC104: 127 | ED104: 128 | EE104: 129 | EF104: 130 | EG104: 131 | EH104: 132
B105: RETURNS SUMMARY | F105: =F15 -> 2021-12-31 | G105: 2022-01-31 | H105: 2022-02-28 | I105: 2022-03-31 | J105: 2022-04-30 | K105: 2022-05-31 | L105: 2022-06-30 | M105: 2022-07-31 | N105: 2022-08-31 | O105: 2022-09-30 | P105: 2022-10-31 | Q105: 2022-11-30 | R105: 2022-12-31 | S105: 2023-01-31 | T105: 2023-02-28 | U105: 2023-03-31 | V105: 2023-04-30 | W105: 2023-05-31 | X105: 2023-06-30 | Y105: 2023-07-31 | Z105: 2023-08-31 | AA105: 2023-09-30 | AB105: 2023-10-31 | AC105: 2023-11-30 | AD105: 2023-12-31 | AE105: 2024-01-31 | AF105: 2024-02-29 | AG105: 2024-03-31 | AH105: 2024-04-30 | AI105: 2024-05-31 | AJ105: 2024-06-30 | AK105: 2024-07-31 | AL105: =AL15 -> 2024-08-31 | AM105: 2024-09-30 | AN105: 2024-10-31 | AO105: 2024-11-30 | AP105: 2024-12-31 | AQ105: 2025-01-31 | AR105: 2025-02-28 | AS105: 2025-03-31 | AT105: 2025-04-30 | AU105: 2025-05-31 | AV105: 2025-06-30 | AW105: 2025-07-31 | AX105: 2025-08-31 | AY105: 2025-09-30 | AZ105: 2025-10-31 | BA105: 2025-11-30 | BB105: 2025-12-31 | BC105: 2026-01-31 | BD105: 2026-02-28 | BE105: 2026-03-31 | BF105: 2026-04-30 | BG105: 2026-05-31 | BH105: 2026-06-30 | BI105: 2026-07-31 | BJ105: 2026-08-31 | BK105: 2026-09-30 | BL105: 2026-10-31 | BM105: 2026-11-30 | BN105: 2026-12-31 | BO105: 2027-01-31 | BP105: 2027-02-28 | BQ105: 2027-03-31 | BR105: =BR15 -> 2027-04-30 | BS105: 2027-05-31 | BT105: 2027-06-30 | BU105: 2027-07-31 | BV105: 2027-08-31 | BW105: 2027-09-30 | BX105: 2027-10-31 | BY105: 2027-11-30 | BZ105: 2027-12-31 | CA105: 2028-01-31 | CB105: 2028-02-29 | CC105: 2028-03-31 | CD105: 2028-04-30 | CE105: 2028-05-31 | CF105: 2028-06-30 | CG105: 2028-07-31 | CH105: 2028-08-31 | CI105: 2028-09-30 | CJ105: 2028-10-31 | CK105: 2028-11-30 | CL105: 2028-12-31 | CM105: 2029-01-31 | CN105: 2029-02-28 | CO105: 2029-03-31 | CP105: 2029-04-30 | CQ105: 2029-05-31 | CR105: 2029-06-30 | CS105: 2029-07-31 | CT105: 2029-08-31 | CU105: 2029-09-30 | CV105: 2029-10-31 | CW105: 2029-11-30 | CX105: =CX15 -> 2029-12-31 | CY105: 2030-01-31 | CZ105: 2030-02-28 | DA105: 2030-03-31 | DB105: 2030-04-30 | DC105: 2030-05-31 | DD105: 2030-06-30 | DE105: 2030-07-31 | DF105: 2030-08-31 | DG105: 2030-09-30 | DH105: 2030-10-31 | DI105: 2030-11-30 | DJ105: 2030-12-31 | DK105: 2031-01-31 | DL105: 2031-02-28 | DM105: 2031-03-31 | DN105: 2031-04-30 | DO105: 2031-05-31 | DP105: 2031-06-30 | DQ105: 2031-07-31 | DR105: 2031-08-31 | DS105: 2031-09-30 | DT105: 2031-10-31 | DU105: 2031-11-30 | DV105: 2031-12-31 | DW105: 2032-01-31 | DX105: 2032-02-29 | DY105: 2032-03-31 | DZ105: 2032-04-30 | EA105: 2032-05-31 | EB105: 2032-06-30 | EC105: 2032-07-31 | ED105: 2032-08-31 | EE105: 2032-09-30 | EF105: 2032-10-31 | EG105: 2032-11-30 | EH105: 2032-12-31
B107: Total Project Cash Flow
B108: IRR | C108: =XIRR(F108:EH108,F105:EH105) ->  | F108: =F21 ->  | G108: =G21 ->  | BS108: =BS21 ->  | EE108: =EE21 -> 
B109: Net Cash Flow | C109: =SUM(F108:EH108) -> 
B110: Invested Equity | C110: =-SUMIF(F108:EH108,"<0",F108:EH108) -> 0
B111: Equity Multiple | C111: =(C110+C109)/C110 -> 
B114: Limited Partner Cash Flow
B115: IRR | C115: =XIRR(F115:EH115,F105:EH105) ->  | F115: =F99+F85+F63+F42 ->  | G115: =G99+G85+G63+G42 ->  | BS115: =BS99+BS85+BS63+BS42 ->  | EE115: =EE99+EE85+EE63+EE42 -> 
B116: Net Cash Flow | C116: =SUM(F115:EH115) -> 
B117: Invested Equity | C117: =-SUMIF(F115:EH115,"<0",F115:EH115) -> 0
B118: Equity Multiple | C118: =(C117+C116)/C117 -> 
B121: General Partner Cash Flow
B122: General Partner Equity Injections | C122: =SUM(F122:EH122) ->  | F122: =-F18 ->  | AL122: =-AL18 ->  | BR122: =-BR18 ->  | CX122: =-CX18 -> 
B123: General Partner Cash Flow | C123: =SUM(F123:EH123) ->  | F123: =(F100-F122)+F86+F64+F43 ->  | G123: =(G100-G122)+G86+G64+G43 ->  | BS123: =(BS100-BS122)+BS86+BS64+BS43 ->  | EE123: =(EE100-EE122)+EE86+EE64+EE43 -> 
B124: Net Cash Flow | C124: =SUM(C122:C123) -> 
B126: IRR | C126: =XIRR(F126:EH126,F105:EH105) ->  | F126: =SUM(F122:F123) ->  | AL126: =SUM(AL122:AL123) ->  | BR126: =SUM(BR122:BR123) ->  | CX126: =SUM(CX122:CX123) -> 
B127: Net Cash Flow | C127: =C124 -> 
B128: Invested Equity | C128: =-SUMIF(F126:EH126,"<0",F126:EH126) -> 0
B129: Equity Multiple | C129: =(C128+C127)/C128 -> 
B132: Sponsor Promote Cash Flow
B133: IRR | C133: n/a
B134: Net Cash Flow | C134: =SUM(F134:EH134) ->  | F134: =F101+F87+F65+F44 ->  | AL134: =AL101+AL87+AL65+AL44 ->  | BR134: =BR101+BR87+BR65+BR44 ->  | CX134: =CX101+CX87+CX65+CX44 -> 
B135: Invested Equity | C135: n/a
B136: Equity Multiple | C136: n/a
B140: Cash Flow Check (Must be $0) | C140: =SUM(F21:EH21)-C116-C124-C134 -> 

Sheet Unit Mix
B5: Project Overview
B6: Address | C6: =Assumptions!C6 -> Sample Address
B7: City, State | C7: =Assumptions!C7 -> Sample City and State
B8: Total Units | C8: =C29 -> 95
B9: Total Beds | C9: =D29 -> 323
B10: Total Gross Square Feet | C10: =Assumptions!E21 -> 145000
B11: Net Residential Square Feet | C11: =Assumptions!E13 -> 141360
B12: Gross Retail Square Feet | C12: =Assumptions!E16 -> 0
B13: Average Unit Size (Market-Rate) | C13: =E27 -> 1488
B14: Parking Stalls | C14: =Assumptions!C33 -> 238
B15: Parking Ratio | C15: =Assumptions!C34 -> 2.505263158
B18: Unit Mix
O19: Unit Type | P19: # Units | Q19: %
B20: Unit Description | C20: Unit Count | D20: Bedroom Count | E20: Avg. SF/Unit | F20: Total SF | G20: Average Rent Per Unit | H20: Average Rent Per Bed | I20: Average Rent Per SF | J20: Monthly Total Average Rent | K20: Annual Total Average Rent | O20: 3 BR | P20: =C21 -> 57 | Q20: =P20/$P$26 -> 0.6
B21: =Assumptions!B190 -> 3 Bed / 3 Bath | C21: =Assumptions!C190 -> 57 | D21: =Assumptions!E190 -> 171 | E21: =Assumptions!F190 -> 1358 | F21: =E21*C21 -> 77406 | G21: =SUMIFS('Trended Rents'!G:G,'Trended Rents'!$O:$O,$D$34,'Trended Rents'!$B:$B,$B21) -> 1463.70875 | H21: =SUMIFS('Trended Rents'!H:H,'Trended Rents'!$O:$O,$D$34,'Trended Rents'!$B:$B,$B21) -> 487.9029167 | I21: =IFERROR(G21/E21,0) -> 1.077841495 | J21: =G21*C21 -> 83431.39875 | K21: =J21*12 -> 1001176.785 | M21: =Assumptions!A190 -> Market | O21: 4 BR | P21: =C22 -> 38 | Q21: =P21/$P$26 -> 0.4
B22: =Assumptions!B191 -> 4 Bed / 4 Bath | C22: =Assumptions!C191 -> 38 | D22: =Assumptions!E191 -> 152 | E22: =Assumptions!F191 -> 1683 | F22: 63954 | G22: =SUMIFS('Trended Rents'!G:G,'Trended Rents'!$O:$O,$D$34,'Trended Rents'!$B:$B,$B22) -> 1568.259375 | H22: =SUMIFS('Trended Rents'!H:H,'Trended Rents'!$O:$O,$D$34,'Trended Rents'!$B:$B,$B22) -> 392.0648437 | I22: =IFERROR(G22/E22,0) -> 0.9318237522 | J22: 59593.85625 | K22: 715126.275 | M22: =Assumptions!A191 -> Market
B23: =Assumptions!B192 -> 0 | C23: =Assumptions!C192 -> 0 | D23: =Assumptions!E192 -> 0 | E23: =Assumptions!F192 -> 0 | F23: =E23*C23 -> 0 | G23: =SUMIFS('Trended Rents'!G:G,'Trended Rents'!$O:$O,$D$34,'Trended Rents'!$B:$B,$B23) -> 0 | H23: =SUMIFS('Trended Rents'!H:H,'Trended Rents'!$O:$O,$D$34,'Trended Rents'!$B:$B,$B23) -> 0 | I23: 0 | J23: =G23*C23 -> 0 | K23: =J23*12 -> 0 | M23: =Assumptions!A192 -> Market
B24: =Assumptions!B193 -> 0 | C24: =Assumptions!C193 -> 0 | D24: =Assumptions!E193 -> 0 | E24: =Assumptions!F193 -> 0 | F24: 0 | G24: =SUMIFS('Trended Rents'!G:G,'Trended Rents'!$O:$O,$D$34,'Trended Rents'!$B:$B,$B24) -> 0 | H24: =SUMIFS('Trended Rents'!H:H,'Trended Rents'!$O:$O,$D$34,'Trended Rents'!$B:$B,$B24) -> 0 | I24: 0 | J24: 0 | K24: 0 | M24: =Assumptions!A193 -> Market
B25: =Assumptions!B194 -> 0 | C25: =Assumptions!C194 -> 0 | D25: =Assumptions!E194 -> 0 | E25: =Assumptions!F194 -> 0 | F25: 0 | G25: =SUMIFS('Trended Rents'!G:G,'Trended Rents'!$O:$O,$D$34,'Trended Rents'!$B:$B,$B25) -> 0 | H25: =SUMIFS('Trended Rents'!H:H,'Trended Rents'!$O:$O,$D$34,'Trended Rents'!$B:$B,$B25) -> 0 | I25: 0 | J25: 0 | K25: 0 | M25: =Assumptions!A194 -> Market
B26: =Assumptions!B195 -> 0 | C26: =Assumptions!C195 -> 0 | D26: =Assumptions!E195 -> 0 | E26: =Assumptions!F195 -> 0 | F26: 0 | G26: =SUMIFS('Trended Rents'!G:G,'Trended Rents'!$O:$O,$D$34,'Trended Rents'!$B:$B,$B26) -> 0 | H26: =SUMIFS('Trended Rents'!H:H,'Trended Rents'!$O:$O,$D$34,'Trended Rents'!$B:$B,$B26) -> 0 | I26: 0 | J26: 0 | K26: 0 | M26: =Assumptions!A195 -> Market | P26: =SUM(P20:P25) -> 95 | Q26: =SUM(Q20:Q25) -> 1
B27: =Assumptions!A196 -> Market-Rate Unit Total / Average | C27: =SUMIFS(C21:C26,$M$21:$M$26,'dropdown lists'!$B$2) -> 95 | D27: =SUMIFS(D21:D26,$M$21:$M$26,'dropdown lists'!$B$2) -> 323 | E27: =IFERROR(SUMPRODUCT(--($M$21:$M$26='dropdown lists'!$B$2),C21:C26,E21:E26)/$C$27,0) -> 1488 | F27: =SUMIFS(F21:F26,$M$21:$M$26,'dropdown lists'!$B$2) -> 141360 | G27: =IFERROR(SUMPRODUCT(--($M$21:$M$26='dropdown lists'!$B$2),C21:C26,G21:G26)/$C$27,0) -> 1505.529 | H27: =IFERROR(SUMPRODUCT(--($M$21:$M$26='dropdown lists'!$B$2),D21:D26,H21:H26)/$D$27,0) -> 442.8026471 | I27: =IFERROR(SUMPRODUCT(--($M$21:$M$26='dropdown lists'!$B$2),F21:F26,I21:I26)/$F$27,0) -> 1.011780242 | J27: =SUMIFS(J21:J26,$M$21:$M$26,'dropdown lists'!$B$2) -> 143025.255 | K27: =SUMIFS(K21:K26,$M$21:$M$26,'dropdown lists'!$B$2) -> 1716303.06
B28: =Assumptions!A197 -> 0 | C28: =SUMIFS(C21:C26,$M$21:$M$26,'dropdown lists'!$B$3) -> 0 | D28: =SUMIFS(D21:D26,$M$21:$M$26,'dropdown lists'!$B$3) -> 0 | E28: =IFERROR(SUMPRODUCT(--($M$21:$M$26='dropdown lists'!$B$3),C21:C26,E21:E26)/$C$28,0) -> 0 | F28: =SUMIFS(F21:F26,$M$21:$M$26,'dropdown lists'!$B$3) -> 0 | G28: =IFERROR(SUMPRODUCT(--($M$21:$M$26='dropdown lists'!$B$3),C21:C26,G21:G26)/$C$28,0) -> 0 | H28: =IFERROR(SUMPRODUCT(--($M$21:$M$26='dropdown lists'!$B$3),D21:D26,H21:H26)/$D$28,0) -> 0 | I28: =IFERROR(SUMPRODUCT(--($M$21:$M$26='dropdown lists'!$B$3),F21:F26,I21:I26)/$F$28,0) -> 0 | J28: =SUMIFS(J21:J26,$M$21:$M$26,'dropdown lists'!$B$3) -> 0 | K28: =SUMIFS(K21:K26,$M$21:$M$26,'dropdown lists'!$B$3) -> 0
B29: =Assumptions!A198 -> Total / Average | C29: =SUM(C21:C26) -> 95 | D29: =SUM(D21:D26) -> 323 | E29: =SUMPRODUCT(E21:E26,$C$21:$C$26)/$C$29 -> 1488 | F29: =SUM(F21:F26) -> 141360 | G29: =SUMPRODUCT(G21:G26,$C$21:$C$26)/$C$29 -> 1505.529 | H29: =SUMPRODUCT(H21:H26,D21:D26)/D29 -> 442.8026471 | I29: =SUMPRODUCT(I21:I26,F21:F26)/F29 -> 1.011780242 | J29: =SUM(J21:J26) -> 143025.255 | K29: =SUM(K21:K26) -> 1716303.06
B34: Rents Displayed in Table Above: | C34: Lease-Up | D34: =SUMIFS(Assumptions!$H$35:$H$36,Assumptions!$G$35:$G$36,C34) -> 3

Sheet Construction Budget
B4: LAND COSTS | D4: $ AMOUNT | E4: $/UNIT | F4: $/Bed | G4: $/GSF
B6: =Assumptions!B121 -> Land Acquisition Costs | D6: =Assumptions!D54 -> 600000 | E6: =D6/L$6 -> 6315.789474 | F6: =D6/$L$7 -> 1857.585139 | G6: =D6/$L$8 -> 4.137931034 | K6: Units | L6: =Assumptions!C25 -> 95
B7: Total Land Costs | D7: =SUM(D6:D6) -> 600000 | E7: =SUM(E6:E6) -> 6315.789474 | F7: =SUM(F6:F6) -> 1857.585139 | G7: =SUM(G6:G6) -> 4.137931034 | K7: Beds | L7: =Assumptions!C28 -> 323
K8: GSF | L8: =Assumptions!E21 -> 145000
B9: HARD COSTS | D9: $ AMOUNT | E9: $/UNIT | F9: $/Bed | G9: $/GSF
B11: =Assumptions!B124 -> HARD COSTS | D11: =Assumptions!D55 -> 13426247.85 | E11: =D11/L$6 -> 141328.9247 | F11: =D11/$L$7 -> 41567.33079 | G11: =D11/$L$8 -> 92.59481273
B12: =Assumptions!B137 -> Owners Hard Costs Contingency | D12: =Assumptions!D56 -> 0 | E12: =D12/L$6 -> 0 | F12: =D12/$L$7 -> 0 | G12: =D12/$L$8 -> 0
B13: Total Hard Costs | D13: =SUM(D11:D12) -> 13426247.85 | E13: =SUM(E11:E12) -> 141328.9247 | F13: =SUM(F11:F12) -> 41567.33079 | G13: =SUM(G11:G12) -> 92.59481273
B15: SOFT COSTS | D15: $ AMOUNT | E15: $/UNIT | F15: $/Bed | G15: $/GSF
B17: =Assumptions!B142 -> Plans & Engineering | D17: =Assumptions!E142 -> 237500 | E17: =D17/$L$6 -> 2500 | F17: =D17/$L$7 -> 735.2941176 | G17: =D17/$L$8 -> 1.637931034
B18: =Assumptions!B143 -> Surveyor | D18: =Assumptions!E143 -> 43600 | E18: =D18/$L$6 -> 458.9473684 | F18: =D18/$L$7 -> 134.9845201 | G18: =D18/$L$8 -> 0.3006896552
B19: =Assumptions!B144 -> Permits/Impact Fees | D19: =Assumptions!E144 -> 351500 | E19: 3700 | F19: 1088.235294 | G19: 2.424137931
B20: =Assumptions!B145 -> Property Taxes | D20: =Assumptions!E145 -> 142500 | E20: 1500 | F20: 441.1764706 | G20: 0.9827586207
B21: =Assumptions!B146 -> Insurance | D21: =Assumptions!E146 -> 147150 | E21: 1548.947368 | F21: 455.5727554 | G21: 1.014827586
B22: =Assumptions!B147 -> Closing Cost/Loan Fee | D22: =Assumptions!E147 -> 54500 | E22: 573.6842105 | F22: 168.7306502 | G22: 0.375862069
B23: =Assumptions!B148 -> Interest Reserve | D23: =Assumptions!E148 -> 0 | E23: 0 | F23: 0 | G23: 0
B24: =Assumptions!B149 -> Contingency Budget | D24: =Assumptions!E149 -> 348800 | E24: 3671.578947 | F24: 1079.876161 | G24: 2.405517241
B25: =Assumptions!B150 -> Developer Fee (GC) | D25: =Assumptions!E150 -> 671312 | E25: 7066.442105 | F25: 2078.365325 | G25: 4.629737931
B26: =Assumptions!B151 -> Operating/Start-Up Costs | D26: =Assumptions!E151 -> 57000 | E26: 600 | F26: 176.4705882 | G26: 0.3931034483
B27: =Assumptions!B152 -> Designer/FF&E | D27: =Assumptions!E152 -> 21800 | E27: 229.4736842 | F27: 67.49226006 | G27: 0.1503448276
B28: =Assumptions!B153 -> Third Party Reports | D28: =Assumptions!E153 -> 37060 | E28: 390.1052632 | F28: 114.7368421 | G28: 0.2555862069
B29: =Assumptions!B154 -> Soft Cost Item #13 | D29: =Assumptions!E154 -> 0 | E29: 0 | F29: 0 | G29: 0
B30: =Assumptions!B155 -> Soft Cost Item #14 | D30: =Assumptions!E155 -> 0 | E30: 0 | F30: 0 | G30: 0
B31: =Assumptions!B156 -> Soft Cost Item #15 | D31: =Assumptions!E156 -> 0 | E31: 0 | F31: 0 | G31: 0
B32: =Assumptions!B157 -> Soft Cost Item #16 | D32: =Assumptions!E157 -> 0 | E32: 0 | F32: 0 | G32: 0
B33: =Assumptions!B158 -> Soft Cost Item #17 | D33: =Assumptions!E158 -> 0 | E33: 0 | F33: 0 | G33: 0
B34: =Assumptions!B159 -> Soft Cost Item #18 | D34: =Assumptions!E159 -> 0 | E34: 0 | F34: 0 | G34: 0
B35: =Assumptions!B160 -> Soft Cost Item #19 | D35: =Assumptions!E160 -> 0 | E35: 0 | F35: 0 | G35: 0
B36: =Assumptions!B161 -> Soft Cost Item #20 | D36: =Assumptions!E161 -> 0 | E36: 0 | F36: 0 | G36: 0
B37: =Assumptions!B162 -> Soft Cost Item #21 | D37: =Assumptions!E162 -> 0 | E37: 0 | F37: 0 | G37: 0
B38: =Assumptions!B163 -> Soft Cost Item #22 | D38: =Assumptions!E163 -> 0 | E38: 0 | F38: 0 | G38: 0
B39: =Assumptions!B164 -> Soft Cost Item #23 | D39: =Assumptions!E164 -> 0 | E39: 0 | F39: 0 | G39: 0
B40: =Assumptions!B165 -> Soft Cost Item #24 | D40: =Assumptions!E165 -> 0 | E40: 0 | F40: 0 | G40: 0
B41: =Assumptions!B166 -> Soft Cost Item #25 | D41: =Assumptions!E166 -> 0 | E41: 0 | F41: 0 | G41: 0
B42: =Assumptions!B167 -> Soft Costs Contingency / % of Hard Costs Toggle | D42: =Assumptions!E167 -> 0 | E42: 0 | F42: 0 | G42: 0
B43: Total Soft Costs | D43: =SUM(D17:D42) -> 2112722 | E43: =SUM(E17:E42) -> 22239.17895 | F43: =SUM(F17:F42) -> 6540.934985 | G43: =SUM(G17:G42) -> 14.57049655
B45: PROJECT CARRY COSTS | D45: $ AMOUNT | E45: $/UNIT | F45: $/Bed | G45: $/GSF
B47: Interest Carry (Senior Loan) | D47: =Assumptions!E171 -> 504688.655 | E47: =D47/$L$6 -> 5312.512158 | F47: =D47/$L$7 -> 1562.503576 | G47: =D47/$L$8 -> 3.480611414
B48: =Assumptions!B172 -> AM Fee Carry/Reserve | D48: =Assumptions!E172 -> 0.07496146811 | E48: =D48/$L$6 -> 0.0007890680854 | F48: =D48/$L$7 -> 0.0002320788486 | G48: =D48/$L$8 -> 5.169756422e-07
B50: Total Construction Costs | D50: =D7+D13+D43+D47+D48 -> 16643658.58 | E50: =E7+E13+E43+E47+E48 -> 175196.4061 | F50: 51528.35472 | G50: 114.7838522
J53: =J54=1 -> TRUE
J54: =SUM(L54:EM54) -> 1 | K54: =SUMIFS('Construction Curve'!$G$4:$BN$4,'Construction Curve'!$G$3:$BN$3,K55) -> 0 | L54: =SUMIFS('Construction Curve'!$G$4:$BN$4,'Construction Curve'!$G$3:$BN$3,L55) -> 0 | M54: =SUMIFS('Construction Curve'!$G$4:$BN$4,'Construction Curve'!$G$3:$BN$3,M55) -> 0 | N54: =SUMIFS('Construction Curve'!$G$4:$BN$4,'Construction Curve'!$G$3:$BN$3,N55) -> 0 | O54: =SUMIFS('Construction Curve'!$G$4:$BN$4,'Construction Curve'!$G$3:$BN$3,O55) -> 0 | P54: =SUMIFS('Construction Curve'!$G$4:$BN$4,'Construction Curve'!$G$3:$BN$3,P55) -> 0 | Q54: =SUMIFS('Construction Curve'!$G$4:$BN$4,'Construction Curve'!$G$3:$BN$3,Q55) -> 0 | R54: =SUMIFS('Construction Curve'!$G$4:$BN$4,'Construction Curve'!$G$3:$BN$3,R55) -> 0 | S54: =SUMIFS('Construction Curve'!$G$4:$BN$4,'Construction Curve'!$G$3:$BN$3,S55) -> 0 | T54: =SUMIFS('Construction Curve'!$G$4:$BN$4,'Construction Curve'!$G$3:$BN$3,T55) -> 0 | U54: =SUMIFS('Construction Curve'!$G$4:$BN$4,'Construction Curve'!$G$3:$BN$3,U55) -> 0 | V54: =SUMIFS('Construction Curve'!$G$4:$BN$4,'Construction Curve'!$G$3:$BN$3,V55) -> 0 | W54: =SUMIFS('Construction Curve'!$G$4:$BN$4,'Construction Curve'!$G$3:$BN$3,W55) -> 0 | X54: =SUMIFS('Construction Curve'!$G$4:$BN$4,'Construction Curve'!$G$3:$BN$3,X55) -> 0.02623386825 | Y54: =SUMIFS('Construction Curve'!$G$4:$BN$4,'Construction Curve'!$G$3:$BN$3,Y55) -> 0.04549070661 | Z54: =SUMIFS('Construction Curve'!$G$4:$BN$4,'Construction Curve'!$G$3:$BN$3,Z55) -> 0.07065903913 | AA54: =SUMIFS('Construction Curve'!$G$4:$BN$4,'Construction Curve'!$G$3:$BN$3,AA55) -> 0.09831043432 | AB54: =SUMIFS('Construction Curve'!$G$4:$BN$4,'Construction Curve'!$G$3:$BN$3,AB55) -> 0.1225236616 | AC54: =SUMIFS('Construction Curve'!$G$4:$BN$4,'Construction Curve'!$G$3:$BN$3,AC55) -> 0.1367822901 | AD54: =SUMIFS('Construction Curve'!$G$4:$BN$4,'Construction Curve'!$G$3:$BN$3,AD55) -> 0.1367822901 | AE54: =SUMIFS('Construction Curve'!$G$4:$BN$4,'Construction Curve'!$G$3:$BN$3,AE55) -> 0.1225236616 | AF54: =SUMIFS('Construction Curve'!$G$4:$BN$4,'Construction Curve'!$G$3:$BN$3,AF55) -> 0.09831043432 | AG54: =SUMIFS('Construction Curve'!$G$4:$BN$4,'Construction Curve'!$G$3:$BN$3,AG55) -> 0.07065903913 | AH54: =SUMIFS('Construction Curve'!$G$4:$BN$4,'Construction Curve'!$G$3:$BN$3,AH55) -> 0.04549070661 | AI54: =SUMIFS('Construction Curve'!$G$4:$BN$4,'Construction Curve'!$G$3:$BN$3,AI55) -> 0.02623386825 | AJ54: =SUMIFS('Construction Curve'!$G$4:$BN$4,'Construction Curve'!$G$3:$BN$3,AJ55) -> 0 | AK54: =SUMIFS('Construction Curve'!$G$4:$BN$4,'Construction Curve'!$G$3:$BN$3,AK55) -> 0 | AL54: =SUMIFS('Construction Curve'!$G$4:$BN$4,'Construction Curve'!$G$3:$BN$3,AL55) -> 0 | AM54: =SUMIFS('Construction Curve'!$G$4:$BN$4,'Construction Curve'!$G$3:$BN$3,AM55) -> 0 | AN54: =SUMIFS('Construction Curve'!$G$4:$BN$4,'Construction Curve'!$G$3:$BN$3,AN55) -> 0 | AO54: =SUMIFS('Construction Curve'!$G$4:$BN$4,'Construction Curve'!$G$3:$BN$3,AO55) -> 0 | AP54: =SUMIFS('Construction Curve'!$G$4:$BN$4,'Construction Curve'!$G$3:$BN$3,AP55) -> 0 | AQ54: =SUMIFS('Construction Curve'!$G$4:$BN$4,'Construction Curve'!$G$3:$BN$3,AQ55) -> 0 | AR54: =SUMIFS('Construction Curve'!$G$4:$BN$4,'Construction Curve'!$G$3:$BN$3,AR55) -> 0 | AS54: =SUMIFS('Construction Curve'!$G$4:$BN$4,'Construction Curve'!$G$3:$BN$3,AS55) -> 0 | AT54: =SUMIFS('Construction Curve'!$G$4:$BN$4,'Construction Curve'!$G$3:$BN$3,AT55) -> 0 | AU54: =SUMIFS('Construction Curve'!$G$4:$BN$4,'Construction Curve'!$G$3:$BN$3,AU55) -> 0 | AV54: =SUMIFS('Construction Curve'!$G$4:$BN$4,'Construction Curve'!$G$3:$BN$3,AV55) -> 0 | AW54: =SUMIFS('Construction Curve'!$G$4:$BN$4,'Construction Curve'!$G$3:$BN$3,AW55) -> 0 | AX54: =SUMIFS('Construction Curve'!$G$4:$BN$4,'Construction Curve'!$G$3:$BN$3,AX55) -> 0 | AY54: =SUMIFS('Construction Curve'!$G$4:$BN$4,'Construction Curve'!$G$3:$BN$3,AY55) -> 0 | AZ54: =SUMIFS('Construction Curve'!$G$4:$BN$4,'Construction Curve'!$G$3:$BN$3,AZ55) -> 0 | BA54: =SUMIFS('Construction Curve'!$G$4:$BN$4,'Construction Curve'!$G$3:$BN$3,BA55) -> 0 | BB54: =SUMIFS('Construction Curve'!$G$4:$BN$4,'Construction Curve'!$G$3:$BN$3,BB55) -> 0 | BC54: =SUMIFS('Construction Curve'!$G$4:$BN$4,'Construction Curve'!$G$3:$BN$3,BC55) -> 0 | BD54: =SUMIFS('Construction Curve'!$G$4:$BN$4,'Construction Curve'!$G$3:$BN$3,BD55) -> 0 | BE54: =SUMIFS('Construction Curve'!$G$4:$BN$4,'Construction Curve'!$G$3:$BN$3,BE55) -> 0 | BF54: =SUMIFS('Construction Curve'!$G$4:$BN$4,'Construction Curve'!$G$3:$BN$3,BF55) -> 0 | BG54: =SUMIFS('Construction Curve'!$G$4:$BN$4,'Construction Curve'!$G$3:$BN$3,BG55) -> 0 | BH54: =SUMIFS('Construction Curve'!$G$4:$BN$4,'Construction Curve'!$G$3:$BN$3,BH55) -> 0 | BI54: =SUMIFS('Construction Curve'!$G$4:$BN$4,'Construction Curve'!$G$3:$BN$3,BI55) -> 0 | BJ54: =SUMIFS('Construction Curve'!$G$4:$BN$4,'Construction Curve'!$G$3:$BN$3,BJ55) -> 0 | BK54: =SUMIFS('Construction Curve'!$G$4:$BN$4,'Construction Curve'!$G$3:$BN$3,BK55) -> 0 | BL54: =SUMIFS('Construction Curve'!$G$4:$BN$4,'Construction Curve'!$G$3:$BN$3,BL55) -> 0 | BM54: =SUMIFS('Construction Curve'!$G$4:$BN$4,'Construction Curve'!$G$3:$BN$3,BM55) -> 0 | BN54: =SUMIFS('Construction Curve'!$G$4:$BN$4,'Construction Curve'!$G$3:$BN$3,BN55) -> 0 | BO54: =SUMIFS('Construction Curve'!$G$4:$BN$4,'Construction Curve'!$G$3:$BN$3,BO55) -> 0 | BP54: =SUMIFS('Construction Curve'!$G$4:$BN$4,'Construction Curve'!$G$3:$BN$3,BP55) -> 0 | BQ54: =SUMIFS('Construction Curve'!$G$4:$BN$4,'Construction Curve'!$G$3:$BN$3,BQ55) -> 0 | BR54: =SUMIFS('Construction Curve'!$G$4:$BN$4,'Construction Curve'!$G$3:$BN$3,BR55) -> 0 | BS54: =SUMIFS('Construction Curve'!$G$4:$BN$4,'Construction Curve'!$G$3:$BN$3,BS55) -> 0 | BT54: =SUMIFS('Construction Curve'!$G$4:$BN$4,'Construction Curve'!$G$3:$BN$3,BT55) -> 0 | BU54: =SUMIFS('Construction Curve'!$G$4:$BN$4,'Construction Curve'!$G$3:$BN$3,BU55) -> 0 | BV54: =SUMIFS('Construction Curve'!$G$4:$BN$4,'Construction Curve'!$G$3:$BN$3,BV55) -> 0 | BW54: =SUMIFS('Construction Curve'!$G$4:$BN$4,'Construction Curve'!$G$3:$BN$3,BW55) -> 0 | BX54: =SUMIFS('Construction Curve'!$G$4:$BN$4,'Construction Curve'!$G$3:$BN$3,BX55) -> 0 | BY54: =SUMIFS('Construction Curve'!$G$4:$BN$4,'Construction Curve'!$G$3:$BN$3,BY55) -> 0 | BZ54: =SUMIFS('Construction Curve'!$G$4:$BN$4,'Construction Curve'!$G$3:$BN$3,BZ55) -> 0 | CA54: =SUMIFS('Construction Curve'!$G$4:$BN$4,'Construction Curve'!$G$3:$BN$3,CA55) -> 0 | CB54: =SUMIFS('Construction Curve'!$G$4:$BN$4,'Construction Curve'!$G$3:$BN$3,CB55) -> 0 | CC54: =SUMIFS('Construction Curve'!$G$4:$BN$4,'Construction Curve'!$G$3:$BN$3,CC55) -> 0 | CD54: =SUMIFS('Construction Curve'!$G$4:$BN$4,'Construction Curve'!$G$3:$BN$3,CD55) -> 0 | CE54: =SUMIFS('Construction Curve'!$G$4:$BN$4,'Construction Curve'!$G$3:$BN$3,CE55) -> 0 | CF54: =SUMIFS('Construction Curve'!$G$4:$BN$4,'Construction Curve'!$G$3:$BN$3,CF55) -> 0 | CG54: =SUMIFS('Construction Curve'!$G$4:$BN$4,'Construction Curve'!$G$3:$BN$3,CG55) -> 0 | CH54: =SUMIFS('Construction Curve'!$G$4:$BN$4,'Construction Curve'!$G$3:$BN$3,CH55) -> 0 | CI54: =SUMIFS('Construction Curve'!$G$4:$BN$4,'Construction Curve'!$G$3:$BN$3,CI55) -> 0 | CJ54: =SUMIFS('Construction Curve'!$G$4:$BN$4,'Construction Curve'!$G$3:$BN$3,CJ55) -> 0 | CK54: =SUMIFS('Construction Curve'!$G$4:$BN$4,'Construction Curve'!$G$3:$BN$3,CK55) -> 0 | CL54: =SUMIFS('Construction Curve'!$G$4:$BN$4,'Construction Curve'!$G$3:$BN$3,CL55) -> 0 | CM54: =SUMIFS('Construction Curve'!$G$4:$BN$4,'Construction Curve'!$G$3:$BN$3,CM55) -> 0 | CN54: =SUMIFS('Construction Curve'!$G$4:$BN$4,'Construction Curve'!$G$3:$BN$3,CN55) -> 0 | CO54: =SUMIFS('Construction Curve'!$G$4:$BN$4,'Construction Curve'!$G$3:$BN$3,CO55) -> 0 | CP54: =SUMIFS('Construction Curve'!$G$4:$BN$4,'Construction Curve'!$G$3:$BN$3,CP55) -> 0 | CQ54: =SUMIFS('Construction Curve'!$G$4:$BN$4,'Construction Curve'!$G$3:$BN$3,CQ55) -> 0 | CR54: =SUMIFS('Construction Curve'!$G$4:$BN$4,'Construction Curve'!$G$3:$BN$3,CR55) -> 0 | CS54: =SUMIFS('Construction Curve'!$G$4:$BN$4,'Construction Curve'!$G$3:$BN$3,CS55) -> 0 | CT54: =SUMIFS('Construction Curve'!$G$4:$BN$4,'Construction Curve'!$G$3:$BN$3,CT55) -> 0 | CU54: =SUMIFS('Construction Curve'!$G$4:$BN$4,'Construction Curve'!$G$3:$BN$3,CU55) -> 0 | CV54: =SUMIFS('Construction Curve'!$G$4:$BN$4,'Construction Curve'!$G$3:$BN$3,CV55) -> 0 | CW54: =SUMIFS('Construction Curve'!$G$4:$BN$4,'Construction Curve'!$G$3:$BN$3,CW55) -> 0 | CX54: =SUMIFS('Construction Curve'!$G$4:$BN$4,'Construction Curve'!$G$3:$BN$3,CX55) -> 0 | CY54: =SUMIFS('Construction Curve'!$G$4:$BN$4,'Construction Curve'!$G$3:$BN$3,CY55) -> 0 | CZ54: =SUMIFS('Construction Curve'!$G$4:$BN$4,'Construction Curve'!$G$3:$BN$3,CZ55) -> 0 | DA54: =SUMIFS('Construction Curve'!$G$4:$BN$4,'Construction Curve'!$G$3:$BN$3,DA55) -> 0 | DB54: =SUMIFS('Construction Curve'!$G$4:$BN$4,'Construction Curve'!$G$3:$BN$3,DB55) -> 0 | DC54: =SUMIFS('Construction Curve'!$G$4:$BN$4,'Construction Curve'!$G$3:$BN$3,DC55) -> 0 | DD54: =SUMIFS('Construction Curve'!$G$4:$BN$4,'Construction Curve'!$G$3:$BN$3,DD55) -> 0 | DE54: =SUMIFS('Construction Curve'!$G$4:$BN$4,'Construction Curve'!$G$3:$BN$3,DE55) -> 0 | DF54: =SUMIFS('Construction Curve'!$G$4:$BN$4,'Construction Curve'!$G$3:$BN$3,DF55) -> 0 | DG54: =SUMIFS('Construction Curve'!$G$4:$BN$4,'Construction Curve'!$G$3:$BN$3,DG55) -> 0 | DH54: =SUMIFS('Construction Curve'!$G$4:$BN$4,'Construction Curve'!$G$3:$BN$3,DH55) -> 0 | DI54: =SUMIFS('Construction Curve'!$G$4:$BN$4,'Construction Curve'!$G$3:$BN$3,DI55) -> 0 | DJ54: =SUMIFS('Construction Curve'!$G$4:$BN$4,'Construction Curve'!$G$3:$BN$3,DJ55) -> 0 | DK54: =SUMIFS('Construction Curve'!$G$4:$BN$4,'Construction Curve'!$G$3:$BN$3,DK55) -> 0 | DL54: =SUMIFS('Construction Curve'!$G$4:$BN$4,'Construction Curve'!$G$3:$BN$3,DL55) -> 0 | DM54: =SUMIFS('Construction Curve'!$G$4:$BN$4,'Construction Curve'!$G$3:$BN$3,DM55) -> 0 | DN54: =SUMIFS('Construction Curve'!$G$4:$BN$4,'Construction Curve'!$G$3:$BN$3,DN55) -> 0 | DO54: =SUMIFS('Construction Curve'!$G$4:$BN$4,'Construction Curve'!$G$3:$BN$3,DO55) -> 0 | DP54: =SUMIFS('Construction Curve'!$G$4:$BN$4,'Construction Curve'!$G$3:$BN$3,DP55) -> 0 | DQ54: =SUMIFS('Construction Curve'!$G$4:$BN$4,'Construction Curve'!$G$3:$BN$3,DQ55) -> 0 | DR54: =SUMIFS('Construction Curve'!$G$4:$BN$4,'Construction Curve'!$G$3:$BN$3,DR55) -> 0 | DS54: =SUMIFS('Construction Curve'!$G$4:$BN$4,'Construction Curve'!$G$3:$BN$3,DS55) -> 0 | DT54: =SUMIFS('Construction Curve'!$G$4:$BN$4,'Construction Curve'!$G$3:$BN$3,DT55) -> 0 | DU54: =SUMIFS('Construction Curve'!$G$4:$BN$4,'Construction Curve'!$G$3:$BN$3,DU55) -> 0 | DV54: =SUMIFS('Construction Curve'!$G$4:$BN$4,'Construction Curve'!$G$3:$BN$3,DV55) -> 0 | DW54: =SUMIFS('Construction Curve'!$G$4:$BN$4,'Construction Curve'!$G$3:$BN$3,DW55) -> 0 | DX54: =SUMIFS('Construction Curve'!$G$4:$BN$4,'Construction Curve'!$G$3:$BN$3,DX55) -> 0 | DY54: =SUMIFS('Construction Curve'!$G$4:$BN$4,'Construction Curve'!$G$3:$BN$3,DY55) -> 0 | DZ54: =SUMIFS('Construction Curve'!$G$4:$BN$4,'Construction Curve'!$G$3:$BN$3,DZ55) -> 0 | EA54: =SUMIFS('Construction Curve'!$G$4:$BN$4,'Construction Curve'!$G$3:$BN$3,EA55) -> 0 | EB54: =SUMIFS('Construction Curve'!$G$4:$BN$4,'Construction Curve'!$G$3:$BN$3,EB55) -> 0 | EC54: =SUMIFS('Construction Curve'!$G$4:$BN$4,'Construction Curve'!$G$3:$BN$3,EC55) -> 0 | ED54: =SUMIFS('Construction Curve'!$G$4:$BN$4,'Construction Curve'!$G$3:$BN$3,ED55) -> 0 | EE54: =SUMIFS('Construction Curve'!$G$4:$BN$4,'Construction Curve'!$G$3:$BN$3,EE55) -> 0 | EF54: =SUMIFS('Construction Curve'!$G$4:$BN$4,'Construction Curve'!$G$3:$BN$3,EF55) -> 0 | EG54: =SUMIFS('Construction Curve'!$G$4:$BN$4,'Construction Curve'!$G$3:$BN$3,EG55) -> 0 | EH54: =SUMIFS('Construction Curve'!$G$4:$BN$4,'Construction Curve'!$G$3:$BN$3,EH55) -> 0 | EI54: =SUMIFS('Construction Curve'!$G$4:$BN$4,'Construction Curve'!$G$3:$BN$3,EI55) -> 0 | EJ54: =SUMIFS('Construction Curve'!$G$4:$BN$4,'Construction Curve'!$G$3:$BN$3,EJ55) -> 0 | EK54: =SUMIFS('Construction Curve'!$G$4:$BN$4,'Construction Curve'!$G$3:$BN$3,EK55) -> 0 | EL54: =SUMIFS('Construction Curve'!$G$4:$BN$4,'Construction Curve'!$G$3:$BN$3,EL55) -> 0 | EM54: =SUMIFS('Construction Curve'!$G$4:$BN$4,'Construction Curve'!$G$3:$BN$3,EM55) -> 0
K55: ='Draw Schedule'!E6 -> 0 | L55: ='Draw Schedule'!F6 -> 1 | M55: ='Draw Schedule'!G6 -> 2 | N55: ='Draw Schedule'!H6 -> 3 | O55: ='Draw Schedule'!I6 -> 4 | P55: ='Draw Schedule'!J6 -> 5 | Q55: ='Draw Schedule'!K6 -> 6 | R55: ='Draw Schedule'!L6 -> 7 | S55: ='Draw Schedule'!M6 -> 8 | T55: ='Draw Schedule'!N6 -> 9 | U55: ='Draw Schedule'!O6 -> 10 | V55: ='Draw Schedule'!P6 -> 11 | W55: ='Draw Schedule'!Q6 -> 12 | X55: ='Draw Schedule'!R6 -> 13 | Y55: ='Draw Schedule'!S6 -> 14 | Z55: ='Draw Schedule'!T6 -> 15 | AA55: ='Draw Schedule'!U6 -> 16 | AB55: ='Draw Schedule'!V6 -> 17 | AC55: ='Draw Schedule'!W6 -> 18 | AD55: ='Draw Schedule'!X6 -> 19 | AE55: ='Draw Schedule'!Y6 -> 20 | AF55: ='Draw Schedule'!Z6 -> 21 | AG55: ='Draw Schedule'!AA6 -> 22 | AH55: ='Draw Schedule'!AB6 -> 23 | AI55: ='Draw Schedule'!AC6 -> 24 | AJ55: ='Draw Schedule'!AD6 -> 25 | AK55: ='Draw Schedule'!AE6 -> 26 | AL55: ='Draw Schedule'!AF6 -> 27 | AM55: ='Draw Schedule'!AG6 -> 28 | AN55: ='Draw Schedule'!AH6 -> 29 | AO55: ='Draw Schedule'!AI6 -> 30 | AP55: ='Draw Schedule'!AJ6 -> 31 | AQ55: ='Draw Schedule'!AK6 -> 32 | AR55: ='Draw Schedule'!AL6 -> 33 | AS55: ='Draw Schedule'!AM6 -> 34 | AT55: ='Draw Schedule'!AN6 -> 35 | AU55: ='Draw Schedule'!AO6 -> 36 | AV55: ='Draw Schedule'!AP6 -> 37 | AW55: ='Draw Schedule'!AQ6 -> 38 | AX55: ='Draw Schedule'!AR6 -> 39 | AY55: ='Draw Schedule'!AS6 -> 40 | AZ55: ='Draw Schedule'!AT6 -> 41 | BA55: ='Draw Schedule'!AU6 -> 42 | BB55: ='Draw Schedule'!AV6 -> 43 | BC55: ='Draw Schedule'!AW6 -> 44 | BD55: ='Draw Schedule'!AX6 -> 45 | BE55: ='Draw Schedule'!AY6 -> 46 | BF55: ='Draw Schedule'!AZ6 -> 47 | BG55: ='Draw Schedule'!BA6 -> 48 | BH55: ='Draw Schedule'!BB6 -> 49 | BI55: ='Draw Schedule'!BC6 -> 50 | BJ55: ='Draw Schedule'!BD6 -> 51 | BK55: ='Draw Schedule'!BE6 -> 52 | BL55: ='Draw Schedule'!BF6 -> 53 | BM55: ='Draw Schedule'!BG6 -> 54 | BN55: ='Draw Schedule'!BH6 -> 55 | BO55: ='Draw Schedule'!BI6 -> 56 | BP55: ='Draw Schedule'!BJ6 -> 57 | BQ55: ='Draw Schedule'!BK6 -> 58 | BR55: ='Draw Schedule'!BL6 -> 59 | BS55: ='Draw Schedule'!BM6 -> 60 | BT55: ='Draw Schedule'!BN6 -> 61 | BU55: ='Draw Schedule'!BO6 -> 62 | BV55: ='Draw Schedule'!BP6 -> 63 | BW55: ='Draw Schedule'!BQ6 -> 64 | BX55: ='Draw Schedule'!BR6 -> 65 | BY55: ='Draw Schedule'!BS6 -> 66 | BZ55: ='Draw Schedule'!BT6 -> 67 | CA55: ='Draw Schedule'!BU6 -> 68 | CB55: ='Draw Schedule'!BV6 -> 69 | CC55: ='Draw Schedule'!BW6 -> 70 | CD55: ='Draw Schedule'!BX6 -> 71 | CE55: ='Draw Schedule'!BY6 -> 72 | CF55: ='Draw Schedule'!BZ6 -> 73 | CG55: ='Draw Schedule'!CA6 -> 74 | CH55: ='Draw Schedule'!CB6 -> 75 | CI55: ='Draw Schedule'!CC6 -> 76 | CJ55: ='Draw Schedule'!CD6 -> 77 | CK55: ='Draw Schedule'!CE6 -> 78 | CL55: ='Draw Schedule'!CF6 -> 79 | CM55: ='Draw Schedule'!CG6 -> 80 | CN55: ='Draw Schedule'!CH6 -> 81 | CO55: ='Draw Schedule'!CI6 -> 82 | CP55: ='Draw Schedule'!CJ6 -> 83 | CQ55: ='Draw Schedule'!CK6 -> 84 | CR55: ='Draw Schedule'!CL6 -> 85 | CS55: ='Draw Schedule'!CM6 -> 86 | CT55: ='Draw Schedule'!CN6 -> 87 | CU55: ='Draw Schedule'!CO6 -> 88 | CV55: ='Draw Schedule'!CP6 -> 89 | CW55: ='Draw Schedule'!CQ6 -> 90 | CX55: ='Draw Schedule'!CR6 -> 91 | CY55: ='Draw Schedule'!CS6 -> 92 | CZ55: ='Draw Schedule'!CT6 -> 93 | DA55: ='Draw Schedule'!CU6 -> 94 | DB55: ='Draw Schedule'!CV6 -> 95 | DC55: ='Draw Schedule'!CW6 -> 96 | DD55: ='Draw Schedule'!CX6 -> 97 | DE55: ='Draw Schedule'!CY6 -> 98 | DF55: ='Draw Schedule'!CZ6 -> 99 | DG55: ='Draw Schedule'!DA6 -> 100 | DH55: ='Draw Schedule'!DB6 -> 101 | DI55: ='Draw Schedule'!DC6 -> 102 | DJ55: ='Draw Schedule'!DD6 -> 103 | DK55: ='Draw Schedule'!DE6 -> 104 | DL55: ='Draw Schedule'!DF6 -> 105 | DM55: ='Draw Schedule'!DG6 -> 106 | DN55: ='Draw Schedule'!DH6 -> 107 | DO55: ='Draw Schedule'!DI6 -> 108 | DP55: ='Draw Schedule'!DJ6 -> 109 | DQ55: ='Draw Schedule'!DK6 -> 110 | DR55: ='Draw Schedule'!DL6 -> 111 | DS55: ='Draw Schedule'!DM6 -> 112 | DT55: ='Draw Schedule'!DN6 -> 113 | DU55: ='Draw Schedule'!DO6 -> 114 | DV55: ='Draw Schedule'!DP6 -> 115 | DW55: ='Draw Schedule'!DQ6 -> 116 | DX55: ='Draw Schedule'!DR6 -> 117 | DY55: ='Draw Schedule'!DS6 -> 118 | DZ55: ='Draw Schedule'!DT6 -> 119 | EA55: ='Draw Schedule'!DU6 -> 120 | EB55: ='Draw Schedule'!DV6 -> 121 | EC55: ='Draw Schedule'!DW6 -> 122 | ED55: ='Draw Schedule'!DX6 -> 123 | EE55: ='Draw Schedule'!DY6 -> 124 | EF55: ='Draw Schedule'!DZ6 -> 125 | EG55: ='Draw Schedule'!EA6 -> 126 | EH55: ='Draw Schedule'!EB6 -> 127 | EI55: ='Draw Schedule'!EC6 -> 128 | EJ55: ='Draw Schedule'!ED6 -> 129 | EK55: ='Draw Schedule'!EE6 -> 130 | EL55: ='Draw Schedule'!EF6 -> 131 | EM55: ='Draw Schedule'!EG6 -> 132
K56: ='Draw Schedule'!E7 -> 2021-12-31 | L56: ='Draw Schedule'!F7 -> 2022-01-31 | M56: ='Draw Schedule'!G7 -> 2022-02-28 | N56: ='Draw Schedule'!H7 -> 2022-03-31 | O56: ='Draw Schedule'!I7 -> 2022-04-30 | P56: ='Draw Schedule'!J7 -> 2022-05-31 | Q56: ='Draw Schedule'!K7 -> 2022-06-30 | R56: ='Draw Schedule'!L7 -> 2022-07-31 | S56: ='Draw Schedule'!M7 -> 2022-08-31 | T56: ='Draw Schedule'!N7 -> 2022-09-30 | U56: ='Draw Schedule'!O7 -> 2022-10-31 | V56: ='Draw Schedule'!P7 -> 2022-11-30 | W56: ='Draw Schedule'!Q7 -> 2022-12-31 | X56: ='Draw Schedule'!R7 -> 2023-01-31 | Y56: ='Draw Schedule'!S7 -> 2023-02-28 | Z56: ='Draw Schedule'!T7 -> 2023-03-31 | AA56: ='Draw Schedule'!U7 -> 2023-04-30 | AB56: ='Draw Schedule'!V7 -> 2023-05-31 | AC56: ='Draw Schedule'!W7 -> 2023-06-30 | AD56: ='Draw Schedule'!X7 -> 2023-07-31 | AE56: ='Draw Schedule'!Y7 -> 2023-08-31 | AF56: ='Draw Schedule'!Z7 -> 2023-09-30 | AG56: ='Draw Schedule'!AA7 -> 2023-10-31 | AH56: ='Draw Schedule'!AB7 -> 2023-11-30 | AI56: ='Draw Schedule'!AC7 -> 2023-12-31 | AJ56: ='Draw Schedule'!AD7 -> 2024-01-31 | AK56: ='Draw Schedule'!AE7 -> 2024-02-29 | AL56: ='Draw Schedule'!AF7 -> 2024-03-31 | AM56: ='Draw Schedule'!AG7 -> 2024-04-30 | AN56: ='Draw Schedule'!AH7 -> 2024-05-31 | AO56: ='Draw Schedule'!AI7 -> 2024-06-30 | AP56: ='Draw Schedule'!AJ7 -> 2024-07-31 | AQ56: ='Draw Schedule'!AK7 -> 2024-08-31 | AR56: ='Draw Schedule'!AL7 -> 2024-09-30 | AS56: ='Draw Schedule'!AM7 -> 2024-10-31 | AT56: ='Draw Schedule'!AN7 -> 2024-11-30 | AU56: ='Draw Schedule'!AO7 -> 2024-12-31 | AV56: ='Draw Schedule'!AP7 -> 2025-01-31 | AW56: ='Draw Schedule'!AQ7 -> 2025-02-28 | AX56: ='Draw Schedule'!AR7 -> 2025-03-31 | AY56: ='Draw Schedule'!AS7 -> 2025-04-30 | AZ56: ='Draw Schedule'!AT7 -> 2025-05-31 | BA56: ='Draw Schedule'!AU7 -> 2025-06-30 | BB56: ='Draw Schedule'!AV7 -> 2025-07-31 | BC56: ='Draw Schedule'!AW7 -> 2025-08-31 | BD56: ='Draw Schedule'!AX7 -> 2025-09-30 | BE56: ='Draw Schedule'!AY7 -> 2025-10-31 | BF56: ='Draw Schedule'!AZ7 -> 2025-11-30 | BG56: ='Draw Schedule'!BA7 -> 2025-12-31 | BH56: ='Draw Schedule'!BB7 -> 2026-01-31 | BI56: ='Draw Schedule'!BC7 -> 2026-02-28 | BJ56: ='Draw Schedule'!BD7 -> 2026-03-31 | BK56: ='Draw Schedule'!BE7 -> 2026-04-30 | BL56: ='Draw Schedule'!BF7 -> 2026-05-31 | BM56: ='Draw Schedule'!BG7 -> 2026-06-30 | BN56: ='Draw Schedule'!BH7 -> 2026-07-31 | BO56: ='Draw Schedule'!BI7 -> 2026-08-31 | BP56: ='Draw Schedule'!BJ7 -> 2026-09-30 | BQ56: ='Draw Schedule'!BK7 -> 2026-10-31 | BR56: ='Draw Schedule'!BL7 -> 2026-11-30 | BS56: ='Draw Schedule'!BM7 -> 2026-12-31 | BT56: ='Draw Schedule'!BN7 -> 2027-01-31 | BU56: ='Draw Schedule'!BO7 -> 2027-02-28 | BV56: ='Draw Schedule'!BP7 -> 2027-03-31 | BW56: ='Draw Schedule'!BQ7 -> 2027-04-30 | BX56: ='Draw Schedule'!BR7 -> 2027-05-31 | BY56: ='Draw Schedule'!BS7 -> 2027-06-30 | BZ56: ='Draw Schedule'!BT7 -> 2027-07-31 | CA56: ='Draw Schedule'!BU7 -> 2027-08-31 | CB56: ='Draw Schedule'!BV7 -> 2027-09-30 | CC56: ='Draw Schedule'!BW7 -> 2027-10-31 | CD56: ='Draw Schedule'!BX7 -> 2027-11-30 | CE56: ='Draw Schedule'!BY7 -> 2027-12-31 | CF56: ='Draw Schedule'!BZ7 -> 2028-01-31 | CG56: ='Draw Schedule'!CA7 -> 2028-02-29 | CH56: ='Draw Schedule'!CB7 -> 2028-03-31 | CI56: ='Draw Schedule'!CC7 -> 2028-04-30 | CJ56: ='Draw Schedule'!CD7 -> 2028-05-31 | CK56: ='Draw Schedule'!CE7 -> 2028-06-30 | CL56: ='Draw Schedule'!CF7 -> 2028-07-31 | CM56: ='Draw Schedule'!CG7 -> 2028-08-31 | CN56: ='Draw Schedule'!CH7 -> 2028-09-30 | CO56: ='Draw Schedule'!CI7 -> 2028-10-31 | CP56: ='Draw Schedule'!CJ7 -> 2028-11-30 | CQ56: ='Draw Schedule'!CK7 -> 2028-12-31 | CR56: ='Draw Schedule'!CL7 -> 2029-01-31 | CS56: ='Draw Schedule'!CM7 -> 2029-02-28 | CT56: ='Draw Schedule'!CN7 -> 2029-03-31 | CU56: ='Draw Schedule'!CO7 -> 2029-04-30 | CV56: ='Draw Schedule'!CP7 -> 2029-05-31 | CW56: ='Draw Schedule'!CQ7 -> 2029-06-30 | CX56: ='Draw Schedule'!CR7 -> 2029-07-31 | CY56: ='Draw Schedule'!CS7 -> 2029-08-31 | CZ56: ='Draw Schedule'!CT7 -> 2029-09-30 | DA56: ='Draw Schedule'!CU7 -> 2029-10-31 | DB56: ='Draw Schedule'!CV7 -> 2029-11-30 | DC56: ='Draw Schedule'!CW7 -> 2029-12-31 | DD56: ='Draw Schedule'!CX7 -> 2030-01-31 | DE56: ='Draw Schedule'!CY7 -> 2030-02-28 | DF56: ='Draw Schedule'!CZ7 -> 2030-03-31 | DG56: ='Draw Schedule'!DA7 -> 2030-04-30 | DH56: ='Draw Schedule'!DB7 -> 2030-05-31 | DI56: ='Draw Schedule'!DC7 -> 2030-06-30 | DJ56: ='Draw Schedule'!DD7 -> 2030-07-31 | DK56: ='Draw Schedule'!DE7 -> 2030-08-31 | DL56: ='Draw Schedule'!DF7 -> 2030-09-30 | DM56: ='Draw Schedule'!DG7 -> 2030-10-31 | DN56: ='Draw Schedule'!DH7 -> 2030-11-30 | DO56: ='Draw Schedule'!DI7 -> 2030-12-31 | DP56: ='Draw Schedule'!DJ7 -> 2031-01-31 | DQ56: ='Draw Schedule'!DK7 -> 2031-02-28 | DR56: ='Draw Schedule'!DL7 -> 2031-03-31 | DS56: ='Draw Schedule'!DM7 -> 2031-04-30 | DT56: ='Draw Schedule'!DN7 -> 2031-05-31 | DU56: ='Draw Schedule'!DO7 -> 2031-06-30 | DV56: ='Draw Schedule'!DP7 -> 2031-07-31 | DW56: ='Draw Schedule'!DQ7 -> 2031-08-31 | DX56: ='Draw Schedule'!DR7 -> 2031-09-30 | DY56: ='Draw Schedule'!DS7 -> 2031-10-31 | DZ56: ='Draw Schedule'!DT7 -> 2031-11-30 | EA56: ='Draw Schedule'!DU7 -> 2031-12-31 | EB56: ='Draw Schedule'!DV7 -> 2032-01-31 | EC56: ='Draw Schedule'!DW7 -> 2032-02-29 | ED56: ='Draw Schedule'!DX7 -> 2032-03-31 | EE56: ='Draw Schedule'!DY7 -> 2032-04-30 | EF56: ='Draw Schedule'!DZ7 -> 2032-05-31 | EG56: ='Draw Schedule'!EA7 -> 2032-06-30 | EH56: ='Draw Schedule'!EB7 -> 2032-07-31 | EI56: ='Draw Schedule'!EC7 -> 2032-08-31 | EJ56: ='Draw Schedule'!ED7 -> 2032-09-30 | EK56: ='Draw Schedule'!EE7 -> 2032-10-31 | EL56: ='Draw Schedule'!EF7 -> 2032-11-30 | EM56: ='Draw Schedule'!EG7 -> 2032-12-31
B57: =B7 -> Total Land Costs | D57: =D7 -> 600000 | I57: =J57=1 -> TRUE | J57: =SUM(K57:EM57) -> 1 | K57: =IF(AND(K$55>=Assumptions!$C$38,K$55<=Assumptions!$D$38),1/(Assumptions!$D$38-Assumptions!$C$38+1),0) -> 1 | L57: =IF(AND(L55>=Assumptions!$C$38,L55<=Assumptions!$D$38),1/(Assumptions!$D$38-Assumptions!$C$38+1),0) -> 0 | M57: =IF(AND(M55>=Assumptions!$C$38,M55<=Assumptions!$D$38),1/(Assumptions!$D$38-Assumptions!$C$38+1),0) -> 0 | N57: =IF(AND(N55>=Assumptions!$C$38,N55<=Assumptions!$D$38),1/(Assumptions!$D$38-Assumptions!$C$38+1),0) -> 0 | O57: =IF(AND(O55>=Assumptions!$C$38,O55<=Assumptions!$D$38),1/(Assumptions!$D$38-Assumptions!$C$38+1),0) -> 0 | P57: =IF(AND(P55>=Assumptions!$C$38,P55<=Assumptions!$D$38),1/(Assumptions!$D$38-Assumptions!$C$38+1),0) -> 0 | Q57: =IF(AND(Q55>=Assumptions!$C$38,Q55<=Assumptions!$D$38),1/(Assumptions!$D$38-Assumptions!$C$38+1),0) -> 0 | R57: =IF(AND(R55>=Assumptions!$C$38,R55<=Assumptions!$D$38),1/(Assumptions!$D$38-Assumptions!$C$38+1),0) -> 0 | S57: =IF(AND(S55>=Assumptions!$C$38,S55<=Assumptions!$D$38),1/(Assumptions!$D$38-Assumptions!$C$38+1),0) -> 0 | T57: =IF(AND(T55>=Assumptions!$C$38,T55<=Assumptions!$D$38),1/(Assumptions!$D$38-Assumptions!$C$38+1),0) -> 0 | U57: =IF(AND(U55>=Assumptions!$C$38,U55<=Assumptions!$D$38),1/(Assumptions!$D$38-Assumptions!$C$38+1),0) -> 0 | V57: =IF(AND(V55>=Assumptions!$C$38,V55<=Assumptions!$D$38),1/(Assumptions!$D$38-Assumptions!$C$38+1),0) -> 0 | W57: =IF(AND(W55>=Assumptions!$C$38,W55<=Assumptions!$D$38),1/(Assumptions!$D$38-Assumptions!$C$38+1),0) -> 0 | X57: =IF(AND(X55>=Assumptions!$C$38,X55<=Assumptions!$D$38),1/(Assumptions!$D$38-Assumptions!$C$38+1),0) -> 0 | Y57: =IF(AND(Y55>=Assumptions!$C$38,Y55<=Assumptions!$D$38),1/(Assumptions!$D$38-Assumptions!$C$38+1),0) -> 0 | Z57: =IF(AND(Z55>=Assumptions!$C$38,Z55<=Assumptions!$D$38),1/(Assumptions!$D$38-Assumptions!$C$38+1),0) -> 0 | AA57: =IF(AND(AA55>=Assumptions!$C$38,AA55<=Assumptions!$D$38),1/(Assumptions!$D$38-Assumptions!$C$38+1),0) -> 0 | AB57: =IF(AND(AB55>=Assumptions!$C$38,AB55<=Assumptions!$D$38),1/(Assumptions!$D$38-Assumptions!$C$38+1),0) -> 0 | AC57: =IF(AND(AC55>=Assumptions!$C$38,AC55<=Assumptions!$D$38),1/(Assumptions!$D$38-Assumptions!$C$38+1),0) -> 0 | AD57: =IF(AND(AD55>=Assumptions!$C$38,AD55<=Assumptions!$D$38),1/(Assumptions!$D$38-Assumptions!$C$38+1),0) -> 0 | AE57: =IF(AND(AE55>=Assumptions!$C$38,AE55<=Assumptions!$D$38),1/(Assumptions!$D$38-Assumptions!$C$38+1),0) -> 0 | AF57: =IF(AND(AF55>=Assumptions!$C$38,AF55<=Assumptions!$D$38),1/(Assumptions!$D$38-Assumptions!$C$38+1),0) -> 0 | AG57: =IF(AND(AG55>=Assumptions!$C$38,AG55<=Assumptions!$D$38),1/(Assumptions!$D$38-Assumptions!$C$38+1),0) -> 0 | AH57: =IF(AND(AH55>=Assumptions!$C$38,AH55<=Assumptions!$D$38),1/(Assumptions!$D$38-Assumptions!$C$38+1),0) -> 0 | AI57: =IF(AND(AI55>=Assumptions!$C$38,AI55<=Assumptions!$D$38),1/(Assumptions!$D$38-Assumptions!$C$38+1),0) -> 0 | AJ57: =IF(AND(AJ55>=Assumptions!$C$38,AJ55<=Assumptions!$D$38),1/(Assumptions!$D$38-Assumptions!$C$38+1),0) -> 0 | AK57: =IF(AND(AK55>=Assumptions!$C$38,AK55<=Assumptions!$D$38),1/(Assumptions!$D$38-Assumptions!$C$38+1),0) -> 0 | AL57: =IF(AND(AL55>=Assumptions!$C$38,AL55<=Assumptions!$D$38),1/(Assumptions!$D$38-Assumptions!$C$38+1),0) -> 0 | AM57: =IF(AND(AM55>=Assumptions!$C$38,AM55<=Assumptions!$D$38),1/(Assumptions!$D$38-Assumptions!$C$38+1),0) -> 0 | AN57: =IF(AND(AN55>=Assumptions!$C$38,AN55<=Assumptions!$D$38),1/(Assumptions!$D$38-Assumptions!$C$38+1),0) -> 0 | AO57: =IF(AND(AO55>=Assumptions!$C$38,AO55<=Assumptions!$D$38),1/(Assumptions!$D$38-Assumptions!$C$38+1),0) -> 0 | AP57: =IF(AND(AP55>=Assumptions!$C$38,AP55<=Assumptions!$D$38),1/(Assumptions!$D$38-Assumptions!$C$38+1),0) -> 0 | AQ57: =IF(AND(AQ55>=Assumptions!$C$38,AQ55<=Assumptions!$D$38),1/(Assumptions!$D$38-Assumptions!$C$38+1),0) -> 0 | AR57: =IF(AND(AR55>=Assumptions!$C$38,AR55<=Assumptions!$D$38),1/(Assumptions!$D$38-Assumptions!$C$38+1),0) -> 0 | AS57: =IF(AND(AS55>=Assumptions!$C$38,AS55<=Assumptions!$D$38),1/(Assumptions!$D$38-Assumptions!$C$38+1),0) -> 0 | AT57: =IF(AND(AT55>=Assumptions!$C$38,AT55<=Assumptions!$D$38),1/(Assumptions!$D$38-Assumptions!$C$38+1),0) -> 0 | AU57: =IF(AND(AU55>=Assumptions!$C$38,AU55<=Assumptions!$D$38),1/(Assumptions!$D$38-Assumptions!$C$38+1),0) -> 0 | AV57: =IF(AND(AV55>=Assumptions!$C$38,AV55<=Assumptions!$D$38),1/(Assumptions!$D$38-Assumptions!$C$38+1),0) -> 0 | AW57: =IF(AND(AW55>=Assumptions!$C$38,AW55<=Assumptions!$D$38),1/(Assumptions!$D$38-Assumptions!$C$38+1),0) -> 0 | AX57: =IF(AND(AX55>=Assumptions!$C$38,AX55<=Assumptions!$D$38),1/(Assumptions!$D$38-Assumptions!$C$38+1),0) -> 0 | AY57: =IF(AND(AY55>=Assumptions!$C$38,AY55<=Assumptions!$D$38),1/(Assumptions!$D$38-Assumptions!$C$38+1),0) -> 0 | AZ57: =IF(AND(AZ55>=Assumptions!$C$38,AZ55<=Assumptions!$D$38),1/(Assumptions!$D$38-Assumptions!$C$38+1),0) -> 0 | BA57: =IF(AND(BA55>=Assumptions!$C$38,BA55<=Assumptions!$D$38),1/(Assumptions!$D$38-Assumptions!$C$38+1),0) -> 0 | BB57: =IF(AND(BB55>=Assumptions!$C$38,BB55<=Assumptions!$D$38),1/(Assumptions!$D$38-Assumptions!$C$38+1),0) -> 0 | BC57: =IF(AND(BC55>=Assumptions!$C$38,BC55<=Assumptions!$D$38),1/(Assumptions!$D$38-Assumptions!$C$38+1),0) -> 0 | BD57: =IF(AND(BD55>=Assumptions!$C$38,BD55<=Assumptions!$D$38),1/(Assumptions!$D$38-Assumptions!$C$38+1),0) -> 0 | BE57: =IF(AND(BE55>=Assumptions!$C$38,BE55<=Assumptions!$D$38),1/(Assumptions!$D$38-Assumptions!$C$38+1),0) -> 0 | BF57: =IF(AND(BF55>=Assumptions!$C$38,BF55<=Assumptions!$D$38),1/(Assumptions!$D$38-Assumptions!$C$38+1),0) -> 0 | BG57: =IF(AND(BG55>=Assumptions!$C$38,BG55<=Assumptions!$D$38),1/(Assumptions!$D$38-Assumptions!$C$38+1),0) -> 0 | BH57: =IF(AND(BH55>=Assumptions!$C$38,BH55<=Assumptions!$D$38),1/(Assumptions!$D$38-Assumptions!$C$38+1),0) -> 0 | BI57: =IF(AND(BI55>=Assumptions!$C$38,BI55<=Assumptions!$D$38),1/(Assumptions!$D$38-Assumptions!$C$38+1),0) -> 0 | BJ57: =IF(AND(BJ55>=Assumptions!$C$38,BJ55<=Assumptions!$D$38),1/(Assumptions!$D$38-Assumptions!$C$38+1),0) -> 0 | BK57: =IF(AND(BK55>=Assumptions!$C$38,BK55<=Assumptions!$D$38),1/(Assumptions!$D$38-Assumptions!$C$38+1),0) -> 0 | BL57: =IF(AND(BL55>=Assumptions!$C$38,BL55<=Assumptions!$D$38),1/(Assumptions!$D$38-Assumptions!$C$38+1),0) -> 0 | BM57: =IF(AND(BM55>=Assumptions!$C$38,BM55<=Assumptions!$D$38),1/(Assumptions!$D$38-Assumptions!$C$38+1),0) -> 0 | BN57: =IF(AND(BN55>=Assumptions!$C$38,BN55<=Assumptions!$D$38),1/(Assumptions!$D$38-Assumptions!$C$38+1),0) -> 0 | BO57: =IF(AND(BO55>=Assumptions!$C$38,BO55<=Assumptions!$D$38),1/(Assumptions!$D$38-Assumptions!$C$38+1),0) -> 0 | BP57: =IF(AND(BP55>=Assumptions!$C$38,BP55<=Assumptions!$D$38),1/(Assumptions!$D$38-Assumptions!$C$38+1),0) -> 0 | BQ57: =IF(AND(BQ55>=Assumptions!$C$38,BQ55<=Assumptions!$D$38),1/(Assumptions!$D$38-Assumptions!$C$38+1),0) -> 0 | BR57: =IF(AND(BR55>=Assumptions!$C$38,BR55<=Assumptions!$D$38),1/(Assumptions!$D$38-Assumptions!$C$38+1),0) -> 0 | BS57: =IF(AND(BS55>=Assumptions!$C$38,BS55<=Assumptions!$D$38),1/(Assumptions!$D$38-Assumptions!$C$38+1),0) -> 0 | BT57: =IF(AND(BT55>=Assumptions!$C$38,BT55<=Assumptions!$D$38),1/(Assumptions!$D$38-Assumptions!$C$38+1),0) -> 0 | BU57: =IF(AND(BU55>=Assumptions!$C$38,BU55<=Assumptions!$D$38),1/(Assumptions!$D$38-Assumptions!$C$38+1),0) -> 0 | BV57: =IF(AND(BV55>=Assumptions!$C$38,BV55<=Assumptions!$D$38),1/(Assumptions!$D$38-Assumptions!$C$38+1),0) -> 0 | BW57: =IF(AND(BW55>=Assumptions!$C$38,BW55<=Assumptions!$D$38),1/(Assumptions!$D$38-Assumptions!$C$38+1),0) -> 0 | BX57: =IF(AND(BX55>=Assumptions!$C$38,BX55<=Assumptions!$D$38),1/(Assumptions!$D$38-Assumptions!$C$38+1),0) -> 0 | BY57: =IF(AND(BY55>=Assumptions!$C$38,BY55<=Assumptions!$D$38),1/(Assumptions!$D$38-Assumptions!$C$38+1),0) -> 0 | BZ57: =IF(AND(BZ55>=Assumptions!$C$38,BZ55<=Assumptions!$D$38),1/(Assumptions!$D$38-Assumptions!$C$38+1),0) -> 0 | CA57: =IF(AND(CA55>=Assumptions!$C$38,CA55<=Assumptions!$D$38),1/(Assumptions!$D$38-Assumptions!$C$38+1),0) -> 0 | CB57: =IF(AND(CB55>=Assumptions!$C$38,CB55<=Assumptions!$D$38),1/(Assumptions!$D$38-Assumptions!$C$38+1),0) -> 0 | CC57: =IF(AND(CC55>=Assumptions!$C$38,CC55<=Assumptions!$D$38),1/(Assumptions!$D$38-Assumptions!$C$38+1),0) -> 0 | CD57: =IF(AND(CD55>=Assumptions!$C$38,CD55<=Assumptions!$D$38),1/(Assumptions!$D$38-Assumptions!$C$38+1),0) -> 0 | CE57: =IF(AND(CE55>=Assumptions!$C$38,CE55<=Assumptions!$D$38),1/(Assumptions!$D$38-Assumptions!$C$38+1),0) -> 0 | CF57: =IF(AND(CF55>=Assumptions!$C$38,CF55<=Assumptions!$D$38),1/(Assumptions!$D$38-Assumptions!$C$38+1),0) -> 0 | CG57: =IF(AND(CG55>=Assumptions!$C$38,CG55<=Assumptions!$D$38),1/(Assumptions!$D$38-Assumptions!$C$38+1),0) -> 0 | CH57: =IF(AND(CH55>=Assumptions!$C$38,CH55<=Assumptions!$D$38),1/(Assumptions!$D$38-Assumptions!$C$38+1),0) -> 0 | CI57: =IF(AND(CI55>=Assumptions!$C$38,CI55<=Assumptions!$D$38),1/(Assumptions!$D$38-Assumptions!$C$38+1),0) -> 0 | CJ57: =IF(AND(CJ55>=Assumptions!$C$38,CJ55<=Assumptions!$D$38),1/(Assumptions!$D$38-Assumptions!$C$38+1),0) -> 0 | CK57: =IF(AND(CK55>=Assumptions!$C$38,CK55<=Assumptions!$D$38),1/(Assumptions!$D$38-Assumptions!$C$38+1),0) -> 0 | CL57: =IF(AND(CL55>=Assumptions!$C$38,CL55<=Assumptions!$D$38),1/(Assumptions!$D$38-Assumptions!$C$38+1),0) -> 0 | CM57: =IF(AND(CM55>=Assumptions!$C$38,CM55<=Assumptions!$D$38),1/(Assumptions!$D$38-Assumptions!$C$38+1),0) -> 0 | CN57: =IF(AND(CN55>=Assumptions!$C$38,CN55<=Assumptions!$D$38),1/(Assumptions!$D$38-Assumptions!$C$38+1),0) -> 0 | CO57: =IF(AND(CO55>=Assumptions!$C$38,CO55<=Assumptions!$D$38),1/(Assumptions!$D$38-Assumptions!$C$38+1),0) -> 0 | CP57: =IF(AND(CP55>=Assumptions!$C$38,CP55<=Assumptions!$D$38),1/(Assumptions!$D$38-Assumptions!$C$38+1),0) -> 0 | CQ57: =IF(AND(CQ55>=Assumptions!$C$38,CQ55<=Assumptions!$D$38),1/(Assumptions!$D$38-Assumptions!$C$38+1),0) -> 0 | CR57: =IF(AND(CR55>=Assumptions!$C$38,CR55<=Assumptions!$D$38),1/(Assumptions!$D$38-Assumptions!$C$38+1),0) -> 0 | CS57: =IF(AND(CS55>=Assumptions!$C$38,CS55<=Assumptions!$D$38),1/(Assumptions!$D$38-Assumptions!$C$38+1),0) -> 0 | CT57: =IF(AND(CT55>=Assumptions!$C$38,CT55<=Assumptions!$D$38),1/(Assumptions!$D$38-Assumptions!$C$38+1),0) -> 0 | CU57: =IF(AND(CU55>=Assumptions!$C$38,CU55<=Assumptions!$D$38),1/(Assumptions!$D$38-Assumptions!$C$38+1),0) -> 0 | CV57: =IF(AND(CV55>=Assumptions!$C$38,CV55<=Assumptions!$D$38),1/(Assumptions!$D$38-Assumptions!$C$38+1),0) -> 0 | CW57: =IF(AND(CW55>=Assumptions!$C$38,CW55<=Assumptions!$D$38),1/(Assumptions!$D$38-Assumptions!$C$38+1),0) -> 0 | CX57: =IF(AND(CX55>=Assumptions!$C$38,CX55<=Assumptions!$D$38),1/(Assumptions!$D$38-Assumptions!$C$38+1),0) -> 0 | CY57: =IF(AND(CY55>=Assumptions!$C$38,CY55<=Assumptions!$D$38),1/(Assumptions!$D$38-Assumptions!$C$38+1),0) -> 0 | CZ57: =IF(AND(CZ55>=Assumptions!$C$38,CZ55<=Assumptions!$D$38),1/(Assumptions!$D$38-Assumptions!$C$38+1),0) -> 0 | DA57: =IF(AND(DA55>=Assumptions!$C$38,DA55<=Assumptions!$D$38),1/(Assumptions!$D$38-Assumptions!$C$38+1),0) -> 0 | DB57: =IF(AND(DB55>=Assumptions!$C$38,DB55<=Assumptions!$D$38),1/(Assumptions!$D$38-Assumptions!$C$38+1),0) -> 0 | DC57: =IF(AND(DC55>=Assumptions!$C$38,DC55<=Assumptions!$D$38),1/(Assumptions!$D$38-Assumptions!$C$38+1),0) -> 0 | DD57: =IF(AND(DD55>=Assumptions!$C$38,DD55<=Assumptions!$D$38),1/(Assumptions!$D$38-Assumptions!$C$38+1),0) -> 0 | DE57: =IF(AND(DE55>=Assumptions!$C$38,DE55<=Assumptions!$D$38),1/(Assumptions!$D$38-Assumptions!$C$38+1),0) -> 0 | DF57: =IF(AND(DF55>=Assumptions!$C$38,DF55<=Assumptions!$D$38),1/(Assumptions!$D$38-Assumptions!$C$38+1),0) -> 0 | DG57: =IF(AND(DG55>=Assumptions!$C$38,DG55<=Assumptions!$D$38),1/(Assumptions!$D$38-Assumptions!$C$38+1),0) -> 0 | DH57: =IF(AND(DH55>=Assumptions!$C$38,DH55<=Assumptions!$D$38),1/(Assumptions!$D$38-Assumptions!$C$38+1),0) -> 0 | DI57: =IF(AND(DI55>=Assumptions!$C$38,DI55<=Assumptions!$D$38),1/(Assumptions!$D$38-Assumptions!$C$38+1),0) -> 0 | DJ57: =IF(AND(DJ55>=Assumptions!$C$38,DJ55<=Assumptions!$D$38),1/(Assumptions!$D$38-Assumptions!$C$38+1),0) -> 0 | DK57: =IF(AND(DK55>=Assumptions!$C$38,DK55<=Assumptions!$D$38),1/(Assumptions!$D$38-Assumptions!$C$38+1),0) -> 0 | DL57: =IF(AND(DL55>=Assumptions!$C$38,DL55<=Assumptions!$D$38),1/(Assumptions!$D$38-Assumptions!$C$38+1),0) -> 0 | DM57: =IF(AND(DM55>=Assumptions!$C$38,DM55<=Assumptions!$D$38),1/(Assumptions!$D$38-Assumptions!$C$38+1),0) -> 0 | DN57: =IF(AND(DN55>=Assumptions!$C$38,DN55<=Assumptions!$D$38),1/(Assumptions!$D$38-Assumptions!$C$38+1),0) -> 0 | DO57: =IF(AND(DO55>=Assumptions!$C$38,DO55<=Assumptions!$D$38),1/(Assumptions!$D$38-Assumptions!$C$38+1),0) -> 0 | DP57: =IF(AND(DP55>=Assumptions!$C$38,DP55<=Assumptions!$D$38),1/(Assumptions!$D$38-Assumptions!$C$38+1),0) -> 0 | DQ57: =IF(AND(DQ55>=Assumptions!$C$38,DQ55<=Assumptions!$D$38),1/(Assumptions!$D$38-Assumptions!$C$38+1),0) -> 0 | DR57: =IF(AND(DR55>=Assumptions!$C$38,DR55<=Assumptions!$D$38),1/(Assumptions!$D$38-Assumptions!$C$38+1),0) -> 0 | DS57: =IF(AND(DS55>=Assumptions!$C$38,DS55<=Assumptions!$D$38),1/(Assumptions!$D$38-Assumptions!$C$38+1),0) -> 0 | DT57: =IF(AND(DT55>=Assumptions!$C$38,DT55<=Assumptions!$D$38),1/(Assumptions!$D$38-Assumptions!$C$38+1),0) -> 0 | DU57: =IF(AND(DU55>=Assumptions!$C$38,DU55<=Assumptions!$D$38),1/(Assumptions!$D$38-Assumptions!$C$38+1),0) -> 0 | DV57: =IF(AND(DV55>=Assumptions!$C$38,DV55<=Assumptions!$D$38),1/(Assumptions!$D$38-Assumptions!$C$38+1),0) -> 0 | DW57: =IF(AND(DW55>=Assumptions!$C$38,DW55<=Assumptions!$D$38),1/(Assumptions!$D$38-Assumptions!$C$38+1),0) -> 0 | DX57: =IF(AND(DX55>=Assumptions!$C$38,DX55<=Assumptions!$D$38),1/(Assumptions!$D$38-Assumptions!$C$38+1),0) -> 0 | DY57: =IF(AND(DY55>=Assumptions!$C$38,DY55<=Assumptions!$D$38),1/(Assumptions!$D$38-Assumptions!$C$38+1),0) -> 0 | DZ57: =IF(AND(DZ55>=Assumptions!$C$38,DZ55<=Assumptions!$D$38),1/(Assumptions!$D$38-Assumptions!$C$38+1),0) -> 0 | EA57: =IF(AND(EA55>=Assumptions!$C$38,EA55<=Assumptions!$D$38),1/(Assumptions!$D$38-Assumptions!$C$38+1),0) -> 0 | EB57: =IF(AND(EB55>=Assumptions!$C$38,EB55<=Assumptions!$D$38),1/(Assumptions!$D$38-Assumptions!$C$38+1),0) -> 0 | EC57: =IF(AND(EC55>=Assumptions!$C$38,EC55<=Assumptions!$D$38),1/(Assumptions!$D$38-Assumptions!$C$38+1),0) -> 0 | ED57: =IF(AND(ED55>=Assumptions!$C$38,ED55<=Assumptions!$D$38),1/(Assumptions!$D$38-Assumptions!$C$38+1),0) -> 0 | EE57: =IF(AND(EE55>=Assumptions!$C$38,EE55<=Assumptions!$D$38),1/(Assumptions!$D$38-Assumptions!$C$38+1),0) -> 0 | EF57: =IF(AND(EF55>=Assumptions!$C$38,EF55<=Assumptions!$D$38),1/(Assumptions!$D$38-Assumptions!$C$38+1),0) -> 0 | EG57: =IF(AND(EG55>=Assumptions!$C$38,EG55<=Assumptions!$D$38),1/(Assumptions!$D$38-Assumptions!$C$38+1),0) -> 0 | EH57: =IF(AND(EH55>=Assumptions!$C$38,EH55<=Assumptions!$D$38),1/(Assumptions!$D$38-Assumptions!$C$38+1),0) -> 0 | EI57: =IF(AND(EI55>=Assumptions!$C$38,EI55<=Assumptions!$D$38),1/(Assumptions!$D$38-Assumptions!$C$38+1),0) -> 0 | EJ57: =IF(AND(EJ55>=Assumptions!$C$38,EJ55<=Assumptions!$D$38),1/(Assumptions!$D$38-Assumptions!$C$38+1),0) -> 0 | EK57: =IF(AND(EK55>=Assumptions!$C$38,EK55<=Assumptions!$D$38),1/(Assumptions!$D$38-Assumptions!$C$38+1),0) -> 0 | EL57: =IF(AND(EL55>=Assumptions!$C$38,EL55<=Assumptions!$D$38),1/(Assumptions!$D$38-Assumptions!$C$38+1),0) -> 0 | EM57: =IF(AND(EM55>=Assumptions!$C$38,EM55<=Assumptions!$D$38),1/(Assumptions!$D$38-Assumptions!$C$38+1),0) -> 0
B58: =B11 -> HARD COSTS | D58: =D11 -> 13426247.85 | I58: TRUE | J58: =SUM(K58:EM58) -> 1 | K58: =K54 -> 0 | L58: =L54 -> 0 | M58: 0 | N58: 0 | O58: 0 | P58: 0 | Q58: 0 | R58: 0 | S58: 0 | T58: 0 | U58: 0 | V58: 0 | W58: 0 | X58: 0.02623386825 | Y58: 0.04549070661 | Z58: 0.07065903913 | AA58: 0.09831043432 | AB58: 0.1225236616 | AC58: 0.1367822901 | AD58: 0.1367822901 | AE58: 0.1225236616 | AF58: 0.09831043432 | AG58: 0.07065903913 | AH58: 0.04549070661 | AI58: 0.02623386825 | AJ58: 0 | AK58: 0 | AL58: 0 | AM58: 0 | AN58: 0 | AO58: 0 | AP58: 0 | AQ58: 0 | AR58: 0 | AS58: 0 | AT58: 0 | AU58: 0 | AV58: 0 | AW58: 0 | AX58: 0 | AY58: 0 | AZ58: 0 | BA58: 0 | BB58: 0 | BC58: 0 | BD58: 0 | BE58: 0 | BF58: 0 | BG58: 0 | BH58: 0 | BI58: 0 | BJ58: 0 | BK58: 0 | BL58: 0 | BM58: 0 | BN58: 0 | BO58: 0 | BP58: 0 | BQ58: 0 | BR58: 0 | BS58: 0 | BT58: 0 | BU58: 0 | BV58: 0 | BW58: 0 | BX58: =BX54 -> 0 | BY58: 0 | BZ58: 0 | CA58: 0 | CB58: 0 | CC58: 0 | CD58: 0 | CE58: 0 | CF58: 0 | CG58: 0 | CH58: 0 | CI58: 0 | CJ58: 0 | CK58: 0 | CL58: 0 | CM58: 0 | CN58: 0 | CO58: 0 | CP58: 0 | CQ58: 0 | CR58: 0 | CS58: 0 | CT58: 0 | CU58: 0 | CV58: 0 | CW58: 0 | CX58: 0 | CY58: 0 | CZ58: 0 | DA58: 0 | DB58: 0 | DC58: 0 | DD58: 0 | DE58: 0 | DF58: 0 | DG58: 0 | DH58: 0 | DI58: 0 | DJ58: 0 | DK58: 0 | DL58: 0 | DM58: 0 | DN58: 0 | DO58: 0 | DP58: 0 | DQ58: 0 | DR58: 0 | DS58: 0 | DT58: 0 | DU58: 0 | DV58: 0 | DW58: 0 | DX58: 0 | DY58: 0 | DZ58: 0 | EA58: 0 | EB58: 0 | EC58: 0 | ED58: 0 | EE58: 0 | EF58: 0 | EG58: 0 | EH58: 0 | EI58: 0 | EJ58: =EJ54 -> 0 | EK58: 0 | EL58: 0 | EM58: 0
B59: =B12 -> Owners Hard Costs Contingency | D59: =D12 -> 0 | I59: TRUE | J59: =SUM(K59:EM59) -> 1 | K59: =K54 -> 0 | L59: =L54 -> 0 | M59: 0 | N59: 0 | O59: 0 | P59: 0 | Q59: 0 | R59: 0 | S59: 0 | T59: 0 | U59: 0 | V59: 0 | W59: 0 | X59: 0.02623386825 | Y59: 0.04549070661 | Z59: 0.07065903913 | AA59: 0.09831043432 | AB59: 0.1225236616 | AC59: 0.1367822901 | AD59: 0.1367822901 | AE59: 0.1225236616 | AF59: 0.09831043432 | AG59: 0.07065903913 | AH59: 0.04549070661 | AI59: 0.02623386825 | AJ59: 0 | AK59: 0 | AL59: 0 | AM59: 0 | AN59: 0 | AO59: 0 | AP59: 0 | AQ59: 0 | AR59: 0 | AS59: 0 | AT59: 0 | AU59: 0 | AV59: 0 | AW59: 0 | AX59: 0 | AY59: 0 | AZ59: 0 | BA59: 0 | BB59: 0 | BC59: 0 | BD59: 0 | BE59: 0 | BF59: 0 | BG59: 0 | BH59: 0 | BI59: 0 | BJ59: 0 | BK59: 0 | BL59: 0 | BM59: 0 | BN59: 0 | BO59: 0 | BP59: 0 | BQ59: 0 | BR59: 0 | BS59: 0 | BT59: 0 | BU59: 0 | BV59: 0 | BW59: 0 | BX59: =BX54 -> 0 | BY59: 0 | BZ59: 0 | CA59: 0 | CB59: 0 | CC59: 0 | CD59: 0 | CE59: 0 | CF59: 0 | CG59: 0 | CH59: 0 | CI59: 0 | CJ59: 0 | CK59: 0 | CL59: 0 | CM59: 0 | CN59: 0 | CO59: 0 | CP59: 0 | CQ59: 0 | CR59: 0 | CS59: 0 | CT59: 0 | CU59: 0 | CV59: 0 | CW59: 0 | CX59: 0 | CY59: 0 | CZ59: 0 | DA59: 0 | DB59: 0 | DC59: 0 | DD59: 0 | DE59: 0 | DF59: 0 | DG59: 0 | DH59: 0 | DI59: 0 | DJ59: 0 | DK59: 0 | DL59: 0 | DM59: 0 | DN59: 0 | DO59: 0 | DP59: 0 | DQ59: 0 | DR59: 0 | DS59: 0 | DT59: 0 | DU59: 0 | DV59: 0 | DW59: 0 | DX59: 0 | DY59: 0 | DZ59: 0 | EA59: 0 | EB59: 0 | EC59: 0 | ED59: 0 | EE59: 0 | EF59: 0 | EG59: 0 | EH59: 0 | EI59: 0 | EJ59: =EJ54 -> 0 | EK59: 0 | EL59: 0 | EM59: 0
B60: =B17 -> Plans & Engineering | D60: =D17 -> 237500 | I60: TRUE | J60: 1 | K60: =IF(AND(K$55>=Assumptions!$F142,K$55<=Assumptions!$G142),1/Assumptions!$H142,0) -> 0 | L60: =IF(AND(L$55>=Assumptions!$F142,L$55<=Assumptions!$G142),1/Assumptions!$H142,0) -> 0.08333333333 | M60: =IF(AND(M$55>=Assumptions!$F142,M$55<=Assumptions!$G142),1/Assumptions!$H142,0) -> 0.08333333333 | N60: =IF(AND(N$55>=Assumptions!$F142,N$55<=Assumptions!$G142),1/Assumptions!$H142,0) -> 0.08333333333 | O60: =IF(AND(O$55>=Assumptions!$F142,O$55<=Assumptions!$G142),1/Assumptions!$H142,0) -> 0.08333333333 | P60: =IF(AND(P$55>=Assumptions!$F142,P$55<=Assumptions!$G142),1/Assumptions!$H142,0) -> 0.08333333333 | Q60: =IF(AND(Q$55>=Assumptions!$F142,Q$55<=Assumptions!$G142),1/Assumptions!$H142,0) -> 0.08333333333 | R60: =IF(AND(R$55>=Assumptions!$F142,R$55<=Assumptions!$G142),1/Assumptions!$H142,0) -> 0.08333333333 | S60: =IF(AND(S$55>=Assumptions!$F142,S$55<=Assumptions!$G142),1/Assumptions!$H142,0) -> 0.08333333333 | T60: =IF(AND(T$55>=Assumptions!$F142,T$55<=Assumptions!$G142),1/Assumptions!$H142,0) -> 0.08333333333 | U60: =IF(AND(U$55>=Assumptions!$F142,U$55<=Assumptions!$G142),1/Assumptions!$H142,0) -> 0.08333333333 | V60: =IF(AND(V$55>=Assumptions!$F142,V$55<=Assumptions!$G142),1/Assumptions!$H142,0) -> 0.08333333333 | W60: =IF(AND(W$55>=Assumptions!$F142,W$55<=Assumptions!$G142),1/Assumptions!$H142,0) -> 0.08333333333 | X60: =IF(AND(X$55>=Assumptions!$F142,X$55<=Assumptions!$G142),1/Assumptions!$H142,0) -> 0 | Y60: =IF(AND(Y$55>=Assumptions!$F142,Y$55<=Assumptions!$G142),1/Assumptions!$H142,0) -> 0 | Z60: =IF(AND(Z$55>=Assumptions!$F142,Z$55<=Assumptions!$G142),1/Assumptions!$H142,0) -> 0 | AA60: =IF(AND(AA$55>=Assumptions!$F142,AA$55<=Assumptions!$G142),1/Assumptions!$H142,0) -> 0 | AB60: =IF(AND(AB$55>=Assumptions!$F142,AB$55<=Assumptions!$G142),1/Assumptions!$H142,0) -> 0 | AC60: =IF(AND(AC$55>=Assumptions!$F142,AC$55<=Assumptions!$G142),1/Assumptions!$H142,0) -> 0 | AD60: =IF(AND(AD$55>=Assumptions!$F142,AD$55<=Assumptions!$G142),1/Assumptions!$H142,0) -> 0 | AE60: =IF(AND(AE$55>=Assumptions!$F142,AE$55<=Assumptions!$G142),1/Assumptions!$H142,0) -> 0 | AF60: =IF(AND(AF$55>=Assumptions!$F142,AF$55<=Assumptions!$G142),1/Assumptions!$H142,0) -> 0 | AG60: =IF(AND(AG$55>=Assumptions!$F142,AG$55<=Assumptions!$G142),1/Assumptions!$H142,0) -> 0 | AH60: =IF(AND(AH$55>=Assumptions!$F142,AH$55<=Assumptions!$G142),1/Assumptions!$H142,0) -> 0 | AI60: =IF(AND(AI$55>=Assumptions!$F142,AI$55<=Assumptions!$G142),1/Assumptions!$H142,0) -> 0 | AJ60: =IF(AND(AJ$55>=Assumptions!$F142,AJ$55<=Assumptions!$G142),1/Assumptions!$H142,0) -> 0 | AK60: =IF(AND(AK$55>=Assumptions!$F142,AK$55<=Assumptions!$G142),1/Assumptions!$H142,0) -> 0 | AL60: =IF(AND(AL$55>=Assumptions!$F142,AL$55<=Assumptions!$G142),1/Assumptions!$H142,0) -> 0 | AM60: =IF(AND(AM$55>=Assumptions!$F142,AM$55<=Assumptions!$G142),1/Assumptions!$H142,0) -> 0 | AN60: =IF(AND(AN$55>=Assumptions!$F142,AN$55<=Assumptions!$G142),1/Assumptions!$H142,0) -> 0 | AO60: =IF(AND(AO$55>=Assumptions!$F142,AO$55<=Assumptions!$G142),1/Assumptions!$H142,0) -> 0 | AP60: =IF(AND(AP$55>=Assumptions!$F142,AP$55<=Assumptions!$G142),1/Assumptions!$H142,0) -> 0 | AQ60: =IF(AND(AQ$55>=Assumptions!$F142,AQ$55<=Assumptions!$G142),1/Assumptions!$H142,0) -> 0 | AR60: =IF(AND(AR$55>=Assumptions!$F142,AR$55<=Assumptions!$G142),1/Assumptions!$H142,0) -> 0 | AS60: =IF(AND(AS$55>=Assumptions!$F142,AS$55<=Assumptions!$G142),1/Assumptions!$H142,0) -> 0 | AT60: =IF(AND(AT$55>=Assumptions!$F142,AT$55<=Assumptions!$G142),1/Assumptions!$H142,0) -> 0 | AU60: =IF(AND(AU$55>=Assumptions!$F142,AU$55<=Assumptions!$G142),1/Assumptions!$H142,0) -> 0 | AV60: =IF(AND(AV$55>=Assumptions!$F142,AV$55<=Assumptions!$G142),1/Assumptions!$H142,0) -> 0 | AW60: =IF(AND(AW$55>=Assumptions!$F142,AW$55<=Assumptions!$G142),1/Assumptions!$H142,0) -> 0 | AX60: =IF(AND(AX$55>=Assumptions!$F142,AX$55<=Assumptions!$G142),1/Assumptions!$H142,0) -> 0 | AY60: =IF(AND(AY$55>=Assumptions!$F142,AY$55<=Assumptions!$G142),1/Assumptions!$H142,0) -> 0 | AZ60: =IF(AND(AZ$55>=Assumptions!$F142,AZ$55<=Assumptions!$G142),1/Assumptions!$H142,0) -> 0 | BA60: =IF(AND(BA$55>=Assumptions!$F142,BA$55<=Assumptions!$G142),1/Assumptions!$H142,0) -> 0 | BB60: =IF(AND(BB$55>=Assumptions!$F142,BB$55<=Assumptions!$G142),1/Assumptions!$H142,0) -> 0 | BC60: =IF(AND(BC$55>=Assumptions!$F142,BC$55<=Assumptions!$G142),1/Assumptions!$H142,0) -> 0 | BD60: =IF(AND(BD$55>=Assumptions!$F142,BD$55<=Assumptions!$G142),1/Assumptions!$H142,0) -> 0 | BE60: =IF(AND(BE$55>=Assumptions!$F142,BE$55<=Assumptions!$G142),1/Assumptions!$H142,0) -> 0 | BF60: =IF(AND(BF$55>=Assumptions!$F142,BF$55<=Assumptions!$G142),1/Assumptions!$H142,0) -> 0 | BG60: =IF(AND(BG$55>=Assumptions!$F142,BG$55<=Assumptions!$G142),1/Assumptions!$H142,0) -> 0 | BH60: =IF(AND(BH$55>=Assumptions!$F142,BH$55<=Assumptions!$G142),1/Assumptions!$H142,0) -> 0 | BI60: =IF(AND(BI$55>=Assumptions!$F142,BI$55<=Assumptions!$G142),1/Assumptions!$H142,0) -> 0 | BJ60: =IF(AND(BJ$55>=Assumptions!$F142,BJ$55<=Assumptions!$G142),1/Assumptions!$H142,0) -> 0 | BK60: =IF(AND(BK$55>=Assumptions!$F142,BK$55<=Assumptions!$G142),1/Assumptions!$H142,0) -> 0 | BL60: =IF(AND(BL$55>=Assumptions!$F142,BL$55<=Assumptions!$G142),1/Assumptions!$H142,0) -> 0 | BM60: =IF(AND(BM$55>=Assumptions!$F142,BM$55<=Assumptions!$G142),1/Assumptions!$H142,0) -> 0 | BN60: =IF(AND(BN$55>=Assumptions!$F142,BN$55<=Assumptions!$G142),1/Assumptions!$H142,0) -> 0 | BO60: =IF(AND(BO$55>=Assumptions!$F142,BO$55<=Assumptions!$G142),1/Assumptions!$H142,0) -> 0 | BP60: =IF(AND(BP$55>=Assumptions!$F142,BP$55<=Assumptions!$G142),1/Assumptions!$H142,0) -> 0 | BQ60: =IF(AND(BQ$55>=Assumptions!$F142,BQ$55<=Assumptions!$G142),1/Assumptions!$H142,0) -> 0 | BR60: =IF(AND(BR$55>=Assumptions!$F142,BR$55<=Assumptions!$G142),1/Assumptions!$H142,0) -> 0 | BS60: =IF(AND(BS$55>=Assumptions!$F142,BS$55<=Assumptions!$G142),1/Assumptions!$H142,0) -> 0 | BT60: =IF(AND(BT$55>=Assumptions!$F142,BT$55<=Assumptions!$G142),1/Assumptions!$H142,0) -> 0 | BU60: =IF(AND(BU$55>=Assumptions!$F142,BU$55<=Assumptions!$G142),1/Assumptions!$H142,0) -> 0 | BV60: =IF(AND(BV$55>=Assumptions!$F142,BV$55<=Assumptions!$G142),1/Assumptions!$H142,0) -> 0 | BW60: =IF(AND(BW$55>=Assumptions!$F142,BW$55<=Assumptions!$G142),1/Assumptions!$H142,0) -> 0 | BX60: =IF(AND(BX$55>=Assumptions!$F142,BX$55<=Assumptions!$G142),1/Assumptions!$H142,0) -> 0 | BY60: =IF(AND(BY$55>=Assumptions!$F142,BY$55<=Assumptions!$G142),1/Assumptions!$H142,0) -> 0 | BZ60: =IF(AND(BZ$55>=Assumptions!$F142,BZ$55<=Assumptions!$G142),1/Assumptions!$H142,0) -> 0 | CA60: =IF(AND(CA$55>=Assumptions!$F142,CA$55<=Assumptions!$G142),1/Assumptions!$H142,0) -> 0 | CB60: =IF(AND(CB$55>=Assumptions!$F142,CB$55<=Assumptions!$G142),1/Assumptions!$H142,0) -> 0 | CC60: =IF(AND(CC$55>=Assumptions!$F142,CC$55<=Assumptions!$G142),1/Assumptions!$H142,0) -> 0 | CD60: =IF(AND(CD$55>=Assumptions!$F142,CD$55<=Assumptions!$G142),1/Assumptions!$H142,0) -> 0 | CE60: =IF(AND(CE$55>=Assumptions!$F142,CE$55<=Assumptions!$G142),1/Assumptions!$H142,0) -> 0 | CF60: =IF(AND(CF$55>=Assumptions!$F142,CF$55<=Assumptions!$G142),1/Assumptions!$H142,0) -> 0 | CG60: =IF(AND(CG$55>=Assumptions!$F142,CG$55<=Assumptions!$G142),1/Assumptions!$H142,0) -> 0 | CH60: =IF(AND(CH$55>=Assumptions!$F142,CH$55<=Assumptions!$G142),1/Assumptions!$H142,0) -> 0 | CI60: =IF(AND(CI$55>=Assumptions!$F142,CI$55<=Assumptions!$G142),1/Assumptions!$H142,0) -> 0 | CJ60: =IF(AND(CJ$55>=Assumptions!$F142,CJ$55<=Assumptions!$G142),1/Assumptions!$H142,0) -> 0 | CK60: =IF(AND(CK$55>=Assumptions!$F142,CK$55<=Assumptions!$G142),1/Assumptions!$H142,0) -> 0 | CL60: =IF(AND(CL$55>=Assumptions!$F142,CL$55<=Assumptions!$G142),1/Assumptions!$H142,0) -> 0 | CM60: =IF(AND(CM$55>=Assumptions!$F142,CM$55<=Assumptions!$G142),1/Assumptions!$H142,0) -> 0 | CN60: =IF(AND(CN$55>=Assumptions!$F142,CN$55<=Assumptions!$G142),1/Assumptions!$H142,0) -> 0 | CO60: =IF(AND(CO$55>=Assumptions!$F142,CO$55<=Assumptions!$G142),1/Assumptions!$H142,0) -> 0 | CP60: =IF(AND(CP$55>=Assumptions!$F142,CP$55<=Assumptions!$G142),1/Assumptions!$H142,0) -> 0 | CQ60: =IF(AND(CQ$55>=Assumptions!$F142,CQ$55<=Assumptions!$G142),1/Assumptions!$H142,0) -> 0 | CR60: =IF(AND(CR$55>=Assumptions!$F142,CR$55<=Assumptions!$G142),1/Assumptions!$H142,0) -> 0 | CS60: =IF(AND(CS$55>=Assumptions!$F142,CS$55<=Assumptions!$G142),1/Assumptions!$H142,0) -> 0 | CT60: =IF(AND(CT$55>=Assumptions!$F142,CT$55<=Assumptions!$G142),1/Assumptions!$H142,0) -> 0 | CU60: =IF(AND(CU$55>=Assumptions!$F142,CU$55<=Assumptions!$G142),1/Assumptions!$H142,0) -> 0 | CV60: =IF(AND(CV$55>=Assumptions!$F142,CV$55<=Assumptions!$G142),1/Assumptions!$H142,0) -> 0 | CW60: =IF(AND(CW$55>=Assumptions!$F142,CW$55<=Assumptions!$G142),1/Assumptions!$H142,0) -> 0 | CX60: =IF(AND(CX$55>=Assumptions!$F142,CX$55<=Assumptions!$G142),1/Assumptions!$H142,0) -> 0 | CY60: =IF(AND(CY$55>=Assumptions!$F142,CY$55<=Assumptions!$G142),1/Assumptions!$H142,0) -> 0 | CZ60: =IF(AND(CZ$55>=Assumptions!$F142,CZ$55<=Assumptions!$G142),1/Assumptions!$H142,0) -> 0 | DA60: =IF(AND(DA$55>=Assumptions!$F142,DA$55<=Assumptions!$G142),1/Assumptions!$H142,0) -> 0 | DB60: =IF(AND(DB$55>=Assumptions!$F142,DB$55<=Assumptions!$G142),1/Assumptions!$H142,0) -> 0 | DC60: =IF(AND(DC$55>=Assumptions!$F142,DC$55<=Assumptions!$G142),1/Assumptions!$H142,0) -> 0 | DD60: =IF(AND(DD$55>=Assumptions!$F142,DD$55<=Assumptions!$G142),1/Assumptions!$H142,0) -> 0 | DE60: =IF(AND(DE$55>=Assumptions!$F142,DE$55<=Assumptions!$G142),1/Assumptions!$H142,0) -> 0 | DF60: =IF(AND(DF$55>=Assumptions!$F142,DF$55<=Assumptions!$G142),1/Assumptions!$H142,0) -> 0 | DG60: =IF(AND(DG$55>=Assumptions!$F142,DG$55<=Assumptions!$G142),1/Assumptions!$H142,0) -> 0 | DH60: =IF(AND(DH$55>=Assumptions!$F142,DH$55<=Assumptions!$G142),1/Assumptions!$H142,0) -> 0 | DI60: =IF(AND(DI$55>=Assumptions!$F142,DI$55<=Assumptions!$G142),1/Assumptions!$H142,0) -> 0 | DJ60: =IF(AND(DJ$55>=Assumptions!$F142,DJ$55<=Assumptions!$G142),1/Assumptions!$H142,0) -> 0 | DK60: =IF(AND(DK$55>=Assumptions!$F142,DK$55<=Assumptions!$G142),1/Assumptions!$H142,0) -> 0 | DL60: =IF(AND(DL$55>=Assumptions!$F142,DL$55<=Assumptions!$G142),1/Assumptions!$H142,0) -> 0 | DM60: =IF(AND(DM$55>=Assumptions!$F142,DM$55<=Assumptions!$G142),1/Assumptions!$H142,0) -> 0 | DN60: =IF(AND(DN$55>=Assumptions!$F142,DN$55<=Assumptions!$G142),1/Assumptions!$H142,0) -> 0 | DO60: =IF(AND(DO$55>=Assumptions!$F142,DO$55<=Assumptions!$G142),1/Assumptions!$H142,0) -> 0 | DP60: =IF(AND(DP$55>=Assumptions!$F142,DP$55<=Assumptions!$G142),1/Assumptions!$H142,0) -> 0 | DQ60: =IF(AND(DQ$55>=Assumptions!$F142,DQ$55<=Assumptions!$G142),1/Assumptions!$H142,0) -> 0 | DR60: =IF(AND(DR$55>=Assumptions!$F142,DR$55<=Assumptions!$G142),1/Assumptions!$H142,0) -> 0 | DS60: =IF(AND(DS$55>=Assumptions!$F142,DS$55<=Assumptions!$G142),1/Assumptions!$H142,0) -> 0 | DT60: =IF(AND(DT$55>=Assumptions!$F142,DT$55<=Assumptions!$G142),1/Assumptions!$H142,0) -> 0 | DU60: =IF(AND(DU$55>=Assumptions!$F142,DU$55<=Assumptions!$G142),1/Assumptions!$H142,0) -> 0 | DV60: =IF(AND(DV$55>=Assumptions!$F142,DV$55<=Assumptions!$G142),1/Assumptions!$H142,0) -> 0 | DW60: =IF(AND(DW$55>=Assumptions!$F142,DW$55<=Assumptions!$G142),1/Assumptions!$H142,0) -> 0 | DX60: =IF(AND(DX$55>=Assumptions!$F142,DX$55<=Assumptions!$G142),1/Assumptions!$H142,0) -> 0 | DY60: =IF(AND(DY$55>=Assumptions!$F142,DY$55<=Assumptions!$G142),1/Assumptions!$H142,0) -> 0 | DZ60: =IF(AND(DZ$55>=Assumptions!$F142,DZ$55<=Assumptions!$G142),1/Assumptions!$H142,0) -> 0 | EA60: =IF(AND(EA$55>=Assumptions!$F142,EA$55<=Assumptions!$G142),1/Assumptions!$H142,0) -> 0 | EB60: =IF(AND(EB$55>=Assumptions!$F142,EB$55<=Assumptions!$G142),1/Assumptions!$H142,0) -> 0 | EC60: =IF(AND(EC$55>=Assumptions!$F142,EC$55<=Assumptions!$G142),1/Assumptions!$H142,0) -> 0 | ED60: =IF(AND(ED$55>=Assumptions!$F142,ED$55<=Assumptions!$G142),1/Assumptions!$H142,0) -> 0 | EE60: =IF(AND(EE$55>=Assumptions!$F142,EE$55<=Assumptions!$G142),1/Assumptions!$H142,0) -> 0 | EF60: =IF(AND(EF$55>=Assumptions!$F142,EF$55<=Assumptions!$G142),1/Assumptions!$H142,0) -> 0 | EG60: =IF(AND(EG$55>=Assumptions!$F142,EG$55<=Assumptions!$G142),1/Assumptions!$H142,0) -> 0 | EH60: =IF(AND(EH$55>=Assumptions!$F142,EH$55<=Assumptions!$G142),1/Assumptions!$H142,0) -> 0 | EI60: =IF(AND(EI$55>=Assumptions!$F142,EI$55<=Assumptions!$G142),1/Assumptions!$H142,0) -> 0 | EJ60: =IF(AND(EJ$55>=Assumptions!$F142,EJ$55<=Assumptions!$G142),1/Assumptions!$H142,0) -> 0 | EK60: =IF(AND(EK$55>=Assumptions!$F142,EK$55<=Assumptions!$G142),1/Assumptions!$H142,0) -> 0 | EL60: =IF(AND(EL$55>=Assumptions!$F142,EL$55<=Assumptions!$G142),1/Assumptions!$H142,0) -> 0 | EM60: =IF(AND(EM$55>=Assumptions!$F142,EM$55<=Assumptions!$G142),1/Assumptions!$H142,0) -> 0
B61: Surveyor | D61: 43600 | I61: TRUE | J61: 1 | K61: =IF(AND(K$55>=Assumptions!$F143,K$55<=Assumptions!$G143),1/Assumptions!$H143,0) -> 0 | L61: =IF(AND(L$55>=Assumptions!$F143,L$55<=Assumptions!$G143),1/Assumptions!$H143,0) -> 0.08333333333 | M61: =IF(AND(M$55>=Assumptions!$F143,M$55<=Assumptions!$G143),1/Assumptions!$H143,0) -> 0.08333333333 | N61: =IF(AND(N$55>=Assumptions!$F143,N$55<=Assumptions!$G143),1/Assumptions!$H143,0) -> 0.08333333333 | O61: =IF(AND(O$55>=Assumptions!$F143,O$55<=Assumptions!$G143),1/Assumptions!$H143,0) -> 0.08333333333 | P61: =IF(AND(P$55>=Assumptions!$F143,P$55<=Assumptions!$G143),1/Assumptions!$H143,0) -> 0.08333333333 | Q61: =IF(AND(Q$55>=Assumptions!$F143,Q$55<=Assumptions!$G143),1/Assumptions!$H143,0) -> 0.08333333333 | R61: =IF(AND(R$55>=Assumptions!$F143,R$55<=Assumptions!$G143),1/Assumptions!$H143,0) -> 0.08333333333 | S61: =IF(AND(S$55>=Assumptions!$F143,S$55<=Assumptions!$G143),1/Assumptions!$H143,0) -> 0.08333333333 | T61: =IF(AND(T$55>=Assumptions!$F143,T$55<=Assumptions!$G143),1/Assumptions!$H143,0) -> 0.08333333333 | U61: =IF(AND(U$55>=Assumptions!$F143,U$55<=Assumptions!$G143),1/Assumptions!$H143,0) -> 0.08333333333 | V61: =IF(AND(V$55>=Assumptions!$F143,V$55<=Assumptions!$G143),1/Assumptions!$H143,0) -> 0.08333333333 | W61: =IF(AND(W$55>=Assumptions!$F143,W$55<=Assumptions!$G143),1/Assumptions!$H143,0) -> 0.08333333333 | X61: =IF(AND(X$55>=Assumptions!$F143,X$55<=Assumptions!$G143),1/Assumptions!$H143,0) -> 0 | Y61: =IF(AND(Y$55>=Assumptions!$F143,Y$55<=Assumptions!$G143),1/Assumptions!$H143,0) -> 0 | Z61: =IF(AND(Z$55>=Assumptions!$F143,Z$55<=Assumptions!$G143),1/Assumptions!$H143,0) -> 0 | AA61: =IF(AND(AA$55>=Assumptions!$F143,AA$55<=Assumptions!$G143),1/Assumptions!$H143,0) -> 0 | AB61: =IF(AND(AB$55>=Assumptions!$F143,AB$55<=Assumptions!$G143),1/Assumptions!$H143,0) -> 0 | AC61: =IF(AND(AC$55>=Assumptions!$F143,AC$55<=Assumptions!$G143),1/Assumptions!$H143,0) -> 0 | AD61: =IF(AND(AD$55>=Assumptions!$F143,AD$55<=Assumptions!$G143),1/Assumptions!$H143,0) -> 0 | AE61: =IF(AND(AE$55>=Assumptions!$F143,AE$55<=Assumptions!$G143),1/Assumptions!$H143,0) -> 0 | AF61: =IF(AND(AF$55>=Assumptions!$F143,AF$55<=Assumptions!$G143),1/Assumptions!$H143,0) -> 0 | AG61: =IF(AND(AG$55>=Assumptions!$F143,AG$55<=Assumptions!$G143),1/Assumptions!$H143,0) -> 0 | AH61: =IF(AND(AH$55>=Assumptions!$F143,AH$55<=Assumptions!$G143),1/Assumptions!$H143,0) -> 0 | AI61: =IF(AND(AI$55>=Assumptions!$F143,AI$55<=Assumptions!$G143),1/Assumptions!$H143,0) -> 0 | AJ61: =IF(AND(AJ$55>=Assumptions!$F143,AJ$55<=Assumptions!$G143),1/Assumptions!$H143,0) -> 0 | AK61: =IF(AND(AK$55>=Assumptions!$F143,AK$55<=Assumptions!$G143),1/Assumptions!$H143,0) -> 0 | AL61: =IF(AND(AL$55>=Assumptions!$F143,AL$55<=Assumptions!$G143),1/Assumptions!$H143,0) -> 0 | AM61: =IF(AND(AM$55>=Assumptions!$F143,AM$55<=Assumptions!$G143),1/Assumptions!$H143,0) -> 0 | AN61: =IF(AND(AN$55>=Assumptions!$F143,AN$55<=Assumptions!$G143),1/Assumptions!$H143,0) -> 0 | AO61: =IF(AND(AO$55>=Assumptions!$F143,AO$55<=Assumptions!$G143),1/Assumptions!$H143,0) -> 0 | AP61: =IF(AND(AP$55>=Assumptions!$F143,AP$55<=Assumptions!$G143),1/Assumptions!$H143,0) -> 0 | AQ61: =IF(AND(AQ$55>=Assumptions!$F143,AQ$55<=Assumptions!$G143),1/Assumptions!$H143,0) -> 0 | AR61: =IF(AND(AR$55>=Assumptions!$F143,AR$55<=Assumptions!$G143),1/Assumptions!$H143,0) -> 0 | AS61: =IF(AND(AS$55>=Assumptions!$F143,AS$55<=Assumptions!$G143),1/Assumptions!$H143,0) -> 0 | AT61: =IF(AND(AT$55>=Assumptions!$F143,AT$55<=Assumptions!$G143),1/Assumptions!$H143,0) -> 0 | AU61: =IF(AND(AU$55>=Assumptions!$F143,AU$55<=Assumptions!$G143),1/Assumptions!$H143,0) -> 0 | AV61: =IF(AND(AV$55>=Assumptions!$F143,AV$55<=Assumptions!$G143),1/Assumptions!$H143,0) -> 0 | AW61: =IF(AND(AW$55>=Assumptions!$F143,AW$55<=Assumptions!$G143),1/Assumptions!$H143,0) -> 0 | AX61: =IF(AND(AX$55>=Assumptions!$F143,AX$55<=Assumptions!$G143),1/Assumptions!$H143,0) -> 0 | AY61: =IF(AND(AY$55>=Assumptions!$F143,AY$55<=Assumptions!$G143),1/Assumptions!$H143,0) -> 0 | AZ61: =IF(AND(AZ$55>=Assumptions!$F143,AZ$55<=Assumptions!$G143),1/Assumptions!$H143,0) -> 0 | BA61: =IF(AND(BA$55>=Assumptions!$F143,BA$55<=Assumptions!$G143),1/Assumptions!$H143,0) -> 0 | BB61: =IF(AND(BB$55>=Assumptions!$F143,BB$55<=Assumptions!$G143),1/Assumptions!$H143,0) -> 0 | BC61: =IF(AND(BC$55>=Assumptions!$F143,BC$55<=Assumptions!$G143),1/Assumptions!$H143,0) -> 0 | BD61: =IF(AND(BD$55>=Assumptions!$F143,BD$55<=Assumptions!$G143),1/Assumptions!$H143,0) -> 0 | BE61: =IF(AND(BE$55>=Assumptions!$F143,BE$55<=Assumptions!$G143),1/Assumptions!$H143,0) -> 0 | BF61: =IF(AND(BF$55>=Assumptions!$F143,BF$55<=Assumptions!$G143),1/Assumptions!$H143,0) -> 0 | BG61: =IF(AND(BG$55>=Assumptions!$F143,BG$55<=Assumptions!$G143),1/Assumptions!$H143,0) -> 0 | BH61: =IF(AND(BH$55>=Assumptions!$F143,BH$55<=Assumptions!$G143),1/Assumptions!$H143,0) -> 0 | BI61: =IF(AND(BI$55>=Assumptions!$F143,BI$55<=Assumptions!$G143),1/Assumptions!$H143,0) -> 0 | BJ61: =IF(AND(BJ$55>=Assumptions!$F143,BJ$55<=Assumptions!$G143),1/Assumptions!$H143,0) -> 0 | BK61: =IF(AND(BK$55>=Assumptions!$F143,BK$55<=Assumptions!$G143),1/Assumptions!$H143,0) -> 0 | BL61: =IF(AND(BL$55>=Assumptions!$F143,BL$55<=Assumptions!$G143),1/Assumptions!$H143,0) -> 0 | BM61: =IF(AND(BM$55>=Assumptions!$F143,BM$55<=Assumptions!$G143),1/Assumptions!$H143,0) -> 0 | BN61: =IF(AND(BN$55>=Assumptions!$F143,BN$55<=Assumptions!$G143),1/Assumptions!$H143,0) -> 0 | BO61: =IF(AND(BO$55>=Assumptions!$F143,BO$55<=Assumptions!$G143),1/Assumptions!$H143,0) -> 0 | BP61: =IF(AND(BP$55>=Assumptions!$F143,BP$55<=Assumptions!$G143),1/Assumptions!$H143,0) -> 0 | BQ61: =IF(AND(BQ$55>=Assumptions!$F143,BQ$55<=Assumptions!$G143),1/Assumptions!$H143,0) -> 0 | BR61: =IF(AND(BR$55>=Assumptions!$F143,BR$55<=Assumptions!$G143),1/Assumptions!$H143,0) -> 0 | BS61: =IF(AND(BS$55>=Assumptions!$F143,BS$55<=Assumptions!$G143),1/Assumptions!$H143,0) -> 0 | BT61: =IF(AND(BT$55>=Assumptions!$F143,BT$55<=Assumptions!$G143),1/Assumptions!$H143,0) -> 0 | BU61: =IF(AND(BU$55>=Assumptions!$F143,BU$55<=Assumptions!$G143),1/Assumptions!$H143,0) -> 0 | BV61: =IF(AND(BV$55>=Assumptions!$F143,BV$55<=Assumptions!$G143),1/Assumptions!$H143,0) -> 0 | BW61: =IF(AND(BW$55>=Assumptions!$F143,BW$55<=Assumptions!$G143),1/Assumptions!$H143,0) -> 0 | BX61: =IF(AND(BX$55>=Assumptions!$F143,BX$55<=Assumptions!$G143),1/Assumptions!$H143,0) -> 0 | BY61: =IF(AND(BY$55>=Assumptions!$F143,BY$55<=Assumptions!$G143),1/Assumptions!$H143,0) -> 0 | BZ61: =IF(AND(BZ$55>=Assumptions!$F143,BZ$55<=Assumptions!$G143),1/Assumptions!$H143,0) -> 0 | CA61: =IF(AND(CA$55>=Assumptions!$F143,CA$55<=Assumptions!$G143),1/Assumptions!$H143,0) -> 0 | CB61: =IF(AND(CB$55>=Assumptions!$F143,CB$55<=Assumptions!$G143),1/Assumptions!$H143,0) -> 0 | CC61: =IF(AND(CC$55>=Assumptions!$F143,CC$55<=Assumptions!$G143),1/Assumptions!$H143,0) -> 0 | CD61: =IF(AND(CD$55>=Assumptions!$F143,CD$55<=Assumptions!$G143),1/Assumptions!$H143,0) -> 0 | CE61: =IF(AND(CE$55>=Assumptions!$F143,CE$55<=Assumptions!$G143),1/Assumptions!$H143,0) -> 0 | CF61: =IF(AND(CF$55>=Assumptions!$F143,CF$55<=Assumptions!$G143),1/Assumptions!$H143,0) -> 0 | CG61: =IF(AND(CG$55>=Assumptions!$F143,CG$55<=Assumptions!$G143),1/Assumptions!$H143,0) -> 0 | CH61: =IF(AND(CH$55>=Assumptions!$F143,CH$55<=Assumptions!$G143),1/Assumptions!$H143,0) -> 0 | CI61: =IF(AND(CI$55>=Assumptions!$F143,CI$55<=Assumptions!$G143),1/Assumptions!$H143,0) -> 0 | CJ61: =IF(AND(CJ$55>=Assumptions!$F143,CJ$55<=Assumptions!$G143),1/Assumptions!$H143,0) -> 0 | CK61: =IF(AND(CK$55>=Assumptions!$F143,CK$55<=Assumptions!$G143),1/Assumptions!$H143,0) -> 0 | CL61: =IF(AND(CL$55>=Assumptions!$F143,CL$55<=Assumptions!$G143),1/Assumptions!$H143,0) -> 0 | CM61: =IF(AND(CM$55>=Assumptions!$F143,CM$55<=Assumptions!$G143),1/Assumptions!$H143,0) -> 0 | CN61: =IF(AND(CN$55>=Assumptions!$F143,CN$55<=Assumptions!$G143),1/Assumptions!$H143,0) -> 0 | CO61: =IF(AND(CO$55>=Assumptions!$F143,CO$55<=Assumptions!$G143),1/Assumptions!$H143,0) -> 0 | CP61: =IF(AND(CP$55>=Assumptions!$F143,CP$55<=Assumptions!$G143),1/Assumptions!$H143,0) -> 0 | CQ61: =IF(AND(CQ$55>=Assumptions!$F143,CQ$55<=Assumptions!$G143),1/Assumptions!$H143,0) -> 0 | CR61: =IF(AND(CR$55>=Assumptions!$F143,CR$55<=Assumptions!$G143),1/Assumptions!$H143,0) -> 0 | CS61: =IF(AND(CS$55>=Assumptions!$F143,CS$55<=Assumptions!$G143),1/Assumptions!$H143,0) -> 0 | CT61: =IF(AND(CT$55>=Assumptions!$F143,CT$55<=Assumptions!$G143),1/Assumptions!$H143,0) -> 0 | CU61: =IF(AND(CU$55>=Assumptions!$F143,CU$55<=Assumptions!$G143),1/Assumptions!$H143,0) -> 0 | CV61: =IF(AND(CV$55>=Assumptions!$F143,CV$55<=Assumptions!$G143),1/Assumptions!$H143,0) -> 0 | CW61: =IF(AND(CW$55>=Assumptions!$F143,CW$55<=Assumptions!$G143),1/Assumptions!$H143,0) -> 0 | CX61: =IF(AND(CX$55>=Assumptions!$F143,CX$55<=Assumptions!$G143),1/Assumptions!$H143,0) -> 0 | CY61: =IF(AND(CY$55>=Assumptions!$F143,CY$55<=Assumptions!$G143),1/Assumptions!$H143,0) -> 0 | CZ61: =IF(AND(CZ$55>=Assumptions!$F143,CZ$55<=Assumptions!$G143),1/Assumptions!$H143,0) -> 0 | DA61: =IF(AND(DA$55>=Assumptions!$F143,DA$55<=Assumptions!$G143),1/Assumptions!$H143,0) -> 0 | DB61: =IF(AND(DB$55>=Assumptions!$F143,DB$55<=Assumptions!$G143),1/Assumptions!$H143,0) -> 0 | DC61: =IF(AND(DC$55>=Assumptions!$F143,DC$55<=Assumptions!$G143),1/Assumptions!$H143,0) -> 0 | DD61: =IF(AND(DD$55>=Assumptions!$F143,DD$55<=Assumptions!$G143),1/Assumptions!$H143,0) -> 0 | DE61: =IF(AND(DE$55>=Assumptions!$F143,DE$55<=Assumptions!$G143),1/Assumptions!$H143,0) -> 0 | DF61: =IF(AND(DF$55>=Assumptions!$F143,DF$55<=Assumptions!$G143),1/Assumptions!$H143,0) -> 0 | DG61: =IF(AND(DG$55>=Assumptions!$F143,DG$55<=Assumptions!$G143),1/Assumptions!$H143,0) -> 0 | DH61: =IF(AND(DH$55>=Assumptions!$F143,DH$55<=Assumptions!$G143),1/Assumptions!$H143,0) -> 0 | DI61: =IF(AND(DI$55>=Assumptions!$F143,DI$55<=Assumptions!$G143),1/Assumptions!$H143,0) -> 0 | DJ61: =IF(AND(DJ$55>=Assumptions!$F143,DJ$55<=Assumptions!$G143),1/Assumptions!$H143,0) -> 0 | DK61: =IF(AND(DK$55>=Assumptions!$F143,DK$55<=Assumptions!$G143),1/Assumptions!$H143,0) -> 0 | DL61: =IF(AND(DL$55>=Assumptions!$F143,DL$55<=Assumptions!$G143),1/Assumptions!$H143,0) -> 0 | DM61: =IF(AND(DM$55>=Assumptions!$F143,DM$55<=Assumptions!$G143),1/Assumptions!$H143,0) -> 0 | DN61: =IF(AND(DN$55>=Assumptions!$F143,DN$55<=Assumptions!$G143),1/Assumptions!$H143,0) -> 0 | DO61: =IF(AND(DO$55>=Assumptions!$F143,DO$55<=Assumptions!$G143),1/Assumptions!$H143,0) -> 0 | DP61: =IF(AND(DP$55>=Assumptions!$F143,DP$55<=Assumptions!$G143),1/Assumptions!$H143,0) -> 0 | DQ61: =IF(AND(DQ$55>=Assumptions!$F143,DQ$55<=Assumptions!$G143),1/Assumptions!$H143,0) -> 0 | DR61: =IF(AND(DR$55>=Assumptions!$F143,DR$55<=Assumptions!$G143),1/Assumptions!$H143,0) -> 0 | DS61: =IF(AND(DS$55>=Assumptions!$F143,DS$55<=Assumptions!$G143),1/Assumptions!$H143,0) -> 0 | DT61: =IF(AND(DT$55>=Assumptions!$F143,DT$55<=Assumptions!$G143),1/Assumptions!$H143,0) -> 0 | DU61: =IF(AND(DU$55>=Assumptions!$F143,DU$55<=Assumptions!$G143),1/Assumptions!$H143,0) -> 0 | DV61: =IF(AND(DV$55>=Assumptions!$F143,DV$55<=Assumptions!$G143),1/Assumptions!$H143,0) -> 0 | DW61: =IF(AND(DW$55>=Assumptions!$F143,DW$55<=Assumptions!$G143),1/Assumptions!$H143,0) -> 0 | DX61: =IF(AND(DX$55>=Assumptions!$F143,DX$55<=Assumptions!$G143),1/Assumptions!$H143,0) -> 0 | DY61: =IF(AND(DY$55>=Assumptions!$F143,DY$55<=Assumptions!$G143),1/Assumptions!$H143,0) -> 0 | DZ61: =IF(AND(DZ$55>=Assumptions!$F143,DZ$55<=Assumptions!$G143),1/Assumptions!$H143,0) -> 0 | EA61: =IF(AND(EA$55>=Assumptions!$F143,EA$55<=Assumptions!$G143),1/Assumptions!$H143,0) -> 0 | EB61: =IF(AND(EB$55>=Assumptions!$F143,EB$55<=Assumptions!$G143),1/Assumptions!$H143,0) -> 0 | EC61: =IF(AND(EC$55>=Assumptions!$F143,EC$55<=Assumptions!$G143),1/Assumptions!$H143,0) -> 0 | ED61: =IF(AND(ED$55>=Assumptions!$F143,ED$55<=Assumptions!$G143),1/Assumptions!$H143,0) -> 0 | EE61: =IF(AND(EE$55>=Assumptions!$F143,EE$55<=Assumptions!$G143),1/Assumptions!$H143,0) -> 0 | EF61: =IF(AND(EF$55>=Assumptions!$F143,EF$55<=Assumptions!$G143),1/Assumptions!$H143,0) -> 0 | EG61: =IF(AND(EG$55>=Assumptions!$F143,EG$55<=Assumptions!$G143),1/Assumptions!$H143,0) -> 0 | EH61: =IF(AND(EH$55>=Assumptions!$F143,EH$55<=Assumptions!$G143),1/Assumptions!$H143,0) -> 0 | EI61: =IF(AND(EI$55>=Assumptions!$F143,EI$55<=Assumptions!$G143),1/Assumptions!$H143,0) -> 0 | EJ61: =IF(AND(EJ$55>=Assumptions!$F143,EJ$55<=Assumptions!$G143),1/Assumptions!$H143,0) -> 0 | EK61: =IF(AND(EK$55>=Assumptions!$F143,EK$55<=Assumptions!$G143),1/Assumptions!$H143,0) -> 0 | EL61: =IF(AND(EL$55>=Assumptions!$F143,EL$55<=Assumptions!$G143),1/Assumptions!$H143,0) -> 0 | EM61: =IF(AND(EM$55>=Assumptions!$F143,EM$55<=Assumptions!$G143),1/Assumptions!$H143,0) -> 0
B62: Permits/Impact Fees | D62: 351500 | I62: TRUE | J62: 1 | K62: =IF(AND(K$55>=Assumptions!$F144,K$55<=Assumptions!$G144),1/Assumptions!$H144,0) -> 0 | L62: =IF(AND(L$55>=Assumptions!$F144,L$55<=Assumptions!$G144),1/Assumptions!$H144,0) -> 0.08333333333 | M62: =IF(AND(M$55>=Assumptions!$F144,M$55<=Assumptions!$G144),1/Assumptions!$H144,0) -> 0.08333333333 | N62: =IF(AND(N$55>=Assumptions!$F144,N$55<=Assumptions!$G144),1/Assumptions!$H144,0) -> 0.08333333333 | O62: =IF(AND(O$55>=Assumptions!$F144,O$55<=Assumptions!$G144),1/Assumptions!$H144,0) -> 0.08333333333 | P62: =IF(AND(P$55>=Assumptions!$F144,P$55<=Assumptions!$G144),1/Assumptions!$H144,0) -> 0.08333333333 | Q62: =IF(AND(Q$55>=Assumptions!$F144,Q$55<=Assumptions!$G144),1/Assumptions!$H144,0) -> 0.08333333333 | R62: =IF(AND(R$55>=Assumptions!$F144,R$55<=Assumptions!$G144),1/Assumptions!$H144,0) -> 0.08333333333 | S62: =IF(AND(S$55>=Assumptions!$F144,S$55<=Assumptions!$G144),1/Assumptions!$H144,0) -> 0.08333333333 | T62: =IF(AND(T$55>=Assumptions!$F144,T$55<=Assumptions!$G144),1/Assumptions!$H144,0) -> 0.08333333333 | U62: =IF(AND(U$55>=Assumptions!$F144,U$55<=Assumptions!$G144),1/Assumptions!$H144,0) -> 0.08333333333 | V62: =IF(AND(V$55>=Assumptions!$F144,V$55<=Assumptions!$G144),1/Assumptions!$H144,0) -> 0.08333333333 | W62: =IF(AND(W$55>=Assumptions!$F144,W$55<=Assumptions!$G144),1/Assumptions!$H144,0) -> 0.08333333333 | X62: =IF(AND(X$55>=Assumptions!$F144,X$55<=Assumptions!$G144),1/Assumptions!$H144,0) -> 0 | Y62: =IF(AND(Y$55>=Assumptions!$F144,Y$55<=Assumptions!$G144),1/Assumptions!$H144,0) -> 0 | Z62: =IF(AND(Z$55>=Assumptions!$F144,Z$55<=Assumptions!$G144),1/Assumptions!$H144,0) -> 0 | AA62: =IF(AND(AA$55>=Assumptions!$F144,AA$55<=Assumptions!$G144),1/Assumptions!$H144,0) -> 0 | AB62: =IF(AND(AB$55>=Assumptions!$F144,AB$55<=Assumptions!$G144),1/Assumptions!$H144,0) -> 0 | AC62: =IF(AND(AC$55>=Assumptions!$F144,AC$55<=Assumptions!$G144),1/Assumptions!$H144,0) -> 0 | AD62: =IF(AND(AD$55>=Assumptions!$F144,AD$55<=Assumptions!$G144),1/Assumptions!$H144,0) -> 0 | AE62: =IF(AND(AE$55>=Assumptions!$F144,AE$55<=Assumptions!$G144),1/Assumptions!$H144,0) -> 0 | AF62: =IF(AND(AF$55>=Assumptions!$F144,AF$55<=Assumptions!$G144),1/Assumptions!$H144,0) -> 0 | AG62: =IF(AND(AG$55>=Assumptions!$F144,AG$55<=Assumptions!$G144),1/Assumptions!$H144,0) -> 0 | AH62: =IF(AND(AH$55>=Assumptions!$F144,AH$55<=Assumptions!$G144),1/Assumptions!$H144,0) -> 0 | AI62: =IF(AND(AI$55>=Assumptions!$F144,AI$55<=Assumptions!$G144),1/Assumptions!$H144,0) -> 0 | AJ62: =IF(AND(AJ$55>=Assumptions!$F144,AJ$55<=Assumptions!$G144),1/Assumptions!$H144,0) -> 0 | AK62: =IF(AND(AK$55>=Assumptions!$F144,AK$55<=Assumptions!$G144),1/Assumptions!$H144,0) -> 0 | AL62: =IF(AND(AL$55>=Assumptions!$F144,AL$55<=Assumptions!$G144),1/Assumptions!$H144,0) -> 0 | AM62: =IF(AND(AM$55>=Assumptions!$F144,AM$55<=Assumptions!$G144),1/Assumptions!$H144,0) -> 0 | AN62: =IF(AND(AN$55>=Assumptions!$F144,AN$55<=Assumptions!$G144),1/Assumptions!$H144,0) -> 0 | AO62: =IF(AND(AO$55>=Assumptions!$F144,AO$55<=Assumptions!$G144),1/Assumptions!$H144,0) -> 0 | AP62: =IF(AND(AP$55>=Assumptions!$F144,AP$55<=Assumptions!$G144),1/Assumptions!$H144,0) -> 0 | AQ62: =IF(AND(AQ$55>=Assumptions!$F144,AQ$55<=Assumptions!$G144),1/Assumptions!$H144,0) -> 0 | AR62: =IF(AND(AR$55>=Assumptions!$F144,AR$55<=Assumptions!$G144),1/Assumptions!$H144,0) -> 0 | AS62: =IF(AND(AS$55>=Assumptions!$F144,AS$55<=Assumptions!$G144),1/Assumptions!$H144,0) -> 0 | AT62: =IF(AND(AT$55>=Assumptions!$F144,AT$55<=Assumptions!$G144),1/Assumptions!$H144,0) -> 0 | AU62: =IF(AND(AU$55>=Assumptions!$F144,AU$55<=Assumptions!$G144),1/Assumptions!$H144,0) -> 0 | AV62: =IF(AND(AV$55>=Assumptions!$F144,AV$55<=Assumptions!$G144),1/Assumptions!$H144,0) -> 0 | AW62: =IF(AND(AW$55>=Assumptions!$F144,AW$55<=Assumptions!$G144),1/Assumptions!$H144,0) -> 0 | AX62: =IF(AND(AX$55>=Assumptions!$F144,AX$55<=Assumptions!$G144),1/Assumptions!$H144,0) -> 0 | AY62: =IF(AND(AY$55>=Assumptions!$F144,AY$55<=Assumptions!$G144),1/Assumptions!$H144,0) -> 0 | AZ62: =IF(AND(AZ$55>=Assumptions!$F144,AZ$55<=Assumptions!$G144),1/Assumptions!$H144,0) -> 0 | BA62: =IF(AND(BA$55>=Assumptions!$F144,BA$55<=Assumptions!$G144),1/Assumptions!$H144,0) -> 0 | BB62: =IF(AND(BB$55>=Assumptions!$F144,BB$55<=Assumptions!$G144),1/Assumptions!$H144,0) -> 0 | BC62: =IF(AND(BC$55>=Assumptions!$F144,BC$55<=Assumptions!$G144),1/Assumptions!$H144,0) -> 0 | BD62: =IF(AND(BD$55>=Assumptions!$F144,BD$55<=Assumptions!$G144),1/Assumptions!$H144,0) -> 0 | BE62: =IF(AND(BE$55>=Assumptions!$F144,BE$55<=Assumptions!$G144),1/Assumptions!$H144,0) -> 0 | BF62: =IF(AND(BF$55>=Assumptions!$F144,BF$55<=Assumptions!$G144),1/Assumptions!$H144,0) -> 0 | BG62: =IF(AND(BG$55>=Assumptions!$F144,BG$55<=Assumptions!$G144),1/Assumptions!$H144,0) -> 0 | BH62: =IF(AND(BH$55>=Assumptions!$F144,BH$55<=Assumptions!$G144),1/Assumptions!$H144,0) -> 0 | BI62: =IF(AND(BI$55>=Assumptions!$F144,BI$55<=Assumptions!$G144),1/Assumptions!$H144,0) -> 0 | BJ62: =IF(AND(BJ$55>=Assumptions!$F144,BJ$55<=Assumptions!$G144),1/Assumptions!$H144,0) -> 0 | BK62: =IF(AND(BK$55>=Assumptions!$F144,BK$55<=Assumptions!$G144),1/Assumptions!$H144,0) -> 0 | BL62: =IF(AND(BL$55>=Assumptions!$F144,BL$55<=Assumptions!$G144),1/Assumptions!$H144,0) -> 0 | BM62: =IF(AND(BM$55>=Assumptions!$F144,BM$55<=Assumptions!$G144),1/Assumptions!$H144,0) -> 0 | BN62: =IF(AND(BN$55>=Assumptions!$F144,BN$55<=Assumptions!$G144),1/Assumptions!$H144,0) -> 0 | BO62: =IF(AND(BO$55>=Assumptions!$F144,BO$55<=Assumptions!$G144),1/Assumptions!$H144,0) -> 0 | BP62: =IF(AND(BP$55>=Assumptions!$F144,BP$55<=Assumptions!$G144),1/Assumptions!$H144,0) -> 0 | BQ62: =IF(AND(BQ$55>=Assumptions!$F144,BQ$55<=Assumptions!$G144),1/Assumptions!$H144,0) -> 0 | BR62: =IF(AND(BR$55>=Assumptions!$F144,BR$55<=Assumptions!$G144),1/Assumptions!$H144,0) -> 0 | BS62: =IF(AND(BS$55>=Assumptions!$F144,BS$55<=Assumptions!$G144),1/Assumptions!$H144,0) -> 0 | BT62: =IF(AND(BT$55>=Assumptions!$F144,BT$55<=Assumptions!$G144),1/Assumptions!$H144,0) -> 0 | BU62: =IF(AND(BU$55>=Assumptions!$F144,BU$55<=Assumptions!$G144),1/Assumptions!$H144,0) -> 0 | BV62: =IF(AND(BV$55>=Assumptions!$F144,BV$55<=Assumptions!$G144),1/Assumptions!$H144,0) -> 0 | BW62: =IF(AND(BW$55>=Assumptions!$F144,BW$55<=Assumptions!$G144),1/Assumptions!$H144,0) -> 0 | BX62: =IF(AND(BX$55>=Assumptions!$F144,BX$55<=Assumptions!$G144),1/Assumptions!$H144,0) -> 0 | BY62: =IF(AND(BY$55>=Assumptions!$F144,BY$55<=Assumptions!$G144),1/Assumptions!$H144,0) -> 0 | BZ62: =IF(AND(BZ$55>=Assumptions!$F144,BZ$55<=Assumptions!$G144),1/Assumptions!$H144,0) -> 0 | CA62: =IF(AND(CA$55>=Assumptions!$F144,CA$55<=Assumptions!$G144),1/Assumptions!$H144,0) -> 0 | CB62: =IF(AND(CB$55>=Assumptions!$F144,CB$55<=Assumptions!$G144),1/Assumptions!$H144,0) -> 0 | CC62: =IF(AND(CC$55>=Assumptions!$F144,CC$55<=Assumptions!$G144),1/Assumptions!$H144,0) -> 0 | CD62: =IF(AND(CD$55>=Assumptions!$F144,CD$55<=Assumptions!$G144),1/Assumptions!$H144,0) -> 0 | CE62: =IF(AND(CE$55>=Assumptions!$F144,CE$55<=Assumptions!$G144),1/Assumptions!$H144,0) -> 0 | CF62: =IF(AND(CF$55>=Assumptions!$F144,CF$55<=Assumptions!$G144),1/Assumptions!$H144,0) -> 0 | CG62: =IF(AND(CG$55>=Assumptions!$F144,CG$55<=Assumptions!$G144),1/Assumptions!$H144,0) -> 0 | CH62: =IF(AND(CH$55>=Assumptions!$F144,CH$55<=Assumptions!$G144),1/Assumptions!$H144,0) -> 0 | CI62: =IF(AND(CI$55>=Assumptions!$F144,CI$55<=Assumptions!$G144),1/Assumptions!$H144,0) -> 0 | CJ62: =IF(AND(CJ$55>=Assumptions!$F144,CJ$55<=Assumptions!$G144),1/Assumptions!$H144,0) -> 0 | CK62: =IF(AND(CK$55>=Assumptions!$F144,CK$55<=Assumptions!$G144),1/Assumptions!$H144,0) -> 0 | CL62: =IF(AND(CL$55>=Assumptions!$F144,CL$55<=Assumptions!$G144),1/Assumptions!$H144,0) -> 0 | CM62: =IF(AND(CM$55>=Assumptions!$F144,CM$55<=Assumptions!$G144),1/Assumptions!$H144,0) -> 0 | CN62: =IF(AND(CN$55>=Assumptions!$F144,CN$55<=Assumptions!$G144),1/Assumptions!$H144,0) -> 0 | CO62: =IF(AND(CO$55>=Assumptions!$F144,CO$55<=Assumptions!$G144),1/Assumptions!$H144,0) -> 0 | CP62: =IF(AND(CP$55>=Assumptions!$F144,CP$55<=Assumptions!$G144),1/Assumptions!$H144,0) -> 0 | CQ62: =IF(AND(CQ$55>=Assumptions!$F144,CQ$55<=Assumptions!$G144),1/Assumptions!$H144,0) -> 0 | CR62: =IF(AND(CR$55>=Assumptions!$F144,CR$55<=Assumptions!$G144),1/Assumptions!$H144,0) -> 0 | CS62: =IF(AND(CS$55>=Assumptions!$F144,CS$55<=Assumptions!$G144),1/Assumptions!$H144,0) -> 0 | CT62: =IF(AND(CT$55>=Assumptions!$F144,CT$55<=Assumptions!$G144),1/Assumptions!$H144,0) -> 0 | CU62: =IF(AND(CU$55>=Assumptions!$F144,CU$55<=Assumptions!$G144),1/Assumptions!$H144,0) -> 0 | CV62: =IF(AND(CV$55>=Assumptions!$F144,CV$55<=Assumptions!$G144),1/Assumptions!$H144,0) -> 0 | CW62: =IF(AND(CW$55>=Assumptions!$F144,CW$55<=Assumptions!$G144),1/Assumptions!$H144,0) -> 0 | CX62: =IF(AND(CX$55>=Assumptions!$F144,CX$55<=Assumptions!$G144),1/Assumptions!$H144,0) -> 0 | CY62: =IF(AND(CY$55>=Assumptions!$F144,CY$55<=Assumptions!$G144),1/Assumptions!$H144,0) -> 0 | CZ62: =IF(AND(CZ$55>=Assumptions!$F144,CZ$55<=Assumptions!$G144),1/Assumptions!$H144,0) -> 0 | DA62: =IF(AND(DA$55>=Assumptions!$F144,DA$55<=Assumptions!$G144),1/Assumptions!$H144,0) -> 0 | DB62: =IF(AND(DB$55>=Assumptions!$F144,DB$55<=Assumptions!$G144),1/Assumptions!$H144,0) -> 0 | DC62: =IF(AND(DC$55>=Assumptions!$F144,DC$55<=Assumptions!$G144),1/Assumptions!$H144,0) -> 0 | DD62: =IF(AND(DD$55>=Assumptions!$F144,DD$55<=Assumptions!$G144),1/Assumptions!$H144,0) -> 0 | DE62: =IF(AND(DE$55>=Assumptions!$F144,DE$55<=Assumptions!$G144),1/Assumptions!$H144,0) -> 0 | DF62: =IF(AND(DF$55>=Assumptions!$F144,DF$55<=Assumptions!$G144),1/Assumptions!$H144,0) -> 0 | DG62: =IF(AND(DG$55>=Assumptions!$F144,DG$55<=Assumptions!$G144),1/Assumptions!$H144,0) -> 0 | DH62: =IF(AND(DH$55>=Assumptions!$F144,DH$55<=Assumptions!$G144),1/Assumptions!$H144,0) -> 0 | DI62: =IF(AND(DI$55>=Assumptions!$F144,DI$55<=Assumptions!$G144),1/Assumptions!$H144,0) -> 0 | DJ62: =IF(AND(DJ$55>=Assumptions!$F144,DJ$55<=Assumptions!$G144),1/Assumptions!$H144,0) -> 0 | DK62: =IF(AND(DK$55>=Assumptions!$F144,DK$55<=Assumptions!$G144),1/Assumptions!$H144,0) -> 0 | DL62: =IF(AND(DL$55>=Assumptions!$F144,DL$55<=Assumptions!$G144),1/Assumptions!$H144,0) -> 0 | DM62: =IF(AND(DM$55>=Assumptions!$F144,DM$55<=Assumptions!$G144),1/Assumptions!$H144,0) -> 0 | DN62: =IF(AND(DN$55>=Assumptions!$F144,DN$55<=Assumptions!$G144),1/Assumptions!$H144,0) -> 0 | DO62: =IF(AND(DO$55>=Assumptions!$F144,DO$55<=Assumptions!$G144),1/Assumptions!$H144,0) -> 0 | DP62: =IF(AND(DP$55>=Assumptions!$F144,DP$55<=Assumptions!$G144),1/Assumptions!$H144,0) -> 0 | DQ62: =IF(AND(DQ$55>=Assumptions!$F144,DQ$55<=Assumptions!$G144),1/Assumptions!$H144,0) -> 0 | DR62: =IF(AND(DR$55>=Assumptions!$F144,DR$55<=Assumptions!$G144),1/Assumptions!$H144,0) -> 0 | DS62: =IF(AND(DS$55>=Assumptions!$F144,DS$55<=Assumptions!$G144),1/Assumptions!$H144,0) -> 0 | DT62: =IF(AND(DT$55>=Assumptions!$F144,DT$55<=Assumptions!$G144),1/Assumptions!$H144,0) -> 0 | DU62: =IF(AND(DU$55>=Assumptions!$F144,DU$55<=Assumptions!$G144),1/Assumptions!$H144,0) -> 0 | DV62: =IF(AND(DV$55>=Assumptions!$F144,DV$55<=Assumptions!$G144),1/Assumptions!$H144,0) -> 0 | DW62: =IF(AND(DW$55>=Assumptions!$F144,DW$55<=Assumptions!$G144),1/Assumptions!$H144,0) -> 0 | DX62: =IF(AND(DX$55>=Assumptions!$F144,DX$55<=Assumptions!$G144),1/Assumptions!$H144,0) -> 0 | DY62: =IF(AND(DY$55>=Assumptions!$F144,DY$55<=Assumptions!$G144),1/Assumptions!$H144,0) -> 0 | DZ62: =IF(AND(DZ$55>=Assumptions!$F144,DZ$55<=Assumptions!$G144),1/Assumptions!$H144,0) -> 0 | EA62: =IF(AND(EA$55>=Assumptions!$F144,EA$55<=Assumptions!$G144),1/Assumptions!$H144,0) -> 0 | EB62: =IF(AND(EB$55>=Assumptions!$F144,EB$55<=Assumptions!$G144),1/Assumptions!$H144,0) -> 0 | EC62: =IF(AND(EC$55>=Assumptions!$F144,EC$55<=Assumptions!$G144),1/Assumptions!$H144,0) -> 0 | ED62: =IF(AND(ED$55>=Assumptions!$F144,ED$55<=Assumptions!$G144),1/Assumptions!$H144,0) -> 0 | EE62: =IF(AND(EE$55>=Assumptions!$F144,EE$55<=Assumptions!$G144),1/Assumptions!$H144,0) -> 0 | EF62: =IF(AND(EF$55>=Assumptions!$F144,EF$55<=Assumptions!$G144),1/Assumptions!$H144,0) -> 0 | EG62: =IF(AND(EG$55>=Assumptions!$F144,EG$55<=Assumptions!$G144),1/Assumptions!$H144,0) -> 0 | EH62: =IF(AND(EH$55>=Assumptions!$F144,EH$55<=Assumptions!$G144),1/Assumptions!$H144,0) -> 0 | EI62: =IF(AND(EI$55>=Assumptions!$F144,EI$55<=Assumptions!$G144),1/Assumptions!$H144,0) -> 0 | EJ62: =IF(AND(EJ$55>=Assumptions!$F144,EJ$55<=Assumptions!$G144),1/Assumptions!$H144,0) -> 0 | EK62: =IF(AND(EK$55>=Assumptions!$F144,EK$55<=Assumptions!$G144),1/Assumptions!$H144,0) -> 0 | EL62: =IF(AND(EL$55>=Assumptions!$F144,EL$55<=Assumptions!$G144),1/Assumptions!$H144,0) -> 0 | EM62: =IF(AND(EM$55>=Assumptions!$F144,EM$55<=Assumptions!$G144),1/Assumptions!$H144,0) -> 0
B63: Property Taxes | D63: 142500 | I63: TRUE | J63: 1 | K63: =IF(AND(K$55>=Assumptions!$F145,K$55<=Assumptions!$G145),1/Assumptions!$H145,0) -> 0 | L63: =IF(AND(L$55>=Assumptions!$F145,L$55<=Assumptions!$G145),1/Assumptions!$H145,0) -> 0.04166666667 | M63: =IF(AND(M$55>=Assumptions!$F145,M$55<=Assumptions!$G145),1/Assumptions!$H145,0) -> 0.04166666667 | N63: =IF(AND(N$55>=Assumptions!$F145,N$55<=Assumptions!$G145),1/Assumptions!$H145,0) -> 0.04166666667 | O63: =IF(AND(O$55>=Assumptions!$F145,O$55<=Assumptions!$G145),1/Assumptions!$H145,0) -> 0.04166666667 | P63: =IF(AND(P$55>=Assumptions!$F145,P$55<=Assumptions!$G145),1/Assumptions!$H145,0) -> 0.04166666667 | Q63: =IF(AND(Q$55>=Assumptions!$F145,Q$55<=Assumptions!$G145),1/Assumptions!$H145,0) -> 0.04166666667 | R63: =IF(AND(R$55>=Assumptions!$F145,R$55<=Assumptions!$G145),1/Assumptions!$H145,0) -> 0.04166666667 | S63: =IF(AND(S$55>=Assumptions!$F145,S$55<=Assumptions!$G145),1/Assumptions!$H145,0) -> 0.04166666667 | T63: =IF(AND(T$55>=Assumptions!$F145,T$55<=Assumptions!$G145),1/Assumptions!$H145,0) -> 0.04166666667 | U63: =IF(AND(U$55>=Assumptions!$F145,U$55<=Assumptions!$G145),1/Assumptions!$H145,0) -> 0.04166666667 | V63: =IF(AND(V$55>=Assumptions!$F145,V$55<=Assumptions!$G145),1/Assumptions!$H145,0) -> 0.04166666667 | W63: =IF(AND(W$55>=Assumptions!$F145,W$55<=Assumptions!$G145),1/Assumptions!$H145,0) -> 0.04166666667 | X63: =IF(AND(X$55>=Assumptions!$F145,X$55<=Assumptions!$G145),1/Assumptions!$H145,0) -> 0.04166666667 | Y63: =IF(AND(Y$55>=Assumptions!$F145,Y$55<=Assumptions!$G145),1/Assumptions!$H145,0) -> 0.04166666667 | Z63: =IF(AND(Z$55>=Assumptions!$F145,Z$55<=Assumptions!$G145),1/Assumptions!$H145,0) -> 0.04166666667 | AA63: =IF(AND(AA$55>=Assumptions!$F145,AA$55<=Assumptions!$G145),1/Assumptions!$H145,0) -> 0.04166666667 | AB63: =IF(AND(AB$55>=Assumptions!$F145,AB$55<=Assumptions!$G145),1/Assumptions!$H145,0) -> 0.04166666667 | AC63: =IF(AND(AC$55>=Assumptions!$F145,AC$55<=Assumptions!$G145),1/Assumptions!$H145,0) -> 0.04166666667 | AD63: =IF(AND(AD$55>=Assumptions!$F145,AD$55<=Assumptions!$G145),1/Assumptions!$H145,0) -> 0.04166666667 | AE63: =IF(AND(AE$55>=Assumptions!$F145,AE$55<=Assumptions!$G145),1/Assumptions!$H145,0) -> 0.04166666667 | AF63: =IF(AND(AF$55>=Assumptions!$F145,AF$55<=Assumptions!$G145),1/Assumptions!$H145,0) -> 0.04166666667 | AG63: =IF(AND(AG$55>=Assumptions!$F145,AG$55<=Assumptions!$G145),1/Assumptions!$H145,0) -> 0.04166666667 | AH63: =IF(AND(AH$55>=Assumptions!$F145,AH$55<=Assumptions!$G145),1/Assumptions!$H145,0) -> 0.04166666667 | AI63: =IF(AND(AI$55>=Assumptions!$F145,AI$55<=Assumptions!$G145),1/Assumptions!$H145,0) -> 0.04166666667 | AJ63: =IF(AND(AJ$55>=Assumptions!$F145,AJ$55<=Assumptions!$G145),1/Assumptions!$H145,0) -> 0 | AK63: =IF(AND(AK$55>=Assumptions!$F145,AK$55<=Assumptions!$G145),1/Assumptions!$H145,0) -> 0 | AL63: =IF(AND(AL$55>=Assumptions!$F145,AL$55<=Assumptions!$G145),1/Assumptions!$H145,0) -> 0 | AM63: =IF(AND(AM$55>=Assumptions!$F145,AM$55<=Assumptions!$G145),1/Assumptions!$H145,0) -> 0 | AN63: =IF(AND(AN$55>=Assumptions!$F145,AN$55<=Assumptions!$G145),1/Assumptions!$H145,0) -> 0 | AO63: =IF(AND(AO$55>=Assumptions!$F145,AO$55<=Assumptions!$G145),1/Assumptions!$H145,0) -> 0 | AP63: =IF(AND(AP$55>=Assumptions!$F145,AP$55<=Assumptions!$G145),1/Assumptions!$H145,0) -> 0 | AQ63: =IF(AND(AQ$55>=Assumptions!$F145,AQ$55<=Assumptions!$G145),1/Assumptions!$H145,0) -> 0 | AR63: =IF(AND(AR$55>=Assumptions!$F145,AR$55<=Assumptions!$G145),1/Assumptions!$H145,0) -> 0 | AS63: =IF(AND(AS$55>=Assumptions!$F145,AS$55<=Assumptions!$G145),1/Assumptions!$H145,0) -> 0 | AT63: =IF(AND(AT$55>=Assumptions!$F145,AT$55<=Assumptions!$G145),1/Assumptions!$H145,0) -> 0 | AU63: =IF(AND(AU$55>=Assumptions!$F145,AU$55<=Assumptions!$G145),1/Assumptions!$H145,0) -> 0 | AV63: =IF(AND(AV$55>=Assumptions!$F145,AV$55<=Assumptions!$G145),1/Assumptions!$H145,0) -> 0 | AW63: =IF(AND(AW$55>=Assumptions!$F145,AW$55<=Assumptions!$G145),1/Assumptions!$H145,0) -> 0 | AX63: =IF(AND(AX$55>=Assumptions!$F145,AX$55<=Assumptions!$G145),1/Assumptions!$H145,0) -> 0 | AY63: =IF(AND(AY$55>=Assumptions!$F145,AY$55<=Assumptions!$G145),1/Assumptions!$H145,0) -> 0 | AZ63: =IF(AND(AZ$55>=Assumptions!$F145,AZ$55<=Assumptions!$G145),1/Assumptions!$H145,0) -> 0 | BA63: =IF(AND(BA$55>=Assumptions!$F145,BA$55<=Assumptions!$G145),1/Assumptions!$H145,0) -> 0 | BB63: =IF(AND(BB$55>=Assumptions!$F145,BB$55<=Assumptions!$G145),1/Assumptions!$H145,0) -> 0 | BC63: =IF(AND(BC$55>=Assumptions!$F145,BC$55<=Assumptions!$G145),1/Assumptions!$H145,0) -> 0 | BD63: =IF(AND(BD$55>=Assumptions!$F145,BD$55<=Assumptions!$G145),1/Assumptions!$H145,0) -> 0 | BE63: =IF(AND(BE$55>=Assumptions!$F145,BE$55<=Assumptions!$G145),1/Assumptions!$H145,0) -> 0 | BF63: =IF(AND(BF$55>=Assumptions!$F145,BF$55<=Assumptions!$G145),1/Assumptions!$H145,0) -> 0 | BG63: =IF(AND(BG$55>=Assumptions!$F145,BG$55<=Assumptions!$G145),1/Assumptions!$H145,0) -> 0 | BH63: =IF(AND(BH$55>=Assumptions!$F145,BH$55<=Assumptions!$G145),1/Assumptions!$H145,0) -> 0 | BI63: =IF(AND(BI$55>=Assumptions!$F145,BI$55<=Assumptions!$G145),1/Assumptions!$H145,0) -> 0 | BJ63: =IF(AND(BJ$55>=Assumptions!$F145,BJ$55<=Assumptions!$G145),1/Assumptions!$H145,0) -> 0 | BK63: =IF(AND(BK$55>=Assumptions!$F145,BK$55<=Assumptions!$G145),1/Assumptions!$H145,0) -> 0 | BL63: =IF(AND(BL$55>=Assumptions!$F145,BL$55<=Assumptions!$G145),1/Assumptions!$H145,0) -> 0 | BM63: =IF(AND(BM$55>=Assumptions!$F145,BM$55<=Assumptions!$G145),1/Assumptions!$H145,0) -> 0 | BN63: =IF(AND(BN$55>=Assumptions!$F145,BN$55<=Assumptions!$G145),1/Assumptions!$H145,0) -> 0 | BO63: =IF(AND(BO$55>=Assumptions!$F145,BO$55<=Assumptions!$G145),1/Assumptions!$H145,0) -> 0 | BP63: =IF(AND(BP$55>=Assumptions!$F145,BP$55<=Assumptions!$G145),1/Assumptions!$H145,0) -> 0 | BQ63: =IF(AND(BQ$55>=Assumptions!$F145,BQ$55<=Assumptions!$G145),1/Assumptions!$H145,0) -> 0 | BR63: =IF(AND(BR$55>=Assumptions!$F145,BR$55<=Assumptions!$G145),1/Assumptions!$H145,0) -> 0 | BS63: =IF(AND(BS$55>=Assumptions!$F145,BS$55<=Assumptions!$G145),1/Assumptions!$H145,0) -> 0 | BT63: =IF(AND(BT$55>=Assumptions!$F145,BT$55<=Assumptions!$G145),1/Assumptions!$H145,0) -> 0 | BU63: =IF(AND(BU$55>=Assumptions!$F145,BU$55<=Assumptions!$G145),1/Assumptions!$H145,0) -> 0 | BV63: =IF(AND(BV$55>=Assumptions!$F145,BV$55<=Assumptions!$G145),1/Assumptions!$H145,0) -> 0 | BW63: =IF(AND(BW$55>=Assumptions!$F145,BW$55<=Assumptions!$G145),1/Assumptions!$H145,0) -> 0 | BX63: =IF(AND(BX$55>=Assumptions!$F145,BX$55<=Assumptions!$G145),1/Assumptions!$H145,0) -> 0 | BY63: =IF(AND(BY$55>=Assumptions!$F145,BY$55<=Assumptions!$G145),1/Assumptions!$H145,0) -> 0 | BZ63: =IF(AND(BZ$55>=Assumptions!$F145,BZ$55<=Assumptions!$G145),1/Assumptions!$H145,0) -> 0 | CA63: =IF(AND(CA$55>=Assumptions!$F145,CA$55<=Assumptions!$G145),1/Assumptions!$H145,0) -> 0 | CB63: =IF(AND(CB$55>=Assumptions!$F145,CB$55<=Assumptions!$G145),1/Assumptions!$H145,0) -> 0 | CC63: =IF(AND(CC$55>=Assumptions!$F145,CC$55<=Assumptions!$G145),1/Assumptions!$H145,0) -> 0 | CD63: =IF(AND(CD$55>=Assumptions!$F145,CD$55<=Assumptions!$G145),1/Assumptions!$H145,0) -> 0 | CE63: =IF(AND(CE$55>=Assumptions!$F145,CE$55<=Assumptions!$G145),1/Assumptions!$H145,0) -> 0 | CF63: =IF(AND(CF$55>=Assumptions!$F145,CF$55<=Assumptions!$G145),1/Assumptions!$H145,0) -> 0 | CG63: =IF(AND(CG$55>=Assumptions!$F145,CG$55<=Assumptions!$G145),1/Assumptions!$H145,0) -> 0 | CH63: =IF(AND(CH$55>=Assumptions!$F145,CH$55<=Assumptions!$G145),1/Assumptions!$H145,0) -> 0 | CI63: =IF(AND(CI$55>=Assumptions!$F145,CI$55<=Assumptions!$G145),1/Assumptions!$H145,0) -> 0 | CJ63: =IF(AND(CJ$55>=Assumptions!$F145,CJ$55<=Assumptions!$G145),1/Assumptions!$H145,0) -> 0 | CK63: =IF(AND(CK$55>=Assumptions!$F145,CK$55<=Assumptions!$G145),1/Assumptions!$H145,0) -> 0 | CL63: =IF(AND(CL$55>=Assumptions!$F145,CL$55<=Assumptions!$G145),1/Assumptions!$H145,0) -> 0 | CM63: =IF(AND(CM$55>=Assumptions!$F145,CM$55<=Assumptions!$G145),1/Assumptions!$H145,0) -> 0 | CN63: =IF(AND(CN$55>=Assumptions!$F145,CN$55<=Assumptions!$G145),1/Assumptions!$H145,0) -> 0 | CO63: =IF(AND(CO$55>=Assumptions!$F145,CO$55<=Assumptions!$G145),1/Assumptions!$H145,0) -> 0 | CP63: =IF(AND(CP$55>=Assumptions!$F145,CP$55<=Assumptions!$G145),1/Assumptions!$H145,0) -> 0 | CQ63: =IF(AND(CQ$55>=Assumptions!$F145,CQ$55<=Assumptions!$G145),1/Assumptions!$H145,0) -> 0 | CR63: =IF(AND(CR$55>=Assumptions!$F145,CR$55<=Assumptions!$G145),1/Assumptions!$H145,0) -> 0 | CS63: =IF(AND(CS$55>=Assumptions!$F145,CS$55<=Assumptions!$G145),1/Assumptions!$H145,0) -> 0 | CT63: =IF(AND(CT$55>=Assumptions!$F145,CT$55<=Assumptions!$G145),1/Assumptions!$H145,0) -> 0 | CU63: =IF(AND(CU$55>=Assumptions!$F145,CU$55<=Assumptions!$G145),1/Assumptions!$H145,0) -> 0 | CV63: =IF(AND(CV$55>=Assumptions!$F145,CV$55<=Assumptions!$G145),1/Assumptions!$H145,0) -> 0 | CW63: =IF(AND(CW$55>=Assumptions!$F145,CW$55<=Assumptions!$G145),1/Assumptions!$H145,0) -> 0 | CX63: =IF(AND(CX$55>=Assumptions!$F145,CX$55<=Assumptions!$G145),1/Assumptions!$H145,0) -> 0 | CY63: =IF(AND(CY$55>=Assumptions!$F145,CY$55<=Assumptions!$G145),1/Assumptions!$H145,0) -> 0 | CZ63: =IF(AND(CZ$55>=Assumptions!$F145,CZ$55<=Assumptions!$G145),1/Assumptions!$H145,0) -> 0 | DA63: =IF(AND(DA$55>=Assumptions!$F145,DA$55<=Assumptions!$G145),1/Assumptions!$H145,0) -> 0 | DB63: =IF(AND(DB$55>=Assumptions!$F145,DB$55<=Assumptions!$G145),1/Assumptions!$H145,0) -> 0 | DC63: =IF(AND(DC$55>=Assumptions!$F145,DC$55<=Assumptions!$G145),1/Assumptions!$H145,0) -> 0 | DD63: =IF(AND(DD$55>=Assumptions!$F145,DD$55<=Assumptions!$G145),1/Assumptions!$H145,0) -> 0 | DE63: =IF(AND(DE$55>=Assumptions!$F145,DE$55<=Assumptions!$G145),1/Assumptions!$H145,0) -> 0 | DF63: =IF(AND(DF$55>=Assumptions!$F145,DF$55<=Assumptions!$G145),1/Assumptions!$H145,0) -> 0 | DG63: =IF(AND(DG$55>=Assumptions!$F145,DG$55<=Assumptions!$G145),1/Assumptions!$H145,0) -> 0 | DH63: =IF(AND(DH$55>=Assumptions!$F145,DH$55<=Assumptions!$G145),1/Assumptions!$H145,0) -> 0 | DI63: =IF(AND(DI$55>=Assumptions!$F145,DI$55<=Assumptions!$G145),1/Assumptions!$H145,0) -> 0 | DJ63: =IF(AND(DJ$55>=Assumptions!$F145,DJ$55<=Assumptions!$G145),1/Assumptions!$H145,0) -> 0 | DK63: =IF(AND(DK$55>=Assumptions!$F145,DK$55<=Assumptions!$G145),1/Assumptions!$H145,0) -> 0 | DL63: =IF(AND(DL$55>=Assumptions!$F145,DL$55<=Assumptions!$G145),1/Assumptions!$H145,0) -> 0 | DM63: =IF(AND(DM$55>=Assumptions!$F145,DM$55<=Assumptions!$G145),1/Assumptions!$H145,0) -> 0 | DN63: =IF(AND(DN$55>=Assumptions!$F145,DN$55<=Assumptions!$G145),1/Assumptions!$H145,0) -> 0 | DO63: =IF(AND(DO$55>=Assumptions!$F145,DO$55<=Assumptions!$G145),1/Assumptions!$H145,0) -> 0 | DP63: =IF(AND(DP$55>=Assumptions!$F145,DP$55<=Assumptions!$G145),1/Assumptions!$H145,0) -> 0 | DQ63: =IF(AND(DQ$55>=Assumptions!$F145,DQ$55<=Assumptions!$G145),1/Assumptions!$H145,0) -> 0 | DR63: =IF(AND(DR$55>=Assumptions!$F145,DR$55<=Assumptions!$G145),1/Assumptions!$H145,0) -> 0 | DS63: =IF(AND(DS$55>=Assumptions!$F145,DS$55<=Assumptions!$G145),1/Assumptions!$H145,0) -> 0 | DT63: =IF(AND(DT$55>=Assumptions!$F145,DT$55<=Assumptions!$G145),1/Assumptions!$H145,0) -> 0 | DU63: =IF(AND(DU$55>=Assumptions!$F145,DU$55<=Assumptions!$G145),1/Assumptions!$H145,0) -> 0 | DV63: =IF(AND(DV$55>=Assumptions!$F145,DV$55<=Assumptions!$G145),1/Assumptions!$H145,0) -> 0 | DW63: =IF(AND(DW$55>=Assumptions!$F145,DW$55<=Assumptions!$G145),1/Assumptions!$H145,0) -> 0 | DX63: =IF(AND(DX$55>=Assumptions!$F145,DX$55<=Assumptions!$G145),1/Assumptions!$H145,0) -> 0 | DY63: =IF(AND(DY$55>=Assumptions!$F145,DY$55<=Assumptions!$G145),1/Assumptions!$H145,0) -> 0 | DZ63: =IF(AND(DZ$55>=Assumptions!$F145,DZ$55<=Assumptions!$G145),1/Assumptions!$H145,0) -> 0 | EA63: =IF(AND(EA$55>=Assumptions!$F145,EA$55<=Assumptions!$G145),1/Assumptions!$H145,0) -> 0 | EB63: =IF(AND(EB$55>=Assumptions!$F145,EB$55<=Assumptions!$G145),1/Assumptions!$H145,0) -> 0 | EC63: =IF(AND(EC$55>=Assumptions!$F145,EC$55<=Assumptions!$G145),1/Assumptions!$H145,0) -> 0 | ED63: =IF(AND(ED$55>=Assumptions!$F145,ED$55<=Assumptions!$G145),1/Assumptions!$H145,0) -> 0 | EE63: =IF(AND(EE$55>=Assumptions!$F145,EE$55<=Assumptions!$G145),1/Assumptions!$H145,0) -> 0 | EF63: =IF(AND(EF$55>=Assumptions!$F145,EF$55<=Assumptions!$G145),1/Assumptions!$H145,0) -> 0 | EG63: =IF(AND(EG$55>=Assumptions!$F145,EG$55<=Assumptions!$G145),1/Assumptions!$H145,0) -> 0 | EH63: =IF(AND(EH$55>=Assumptions!$F145,EH$55<=Assumptions!$G145),1/Assumptions!$H145,0) -> 0 | EI63: =IF(AND(EI$55>=Assumptions!$F145,EI$55<=Assumptions!$G145),1/Assumptions!$H145,0) -> 0 | EJ63: =IF(AND(EJ$55>=Assumptions!$F145,EJ$55<=Assumptions!$G145),1/Assumptions!$H145,0) -> 0 | EK63: =IF(AND(EK$55>=Assumptions!$F145,EK$55<=Assumptions!$G145),1/Assumptions!$H145,0) -> 0 | EL63: =IF(AND(EL$55>=Assumptions!$F145,EL$55<=Assumptions!$G145),1/Assumptions!$H145,0) -> 0 | EM63: =IF(AND(EM$55>=Assumptions!$F145,EM$55<=Assumptions!$G145),1/Assumptions!$H145,0) -> 0
B64: Insurance | D64: 147150 | I64: TRUE | J64: 1 | K64: =IF(AND(K$55>=Assumptions!$F146,K$55<=Assumptions!$G146),1/Assumptions!$H146,0) -> 0 | L64: =IF(AND(L$55>=Assumptions!$F146,L$55<=Assumptions!$G146),1/Assumptions!$H146,0) -> 0.04166666667 | M64: =IF(AND(M$55>=Assumptions!$F146,M$55<=Assumptions!$G146),1/Assumptions!$H146,0) -> 0.04166666667 | N64: =IF(AND(N$55>=Assumptions!$F146,N$55<=Assumptions!$G146),1/Assumptions!$H146,0) -> 0.04166666667 | O64: =IF(AND(O$55>=Assumptions!$F146,O$55<=Assumptions!$G146),1/Assumptions!$H146,0) -> 0.04166666667 | P64: =IF(AND(P$55>=Assumptions!$F146,P$55<=Assumptions!$G146),1/Assumptions!$H146,0) -> 0.04166666667 | Q64: =IF(AND(Q$55>=Assumptions!$F146,Q$55<=Assumptions!$G146),1/Assumptions!$H146,0) -> 0.04166666667 | R64: =IF(AND(R$55>=Assumptions!$F146,R$55<=Assumptions!$G146),1/Assumptions!$H146,0) -> 0.04166666667 | S64: =IF(AND(S$55>=Assumptions!$F146,S$55<=Assumptions!$G146),1/Assumptions!$H146,0) -> 0.04166666667 | T64: =IF(AND(T$55>=Assumptions!$F146,T$55<=Assumptions!$G146),1/Assumptions!$H146,0) -> 0.04166666667 | U64: =IF(AND(U$55>=Assumptions!$F146,U$55<=Assumptions!$G146),1/Assumptions!$H146,0) -> 0.04166666667 | V64: =IF(AND(V$55>=Assumptions!$F146,V$55<=Assumptions!$G146),1/Assumptions!$H146,0) -> 0.04166666667 | W64: =IF(AND(W$55>=Assumptions!$F146,W$55<=Assumptions!$G146),1/Assumptions!$H146,0) -> 0.04166666667 | X64: =IF(AND(X$55>=Assumptions!$F146,X$55<=Assumptions!$G146),1/Assumptions!$H146,0) -> 0.04166666667 | Y64: =IF(AND(Y$55>=Assumptions!$F146,Y$55<=Assumptions!$G146),1/Assumptions!$H146,0) -> 0.04166666667 | Z64: =IF(AND(Z$55>=Assumptions!$F146,Z$55<=Assumptions!$G146),1/Assumptions!$H146,0) -> 0.04166666667 | AA64: =IF(AND(AA$55>=Assumptions!$F146,AA$55<=Assumptions!$G146),1/Assumptions!$H146,0) -> 0.04166666667 | AB64: =IF(AND(AB$55>=Assumptions!$F146,AB$55<=Assumptions!$G146),1/Assumptions!$H146,0) -> 0.04166666667 | AC64: =IF(AND(AC$55>=Assumptions!$F146,AC$55<=Assumptions!$G146),1/Assumptions!$H146,0) -> 0.04166666667 | AD64: =IF(AND(AD$55>=Assumptions!$F146,AD$55<=Assumptions!$G146),1/Assumptions!$H146,0) -> 0.04166666667 | AE64: =IF(AND(AE$55>=Assumptions!$F146,AE$55<=Assumptions!$G146),1/Assumptions!$H146,0) -> 0.04166666667 | AF64: =IF(AND(AF$55>=Assumptions!$F146,AF$55<=Assumptions!$G146),1/Assumptions!$H146,0) -> 0.04166666667 | AG64: =IF(AND(AG$55>=Assumptions!$F146,AG$55<=Assumptions!$G146),1/Assumptions!$H146,0) -> 0.04166666667 | AH64: =IF(AND(AH$55>=Assumptions!$F146,AH$55<=Assumptions!$G146),1/Assumptions!$H146,0) -> 0.04166666667 | AI64: =IF(AND(AI$55>=Assumptions!$F146,AI$55<=Assumptions!$G146),1/Assumptions!$H146,0) -> 0.04166666667 | AJ64: =IF(AND(AJ$55>=Assumptions!$F146,AJ$55<=Assumptions!$G146),1/Assumptions!$H146,0) -> 0 | AK64: =IF(AND(AK$55>=Assumptions!$F146,AK$55<=Assumptions!$G146),1/Assumptions!$H146,0) -> 0 | AL64: =IF(AND(AL$55>=Assumptions!$F146,AL$55<=Assumptions!$G146),1/Assumptions!$H146,0) -> 0 | AM64: =IF(AND(AM$55>=Assumptions!$F146,AM$55<=Assumptions!$G146),1/Assumptions!$H146,0) -> 0 | AN64: =IF(AND(AN$55>=Assumptions!$F146,AN$55<=Assumptions!$G146),1/Assumptions!$H146,0) -> 0 | AO64: =IF(AND(AO$55>=Assumptions!$F146,AO$55<=Assumptions!$G146),1/Assumptions!$H146,0) -> 0 | AP64: =IF(AND(AP$55>=Assumptions!$F146,AP$55<=Assumptions!$G146),1/Assumptions!$H146,0) -> 0 | AQ64: =IF(AND(AQ$55>=Assumptions!$F146,AQ$55<=Assumptions!$G146),1/Assumptions!$H146,0) -> 0 | AR64: =IF(AND(AR$55>=Assumptions!$F146,AR$55<=Assumptions!$G146),1/Assumptions!$H146,0) -> 0 | AS64: =IF(AND(AS$55>=Assumptions!$F146,AS$55<=Assumptions!$G146),1/Assumptions!$H146,0) -> 0 | AT64: =IF(AND(AT$55>=Assumptions!$F146,AT$55<=Assumptions!$G146),1/Assumptions!$H146,0) -> 0 | AU64: =IF(AND(AU$55>=Assumptions!$F146,AU$55<=Assumptions!$G146),1/Assumptions!$H146,0) -> 0 | AV64: =IF(AND(AV$55>=Assumptions!$F146,AV$55<=Assumptions!$G146),1/Assumptions!$H146,0) -> 0 | AW64: =IF(AND(AW$55>=Assumptions!$F146,AW$55<=Assumptions!$G146),1/Assumptions!$H146,0) -> 0 | AX64: =IF(AND(AX$55>=Assumptions!$F146,AX$55<=Assumptions!$G146),1/Assumptions!$H146,0) -> 0 | AY64: =IF(AND(AY$55>=Assumptions!$F146,AY$55<=Assumptions!$G146),1/Assumptions!$H146,0) -> 0 | AZ64: =IF(AND(AZ$55>=Assumptions!$F146,AZ$55<=Assumptions!$G146),1/Assumptions!$H146,0) -> 0 | BA64: =IF(AND(BA$55>=Assumptions!$F146,BA$55<=Assumptions!$G146),1/Assumptions!$H146,0) -> 0 | BB64: =IF(AND(BB$55>=Assumptions!$F146,BB$55<=Assumptions!$G146),1/Assumptions!$H146,0) -> 0 | BC64: =IF(AND(BC$55>=Assumptions!$F146,BC$55<=Assumptions!$G146),1/Assumptions!$H146,0) -> 0 | BD64: =IF(AND(BD$55>=Assumptions!$F146,BD$55<=Assumptions!$G146),1/Assumptions!$H146,0) -> 0 | BE64: =IF(AND(BE$55>=Assumptions!$F146,BE$55<=Assumptions!$G146),1/Assumptions!$H146,0) -> 0 | BF64: =IF(AND(BF$55>=Assumptions!$F146,BF$55<=Assumptions!$G146),1/Assumptions!$H146,0) -> 0 | BG64: =IF(AND(BG$55>=Assumptions!$F146,BG$55<=Assumptions!$G146),1/Assumptions!$H146,0) -> 0 | BH64: =IF(AND(BH$55>=Assumptions!$F146,BH$55<=Assumptions!$G146),1/Assumptions!$H146,0) -> 0 | BI64: =IF(AND(BI$55>=Assumptions!$F146,BI$55<=Assumptions!$G146),1/Assumptions!$H146,0) -> 0 | BJ64: =IF(AND(BJ$55>=Assumptions!$F146,BJ$55<=Assumptions!$G146),1/Assumptions!$H146,0) -> 0 | BK64: =IF(AND(BK$55>=Assumptions!$F146,BK$55<=Assumptions!$G146),1/Assumptions!$H146,0) -> 0 | BL64: =IF(AND(BL$55>=Assumptions!$F146,BL$55<=Assumptions!$G146),1/Assumptions!$H146,0) -> 0 | BM64: =IF(AND(BM$55>=Assumptions!$F146,BM$55<=Assumptions!$G146),1/Assumptions!$H146,0) -> 0 | BN64: =IF(AND(BN$55>=Assumptions!$F146,BN$55<=Assumptions!$G146),1/Assumptions!$H146,0) -> 0 | BO64: =IF(AND(BO$55>=Assumptions!$F146,BO$55<=Assumptions!$G146),1/Assumptions!$H146,0) -> 0 | BP64: =IF(AND(BP$55>=Assumptions!$F146,BP$55<=Assumptions!$G146),1/Assumptions!$H146,0) -> 0 | BQ64: =IF(AND(BQ$55>=Assumptions!$F146,BQ$55<=Assumptions!$G146),1/Assumptions!$H146,0) -> 0 | BR64: =IF(AND(BR$55>=Assumptions!$F146,BR$55<=Assumptions!$G146),1/Assumptions!$H146,0) -> 0 | BS64: =IF(AND(BS$55>=Assumptions!$F146,BS$55<=Assumptions!$G146),1/Assumptions!$H146,0) -> 0 | BT64: =IF(AND(BT$55>=Assumptions!$F146,BT$55<=Assumptions!$G146),1/Assumptions!$H146,0) -> 0 | BU64: =IF(AND(BU$55>=Assumptions!$F146,BU$55<=Assumptions!$G146),1/Assumptions!$H146,0) -> 0 | BV64: =IF(AND(BV$55>=Assumptions!$F146,BV$55<=Assumptions!$G146),1/Assumptions!$H146,0) -> 0 | BW64: =IF(AND(BW$55>=Assumptions!$F146,BW$55<=Assumptions!$G146),1/Assumptions!$H146,0) -> 0 | BX64: =IF(AND(BX$55>=Assumptions!$F146,BX$55<=Assumptions!$G146),1/Assumptions!$H146,0) -> 0 | BY64: =IF(AND(BY$55>=Assumptions!$F146,BY$55<=Assumptions!$G146),1/Assumptions!$H146,0) -> 0 | BZ64: =IF(AND(BZ$55>=Assumptions!$F146,BZ$55<=Assumptions!$G146),1/Assumptions!$H146,0) -> 0 | CA64: =IF(AND(CA$55>=Assumptions!$F146,CA$55<=Assumptions!$G146),1/Assumptions!$H146,0) -> 0 | CB64: =IF(AND(CB$55>=Assumptions!$F146,CB$55<=Assumptions!$G146),1/Assumptions!$H146,0) -> 0 | CC64: =IF(AND(CC$55>=Assumptions!$F146,CC$55<=Assumptions!$G146),1/Assumptions!$H146,0) -> 0 | CD64: =IF(AND(CD$55>=Assumptions!$F146,CD$55<=Assumptions!$G146),1/Assumptions!$H146,0) -> 0 | CE64: =IF(AND(CE$55>=Assumptions!$F146,CE$55<=Assumptions!$G146),1/Assumptions!$H146,0) -> 0 | CF64: =IF(AND(CF$55>=Assumptions!$F146,CF$55<=Assumptions!$G146),1/Assumptions!$H146,0) -> 0 | CG64: =IF(AND(CG$55>=Assumptions!$F146,CG$55<=Assumptions!$G146),1/Assumptions!$H146,0) -> 0 | CH64: =IF(AND(CH$55>=Assumptions!$F146,CH$55<=Assumptions!$G146),1/Assumptions!$H146,0) -> 0 | CI64: =IF(AND(CI$55>=Assumptions!$F146,CI$55<=Assumptions!$G146),1/Assumptions!$H146,0) -> 0 | CJ64: =IF(AND(CJ$55>=Assumptions!$F146,CJ$55<=Assumptions!$G146),1/Assumptions!$H146,0) -> 0 | CK64: =IF(AND(CK$55>=Assumptions!$F146,CK$55<=Assumptions!$G146),1/Assumptions!$H146,0) -> 0 | CL64: =IF(AND(CL$55>=Assumptions!$F146,CL$55<=Assumptions!$G146),1/Assumptions!$H146,0) -> 0 | CM64: =IF(AND(CM$55>=Assumptions!$F146,CM$55<=Assumptions!$G146),1/Assumptions!$H146,0) -> 0 | CN64: =IF(AND(CN$55>=Assumptions!$F146,CN$55<=Assumptions!$G146),1/Assumptions!$H146,0) -> 0 | CO64: =IF(AND(CO$55>=Assumptions!$F146,CO$55<=Assumptions!$G146),1/Assumptions!$H146,0) -> 0 | CP64: =IF(AND(CP$55>=Assumptions!$F146,CP$55<=Assumptions!$G146),1/Assumptions!$H146,0) -> 0 | CQ64: =IF(AND(CQ$55>=Assumptions!$F146,CQ$55<=Assumptions!$G146),1/Assumptions!$H146,0) -> 0 | CR64: =IF(AND(CR$55>=Assumptions!$F146,CR$55<=Assumptions!$G146),1/Assumptions!$H146,0) -> 0 | CS64: =IF(AND(CS$55>=Assumptions!$F146,CS$55<=Assumptions!$G146),1/Assumptions!$H146,0) -> 0 | CT64: =IF(AND(CT$55>=Assumptions!$F146,CT$55<=Assumptions!$G146),1/Assumptions!$H146,0) -> 0 | CU64: =IF(AND(CU$55>=Assumptions!$F146,CU$55<=Assumptions!$G146),1/Assumptions!$H146,0) -> 0 | CV64: =IF(AND(CV$55>=Assumptions!$F146,CV$55<=Assumptions!$G146),1/Assumptions!$H146,0) -> 0 | CW64: =IF(AND(CW$55>=Assumptions!$F146,CW$55<=Assumptions!$G146),1/Assumptions!$H146,0) -> 0 | CX64: =IF(AND(CX$55>=Assumptions!$F146,CX$55<=Assumptions!$G146),1/Assumptions!$H146,0) -> 0 | CY64: =IF(AND(CY$55>=Assumptions!$F146,CY$55<=Assumptions!$G146),1/Assumptions!$H146,0) -> 0 | CZ64: =IF(AND(CZ$55>=Assumptions!$F146,CZ$55<=Assumptions!$G146),1/Assumptions!$H146,0) -> 0 | DA64: =IF(AND(DA$55>=Assumptions!$F146,DA$55<=Assumptions!$G146),1/Assumptions!$H146,0) -> 0 | DB64: =IF(AND(DB$55>=Assumptions!$F146,DB$55<=Assumptions!$G146),1/Assumptions!$H146,0) -> 0 | DC64: =IF(AND(DC$55>=Assumptions!$F146,DC$55<=Assumptions!$G146),1/Assumptions!$H146,0) -> 0 | DD64: =IF(AND(DD$55>=Assumptions!$F146,DD$55<=Assumptions!$G146),1/Assumptions!$H146,0) -> 0 | DE64: =IF(AND(DE$55>=Assumptions!$F146,DE$55<=Assumptions!$G146),1/Assumptions!$H146,0) -> 0 | DF64: =IF(AND(DF$55>=Assumptions!$F146,DF$55<=Assumptions!$G146),1/Assumptions!$H146,0) -> 0 | DG64: =IF(AND(DG$55>=Assumptions!$F146,DG$55<=Assumptions!$G146),1/Assumptions!$H146,0) -> 0 | DH64: =IF(AND(DH$55>=Assumptions!$F146,DH$55<=Assumptions!$G146),1/Assumptions!$H146,0) -> 0 | DI64: =IF(AND(DI$55>=Assumptions!$F146,DI$55<=Assumptions!$G146),1/Assumptions!$H146,0) -> 0 | DJ64: =IF(AND(DJ$55>=Assumptions!$F146,DJ$55<=Assumptions!$G146),1/Assumptions!$H146,0) -> 0 | DK64: =IF(AND(DK$55>=Assumptions!$F146,DK$55<=Assumptions!$G146),1/Assumptions!$H146,0) -> 0 | DL64: =IF(AND(DL$55>=Assumptions!$F146,DL$55<=Assumptions!$G146),1/Assumptions!$H146,0) -> 0 | DM64: =IF(AND(DM$55>=Assumptions!$F146,DM$55<=Assumptions!$G146),1/Assumptions!$H146,0) -> 0 | DN64: =IF(AND(DN$55>=Assumptions!$F146,DN$55<=Assumptions!$G146),1/Assumptions!$H146,0) -> 0 | DO64: =IF(AND(DO$55>=Assumptions!$F146,DO$55<=Assumptions!$G146),1/Assumptions!$H146,0) -> 0 | DP64: =IF(AND(DP$55>=Assumptions!$F146,DP$55<=Assumptions!$G146),1/Assumptions!$H146,0) -> 0 | DQ64: =IF(AND(DQ$55>=Assumptions!$F146,DQ$55<=Assumptions!$G146),1/Assumptions!$H146,0) -> 0 | DR64: =IF(AND(DR$55>=Assumptions!$F146,DR$55<=Assumptions!$G146),1/Assumptions!$H146,0) -> 0 | DS64: =IF(AND(DS$55>=Assumptions!$F146,DS$55<=Assumptions!$G146),1/Assumptions!$H146,0) -> 0 | DT64: =IF(AND(DT$55>=Assumptions!$F146,DT$55<=Assumptions!$G146),1/Assumptions!$H146,0) -> 0 | DU64: =IF(AND(DU$55>=Assumptions!$F146,DU$55<=Assumptions!$G146),1/Assumptions!$H146,0) -> 0 | DV64: =IF(AND(DV$55>=Assumptions!$F146,DV$55<=Assumptions!$G146),1/Assumptions!$H146,0) -> 0 | DW64: =IF(AND(DW$55>=Assumptions!$F146,DW$55<=Assumptions!$G146),1/Assumptions!$H146,0) -> 0 | DX64: =IF(AND(DX$55>=Assumptions!$F146,DX$55<=Assumptions!$G146),1/Assumptions!$H146,0) -> 0 | DY64: =IF(AND(DY$55>=Assumptions!$F146,DY$55<=Assumptions!$G146),1/Assumptions!$H146,0) -> 0 | DZ64: =IF(AND(DZ$55>=Assumptions!$F146,DZ$55<=Assumptions!$G146),1/Assumptions!$H146,0) -> 0 | EA64: =IF(AND(EA$55>=Assumptions!$F146,EA$55<=Assumptions!$G146),1/Assumptions!$H146,0) -> 0 | EB64: =IF(AND(EB$55>=Assumptions!$F146,EB$55<=Assumptions!$G146),1/Assumptions!$H146,0) -> 0 | EC64: =IF(AND(EC$55>=Assumptions!$F146,EC$55<=Assumptions!$G146),1/Assumptions!$H146,0) -> 0 | ED64: =IF(AND(ED$55>=Assumptions!$F146,ED$55<=Assumptions!$G146),1/Assumptions!$H146,0) -> 0 | EE64: =IF(AND(EE$55>=Assumptions!$F146,EE$55<=Assumptions!$G146),1/Assumptions!$H146,0) -> 0 | EF64: =IF(AND(EF$55>=Assumptions!$F146,EF$55<=Assumptions!$G146),1/Assumptions!$H146,0) -> 0 | EG64: =IF(AND(EG$55>=Assumptions!$F146,EG$55<=Assumptions!$G146),1/Assumptions!$H146,0) -> 0 | EH64: =IF(AND(EH$55>=Assumptions!$F146,EH$55<=Assumptions!$G146),1/Assumptions!$H146,0) -> 0 | EI64: =IF(AND(EI$55>=Assumptions!$F146,EI$55<=Assumptions!$G146),1/Assumptions!$H146,0) -> 0 | EJ64: =IF(AND(EJ$55>=Assumptions!$F146,EJ$55<=Assumptions!$G146),1/Assumptions!$H146,0) -> 0 | EK64: =IF(AND(EK$55>=Assumptions!$F146,EK$55<=Assumptions!$G146),1/Assumptions!$H146,0) -> 0 | EL64: =IF(AND(EL$55>=Assumptions!$F146,EL$55<=Assumptions!$G146),1/Assumptions!$H146,0) -> 0 | EM64: =IF(AND(EM$55>=Assumptions!$F146,EM$55<=Assumptions!$G146),1/Assumptions!$H146,0) -> 0
B65: Closing Cost/Loan Fee | D65: 54500 | I65: TRUE | J65: 1 | K65: =IF(AND(K$55>=Assumptions!$F147,K$55<=Assumptions!$G147),1/Assumptions!$H147,0) -> 0 | L65: =IF(AND(L$55>=Assumptions!$F147,L$55<=Assumptions!$G147),1/Assumptions!$H147,0) -> 1 | M65: =IF(AND(M$55>=Assumptions!$F147,M$55<=Assumptions!$G147),1/Assumptions!$H147,0) -> 0 | N65: =IF(AND(N$55>=Assumptions!$F147,N$55<=Assumptions!$G147),1/Assumptions!$H147,0) -> 0 | O65: =IF(AND(O$55>=Assumptions!$F147,O$55<=Assumptions!$G147),1/Assumptions!$H147,0) -> 0 | P65: =IF(AND(P$55>=Assumptions!$F147,P$55<=Assumptions!$G147),1/Assumptions!$H147,0) -> 0 | Q65: =IF(AND(Q$55>=Assumptions!$F147,Q$55<=Assumptions!$G147),1/Assumptions!$H147,0) -> 0 | R65: =IF(AND(R$55>=Assumptions!$F147,R$55<=Assumptions!$G147),1/Assumptions!$H147,0) -> 0 | S65: =IF(AND(S$55>=Assumptions!$F147,S$55<=Assumptions!$G147),1/Assumptions!$H147,0) -> 0 | T65: =IF(AND(T$55>=Assumptions!$F147,T$55<=Assumptions!$G147),1/Assumptions!$H147,0) -> 0 | U65: =IF(AND(U$55>=Assumptions!$F147,U$55<=Assumptions!$G147),1/Assumptions!$H147,0) -> 0 | V65: =IF(AND(V$55>=Assumptions!$F147,V$55<=Assumptions!$G147),1/Assumptions!$H147,0) -> 0 | W65: =IF(AND(W$55>=Assumptions!$F147,W$55<=Assumptions!$G147),1/Assumptions!$H147,0) -> 0 | X65: =IF(AND(X$55>=Assumptions!$F147,X$55<=Assumptions!$G147),1/Assumptions!$H147,0) -> 0 | Y65: =IF(AND(Y$55>=Assumptions!$F147,Y$55<=Assumptions!$G147),1/Assumptions!$H147,0) -> 0 | Z65: =IF(AND(Z$55>=Assumptions!$F147,Z$55<=Assumptions!$G147),1/Assumptions!$H147,0) -> 0 | AA65: =IF(AND(AA$55>=Assumptions!$F147,AA$55<=Assumptions!$G147),1/Assumptions!$H147,0) -> 0 | AB65: =IF(AND(AB$55>=Assumptions!$F147,AB$55<=Assumptions!$G147),1/Assumptions!$H147,0) -> 0 | AC65: =IF(AND(AC$55>=Assumptions!$F147,AC$55<=Assumptions!$G147),1/Assumptions!$H147,0) -> 0 | AD65: =IF(AND(AD$55>=Assumptions!$F147,AD$55<=Assumptions!$G147),1/Assumptions!$H147,0) -> 0 | AE65: =IF(AND(AE$55>=Assumptions!$F147,AE$55<=Assumptions!$G147),1/Assumptions!$H147,0) -> 0 | AF65: =IF(AND(AF$55>=Assumptions!$F147,AF$55<=Assumptions!$G147),1/Assumptions!$H147,0) -> 0 | AG65: =IF(AND(AG$55>=Assumptions!$F147,AG$55<=Assumptions!$G147),1/Assumptions!$H147,0) -> 0 | AH65: =IF(AND(AH$55>=Assumptions!$F147,AH$55<=Assumptions!$G147),1/Assumptions!$H147,0) -> 0 | AI65: =IF(AND(AI$55>=Assumptions!$F147,AI$55<=Assumptions!$G147),1/Assumptions!$H147,0) -> 0 | AJ65: =IF(AND(AJ$55>=Assumptions!$F147,AJ$55<=Assumptions!$G147),1/Assumptions!$H147,0) -> 0 | AK65: =IF(AND(AK$55>=Assumptions!$F147,AK$55<=Assumptions!$G147),1/Assumptions!$H147,0) -> 0 | AL65: =IF(AND(AL$55>=Assumptions!$F147,AL$55<=Assumptions!$G147),1/Assumptions!$H147,0) -> 0 | AM65: =IF(AND(AM$55>=Assumptions!$F147,AM$55<=Assumptions!$G147),1/Assumptions!$H147,0) -> 0 | AN65: =IF(AND(AN$55>=Assumptions!$F147,AN$55<=Assumptions!$G147),1/Assumptions!$H147,0) -> 0 | AO65: =IF(AND(AO$55>=Assumptions!$F147,AO$55<=Assumptions!$G147),1/Assumptions!$H147,0) -> 0 | AP65: =IF(AND(AP$55>=Assumptions!$F147,AP$55<=Assumptions!$G147),1/Assumptions!$H147,0) -> 0 | AQ65: =IF(AND(AQ$55>=Assumptions!$F147,AQ$55<=Assumptions!$G147),1/Assumptions!$H147,0) -> 0 | AR65: =IF(AND(AR$55>=Assumptions!$F147,AR$55<=Assumptions!$G147),1/Assumptions!$H147,0) -> 0 | AS65: =IF(AND(AS$55>=Assumptions!$F147,AS$55<=Assumptions!$G147),1/Assumptions!$H147,0) -> 0 | AT65: =IF(AND(AT$55>=Assumptions!$F147,AT$55<=Assumptions!$G147),1/Assumptions!$H147,0) -> 0 | AU65: =IF(AND(AU$55>=Assumptions!$F147,AU$55<=Assumptions!$G147),1/Assumptions!$H147,0) -> 0 | AV65: =IF(AND(AV$55>=Assumptions!$F147,AV$55<=Assumptions!$G147),1/Assumptions!$H147,0) -> 0 | AW65: =IF(AND(AW$55>=Assumptions!$F147,AW$55<=Assumptions!$G147),1/Assumptions!$H147,0) -> 0 | AX65: =IF(AND(AX$55>=Assumptions!$F147,AX$55<=Assumptions!$G147),1/Assumptions!$H147,0) -> 0 | AY65: =IF(AND(AY$55>=Assumptions!$F147,AY$55<=Assumptions!$G147),1/Assumptions!$H147,0) -> 0 | AZ65: =IF(AND(AZ$55>=Assumptions!$F147,AZ$55<=Assumptions!$G147),1/Assumptions!$H147,0) -> 0 | BA65: =IF(AND(BA$55>=Assumptions!$F147,BA$55<=Assumptions!$G147),1/Assumptions!$H147,0) -> 0 | BB65: =IF(AND(BB$55>=Assumptions!$F147,BB$55<=Assumptions!$G147),1/Assumptions!$H147,0) -> 0 | BC65: =IF(AND(BC$55>=Assumptions!$F147,BC$55<=Assumptions!$G147),1/Assumptions!$H147,0) -> 0 | BD65: =IF(AND(BD$55>=Assumptions!$F147,BD$55<=Assumptions!$G147),1/Assumptions!$H147,0) -> 0 | BE65: =IF(AND(BE$55>=Assumptions!$F147,BE$55<=Assumptions!$G147),1/Assumptions!$H147,0) -> 0 | BF65: =IF(AND(BF$55>=Assumptions!$F147,BF$55<=Assumptions!$G147),1/Assumptions!$H147,0) -> 0 | BG65: =IF(AND(BG$55>=Assumptions!$F147,BG$55<=Assumptions!$G147),1/Assumptions!$H147,0) -> 0 | BH65: =IF(AND(BH$55>=Assumptions!$F147,BH$55<=Assumptions!$G147),1/Assumptions!$H147,0) -> 0 | BI65: =IF(AND(BI$55>=Assumptions!$F147,BI$55<=Assumptions!$G147),1/Assumptions!$H147,0) -> 0 | BJ65: =IF(AND(BJ$55>=Assumptions!$F147,BJ$55<=Assumptions!$G147),1/Assumptions!$H147,0) -> 0 | BK65: =IF(AND(BK$55>=Assumptions!$F147,BK$55<=Assumptions!$G147),1/Assumptions!$H147,0) -> 0 | BL65: =IF(AND(BL$55>=Assumptions!$F147,BL$55<=Assumptions!$G147),1/Assumptions!$H147,0) -> 0 | BM65: =IF(AND(BM$55>=Assumptions!$F147,BM$55<=Assumptions!$G147),1/Assumptions!$H147,0) -> 0 | BN65: =IF(AND(BN$55>=Assumptions!$F147,BN$55<=Assumptions!$G147),1/Assumptions!$H147,0) -> 0 | BO65: =IF(AND(BO$55>=Assumptions!$F147,BO$55<=Assumptions!$G147),1/Assumptions!$H147,0) -> 0 | BP65: =IF(AND(BP$55>=Assumptions!$F147,BP$55<=Assumptions!$G147),1/Assumptions!$H147,0) -> 0 | BQ65: =IF(AND(BQ$55>=Assumptions!$F147,BQ$55<=Assumptions!$G147),1/Assumptions!$H147,0) -> 0 | BR65: =IF(AND(BR$55>=Assumptions!$F147,BR$55<=Assumptions!$G147),1/Assumptions!$H147,0) -> 0 | BS65: =IF(AND(BS$55>=Assumptions!$F147,BS$55<=Assumptions!$G147),1/Assumptions!$H147,0) -> 0 | BT65: =IF(AND(BT$55>=Assumptions!$F147,BT$55<=Assumptions!$G147),1/Assumptions!$H147,0) -> 0 | BU65: =IF(AND(BU$55>=Assumptions!$F147,BU$55<=Assumptions!$G147),1/Assumptions!$H147,0) -> 0 | BV65: =IF(AND(BV$55>=Assumptions!$F147,BV$55<=Assumptions!$G147),1/Assumptions!$H147,0) -> 0 | BW65: =IF(AND(BW$55>=Assumptions!$F147,BW$55<=Assumptions!$G147),1/Assumptions!$H147,0) -> 0 | BX65: =IF(AND(BX$55>=Assumptions!$F147,BX$55<=Assumptions!$G147),1/Assumptions!$H147,0) -> 0 | BY65: =IF(AND(BY$55>=Assumptions!$F147,BY$55<=Assumptions!$G147),1/Assumptions!$H147,0) -> 0 | BZ65: =IF(AND(BZ$55>=Assumptions!$F147,BZ$55<=Assumptions!$G147),1/Assumptions!$H147,0) -> 0 | CA65: =IF(AND(CA$55>=Assumptions!$F147,CA$55<=Assumptions!$G147),1/Assumptions!$H147,0) -> 0 | CB65: =IF(AND(CB$55>=Assumptions!$F147,CB$55<=Assumptions!$G147),1/Assumptions!$H147,0) -> 0 | CC65: =IF(AND(CC$55>=Assumptions!$F147,CC$55<=Assumptions!$G147),1/Assumptions!$H147,0) -> 0 | CD65: =IF(AND(CD$55>=Assumptions!$F147,CD$55<=Assumptions!$G147),1/Assumptions!$H147,0) -> 0 | CE65: =IF(AND(CE$55>=Assumptions!$F147,CE$55<=Assumptions!$G147),1/Assumptions!$H147,0) -> 0 | CF65: =IF(AND(CF$55>=Assumptions!$F147,CF$55<=Assumptions!$G147),1/Assumptions!$H147,0) -> 0 | CG65: =IF(AND(CG$55>=Assumptions!$F147,CG$55<=Assumptions!$G147),1/Assumptions!$H147,0) -> 0 | CH65: =IF(AND(CH$55>=Assumptions!$F147,CH$55<=Assumptions!$G147),1/Assumptions!$H147,0) -> 0 | CI65: =IF(AND(CI$55>=Assumptions!$F147,CI$55<=Assumptions!$G147),1/Assumptions!$H147,0) -> 0 | CJ65: =IF(AND(CJ$55>=Assumptions!$F147,CJ$55<=Assumptions!$G147),1/Assumptions!$H147,0) -> 0 | CK65: =IF(AND(CK$55>=Assumptions!$F147,CK$55<=Assumptions!$G147),1/Assumptions!$H147,0) -> 0 | CL65: =IF(AND(CL$55>=Assumptions!$F147,CL$55<=Assumptions!$G147),1/Assumptions!$H147,0) -> 0 | CM65: =IF(AND(CM$55>=Assumptions!$F147,CM$55<=Assumptions!$G147),1/Assumptions!$H147,0) -> 0 | CN65: =IF(AND(CN$55>=Assumptions!$F147,CN$55<=Assumptions!$G147),1/Assumptions!$H147,0) -> 0 | CO65: =IF(AND(CO$55>=Assumptions!$F147,CO$55<=Assumptions!$G147),1/Assumptions!$H147,0) -> 0 | CP65: =IF(AND(CP$55>=Assumptions!$F147,CP$55<=Assumptions!$G147),1/Assumptions!$H147,0) -> 0 | CQ65: =IF(AND(CQ$55>=Assumptions!$F147,CQ$55<=Assumptions!$G147),1/Assumptions!$H147,0) -> 0 | CR65: =IF(AND(CR$55>=Assumptions!$F147,CR$55<=Assumptions!$G147),1/Assumptions!$H147,0) -> 0 | CS65: =IF(AND(CS$55>=Assumptions!$F147,CS$55<=Assumptions!$G147),1/Assumptions!$H147,0) -> 0 | CT65: =IF(AND(CT$55>=Assumptions!$F147,CT$55<=Assumptions!$G147),1/Assumptions!$H147,0) -> 0 | CU65: =IF(AND(CU$55>=Assumptions!$F147,CU$55<=Assumptions!$G147),1/Assumptions!$H147,0) -> 0 | CV65: =IF(AND(CV$55>=Assumptions!$F147,CV$55<=Assumptions!$G147),1/Assumptions!$H147,0) -> 0 | CW65: =IF(AND(CW$55>=Assumptions!$F147,CW$55<=Assumptions!$G147),1/Assumptions!$H147,0) -> 0 | CX65: =IF(AND(CX$55>=Assumptions!$F147,CX$55<=Assumptions!$G147),1/Assumptions!$H147,0) -> 0 | CY65: =IF(AND(CY$55>=Assumptions!$F147,CY$55<=Assumptions!$G147),1/Assumptions!$H147,0) -> 0 | CZ65: =IF(AND(CZ$55>=Assumptions!$F147,CZ$55<=Assumptions!$G147),1/Assumptions!$H147,0) -> 0 | DA65: =IF(AND(DA$55>=Assumptions!$F147,DA$55<=Assumptions!$G147),1/Assumptions!$H147,0) -> 0 | DB65: =IF(AND(DB$55>=Assumptions!$F147,DB$55<=Assumptions!$G147),1/Assumptions!$H147,0) -> 0 | DC65: =IF(AND(DC$55>=Assumptions!$F147,DC$55<=Assumptions!$G147),1/Assumptions!$H147,0) -> 0 | DD65: =IF(AND(DD$55>=Assumptions!$F147,DD$55<=Assumptions!$G147),1/Assumptions!$H147,0) -> 0 | DE65: =IF(AND(DE$55>=Assumptions!$F147,DE$55<=Assumptions!$G147),1/Assumptions!$H147,0) -> 0 | DF65: =IF(AND(DF$55>=Assumptions!$F147,DF$55<=Assumptions!$G147),1/Assumptions!$H147,0) -> 0 | DG65: =IF(AND(DG$55>=Assumptions!$F147,DG$55<=Assumptions!$G147),1/Assumptions!$H147,0) -> 0 | DH65: =IF(AND(DH$55>=Assumptions!$F147,DH$55<=Assumptions!$G147),1/Assumptions!$H147,0) -> 0 | DI65: =IF(AND(DI$55>=Assumptions!$F147,DI$55<=Assumptions!$G147),1/Assumptions!$H147,0) -> 0 | DJ65: =IF(AND(DJ$55>=Assumptions!$F147,DJ$55<=Assumptions!$G147),1/Assumptions!$H147,0) -> 0 | DK65: =IF(AND(DK$55>=Assumptions!$F147,DK$55<=Assumptions!$G147),1/Assumptions!$H147,0) -> 0 | DL65: =IF(AND(DL$55>=Assumptions!$F147,DL$55<=Assumptions!$G147),1/Assumptions!$H147,0) -> 0 | DM65: =IF(AND(DM$55>=Assumptions!$F147,DM$55<=Assumptions!$G147),1/Assumptions!$H147,0) -> 0 | DN65: =IF(AND(DN$55>=Assumptions!$F147,DN$55<=Assumptions!$G147),1/Assumptions!$H147,0) -> 0 | DO65: =IF(AND(DO$55>=Assumptions!$F147,DO$55<=Assumptions!$G147),1/Assumptions!$H147,0) -> 0 | DP65: =IF(AND(DP$55>=Assumptions!$F147,DP$55<=Assumptions!$G147),1/Assumptions!$H147,0) -> 0 | DQ65: =IF(AND(DQ$55>=Assumptions!$F147,DQ$55<=Assumptions!$G147),1/Assumptions!$H147,0) -> 0 | DR65: =IF(AND(DR$55>=Assumptions!$F147,DR$55<=Assumptions!$G147),1/Assumptions!$H147,0) -> 0 | DS65: =IF(AND(DS$55>=Assumptions!$F147,DS$55<=Assumptions!$G147),1/Assumptions!$H147,0) -> 0 | DT65: =IF(AND(DT$55>=Assumptions!$F147,DT$55<=Assumptions!$G147),1/Assumptions!$H147,0) -> 0 | DU65: =IF(AND(DU$55>=Assumptions!$F147,DU$55<=Assumptions!$G147),1/Assumptions!$H147,0) -> 0 | DV65: =IF(AND(DV$55>=Assumptions!$F147,DV$55<=Assumptions!$G147),1/Assumptions!$H147,0) -> 0 | DW65: =IF(AND(DW$55>=Assumptions!$F147,DW$55<=Assumptions!$G147),1/Assumptions!$H147,0) -> 0 | DX65: =IF(AND(DX$55>=Assumptions!$F147,DX$55<=Assumptions!$G147),1/Assumptions!$H147,0) -> 0 | DY65: =IF(AND(DY$55>=Assumptions!$F147,DY$55<=Assumptions!$G147),1/Assumptions!$H147,0) -> 0 | DZ65: =IF(AND(DZ$55>=Assumptions!$F147,DZ$55<=Assumptions!$G147),1/Assumptions!$H147,0) -> 0 | EA65: =IF(AND(EA$55>=Assumptions!$F147,EA$55<=Assumptions!$G147),1/Assumptions!$H147,0) -> 0 | EB65: =IF(AND(EB$55>=Assumptions!$F147,EB$55<=Assumptions!$G147),1/Assumptions!$H147,0) -> 0 | EC65: =IF(AND(EC$55>=Assumptions!$F147,EC$55<=Assumptions!$G147),1/Assumptions!$H147,0) -> 0 | ED65: =IF(AND(ED$55>=Assumptions!$F147,ED$55<=Assumptions!$G147),1/Assumptions!$H147,0) -> 0 | EE65: =IF(AND(EE$55>=Assumptions!$F147,EE$55<=Assumptions!$G147),1/Assumptions!$H147,0) -> 0 | EF65: =IF(AND(EF$55>=Assumptions!$F147,EF$55<=Assumptions!$G147),1/Assumptions!$H147,0) -> 0 | EG65: =IF(AND(EG$55>=Assumptions!$F147,EG$55<=Assumptions!$G147),1/Assumptions!$H147,0) -> 0 | EH65: =IF(AND(EH$55>=Assumptions!$F147,EH$55<=Assumptions!$G147),1/Assumptions!$H147,0) -> 0 | EI65: =IF(AND(EI$55>=Assumptions!$F147,EI$55<=Assumptions!$G147),1/Assumptions!$H147,0) -> 0 | EJ65: =IF(AND(EJ$55>=Assumptions!$F147,EJ$55<=Assumptions!$G147),1/Assumptions!$H147,0) -> 0 | EK65: =IF(AND(EK$55>=Assumptions!$F147,EK$55<=Assumptions!$G147),1/Assumptions!$H147,0) -> 0 | EL65: =IF(AND(EL$55>=Assumptions!$F147,EL$55<=Assumptions!$G147),1/Assumptions!$H147,0) -> 0 | EM65: =IF(AND(EM$55>=Assumptions!$F147,EM$55<=Assumptions!$G147),1/Assumptions!$H147,0) -> 0
B66: Interest Reserve | D66: 0 | I66: TRUE | J66: 1 | K66: =IF(AND(K$55>=Assumptions!$F148,K$55<=Assumptions!$G148),1/Assumptions!$H148,0) -> 0 | L66: =IF(AND(L$55>=Assumptions!$F148,L$55<=Assumptions!$G148),1/Assumptions!$H148,0) -> 1 | M66: =IF(AND(M$55>=Assumptions!$F148,M$55<=Assumptions!$G148),1/Assumptions!$H148,0) -> 0 | N66: =IF(AND(N$55>=Assumptions!$F148,N$55<=Assumptions!$G148),1/Assumptions!$H148,0) -> 0 | O66: =IF(AND(O$55>=Assumptions!$F148,O$55<=Assumptions!$G148),1/Assumptions!$H148,0) -> 0 | P66: =IF(AND(P$55>=Assumptions!$F148,P$55<=Assumptions!$G148),1/Assumptions!$H148,0) -> 0 | Q66: =IF(AND(Q$55>=Assumptions!$F148,Q$55<=Assumptions!$G148),1/Assumptions!$H148,0) -> 0 | R66: =IF(AND(R$55>=Assumptions!$F148,R$55<=Assumptions!$G148),1/Assumptions!$H148,0) -> 0 | S66: =IF(AND(S$55>=Assumptions!$F148,S$55<=Assumptions!$G148),1/Assumptions!$H148,0) -> 0 | T66: =IF(AND(T$55>=Assumptions!$F148,T$55<=Assumptions!$G148),1/Assumptions!$H148,0) -> 0 | U66: =IF(AND(U$55>=Assumptions!$F148,U$55<=Assumptions!$G148),1/Assumptions!$H148,0) -> 0 | V66: =IF(AND(V$55>=Assumptions!$F148,V$55<=Assumptions!$G148),1/Assumptions!$H148,0) -> 0 | W66: =IF(AND(W$55>=Assumptions!$F148,W$55<=Assumptions!$G148),1/Assumptions!$H148,0) -> 0 | X66: =IF(AND(X$55>=Assumptions!$F148,X$55<=Assumptions!$G148),1/Assumptions!$H148,0) -> 0 | Y66: =IF(AND(Y$55>=Assumptions!$F148,Y$55<=Assumptions!$G148),1/Assumptions!$H148,0) -> 0 | Z66: =IF(AND(Z$55>=Assumptions!$F148,Z$55<=Assumptions!$G148),1/Assumptions!$H148,0) -> 0 | AA66: =IF(AND(AA$55>=Assumptions!$F148,AA$55<=Assumptions!$G148),1/Assumptions!$H148,0) -> 0 | AB66: =IF(AND(AB$55>=Assumptions!$F148,AB$55<=Assumptions!$G148),1/Assumptions!$H148,0) -> 0 | AC66: =IF(AND(AC$55>=Assumptions!$F148,AC$55<=Assumptions!$G148),1/Assumptions!$H148,0) -> 0 | AD66: =IF(AND(AD$55>=Assumptions!$F148,AD$55<=Assumptions!$G148),1/Assumptions!$H148,0) -> 0 | AE66: =IF(AND(AE$55>=Assumptions!$F148,AE$55<=Assumptions!$G148),1/Assumptions!$H148,0) -> 0 | AF66: =IF(AND(AF$55>=Assumptions!$F148,AF$55<=Assumptions!$G148),1/Assumptions!$H148,0) -> 0 | AG66: =IF(AND(AG$55>=Assumptions!$F148,AG$55<=Assumptions!$G148),1/Assumptions!$H148,0) -> 0 | AH66: =IF(AND(AH$55>=Assumptions!$F148,AH$55<=Assumptions!$G148),1/Assumptions!$H148,0) -> 0 | AI66: =IF(AND(AI$55>=Assumptions!$F148,AI$55<=Assumptions!$G148),1/Assumptions!$H148,0) -> 0 | AJ66: =IF(AND(AJ$55>=Assumptions!$F148,AJ$55<=Assumptions!$G148),1/Assumptions!$H148,0) -> 0 | AK66: =IF(AND(AK$55>=Assumptions!$F148,AK$55<=Assumptions!$G148),1/Assumptions!$H148,0) -> 0 | AL66: =IF(AND(AL$55>=Assumptions!$F148,AL$55<=Assumptions!$G148),1/Assumptions!$H148,0) -> 0 | AM66: =IF(AND(AM$55>=Assumptions!$F148,AM$55<=Assumptions!$G148),1/Assumptions!$H148,0) -> 0 | AN66: =IF(AND(AN$55>=Assumptions!$F148,AN$55<=Assumptions!$G148),1/Assumptions!$H148,0) -> 0 | AO66: =IF(AND(AO$55>=Assumptions!$F148,AO$55<=Assumptions!$G148),1/Assumptions!$H148,0) -> 0 | AP66: =IF(AND(AP$55>=Assumptions!$F148,AP$55<=Assumptions!$G148),1/Assumptions!$H148,0) -> 0 | AQ66: =IF(AND(AQ$55>=Assumptions!$F148,AQ$55<=Assumptions!$G148),1/Assumptions!$H148,0) -> 0 | AR66: =IF(AND(AR$55>=Assumptions!$F148,AR$55<=Assumptions!$G148),1/Assumptions!$H148,0) -> 0 | AS66: =IF(AND(AS$55>=Assumptions!$F148,AS$55<=Assumptions!$G148),1/Assumptions!$H148,0) -> 0 | AT66: =IF(AND(AT$55>=Assumptions!$F148,AT$55<=Assumptions!$G148),1/Assumptions!$H148,0) -> 0 | AU66: =IF(AND(AU$55>=Assumptions!$F148,AU$55<=Assumptions!$G148),1/Assumptions!$H148,0) -> 0 | AV66: =IF(AND(AV$55>=Assumptions!$F148,AV$55<=Assumptions!$G148),1/Assumptions!$H148,0) -> 0 | AW66: =IF(AND(AW$55>=Assumptions!$F148,AW$55<=Assumptions!$G148),1/Assumptions!$H148,0) -> 0 | AX66: =IF(AND(AX$55>=Assumptions!$F148,AX$55<=Assumptions!$G148),1/Assumptions!$H148,0) -> 0 | AY66: =IF(AND(AY$55>=Assumptions!$F148,AY$55<=Assumptions!$G148),1/Assumptions!$H148,0) -> 0 | AZ66: =IF(AND(AZ$55>=Assumptions!$F148,AZ$55<=Assumptions!$G148),1/Assumptions!$H148,0) -> 0 | BA66: =IF(AND(BA$55>=Assumptions!$F148,BA$55<=Assumptions!$G148),1/Assumptions!$H148,0) -> 0 | BB66: =IF(AND(BB$55>=Assumptions!$F148,BB$55<=Assumptions!$G148),1/Assumptions!$H148,0) -> 0 | BC66: =IF(AND(BC$55>=Assumptions!$F148,BC$55<=Assumptions!$G148),1/Assumptions!$H148,0) -> 0 | BD66: =IF(AND(BD$55>=Assumptions!$F148,BD$55<=Assumptions!$G148),1/Assumptions!$H148,0) -> 0 | BE66: =IF(AND(BE$55>=Assumptions!$F148,BE$55<=Assumptions!$G148),1/Assumptions!$H148,0) -> 0 | BF66: =IF(AND(BF$55>=Assumptions!$F148,BF$55<=Assumptions!$G148),1/Assumptions!$H148,0) -> 0 | BG66: =IF(AND(BG$55>=Assumptions!$F148,BG$55<=Assumptions!$G148),1/Assumptions!$H148,0) -> 0 | BH66: =IF(AND(BH$55>=Assumptions!$F148,BH$55<=Assumptions!$G148),1/Assumptions!$H148,0) -> 0 | BI66: =IF(AND(BI$55>=Assumptions!$F148,BI$55<=Assumptions!$G148),1/Assumptions!$H148,0) -> 0 | BJ66: =IF(AND(BJ$55>=Assumptions!$F148,BJ$55<=Assumptions!$G148),1/Assumptions!$H148,0) -> 0 | BK66: =IF(AND(BK$55>=Assumptions!$F148,BK$55<=Assumptions!$G148),1/Assumptions!$H148,0) -> 0 | BL66: =IF(AND(BL$55>=Assumptions!$F148,BL$55<=Assumptions!$G148),1/Assumptions!$H148,0) -> 0 | BM66: =IF(AND(BM$55>=Assumptions!$F148,BM$55<=Assumptions!$G148),1/Assumptions!$H148,0) -> 0 | BN66: =IF(AND(BN$55>=Assumptions!$F148,BN$55<=Assumptions!$G148),1/Assumptions!$H148,0) -> 0 | BO66: =IF(AND(BO$55>=Assumptions!$F148,BO$55<=Assumptions!$G148),1/Assumptions!$H148,0) -> 0 | BP66: =IF(AND(BP$55>=Assumptions!$F148,BP$55<=Assumptions!$G148),1/Assumptions!$H148,0) -> 0 | BQ66: =IF(AND(BQ$55>=Assumptions!$F148,BQ$55<=Assumptions!$G148),1/Assumptions!$H148,0) -> 0 | BR66: =IF(AND(BR$55>=Assumptions!$F148,BR$55<=Assumptions!$G148),1/Assumptions!$H148,0) -> 0 | BS66: =IF(AND(BS$55>=Assumptions!$F148,BS$55<=Assumptions!$G148),1/Assumptions!$H148,0) -> 0 | BT66: =IF(AND(BT$55>=Assumptions!$F148,BT$55<=Assumptions!$G148),1/Assumptions!$H148,0) -> 0 | BU66: =IF(AND(BU$55>=Assumptions!$F148,BU$55<=Assumptions!$G148),1/Assumptions!$H148,0) -> 0 | BV66: =IF(AND(BV$55>=Assumptions!$F148,BV$55<=Assumptions!$G148),1/Assumptions!$H148,0) -> 0 | BW66: =IF(AND(BW$55>=Assumptions!$F148,BW$55<=Assumptions!$G148),1/Assumptions!$H148,0) -> 0 | BX66: =IF(AND(BX$55>=Assumptions!$F148,BX$55<=Assumptions!$G148),1/Assumptions!$H148,0) -> 0 | BY66: =IF(AND(BY$55>=Assumptions!$F148,BY$55<=Assumptions!$G148),1/Assumptions!$H148,0) -> 0 | BZ66: =IF(AND(BZ$55>=Assumptions!$F148,BZ$55<=Assumptions!$G148),1/Assumptions!$H148,0) -> 0 | CA66: =IF(AND(CA$55>=Assumptions!$F148,CA$55<=Assumptions!$G148),1/Assumptions!$H148,0) -> 0 | CB66: =IF(AND(CB$55>=Assumptions!$F148,CB$55<=Assumptions!$G148),1/Assumptions!$H148,0) -> 0 | CC66: =IF(AND(CC$55>=Assumptions!$F148,CC$55<=Assumptions!$G148),1/Assumptions!$H148,0) -> 0 | CD66: =IF(AND(CD$55>=Assumptions!$F148,CD$55<=Assumptions!$G148),1/Assumptions!$H148,0) -> 0 | CE66: =IF(AND(CE$55>=Assumptions!$F148,CE$55<=Assumptions!$G148),1/Assumptions!$H148,0) -> 0 | CF66: =IF(AND(CF$55>=Assumptions!$F148,CF$55<=Assumptions!$G148),1/Assumptions!$H148,0) -> 0 | CG66: =IF(AND(CG$55>=Assumptions!$F148,CG$55<=Assumptions!$G148),1/Assumptions!$H148,0) -> 0 | CH66: =IF(AND(CH$55>=Assumptions!$F148,CH$55<=Assumptions!$G148),1/Assumptions!$H148,0) -> 0 | CI66: =IF(AND(CI$55>=Assumptions!$F148,CI$55<=Assumptions!$G148),1/Assumptions!$H148,0) -> 0 | CJ66: =IF(AND(CJ$55>=Assumptions!$F148,CJ$55<=Assumptions!$G148),1/Assumptions!$H148,0) -> 0 | CK66: =IF(AND(CK$55>=Assumptions!$F148,CK$55<=Assumptions!$G148),1/Assumptions!$H148,0) -> 0 | CL66: =IF(AND(CL$55>=Assumptions!$F148,CL$55<=Assumptions!$G148),1/Assumptions!$H148,0) -> 0 | CM66: =IF(AND(CM$55>=Assumptions!$F148,CM$55<=Assumptions!$G148),1/Assumptions!$H148,0) -> 0 | CN66: =IF(AND(CN$55>=Assumptions!$F148,CN$55<=Assumptions!$G148),1/Assumptions!$H148,0) -> 0 | CO66: =IF(AND(CO$55>=Assumptions!$F148,CO$55<=Assumptions!$G148),1/Assumptions!$H148,0) -> 0 | CP66: =IF(AND(CP$55>=Assumptions!$F148,CP$55<=Assumptions!$G148),1/Assumptions!$H148,0) -> 0 | CQ66: =IF(AND(CQ$55>=Assumptions!$F148,CQ$55<=Assumptions!$G148),1/Assumptions!$H148,0) -> 0 | CR66: =IF(AND(CR$55>=Assumptions!$F148,CR$55<=Assumptions!$G148),1/Assumptions!$H148,0) -> 0 | CS66: =IF(AND(CS$55>=Assumptions!$F148,CS$55<=Assumptions!$G148),1/Assumptions!$H148,0) -> 0 | CT66: =IF(AND(CT$55>=Assumptions!$F148,CT$55<=Assumptions!$G148),1/Assumptions!$H148,0) -> 0 | CU66: =IF(AND(CU$55>=Assumptions!$F148,CU$55<=Assumptions!$G148),1/Assumptions!$H148,0) -> 0 | CV66: =IF(AND(CV$55>=Assumptions!$F148,CV$55<=Assumptions!$G148),1/Assumptions!$H148,0) -> 0 | CW66: =IF(AND(CW$55>=Assumptions!$F148,CW$55<=Assumptions!$G148),1/Assumptions!$H148,0) -> 0 | CX66: =IF(AND(CX$55>=Assumptions!$F148,CX$55<=Assumptions!$G148),1/Assumptions!$H148,0) -> 0 | CY66: =IF(AND(CY$55>=Assumptions!$F148,CY$55<=Assumptions!$G148),1/Assumptions!$H148,0) -> 0 | CZ66: =IF(AND(CZ$55>=Assumptions!$F148,CZ$55<=Assumptions!$G148),1/Assumptions!$H148,0) -> 0 | DA66: =IF(AND(DA$55>=Assumptions!$F148,DA$55<=Assumptions!$G148),1/Assumptions!$H148,0) -> 0 | DB66: =IF(AND(DB$55>=Assumptions!$F148,DB$55<=Assumptions!$G148),1/Assumptions!$H148,0) -> 0 | DC66: =IF(AND(DC$55>=Assumptions!$F148,DC$55<=Assumptions!$G148),1/Assumptions!$H148,0) -> 0 | DD66: =IF(AND(DD$55>=Assumptions!$F148,DD$55<=Assumptions!$G148),1/Assumptions!$H148,0) -> 0 | DE66: =IF(AND(DE$55>=Assumptions!$F148,DE$55<=Assumptions!$G148),1/Assumptions!$H148,0) -> 0 | DF66: =IF(AND(DF$55>=Assumptions!$F148,DF$55<=Assumptions!$G148),1/Assumptions!$H148,0) -> 0 | DG66: =IF(AND(DG$55>=Assumptions!$F148,DG$55<=Assumptions!$G148),1/Assumptions!$H148,0) -> 0 | DH66: =IF(AND(DH$55>=Assumptions!$F148,DH$55<=Assumptions!$G148),1/Assumptions!$H148,0) -> 0 | DI66: =IF(AND(DI$55>=Assumptions!$F148,DI$55<=Assumptions!$G148),1/Assumptions!$H148,0) -> 0 | DJ66: =IF(AND(DJ$55>=Assumptions!$F148,DJ$55<=Assumptions!$G148),1/Assumptions!$H148,0) -> 0 | DK66: =IF(AND(DK$55>=Assumptions!$F148,DK$55<=Assumptions!$G148),1/Assumptions!$H148,0) -> 0 | DL66: =IF(AND(DL$55>=Assumptions!$F148,DL$55<=Assumptions!$G148),1/Assumptions!$H148,0) -> 0 | DM66: =IF(AND(DM$55>=Assumptions!$F148,DM$55<=Assumptions!$G148),1/Assumptions!$H148,0) -> 0 | DN66: =IF(AND(DN$55>=Assumptions!$F148,DN$55<=Assumptions!$G148),1/Assumptions!$H148,0) -> 0 | DO66: =IF(AND(DO$55>=Assumptions!$F148,DO$55<=Assumptions!$G148),1/Assumptions!$H148,0) -> 0 | DP66: =IF(AND(DP$55>=Assumptions!$F148,DP$55<=Assumptions!$G148),1/Assumptions!$H148,0) -> 0 | DQ66: =IF(AND(DQ$55>=Assumptions!$F148,DQ$55<=Assumptions!$G148),1/Assumptions!$H148,0) -> 0 | DR66: =IF(AND(DR$55>=Assumptions!$F148,DR$55<=Assumptions!$G148),1/Assumptions!$H148,0) -> 0 | DS66: =IF(AND(DS$55>=Assumptions!$F148,DS$55<=Assumptions!$G148),1/Assumptions!$H148,0) -> 0 | DT66: =IF(AND(DT$55>=Assumptions!$F148,DT$55<=Assumptions!$G148),1/Assumptions!$H148,0) -> 0 | DU66: =IF(AND(DU$55>=Assumptions!$F148,DU$55<=Assumptions!$G148),1/Assumptions!$H148,0) -> 0 | DV66: =IF(AND(DV$55>=Assumptions!$F148,DV$55<=Assumptions!$G148),1/Assumptions!$H148,0) -> 0 | DW66: =IF(AND(DW$55>=Assumptions!$F148,DW$55<=Assumptions!$G148),1/Assumptions!$H148,0) -> 0 | DX66: =IF(AND(DX$55>=Assumptions!$F148,DX$55<=Assumptions!$G148),1/Assumptions!$H148,0) -> 0 | DY66: =IF(AND(DY$55>=Assumptions!$F148,DY$55<=Assumptions!$G148),1/Assumptions!$H148,0) -> 0 | DZ66: =IF(AND(DZ$55>=Assumptions!$F148,DZ$55<=Assumptions!$G148),1/Assumptions!$H148,0) -> 0 | EA66: =IF(AND(EA$55>=Assumptions!$F148,EA$55<=Assumptions!$G148),1/Assumptions!$H148,0) -> 0 | EB66: =IF(AND(EB$55>=Assumptions!$F148,EB$55<=Assumptions!$G148),1/Assumptions!$H148,0) -> 0 | EC66: =IF(AND(EC$55>=Assumptions!$F148,EC$55<=Assumptions!$G148),1/Assumptions!$H148,0) -> 0 | ED66: =IF(AND(ED$55>=Assumptions!$F148,ED$55<=Assumptions!$G148),1/Assumptions!$H148,0) -> 0 | EE66: =IF(AND(EE$55>=Assumptions!$F148,EE$55<=Assumptions!$G148),1/Assumptions!$H148,0) -> 0 | EF66: =IF(AND(EF$55>=Assumptions!$F148,EF$55<=Assumptions!$G148),1/Assumptions!$H148,0) -> 0 | EG66: =IF(AND(EG$55>=Assumptions!$F148,EG$55<=Assumptions!$G148),1/Assumptions!$H148,0) -> 0 | EH66: =IF(AND(EH$55>=Assumptions!$F148,EH$55<=Assumptions!$G148),1/Assumptions!$H148,0) -> 0 | EI66: =IF(AND(EI$55>=Assumptions!$F148,EI$55<=Assumptions!$G148),1/Assumptions!$H148,0) -> 0 | EJ66: =IF(AND(EJ$55>=Assumptions!$F148,EJ$55<=Assumptions!$G148),1/Assumptions!$H148,0) -> 0 | EK66: =IF(AND(EK$55>=Assumptions!$F148,EK$55<=Assumptions!$G148),1/Assumptions!$H148,0) -> 0 | EL66: =IF(AND(EL$55>=Assumptions!$F148,EL$55<=Assumptions!$G148),1/Assumptions!$H148,0) -> 0 | EM66: =IF(AND(EM$55>=Assumptions!$F148,EM$55<=Assumptions!$G148),1/Assumptions!$H148,0) -> 0
B67: Contingency Budget | D67: 348800 | I67: TRUE | J67: 1 | K67: =IF(AND(K$55>=Assumptions!$F149,K$55<=Assumptions!$G149),1/Assumptions!$H149,0) -> 0 | L67: =IF(AND(L$55>=Assumptions!$F149,L$55<=Assumptions!$G149),1/Assumptions!$H149,0) -> 0.04166666667 | M67: =IF(AND(M$55>=Assumptions!$F149,M$55<=Assumptions!$G149),1/Assumptions!$H149,0) -> 0.04166666667 | N67: =IF(AND(N$55>=Assumptions!$F149,N$55<=Assumptions!$G149),1/Assumptions!$H149,0) -> 0.04166666667 | O67: =IF(AND(O$55>=Assumptions!$F149,O$55<=Assumptions!$G149),1/Assumptions!$H149,0) -> 0.04166666667 | P67: =IF(AND(P$55>=Assumptions!$F149,P$55<=Assumptions!$G149),1/Assumptions!$H149,0) -> 0.04166666667 | Q67: =IF(AND(Q$55>=Assumptions!$F149,Q$55<=Assumptions!$G149),1/Assumptions!$H149,0) -> 0.04166666667 | R67: =IF(AND(R$55>=Assumptions!$F149,R$55<=Assumptions!$G149),1/Assumptions!$H149,0) -> 0.04166666667 | S67: =IF(AND(S$55>=Assumptions!$F149,S$55<=Assumptions!$G149),1/Assumptions!$H149,0) -> 0.04166666667 | T67: =IF(AND(T$55>=Assumptions!$F149,T$55<=Assumptions!$G149),1/Assumptions!$H149,0) -> 0.04166666667 | U67: =IF(AND(U$55>=Assumptions!$F149,U$55<=Assumptions!$G149),1/Assumptions!$H149,0) -> 0.04166666667 | V67: =IF(AND(V$55>=Assumptions!$F149,V$55<=Assumptions!$G149),1/Assumptions!$H149,0) -> 0.04166666667 | W67: =IF(AND(W$55>=Assumptions!$F149,W$55<=Assumptions!$G149),1/Assumptions!$H149,0) -> 0.04166666667 | X67: =IF(AND(X$55>=Assumptions!$F149,X$55<=Assumptions!$G149),1/Assumptions!$H149,0) -> 0.04166666667 | Y67: =IF(AND(Y$55>=Assumptions!$F149,Y$55<=Assumptions!$G149),1/Assumptions!$H149,0) -> 0.04166666667 | Z67: =IF(AND(Z$55>=Assumptions!$F149,Z$55<=Assumptions!$G149),1/Assumptions!$H149,0) -> 0.04166666667 | AA67: =IF(AND(AA$55>=Assumptions!$F149,AA$55<=Assumptions!$G149),1/Assumptions!$H149,0) -> 0.04166666667 | AB67: =IF(AND(AB$55>=Assumptions!$F149,AB$55<=Assumptions!$G149),1/Assumptions!$H149,0) -> 0.04166666667 | AC67: =IF(AND(AC$55>=Assumptions!$F149,AC$55<=Assumptions!$G149),1/Assumptions!$H149,0) -> 0.04166666667 | AD67: =IF(AND(AD$55>=Assumptions!$F149,AD$55<=Assumptions!$G149),1/Assumptions!$H149,0) -> 0.04166666667 | AE67: =IF(AND(AE$55>=Assumptions!$F149,AE$55<=Assumptions!$G149),1/Assumptions!$H149,0) -> 0.04166666667 | AF67: =IF(AND(AF$55>=Assumptions!$F149,AF$55<=Assumptions!$G149),1/Assumptions!$H149,0) -> 0.04166666667 | AG67: =IF(AND(AG$55>=Assumptions!$F149,AG$55<=Assumptions!$G149),1/Assumptions!$H149,0) -> 0.04166666667 | AH67: =IF(AND(AH$55>=Assumptions!$F149,AH$55<=Assumptions!$G149),1/Assumptions!$H149,0) -> 0.04166666667 | AI67: =IF(AND(AI$55>=Assumptions!$F149,AI$55<=Assumptions!$G149),1/Assumptions!$H149,0) -> 0.04166666667 | AJ67: =IF(AND(AJ$55>=Assumptions!$F149,AJ$55<=Assumptions!$G149),1/Assumptions!$H149,0) -> 0 | AK67: =IF(AND(AK$55>=Assumptions!$F149,AK$55<=Assumptions!$G149),1/Assumptions!$H149,0) -> 0 | AL67: =IF(AND(AL$55>=Assumptions!$F149,AL$55<=Assumptions!$G149),1/Assumptions!$H149,0) -> 0 | AM67: =IF(AND(AM$55>=Assumptions!$F149,AM$55<=Assumptions!$G149),1/Assumptions!$H149,0) -> 0 | AN67: =IF(AND(AN$55>=Assumptions!$F149,AN$55<=Assumptions!$G149),1/Assumptions!$H149,0) -> 0 | AO67: =IF(AND(AO$55>=Assumptions!$F149,AO$55<=Assumptions!$G149),1/Assumptions!$H149,0) -> 0 | AP67: =IF(AND(AP$55>=Assumptions!$F149,AP$55<=Assumptions!$G149),1/Assumptions!$H149,0) -> 0 | AQ67: =IF(AND(AQ$55>=Assumptions!$F149,AQ$55<=Assumptions!$G149),1/Assumptions!$H149,0) -> 0 | AR67: =IF(AND(AR$55>=Assumptions!$F149,AR$55<=Assumptions!$G149),1/Assumptions!$H149,0) -> 0 | AS67: =IF(AND(AS$55>=Assumptions!$F149,AS$55<=Assumptions!$G149),1/Assumptions!$H149,0) -> 0 | AT67: =IF(AND(AT$55>=Assumptions!$F149,AT$55<=Assumptions!$G149),1/Assumptions!$H149,0) -> 0 | AU67: =IF(AND(AU$55>=Assumptions!$F149,AU$55<=Assumptions!$G149),1/Assumptions!$H149,0) -> 0 | AV67: =IF(AND(AV$55>=Assumptions!$F149,AV$55<=Assumptions!$G149),1/Assumptions!$H149,0) -> 0 | AW67: =IF(AND(AW$55>=Assumptions!$F149,AW$55<=Assumptions!$G149),1/Assumptions!$H149,0) -> 0 | AX67: =IF(AND(AX$55>=Assumptions!$F149,AX$55<=Assumptions!$G149),1/Assumptions!$H149,0) -> 0 | AY67: =IF(AND(AY$55>=Assumptions!$F149,AY$55<=Assumptions!$G149),1/Assumptions!$H149,0) -> 0 | AZ67: =IF(AND(AZ$55>=Assumptions!$F149,AZ$55<=Assumptions!$G149),1/Assumptions!$H149,0) -> 0 | BA67: =IF(AND(BA$55>=Assumptions!$F149,BA$55<=Assumptions!$G149),1/Assumptions!$H149,0) -> 0 | BB67: =IF(AND(BB$55>=Assumptions!$F149,BB$55<=Assumptions!$G149),1/Assumptions!$H149,0) -> 0 | BC67: =IF(AND(BC$55>=Assumptions!$F149,BC$55<=Assumptions!$G149),1/Assumptions!$H149,0) -> 0 | BD67: =IF(AND(BD$55>=Assumptions!$F149,BD$55<=Assumptions!$G149),1/Assumptions!$H149,0) -> 0 | BE67: =IF(AND(BE$55>=Assumptions!$F149,BE$55<=Assumptions!$G149),1/Assumptions!$H149,0) -> 0 | BF67: =IF(AND(BF$55>=Assumptions!$F149,BF$55<=Assumptions!$G149),1/Assumptions!$H149,0) -> 0 | BG67: =IF(AND(BG$55>=Assumptions!$F149,BG$55<=Assumptions!$G149),1/Assumptions!$H149,0) -> 0 | BH67: =IF(AND(BH$55>=Assumptions!$F149,BH$55<=Assumptions!$G149),1/Assumptions!$H149,0) -> 0 | BI67: =IF(AND(BI$55>=Assumptions!$F149,BI$55<=Assumptions!$G149),1/Assumptions!$H149,0) -> 0 | BJ67: =IF(AND(BJ$55>=Assumptions!$F149,BJ$55<=Assumptions!$G149),1/Assumptions!$H149,0) -> 0 | BK67: =IF(AND(BK$55>=Assumptions!$F149,BK$55<=Assumptions!$G149),1/Assumptions!$H149,0) -> 0 | BL67: =IF(AND(BL$55>=Assumptions!$F149,BL$55<=Assumptions!$G149),1/Assumptions!$H149,0) -> 0 | BM67: =IF(AND(BM$55>=Assumptions!$F149,BM$55<=Assumptions!$G149),1/Assumptions!$H149,0) -> 0 | BN67: =IF(AND(BN$55>=Assumptions!$F149,BN$55<=Assumptions!$G149),1/Assumptions!$H149,0) -> 0 | BO67: =IF(AND(BO$55>=Assumptions!$F149,BO$55<=Assumptions!$G149),1/Assumptions!$H149,0) -> 0 | BP67: =IF(AND(BP$55>=Assumptions!$F149,BP$55<=Assumptions!$G149),1/Assumptions!$H149,0) -> 0 | BQ67: =IF(AND(BQ$55>=Assumptions!$F149,BQ$55<=Assumptions!$G149),1/Assumptions!$H149,0) -> 0 | BR67: =IF(AND(BR$55>=Assumptions!$F149,BR$55<=Assumptions!$G149),1/Assumptions!$H149,0) -> 0 | BS67: =IF(AND(BS$55>=Assumptions!$F149,BS$55<=Assumptions!$G149),1/Assumptions!$H149,0) -> 0 | BT67: =IF(AND(BT$55>=Assumptions!$F149,BT$55<=Assumptions!$G149),1/Assumptions!$H149,0) -> 0 | BU67: =IF(AND(BU$55>=Assumptions!$F149,BU$55<=Assumptions!$G149),1/Assumptions!$H149,0) -> 0 | BV67: =IF(AND(BV$55>=Assumptions!$F149,BV$55<=Assumptions!$G149),1/Assumptions!$H149,0) -> 0 | BW67: =IF(AND(BW$55>=Assumptions!$F149,BW$55<=Assumptions!$G149),1/Assumptions!$H149,0) -> 0 | BX67: =IF(AND(BX$55>=Assumptions!$F149,BX$55<=Assumptions!$G149),1/Assumptions!$H149,0) -> 0 | BY67: =IF(AND(BY$55>=Assumptions!$F149,BY$55<=Assumptions!$G149),1/Assumptions!$H149,0) -> 0 | BZ67: =IF(AND(BZ$55>=Assumptions!$F149,BZ$55<=Assumptions!$G149),1/Assumptions!$H149,0) -> 0 | CA67: =IF(AND(CA$55>=Assumptions!$F149,CA$55<=Assumptions!$G149),1/Assumptions!$H149,0) -> 0 | CB67: =IF(AND(CB$55>=Assumptions!$F149,CB$55<=Assumptions!$G149),1/Assumptions!$H149,0) -> 0 | CC67: =IF(AND(CC$55>=Assumptions!$F149,CC$55<=Assumptions!$G149),1/Assumptions!$H149,0) -> 0 | CD67: =IF(AND(CD$55>=Assumptions!$F149,CD$55<=Assumptions!$G149),1/Assumptions!$H149,0) -> 0 | CE67: =IF(AND(CE$55>=Assumptions!$F149,CE$55<=Assumptions!$G149),1/Assumptions!$H149,0) -> 0 | CF67: =IF(AND(CF$55>=Assumptions!$F149,CF$55<=Assumptions!$G149),1/Assumptions!$H149,0) -> 0 | CG67: =IF(AND(CG$55>=Assumptions!$F149,CG$55<=Assumptions!$G149),1/Assumptions!$H149,0) -> 0 | CH67: =IF(AND(CH$55>=Assumptions!$F149,CH$55<=Assumptions!$G149),1/Assumptions!$H149,0) -> 0 | CI67: =IF(AND(CI$55>=Assumptions!$F149,CI$55<=Assumptions!$G149),1/Assumptions!$H149,0) -> 0 | CJ67: =IF(AND(CJ$55>=Assumptions!$F149,CJ$55<=Assumptions!$G149),1/Assumptions!$H149,0) -> 0 | CK67: =IF(AND(CK$55>=Assumptions!$F149,CK$55<=Assumptions!$G149),1/Assumptions!$H149,0) -> 0 | CL67: =IF(AND(CL$55>=Assumptions!$F149,CL$55<=Assumptions!$G149),1/Assumptions!$H149,0) -> 0 | CM67: =IF(AND(CM$55>=Assumptions!$F149,CM$55<=Assumptions!$G149),1/Assumptions!$H149,0) -> 0 | CN67: =IF(AND(CN$55>=Assumptions!$F149,CN$55<=Assumptions!$G149),1/Assumptions!$H149,0) -> 0 | CO67: =IF(AND(CO$55>=Assumptions!$F149,CO$55<=Assumptions!$G149),1/Assumptions!$H149,0) -> 0 | CP67: =IF(AND(CP$55>=Assumptions!$F149,CP$55<=Assumptions!$G149),1/Assumptions!$H149,0) -> 0 | CQ67: =IF(AND(CQ$55>=Assumptions!$F149,CQ$55<=Assumptions!$G149),1/Assumptions!$H149,0) -> 0 | CR67: =IF(AND(CR$55>=Assumptions!$F149,CR$55<=Assumptions!$G149),1/Assumptions!$H149,0) -> 0 | CS67: =IF(AND(CS$55>=Assumptions!$F149,CS$55<=Assumptions!$G149),1/Assumptions!$H149,0) -> 0 | CT67: =IF(AND(CT$55>=Assumptions!$F149,CT$55<=Assumptions!$G149),1/Assumptions!$H149,0) -> 0 | CU67: =IF(AND(CU$55>=Assumptions!$F149,CU$55<=Assumptions!$G149),1/Assumptions!$H149,0) -> 0 | CV67: =IF(AND(CV$55>=Assumptions!$F149,CV$55<=Assumptions!$G149),1/Assumptions!$H149,0) -> 0 | CW67: =IF(AND(CW$55>=Assumptions!$F149,CW$55<=Assumptions!$G149),1/Assumptions!$H149,0) -> 0 | CX67: =IF(AND(CX$55>=Assumptions!$F149,CX$55<=Assumptions!$G149),1/Assumptions!$H149,0) -> 0 | CY67: =IF(AND(CY$55>=Assumptions!$F149,CY$55<=Assumptions!$G149),1/Assumptions!$H149,0) -> 0 | CZ67: =IF(AND(CZ$55>=Assumptions!$F149,CZ$55<=Assumptions!$G149),1/Assumptions!$H149,0) -> 0 | DA67: =IF(AND(DA$55>=Assumptions!$F149,DA$55<=Assumptions!$G149),1/Assumptions!$H149,0) -> 0 | DB67: =IF(AND(DB$55>=Assumptions!$F149,DB$55<=Assumptions!$G149),1/Assumptions!$H149,0) -> 0 | DC67: =IF(AND(DC$55>=Assumptions!$F149,DC$55<=Assumptions!$G149),1/Assumptions!$H149,0) -> 0 | DD67: =IF(AND(DD$55>=Assumptions!$F149,DD$55<=Assumptions!$G149),1/Assumptions!$H149,0) -> 0 | DE67: =IF(AND(DE$55>=Assumptions!$F149,DE$55<=Assumptions!$G149),1/Assumptions!$H149,0) -> 0 | DF67: =IF(AND(DF$55>=Assumptions!$F149,DF$55<=Assumptions!$G149),1/Assumptions!$H149,0) -> 0 | DG67: =IF(AND(DG$55>=Assumptions!$F149,DG$55<=Assumptions!$G149),1/Assumptions!$H149,0) -> 0 | DH67: =IF(AND(DH$55>=Assumptions!$F149,DH$55<=Assumptions!$G149),1/Assumptions!$H149,0) -> 0 | DI67: =IF(AND(DI$55>=Assumptions!$F149,DI$55<=Assumptions!$G149),1/Assumptions!$H149,0) -> 0 | DJ67: =IF(AND(DJ$55>=Assumptions!$F149,DJ$55<=Assumptions!$G149),1/Assumptions!$H149,0) -> 0 | DK67: =IF(AND(DK$55>=Assumptions!$F149,DK$55<=Assumptions!$G149),1/Assumptions!$H149,0) -> 0 | DL67: =IF(AND(DL$55>=Assumptions!$F149,DL$55<=Assumptions!$G149),1/Assumptions!$H149,0) -> 0 | DM67: =IF(AND(DM$55>=Assumptions!$F149,DM$55<=Assumptions!$G149),1/Assumptions!$H149,0) -> 0 | DN67: =IF(AND(DN$55>=Assumptions!$F149,DN$55<=Assumptions!$G149),1/Assumptions!$H149,0) -> 0 | DO67: =IF(AND(DO$55>=Assumptions!$F149,DO$55<=Assumptions!$G149),1/Assumptions!$H149,0) -> 0 | DP67: =IF(AND(DP$55>=Assumptions!$F149,DP$55<=Assumptions!$G149),1/Assumptions!$H149,0) -> 0 | DQ67: =IF(AND(DQ$55>=Assumptions!$F149,DQ$55<=Assumptions!$G149),1/Assumptions!$H149,0) -> 0 | DR67: =IF(AND(DR$55>=Assumptions!$F149,DR$55<=Assumptions!$G149),1/Assumptions!$H149,0) -> 0 | DS67: =IF(AND(DS$55>=Assumptions!$F149,DS$55<=Assumptions!$G149),1/Assumptions!$H149,0) -> 0 | DT67: =IF(AND(DT$55>=Assumptions!$F149,DT$55<=Assumptions!$G149),1/Assumptions!$H149,0) -> 0 | DU67: =IF(AND(DU$55>=Assumptions!$F149,DU$55<=Assumptions!$G149),1/Assumptions!$H149,0) -> 0 | DV67: =IF(AND(DV$55>=Assumptions!$F149,DV$55<=Assumptions!$G149),1/Assumptions!$H149,0) -> 0 | DW67: =IF(AND(DW$55>=Assumptions!$F149,DW$55<=Assumptions!$G149),1/Assumptions!$H149,0) -> 0 | DX67: =IF(AND(DX$55>=Assumptions!$F149,DX$55<=Assumptions!$G149),1/Assumptions!$H149,0) -> 0 | DY67: =IF(AND(DY$55>=Assumptions!$F149,DY$55<=Assumptions!$G149),1/Assumptions!$H149,0) -> 0 | DZ67: =IF(AND(DZ$55>=Assumptions!$F149,DZ$55<=Assumptions!$G149),1/Assumptions!$H149,0) -> 0 | EA67: =IF(AND(EA$55>=Assumptions!$F149,EA$55<=Assumptions!$G149),1/Assumptions!$H149,0) -> 0 | EB67: =IF(AND(EB$55>=Assumptions!$F149,EB$55<=Assumptions!$G149),1/Assumptions!$H149,0) -> 0 | EC67: =IF(AND(EC$55>=Assumptions!$F149,EC$55<=Assumptions!$G149),1/Assumptions!$H149,0) -> 0 | ED67: =IF(AND(ED$55>=Assumptions!$F149,ED$55<=Assumptions!$G149),1/Assumptions!$H149,0) -> 0 | EE67: =IF(AND(EE$55>=Assumptions!$F149,EE$55<=Assumptions!$G149),1/Assumptions!$H149,0) -> 0 | EF67: =IF(AND(EF$55>=Assumptions!$F149,EF$55<=Assumptions!$G149),1/Assumptions!$H149,0) -> 0 | EG67: =IF(AND(EG$55>=Assumptions!$F149,EG$55<=Assumptions!$G149),1/Assumptions!$H149,0) -> 0 | EH67: =IF(AND(EH$55>=Assumptions!$F149,EH$55<=Assumptions!$G149),1/Assumptions!$H149,0) -> 0 | EI67: =IF(AND(EI$55>=Assumptions!$F149,EI$55<=Assumptions!$G149),1/Assumptions!$H149,0) -> 0 | EJ67: =IF(AND(EJ$55>=Assumptions!$F149,EJ$55<=Assumptions!$G149),1/Assumptions!$H149,0) -> 0 | EK67: =IF(AND(EK$55>=Assumptions!$F149,EK$55<=Assumptions!$G149),1/Assumptions!$H149,0) -> 0 | EL67: =IF(AND(EL$55>=Assumptions!$F149,EL$55<=Assumptions!$G149),1/Assumptions!$H149,0) -> 0 | EM67: =IF(AND(EM$55>=Assumptions!$F149,EM$55<=Assumptions!$G149),1/Assumptions!$H149,0) -> 0
B68: Developer Fee (GC) | D68: 671312 | I68: TRUE | J68: 1 | K68: =IF(AND(K$55>=Assumptions!$F150,K$55<=Assumptions!$G150),1/Assumptions!$H150,0) -> 0 | L68: =IF(AND(L$55>=Assumptions!$F150,L$55<=Assumptions!$G150),1/Assumptions!$H150,0) -> 0 | M68: =IF(AND(M$55>=Assumptions!$F150,M$55<=Assumptions!$G150),1/Assumptions!$H150,0) -> 0 | N68: =IF(AND(N$55>=Assumptions!$F150,N$55<=Assumptions!$G150),1/Assumptions!$H150,0) -> 0 | O68: =IF(AND(O$55>=Assumptions!$F150,O$55<=Assumptions!$G150),1/Assumptions!$H150,0) -> 0 | P68: =IF(AND(P$55>=Assumptions!$F150,P$55<=Assumptions!$G150),1/Assumptions!$H150,0) -> 0 | Q68: =IF(AND(Q$55>=Assumptions!$F150,Q$55<=Assumptions!$G150),1/Assumptions!$H150,0) -> 0 | R68: =IF(AND(R$55>=Assumptions!$F150,R$55<=Assumptions!$G150),1/Assumptions!$H150,0) -> 0 | S68: =IF(AND(S$55>=Assumptions!$F150,S$55<=Assumptions!$G150),1/Assumptions!$H150,0) -> 0 | T68: =IF(AND(T$55>=Assumptions!$F150,T$55<=Assumptions!$G150),1/Assumptions!$H150,0) -> 0 | U68: =IF(AND(U$55>=Assumptions!$F150,U$55<=Assumptions!$G150),1/Assumptions!$H150,0) -> 0 | V68: =IF(AND(V$55>=Assumptions!$F150,V$55<=Assumptions!$G150),1/Assumptions!$H150,0) -> 0 | W68: =IF(AND(W$55>=Assumptions!$F150,W$55<=Assumptions!$G150),1/Assumptions!$H150,0) -> 0 | X68: =IF(AND(X$55>=Assumptions!$F150,X$55<=Assumptions!$G150),1/Assumptions!$H150,0) -> 0 | Y68: =IF(AND(Y$55>=Assumptions!$F150,Y$55<=Assumptions!$G150),1/Assumptions!$H150,0) -> 0 | Z68: =IF(AND(Z$55>=Assumptions!$F150,Z$55<=Assumptions!$G150),1/Assumptions!$H150,0) -> 0 | AA68: =IF(AND(AA$55>=Assumptions!$F150,AA$55<=Assumptions!$G150),1/Assumptions!$H150,0) -> 0 | AB68: =IF(AND(AB$55>=Assumptions!$F150,AB$55<=Assumptions!$G150),1/Assumptions!$H150,0) -> 0 | AC68: =IF(AND(AC$55>=Assumptions!$F150,AC$55<=Assumptions!$G150),1/Assumptions!$H150,0) -> 0 | AD68: =IF(AND(AD$55>=Assumptions!$F150,AD$55<=Assumptions!$G150),1/Assumptions!$H150,0) -> 0 | AE68: =IF(AND(AE$55>=Assumptions!$F150,AE$55<=Assumptions!$G150),1/Assumptions!$H150,0) -> 0 | AF68: =IF(AND(AF$55>=Assumptions!$F150,AF$55<=Assumptions!$G150),1/Assumptions!$H150,0) -> 0 | AG68: =IF(AND(AG$55>=Assumptions!$F150,AG$55<=Assumptions!$G150),1/Assumptions!$H150,0) -> 0 | AH68: =IF(AND(AH$55>=Assumptions!$F150,AH$55<=Assumptions!$G150),1/Assumptions!$H150,0) -> 0 | AI68: =IF(AND(AI$55>=Assumptions!$F150,AI$55<=Assumptions!$G150),1/Assumptions!$H150,0) -> 1 | AJ68: =IF(AND(AJ$55>=Assumptions!$F150,AJ$55<=Assumptions!$G150),1/Assumptions!$H150,0) -> 0 | AK68: =IF(AND(AK$55>=Assumptions!$F150,AK$55<=Assumptions!$G150),1/Assumptions!$H150,0) -> 0 | AL68: =IF(AND(AL$55>=Assumptions!$F150,AL$55<=Assumptions!$G150),1/Assumptions!$H150,0) -> 0 | AM68: =IF(AND(AM$55>=Assumptions!$F150,AM$55<=Assumptions!$G150),1/Assumptions!$H150,0) -> 0 | AN68: =IF(AND(AN$55>=Assumptions!$F150,AN$55<=Assumptions!$G150),1/Assumptions!$H150,0) -> 0 | AO68: =IF(AND(AO$55>=Assumptions!$F150,AO$55<=Assumptions!$G150),1/Assumptions!$H150,0) -> 0 | AP68: =IF(AND(AP$55>=Assumptions!$F150,AP$55<=Assumptions!$G150),1/Assumptions!$H150,0) -> 0 | AQ68: =IF(AND(AQ$55>=Assumptions!$F150,AQ$55<=Assumptions!$G150),1/Assumptions!$H150,0) -> 0 | AR68: =IF(AND(AR$55>=Assumptions!$F150,AR$55<=Assumptions!$G150),1/Assumptions!$H150,0) -> 0 | AS68: =IF(AND(AS$55>=Assumptions!$F150,AS$55<=Assumptions!$G150),1/Assumptions!$H150,0) -> 0 | AT68: =IF(AND(AT$55>=Assumptions!$F150,AT$55<=Assumptions!$G150),1/Assumptions!$H150,0) -> 0 | AU68: =IF(AND(AU$55>=Assumptions!$F150,AU$55<=Assumptions!$G150),1/Assumptions!$H150,0) -> 0 | AV68: =IF(AND(AV$55>=Assumptions!$F150,AV$55<=Assumptions!$G150),1/Assumptions!$H150,0) -> 0 | AW68: =IF(AND(AW$55>=Assumptions!$F150,AW$55<=Assumptions!$G150),1/Assumptions!$H150,0) -> 0 | AX68: =IF(AND(AX$55>=Assumptions!$F150,AX$55<=Assumptions!$G150),1/Assumptions!$H150,0) -> 0 | AY68: =IF(AND(AY$55>=Assumptions!$F150,AY$55<=Assumptions!$G150),1/Assumptions!$H150,0) -> 0 | AZ68: =IF(AND(AZ$55>=Assumptions!$F150,AZ$55<=Assumptions!$G150),1/Assumptions!$H150,0) -> 0 | BA68: =IF(AND(BA$55>=Assumptions!$F150,BA$55<=Assumptions!$G150),1/Assumptions!$H150,0) -> 0 | BB68: =IF(AND(BB$55>=Assumptions!$F150,BB$55<=Assumptions!$G150),1/Assumptions!$H150,0) -> 0 | BC68: =IF(AND(BC$55>=Assumptions!$F150,BC$55<=Assumptions!$G150),1/Assumptions!$H150,0) -> 0 | BD68: =IF(AND(BD$55>=Assumptions!$F150,BD$55<=Assumptions!$G150),1/Assumptions!$H150,0) -> 0 | BE68: =IF(AND(BE$55>=Assumptions!$F150,BE$55<=Assumptions!$G150),1/Assumptions!$H150,0) -> 0 | BF68: =IF(AND(BF$55>=Assumptions!$F150,BF$55<=Assumptions!$G150),1/Assumptions!$H150,0) -> 0 | BG68: =IF(AND(BG$55>=Assumptions!$F150,BG$55<=Assumptions!$G150),1/Assumptions!$H150,0) -> 0 | BH68: =IF(AND(BH$55>=Assumptions!$F150,BH$55<=Assumptions!$G150),1/Assumptions!$H150,0) -> 0 | BI68: =IF(AND(BI$55>=Assumptions!$F150,BI$55<=Assumptions!$G150),1/Assumptions!$H150,0) -> 0 | BJ68: =IF(AND(BJ$55>=Assumptions!$F150,BJ$55<=Assumptions!$G150),1/Assumptions!$H150,0) -> 0 | BK68: =IF(AND(BK$55>=Assumptions!$F150,BK$55<=Assumptions!$G150),1/Assumptions!$H150,0) -> 0 | BL68: =IF(AND(BL$55>=Assumptions!$F150,BL$55<=Assumptions!$G150),1/Assumptions!$H150,0) -> 0 | BM68: =IF(AND(BM$55>=Assumptions!$F150,BM$55<=Assumptions!$G150),1/Assumptions!$H150,0) -> 0 | BN68: =IF(AND(BN$55>=Assumptions!$F150,BN$55<=Assumptions!$G150),1/Assumptions!$H150,0) -> 0 | BO68: =IF(AND(BO$55>=Assumptions!$F150,BO$55<=Assumptions!$G150),1/Assumptions!$H150,0) -> 0 | BP68: =IF(AND(BP$55>=Assumptions!$F150,BP$55<=Assumptions!$G150),1/Assumptions!$H150,0) -> 0 | BQ68: =IF(AND(BQ$55>=Assumptions!$F150,BQ$55<=Assumptions!$G150),1/Assumptions!$H150,0) -> 0 | BR68: =IF(AND(BR$55>=Assumptions!$F150,BR$55<=Assumptions!$G150),1/Assumptions!$H150,0) -> 0 | BS68: =IF(AND(BS$55>=Assumptions!$F150,BS$55<=Assumptions!$G150),1/Assumptions!$H150,0) -> 0 | BT68: =IF(AND(BT$55>=Assumptions!$F150,BT$55<=Assumptions!$G150),1/Assumptions!$H150,0) -> 0 | BU68: =IF(AND(BU$55>=Assumptions!$F150,BU$55<=Assumptions!$G150),1/Assumptions!$H150,0) -> 0 | BV68: =IF(AND(BV$55>=Assumptions!$F150,BV$55<=Assumptions!$G150),1/Assumptions!$H150,0) -> 0 | BW68: =IF(AND(BW$55>=Assumptions!$F150,BW$55<=Assumptions!$G150),1/Assumptions!$H150,0) -> 0 | BX68: =IF(AND(BX$55>=Assumptions!$F150,BX$55<=Assumptions!$G150),1/Assumptions!$H150,0) -> 0 | BY68: =IF(AND(BY$55>=Assumptions!$F150,BY$55<=Assumptions!$G150),1/Assumptions!$H150,0) -> 0 | BZ68: =IF(AND(BZ$55>=Assumptions!$F150,BZ$55<=Assumptions!$G150),1/Assumptions!$H150,0) -> 0 | CA68: =IF(AND(CA$55>=Assumptions!$F150,CA$55<=Assumptions!$G150),1/Assumptions!$H150,0) -> 0 | CB68: =IF(AND(CB$55>=Assumptions!$F150,CB$55<=Assumptions!$G150),1/Assumptions!$H150,0) -> 0 | CC68: =IF(AND(CC$55>=Assumptions!$F150,CC$55<=Assumptions!$G150),1/Assumptions!$H150,0) -> 0 | CD68: =IF(AND(CD$55>=Assumptions!$F150,CD$55<=Assumptions!$G150),1/Assumptions!$H150,0) -> 0 | CE68: =IF(AND(CE$55>=Assumptions!$F150,CE$55<=Assumptions!$G150),1/Assumptions!$H150,0) -> 0 | CF68: =IF(AND(CF$55>=Assumptions!$F150,CF$55<=Assumptions!$G150),1/Assumptions!$H150,0) -> 0 | CG68: =IF(AND(CG$55>=Assumptions!$F150,CG$55<=Assumptions!$G150),1/Assumptions!$H150,0) -> 0 | CH68: =IF(AND(CH$55>=Assumptions!$F150,CH$55<=Assumptions!$G150),1/Assumptions!$H150,0) -> 0 | CI68: =IF(AND(CI$55>=Assumptions!$F150,CI$55<=Assumptions!$G150),1/Assumptions!$H150,0) -> 0 | CJ68: =IF(AND(CJ$55>=Assumptions!$F150,CJ$55<=Assumptions!$G150),1/Assumptions!$H150,0) -> 0 | CK68: =IF(AND(CK$55>=Assumptions!$F150,CK$55<=Assumptions!$G150),1/Assumptions!$H150,0) -> 0 | CL68: =IF(AND(CL$55>=Assumptions!$F150,CL$55<=Assumptions!$G150),1/Assumptions!$H150,0) -> 0 | CM68: =IF(AND(CM$55>=Assumptions!$F150,CM$55<=Assumptions!$G150),1/Assumptions!$H150,0) -> 0 | CN68: =IF(AND(CN$55>=Assumptions!$F150,CN$55<=Assumptions!$G150),1/Assumptions!$H150,0) -> 0 | CO68: =IF(AND(CO$55>=Assumptions!$F150,CO$55<=Assumptions!$G150),1/Assumptions!$H150,0) -> 0 | CP68: =IF(AND(CP$55>=Assumptions!$F150,CP$55<=Assumptions!$G150),1/Assumptions!$H150,0) -> 0 | CQ68: =IF(AND(CQ$55>=Assumptions!$F150,CQ$55<=Assumptions!$G150),1/Assumptions!$H150,0) -> 0 | CR68: =IF(AND(CR$55>=Assumptions!$F150,CR$55<=Assumptions!$G150),1/Assumptions!$H150,0) -> 0 | CS68: =IF(AND(CS$55>=Assumptions!$F150,CS$55<=Assumptions!$G150),1/Assumptions!$H150,0) -> 0 | CT68: =IF(AND(CT$55>=Assumptions!$F150,CT$55<=Assumptions!$G150),1/Assumptions!$H150,0) -> 0 | CU68: =IF(AND(CU$55>=Assumptions!$F150,CU$55<=Assumptions!$G150),1/Assumptions!$H150,0) -> 0 | CV68: =IF(AND(CV$55>=Assumptions!$F150,CV$55<=Assumptions!$G150),1/Assumptions!$H150,0) -> 0 | CW68: =IF(AND(CW$55>=Assumptions!$F150,CW$55<=Assumptions!$G150),1/Assumptions!$H150,0) -> 0 | CX68: =IF(AND(CX$55>=Assumptions!$F150,CX$55<=Assumptions!$G150),1/Assumptions!$H150,0) -> 0 | CY68: =IF(AND(CY$55>=Assumptions!$F150,CY$55<=Assumptions!$G150),1/Assumptions!$H150,0) -> 0 | CZ68: =IF(AND(CZ$55>=Assumptions!$F150,CZ$55<=Assumptions!$G150),1/Assumptions!$H150,0) -> 0 | DA68: =IF(AND(DA$55>=Assumptions!$F150,DA$55<=Assumptions!$G150),1/Assumptions!$H150,0) -> 0 | DB68: =IF(AND(DB$55>=Assumptions!$F150,DB$55<=Assumptions!$G150),1/Assumptions!$H150,0) -> 0 | DC68: =IF(AND(DC$55>=Assumptions!$F150,DC$55<=Assumptions!$G150),1/Assumptions!$H150,0) -> 0 | DD68: =IF(AND(DD$55>=Assumptions!$F150,DD$55<=Assumptions!$G150),1/Assumptions!$H150,0) -> 0 | DE68: =IF(AND(DE$55>=Assumptions!$F150,DE$55<=Assumptions!$G150),1/Assumptions!$H150,0) -> 0 | DF68: =IF(AND(DF$55>=Assumptions!$F150,DF$55<=Assumptions!$G150),1/Assumptions!$H150,0) -> 0 | DG68: =IF(AND(DG$55>=Assumptions!$F150,DG$55<=Assumptions!$G150),1/Assumptions!$H150,0) -> 0 | DH68: =IF(AND(DH$55>=Assumptions!$F150,DH$55<=Assumptions!$G150),1/Assumptions!$H150,0) -> 0 | DI68: =IF(AND(DI$55>=Assumptions!$F150,DI$55<=Assumptions!$G150),1/Assumptions!$H150,0) -> 0 | DJ68: =IF(AND(DJ$55>=Assumptions!$F150,DJ$55<=Assumptions!$G150),1/Assumptions!$H150,0) -> 0 | DK68: =IF(AND(DK$55>=Assumptions!$F150,DK$55<=Assumptions!$G150),1/Assumptions!$H150,0) -> 0 | DL68: =IF(AND(DL$55>=Assumptions!$F150,DL$55<=Assumptions!$G150),1/Assumptions!$H150,0) -> 0 | DM68: =IF(AND(DM$55>=Assumptions!$F150,DM$55<=Assumptions!$G150),1/Assumptions!$H150,0) -> 0 | DN68: =IF(AND(DN$55>=Assumptions!$F150,DN$55<=Assumptions!$G150),1/Assumptions!$H150,0) -> 0 | DO68: =IF(AND(DO$55>=Assumptions!$F150,DO$55<=Assumptions!$G150),1/Assumptions!$H150,0) -> 0 | DP68: =IF(AND(DP$55>=Assumptions!$F150,DP$55<=Assumptions!$G150),1/Assumptions!$H150,0) -> 0 | DQ68: =IF(AND(DQ$55>=Assumptions!$F150,DQ$55<=Assumptions!$G150),1/Assumptions!$H150,0) -> 0 | DR68: =IF(AND(DR$55>=Assumptions!$F150,DR$55<=Assumptions!$G150),1/Assumptions!$H150,0) -> 0 | DS68: =IF(AND(DS$55>=Assumptions!$F150,DS$55<=Assumptions!$G150),1/Assumptions!$H150,0) -> 0 | DT68: =IF(AND(DT$55>=Assumptions!$F150,DT$55<=Assumptions!$G150),1/Assumptions!$H150,0) -> 0 | DU68: =IF(AND(DU$55>=Assumptions!$F150,DU$55<=Assumptions!$G150),1/Assumptions!$H150,0) -> 0 | DV68: =IF(AND(DV$55>=Assumptions!$F150,DV$55<=Assumptions!$G150),1/Assumptions!$H150,0) -> 0 | DW68: =IF(AND(DW$55>=Assumptions!$F150,DW$55<=Assumptions!$G150),1/Assumptions!$H150,0) -> 0 | DX68: =IF(AND(DX$55>=Assumptions!$F150,DX$55<=Assumptions!$G150),1/Assumptions!$H150,0) -> 0 | DY68: =IF(AND(DY$55>=Assumptions!$F150,DY$55<=Assumptions!$G150),1/Assumptions!$H150,0) -> 0 | DZ68: =IF(AND(DZ$55>=Assumptions!$F150,DZ$55<=Assumptions!$G150),1/Assumptions!$H150,0) -> 0 | EA68: =IF(AND(EA$55>=Assumptions!$F150,EA$55<=Assumptions!$G150),1/Assumptions!$H150,0) -> 0 | EB68: =IF(AND(EB$55>=Assumptions!$F150,EB$55<=Assumptions!$G150),1/Assumptions!$H150,0) -> 0 | EC68: =IF(AND(EC$55>=Assumptions!$F150,EC$55<=Assumptions!$G150),1/Assumptions!$H150,0) -> 0 | ED68: =IF(AND(ED$55>=Assumptions!$F150,ED$55<=Assumptions!$G150),1/Assumptions!$H150,0) -> 0 | EE68: =IF(AND(EE$55>=Assumptions!$F150,EE$55<=Assumptions!$G150),1/Assumptions!$H150,0) -> 0 | EF68: =IF(AND(EF$55>=Assumptions!$F150,EF$55<=Assumptions!$G150),1/Assumptions!$H150,0) -> 0 | EG68: =IF(AND(EG$55>=Assumptions!$F150,EG$55<=Assumptions!$G150),1/Assumptions!$H150,0) -> 0 | EH68: =IF(AND(EH$55>=Assumptions!$F150,EH$55<=Assumptions!$G150),1/Assumptions!$H150,0) -> 0 | EI68: =IF(AND(EI$55>=Assumptions!$F150,EI$55<=Assumptions!$G150),1/Assumptions!$H150,0) -> 0 | EJ68: =IF(AND(EJ$55>=Assumptions!$F150,EJ$55<=Assumptions!$G150),1/Assumptions!$H150,0) -> 0 | EK68: =IF(AND(EK$55>=Assumptions!$F150,EK$55<=Assumptions!$G150),1/Assumptions!$H150,0) -> 0 | EL68: =IF(AND(EL$55>=Assumptions!$F150,EL$55<=Assumptions!$G150),1/Assumptions!$H150,0) -> 0 | EM68: =IF(AND(EM$55>=Assumptions!$F150,EM$55<=Assumptions!$G150),1/Assumptions!$H150,0) -> 0
B69: Operating/Start-Up Costs | D69: 57000 | I69: TRUE | J69: 1 | K69: =IF(AND(K$55>=Assumptions!$F151,K$55<=Assumptions!$G151),1/Assumptions!$H151,0) -> 0 | L69: =IF(AND(L$55>=Assumptions!$F151,L$55<=Assumptions!$G151),1/Assumptions!$H151,0) -> 0 | M69: =IF(AND(M$55>=Assumptions!$F151,M$55<=Assumptions!$G151),1/Assumptions!$H151,0) -> 0 | N69: =IF(AND(N$55>=Assumptions!$F151,N$55<=Assumptions!$G151),1/Assumptions!$H151,0) -> 0 | O69: =IF(AND(O$55>=Assumptions!$F151,O$55<=Assumptions!$G151),1/Assumptions!$H151,0) -> 0 | P69: =IF(AND(P$55>=Assumptions!$F151,P$55<=Assumptions!$G151),1/Assumptions!$H151,0) -> 0 | Q69: =IF(AND(Q$55>=Assumptions!$F151,Q$55<=Assumptions!$G151),1/Assumptions!$H151,0) -> 0 | R69: =IF(AND(R$55>=Assumptions!$F151,R$55<=Assumptions!$G151),1/Assumptions!$H151,0) -> 0.05555555556 | S69: =IF(AND(S$55>=Assumptions!$F151,S$55<=Assumptions!$G151),1/Assumptions!$H151,0) -> 0.05555555556 | T69: =IF(AND(T$55>=Assumptions!$F151,T$55<=Assumptions!$G151),1/Assumptions!$H151,0) -> 0.05555555556 | U69: =IF(AND(U$55>=Assumptions!$F151,U$55<=Assumptions!$G151),1/Assumptions!$H151,0) -> 0.05555555556 | V69: =IF(AND(V$55>=Assumptions!$F151,V$55<=Assumptions!$G151),1/Assumptions!$H151,0) -> 0.05555555556 | W69: =IF(AND(W$55>=Assumptions!$F151,W$55<=Assumptions!$G151),1/Assumptions!$H151,0) -> 0.05555555556 | X69: =IF(AND(X$55>=Assumptions!$F151,X$55<=Assumptions!$G151),1/Assumptions!$H151,0) -> 0.05555555556 | Y69: =IF(AND(Y$55>=Assumptions!$F151,Y$55<=Assumptions!$G151),1/Assumptions!$H151,0) -> 0.05555555556 | Z69: =IF(AND(Z$55>=Assumptions!$F151,Z$55<=Assumptions!$G151),1/Assumptions!$H151,0) -> 0.05555555556 | AA69: =IF(AND(AA$55>=Assumptions!$F151,AA$55<=Assumptions!$G151),1/Assumptions!$H151,0) -> 0.05555555556 | AB69: =IF(AND(AB$55>=Assumptions!$F151,AB$55<=Assumptions!$G151),1/Assumptions!$H151,0) -> 0.05555555556 | AC69: =IF(AND(AC$55>=Assumptions!$F151,AC$55<=Assumptions!$G151),1/Assumptions!$H151,0) -> 0.05555555556 | AD69: =IF(AND(AD$55>=Assumptions!$F151,AD$55<=Assumptions!$G151),1/Assumptions!$H151,0) -> 0.05555555556 | AE69: =IF(AND(AE$55>=Assumptions!$F151,AE$55<=Assumptions!$G151),1/Assumptions!$H151,0) -> 0.05555555556 | AF69: =IF(AND(AF$55>=Assumptions!$F151,AF$55<=Assumptions!$G151),1/Assumptions!$H151,0) -> 0.05555555556 | AG69: =IF(AND(AG$55>=Assumptions!$F151,AG$55<=Assumptions!$G151),1/Assumptions!$H151,0) -> 0.05555555556 | AH69: =IF(AND(AH$55>=Assumptions!$F151,AH$55<=Assumptions!$G151),1/Assumptions!$H151,0) -> 0.05555555556 | AI69: =IF(AND(AI$55>=Assumptions!$F151,AI$55<=Assumptions!$G151),1/Assumptions!$H151,0) -> 0.05555555556 | AJ69: =IF(AND(AJ$55>=Assumptions!$F151,AJ$55<=Assumptions!$G151),1/Assumptions!$H151,0) -> 0 | AK69: =IF(AND(AK$55>=Assumptions!$F151,AK$55<=Assumptions!$G151),1/Assumptions!$H151,0) -> 0 | AL69: =IF(AND(AL$55>=Assumptions!$F151,AL$55<=Assumptions!$G151),1/Assumptions!$H151,0) -> 0 | AM69: =IF(AND(AM$55>=Assumptions!$F151,AM$55<=Assumptions!$G151),1/Assumptions!$H151,0) -> 0 | AN69: =IF(AND(AN$55>=Assumptions!$F151,AN$55<=Assumptions!$G151),1/Assumptions!$H151,0) -> 0 | AO69: =IF(AND(AO$55>=Assumptions!$F151,AO$55<=Assumptions!$G151),1/Assumptions!$H151,0) -> 0 | AP69: =IF(AND(AP$55>=Assumptions!$F151,AP$55<=Assumptions!$G151),1/Assumptions!$H151,0) -> 0 | AQ69: =IF(AND(AQ$55>=Assumptions!$F151,AQ$55<=Assumptions!$G151),1/Assumptions!$H151,0) -> 0 | AR69: =IF(AND(AR$55>=Assumptions!$F151,AR$55<=Assumptions!$G151),1/Assumptions!$H151,0) -> 0 | AS69: =IF(AND(AS$55>=Assumptions!$F151,AS$55<=Assumptions!$G151),1/Assumptions!$H151,0) -> 0 | AT69: =IF(AND(AT$55>=Assumptions!$F151,AT$55<=Assumptions!$G151),1/Assumptions!$H151,0) -> 0 | AU69: =IF(AND(AU$55>=Assumptions!$F151,AU$55<=Assumptions!$G151),1/Assumptions!$H151,0) -> 0 | AV69: =IF(AND(AV$55>=Assumptions!$F151,AV$55<=Assumptions!$G151),1/Assumptions!$H151,0) -> 0 | AW69: =IF(AND(AW$55>=Assumptions!$F151,AW$55<=Assumptions!$G151),1/Assumptions!$H151,0) -> 0 | AX69: =IF(AND(AX$55>=Assumptions!$F151,AX$55<=Assumptions!$G151),1/Assumptions!$H151,0) -> 0 | AY69: =IF(AND(AY$55>=Assumptions!$F151,AY$55<=Assumptions!$G151),1/Assumptions!$H151,0) -> 0 | AZ69: =IF(AND(AZ$55>=Assumptions!$F151,AZ$55<=Assumptions!$G151),1/Assumptions!$H151,0) -> 0 | BA69: =IF(AND(BA$55>=Assumptions!$F151,BA$55<=Assumptions!$G151),1/Assumptions!$H151,0) -> 0 | BB69: =IF(AND(BB$55>=Assumptions!$F151,BB$55<=Assumptions!$G151),1/Assumptions!$H151,0) -> 0 | BC69: =IF(AND(BC$55>=Assumptions!$F151,BC$55<=Assumptions!$G151),1/Assumptions!$H151,0) -> 0 | BD69: =IF(AND(BD$55>=Assumptions!$F151,BD$55<=Assumptions!$G151),1/Assumptions!$H151,0) -> 0 | BE69: =IF(AND(BE$55>=Assumptions!$F151,BE$55<=Assumptions!$G151),1/Assumptions!$H151,0) -> 0 | BF69: =IF(AND(BF$55>=Assumptions!$F151,BF$55<=Assumptions!$G151),1/Assumptions!$H151,0) -> 0 | BG69: =IF(AND(BG$55>=Assumptions!$F151,BG$55<=Assumptions!$G151),1/Assumptions!$H151,0) -> 0 | BH69: =IF(AND(BH$55>=Assumptions!$F151,BH$55<=Assumptions!$G151),1/Assumptions!$H151,0) -> 0 | BI69: =IF(AND(BI$55>=Assumptions!$F151,BI$55<=Assumptions!$G151),1/Assumptions!$H151,0) -> 0 | BJ69: =IF(AND(BJ$55>=Assumptions!$F151,BJ$55<=Assumptions!$G151),1/Assumptions!$H151,0) -> 0 | BK69: =IF(AND(BK$55>=Assumptions!$F151,BK$55<=Assumptions!$G151),1/Assumptions!$H151,0) -> 0 | BL69: =IF(AND(BL$55>=Assumptions!$F151,BL$55<=Assumptions!$G151),1/Assumptions!$H151,0) -> 0 | BM69: =IF(AND(BM$55>=Assumptions!$F151,BM$55<=Assumptions!$G151),1/Assumptions!$H151,0) -> 0 | BN69: =IF(AND(BN$55>=Assumptions!$F151,BN$55<=Assumptions!$G151),1/Assumptions!$H151,0) -> 0 | BO69: =IF(AND(BO$55>=Assumptions!$F151,BO$55<=Assumptions!$G151),1/Assumptions!$H151,0) -> 0 | BP69: =IF(AND(BP$55>=Assumptions!$F151,BP$55<=Assumptions!$G151),1/Assumptions!$H151,0) -> 0 | BQ69: =IF(AND(BQ$55>=Assumptions!$F151,BQ$55<=Assumptions!$G151),1/Assumptions!$H151,0) -> 0 | BR69: =IF(AND(BR$55>=Assumptions!$F151,BR$55<=Assumptions!$G151),1/Assumptions!$H151,0) -> 0 | BS69: =IF(AND(BS$55>=Assumptions!$F151,BS$55<=Assumptions!$G151),1/Assumptions!$H151,0) -> 0 | BT69: =IF(AND(BT$55>=Assumptions!$F151,BT$55<=Assumptions!$G151),1/Assumptions!$H151,0) -> 0 | BU69: =IF(AND(BU$55>=Assumptions!$F151,BU$55<=Assumptions!$G151),1/Assumptions!$H151,0) -> 0 | BV69: =IF(AND(BV$55>=Assumptions!$F151,BV$55<=Assumptions!$G151),1/Assumptions!$H151,0) -> 0 | BW69: =IF(AND(BW$55>=Assumptions!$F151,BW$55<=Assumptions!$G151),1/Assumptions!$H151,0) -> 0 | BX69: =IF(AND(BX$55>=Assumptions!$F151,BX$55<=Assumptions!$G151),1/Assumptions!$H151,0) -> 0 | BY69: =IF(AND(BY$55>=Assumptions!$F151,BY$55<=Assumptions!$G151),1/Assumptions!$H151,0) -> 0 | BZ69: =IF(AND(BZ$55>=Assumptions!$F151,BZ$55<=Assumptions!$G151),1/Assumptions!$H151,0) -> 0 | CA69: =IF(AND(CA$55>=Assumptions!$F151,CA$55<=Assumptions!$G151),1/Assumptions!$H151,0) -> 0 | CB69: =IF(AND(CB$55>=Assumptions!$F151,CB$55<=Assumptions!$G151),1/Assumptions!$H151,0) -> 0 | CC69: =IF(AND(CC$55>=Assumptions!$F151,CC$55<=Assumptions!$G151),1/Assumptions!$H151,0) -> 0 | CD69: =IF(AND(CD$55>=Assumptions!$F151,CD$55<=Assumptions!$G151),1/Assumptions!$H151,0) -> 0 | CE69: =IF(AND(CE$55>=Assumptions!$F151,CE$55<=Assumptions!$G151),1/Assumptions!$H151,0) -> 0 | CF69: =IF(AND(CF$55>=Assumptions!$F151,CF$55<=Assumptions!$G151),1/Assumptions!$H151,0) -> 0 | CG69: =IF(AND(CG$55>=Assumptions!$F151,CG$55<=Assumptions!$G151),1/Assumptions!$H151,0) -> 0 | CH69: =IF(AND(CH$55>=Assumptions!$F151,CH$55<=Assumptions!$G151),1/Assumptions!$H151,0) -> 0 | CI69: =IF(AND(CI$55>=Assumptions!$F151,CI$55<=Assumptions!$G151),1/Assumptions!$H151,0) -> 0 | CJ69: =IF(AND(CJ$55>=Assumptions!$F151,CJ$55<=Assumptions!$G151),1/Assumptions!$H151,0) -> 0 | CK69: =IF(AND(CK$55>=Assumptions!$F151,CK$55<=Assumptions!$G151),1/Assumptions!$H151,0) -> 0 | CL69: =IF(AND(CL$55>=Assumptions!$F151,CL$55<=Assumptions!$G151),1/Assumptions!$H151,0) -> 0 | CM69: =IF(AND(CM$55>=Assumptions!$F151,CM$55<=Assumptions!$G151),1/Assumptions!$H151,0) -> 0 | CN69: =IF(AND(CN$55>=Assumptions!$F151,CN$55<=Assumptions!$G151),1/Assumptions!$H151,0) -> 0 | CO69: =IF(AND(CO$55>=Assumptions!$F151,CO$55<=Assumptions!$G151),1/Assumptions!$H151,0) -> 0 | CP69: =IF(AND(CP$55>=Assumptions!$F151,CP$55<=Assumptions!$G151),1/Assumptions!$H151,0) -> 0 | CQ69: =IF(AND(CQ$55>=Assumptions!$F151,CQ$55<=Assumptions!$G151),1/Assumptions!$H151,0) -> 0 | CR69: =IF(AND(CR$55>=Assumptions!$F151,CR$55<=Assumptions!$G151),1/Assumptions!$H151,0) -> 0 | CS69: =IF(AND(CS$55>=Assumptions!$F151,CS$55<=Assumptions!$G151),1/Assumptions!$H151,0) -> 0 | CT69: =IF(AND(CT$55>=Assumptions!$F151,CT$55<=Assumptions!$G151),1/Assumptions!$H151,0) -> 0 | CU69: =IF(AND(CU$55>=Assumptions!$F151,CU$55<=Assumptions!$G151),1/Assumptions!$H151,0) -> 0 | CV69: =IF(AND(CV$55>=Assumptions!$F151,CV$55<=Assumptions!$G151),1/Assumptions!$H151,0) -> 0 | CW69: =IF(AND(CW$55>=Assumptions!$F151,CW$55<=Assumptions!$G151),1/Assumptions!$H151,0) -> 0 | CX69: =IF(AND(CX$55>=Assumptions!$F151,CX$55<=Assumptions!$G151),1/Assumptions!$H151,0) -> 0 | CY69: =IF(AND(CY$55>=Assumptions!$F151,CY$55<=Assumptions!$G151),1/Assumptions!$H151,0) -> 0 | CZ69: =IF(AND(CZ$55>=Assumptions!$F151,CZ$55<=Assumptions!$G151),1/Assumptions!$H151,0) -> 0 | DA69: =IF(AND(DA$55>=Assumptions!$F151,DA$55<=Assumptions!$G151),1/Assumptions!$H151,0) -> 0 | DB69: =IF(AND(DB$55>=Assumptions!$F151,DB$55<=Assumptions!$G151),1/Assumptions!$H151,0) -> 0 | DC69: =IF(AND(DC$55>=Assumptions!$F151,DC$55<=Assumptions!$G151),1/Assumptions!$H151,0) -> 0 | DD69: =IF(AND(DD$55>=Assumptions!$F151,DD$55<=Assumptions!$G151),1/Assumptions!$H151,0) -> 0 | DE69: =IF(AND(DE$55>=Assumptions!$F151,DE$55<=Assumptions!$G151),1/Assumptions!$H151,0) -> 0 | DF69: =IF(AND(DF$55>=Assumptions!$F151,DF$55<=Assumptions!$G151),1/Assumptions!$H151,0) -> 0 | DG69: =IF(AND(DG$55>=Assumptions!$F151,DG$55<=Assumptions!$G151),1/Assumptions!$H151,0) -> 0 | DH69: =IF(AND(DH$55>=Assumptions!$F151,DH$55<=Assumptions!$G151),1/Assumptions!$H151,0) -> 0 | DI69: =IF(AND(DI$55>=Assumptions!$F151,DI$55<=Assumptions!$G151),1/Assumptions!$H151,0) -> 0 | DJ69: =IF(AND(DJ$55>=Assumptions!$F151,DJ$55<=Assumptions!$G151),1/Assumptions!$H151,0) -> 0 | DK69: =IF(AND(DK$55>=Assumptions!$F151,DK$55<=Assumptions!$G151),1/Assumptions!$H151,0) -> 0 | DL69: =IF(AND(DL$55>=Assumptions!$F151,DL$55<=Assumptions!$G151),1/Assumptions!$H151,0) -> 0 | DM69: =IF(AND(DM$55>=Assumptions!$F151,DM$55<=Assumptions!$G151),1/Assumptions!$H151,0) -> 0 | DN69: =IF(AND(DN$55>=Assumptions!$F151,DN$55<=Assumptions!$G151),1/Assumptions!$H151,0) -> 0 | DO69: =IF(AND(DO$55>=Assumptions!$F151,DO$55<=Assumptions!$G151),1/Assumptions!$H151,0) -> 0 | DP69: =IF(AND(DP$55>=Assumptions!$F151,DP$55<=Assumptions!$G151),1/Assumptions!$H151,0) -> 0 | DQ69: =IF(AND(DQ$55>=Assumptions!$F151,DQ$55<=Assumptions!$G151),1/Assumptions!$H151,0) -> 0 | DR69: =IF(AND(DR$55>=Assumptions!$F151,DR$55<=Assumptions!$G151),1/Assumptions!$H151,0) -> 0 | DS69: =IF(AND(DS$55>=Assumptions!$F151,DS$55<=Assumptions!$G151),1/Assumptions!$H151,0) -> 0 | DT69: =IF(AND(DT$55>=Assumptions!$F151,DT$55<=Assumptions!$G151),1/Assumptions!$H151,0) -> 0 | DU69: =IF(AND(DU$55>=Assumptions!$F151,DU$55<=Assumptions!$G151),1/Assumptions!$H151,0) -> 0 | DV69: =IF(AND(DV$55>=Assumptions!$F151,DV$55<=Assumptions!$G151),1/Assumptions!$H151,0) -> 0 | DW69: =IF(AND(DW$55>=Assumptions!$F151,DW$55<=Assumptions!$G151),1/Assumptions!$H151,0) -> 0 | DX69: =IF(AND(DX$55>=Assumptions!$F151,DX$55<=Assumptions!$G151),1/Assumptions!$H151,0) -> 0 | DY69: =IF(AND(DY$55>=Assumptions!$F151,DY$55<=Assumptions!$G151),1/Assumptions!$H151,0) -> 0 | DZ69: =IF(AND(DZ$55>=Assumptions!$F151,DZ$55<=Assumptions!$G151),1/Assumptions!$H151,0) -> 0 | EA69: =IF(AND(EA$55>=Assumptions!$F151,EA$55<=Assumptions!$G151),1/Assumptions!$H151,0) -> 0 | EB69: =IF(AND(EB$55>=Assumptions!$F151,EB$55<=Assumptions!$G151),1/Assumptions!$H151,0) -> 0 | EC69: =IF(AND(EC$55>=Assumptions!$F151,EC$55<=Assumptions!$G151),1/Assumptions!$H151,0) -> 0 | ED69: =IF(AND(ED$55>=Assumptions!$F151,ED$55<=Assumptions!$G151),1/Assumptions!$H151,0) -> 0 | EE69: =IF(AND(EE$55>=Assumptions!$F151,EE$55<=Assumptions!$G151),1/Assumptions!$H151,0) -> 0 | EF69: =IF(AND(EF$55>=Assumptions!$F151,EF$55<=Assumptions!$G151),1/Assumptions!$H151,0) -> 0 | EG69: =IF(AND(EG$55>=Assumptions!$F151,EG$55<=Assumptions!$G151),1/Assumptions!$H151,0) -> 0 | EH69: =IF(AND(EH$55>=Assumptions!$F151,EH$55<=Assumptions!$G151),1/Assumptions!$H151,0) -> 0 | EI69: =IF(AND(EI$55>=Assumptions!$F151,EI$55<=Assumptions!$G151),1/Assumptions!$H151,0) -> 0 | EJ69: =IF(AND(EJ$55>=Assumptions!$F151,EJ$55<=Assumptions!$G151),1/Assumptions!$H151,0) -> 0 | EK69: =IF(AND(EK$55>=Assumptions!$F151,EK$55<=Assumptions!$G151),1/Assumptions!$H151,0) -> 0 | EL69: =IF(AND(EL$55>=Assumptions!$F151,EL$55<=Assumptions!$G151),1/Assumptions!$H151,0) -> 0 | EM69: =IF(AND(EM$55>=Assumptions!$F151,EM$55<=Assumptions!$G151),1/Assumptions!$H151,0) -> 0
